Workbook

Sheet Contents
A1: 80 | M1: ESC USE ONLY
D2: ESSENTIAL SERVICES COMMISSION
D3: Water Price Review
D4: Financial Model Template
B7: Table of Contents | F7: Water Business: | H7: =+N24 -> South Gippsland Water | I7: =+O24 -> SGW
B8: Section & Sheet Titles | F8: Regulatory Period: | H8: 2018-19 to 2022-23 (Fourth) | N8: [Decision] | O8: [Month] | P8: [Year] | Q8: [Version]
F9: Model Name: | H9: =I7&"_Price Review Template_"&O9&P9&Q9 -> SGW_Price Review Template_Dec2016 - v1 | N9: Draft | O9: Dec | P9: 2016 | Q9: - v1 | R9: << Select
B10: a. | C10: =+KeyAssumptionsPriceControl_FO!B1 -> Key Assumptions Price Control | F10: Decision type: | H10: =+N9&" Decision" -> Draft Decision | N10: Draft | O10: Jan | P10: 2016 | Q10: - v1
B11: b. | C11: Expenditure Detail - Removed as it contained confidential information | N11: Final | O11: Feb | P11: 2017 | Q11: - v1.2
B12: c. | C12: =Opex_FO!B1 -> Operating Expenditure - Forecast | F12: Model Key: | O12: Mar | P12: 2018 | Q12: - v3
B13: d. | C13: =Opex_Breakdown!B1 -> Operating Expenditure - Breakdown | O13: Apr | P13: 2019 | Q13: - v3.1
B14: e. | C14: =+'Capex_FO input'!B1 -> Capital Expenditure - Forecast Input | G14: BLUE | H14: =+I7&" - DATA INPUT CELL" -> SGW - DATA INPUT CELL | O14: May | P14: 2020 | Q14: - v4
B15: f. | C15: =Capex_FO_AC!B1 -> Capital Expenditure - Asset Category Breakdown | O15: Jun | P15: 2021 | Q15: - v4.1
B16: g. | C16: =ExpSummary_FO!B1 -> Expenditure Summary | G16: YELLOW | H16: NOTES / INSTRUCTIONS | O16: Jul | Q16: - v5
B17: h. | C17: =RollForward_FO!B1 -> Rolled forward regulatory asset base (RAB) | O17: Aug | Q17: - v5.1
B18: i. | C18: =PrevPerAdj_FO!B1 -> Previous period adjustments | G18: GREY | H18: MODEL PARAMETERS / ASSUMPTIONS | O18: Sep | Q18: - v6
B19: j. | C19: =RevenuePriceCap_FO!C1 -> Revenue forecast (price caps) | O19: Oct | Q19: - v6.1
B20: k. | C20: Revenue forecast (tariff basket) | G20: WHITE | H20: FORMULA / HARDCODED VALUES | O20: Nov | Q20: - v7
B21: l. | C21: =NotPres_FO!B1 -> Non Prescribed Services | O21: Dec | Q21: - v7.1
B22: m. | C22: ='Finance&Tax_FO'!B1 -> Cash, debt and tax assumptions | G22: ORANGE | H22: FORMULA DIFFERENT TO ADJACENT CELL
B23: n. | C23: ='Rev&RAV_FO'!B1 -> Revenue requirement detail | N23: [Business]
B24: o. | C24: =Indicators_FO!B1 -> Financial indicators | G24: GREEN | H24: DATA FROM 2013 DECISION OR PERFORMANCE REPORT | N24: South Gippsland Water | O24: =+VLOOKUP(N24,N25:O42,2,FALSE) -> SGW
B25: p. | C25: =Outcomes!B1 -> Outcomes | N25: Barwon Water | O25: BW
B26: q. | C26: =GSL!B1 -> Guaranteed Service Levels (GSL) | G26: RED | H26: ERROR CHECK | N26: Central Highlands Water | O26: CHW
N27: City West Water | O27: CWW
N28: Coliban Water | O28: CW
N29: East Gippsland Water | O29: EGW
N30: Gippsland Water | O30: CGW
N31: Goulburn Valley Water | O31: GVW
N32: GWM Water | O32: GWMW | P32: diff model
N33: Lower Murray Water - Urban | O33: LMW-U | P33: diff model
N34: Lower Murray Water - Rural | O34: LMW-R
N35: North East Water | O35: NEW
N36: South East Water | O36: SEW
N37: South Gippsland Water | O37: SGW
N38: Southern Rural Water | O38: SRW | P38: diff model
N39: Wannon Water | O39: WNW
N40: Western Water | O40: WW
N41: Westernport Water | O41: WPW
N42: Yarra Valley Water | O42: YVW

Sheet KeyAssumptionsPriceControl_FO
A1: 80 | B1: Key Assumptions Price Control
B2: =+Contents!H7 -> South Gippsland Water
B3: Go to Table of Contents
L4: FIRST REG PERIOD | P4: SECOND REG PERIOD | U4: THIRD REG PERIOD | Z4: FOURTH REG PERIOD | AC4: FIFTH REG PERIOD
F6: Straight Line | K6: 2006 | L6: 2007 | M6: 2008 | N6: 2009 | O6: 2010 | P6: 2011 | Q6: 2012 | R6: 2013 | S6: 2014 | T6: 2015 | U6: 2016 | V6: 2017 | W6: 2018 | X6: 2019 | Y6: 2020 | Z6: 2021 | AA6: 2022 | AB6: 2023 | AC6: 2024 | AD6: 2025 | AE6: 2026 | AF6: 2027 | AG6: 2028
F7: Declining Balance | I7: 2003-04 | J7: 2004-05 | K7: =+CONCATENATE(K6-1,"-",RIGHT(K6,2)) -> 2005-06 | L7: =+CONCATENATE(L6-1,"-",RIGHT(L6,2)) -> 2006-07 | M7: 2007-08 | N7: 2008-09 | O7: 2009-10 | P7: 2010-11 | Q7: 2011-12 | R7: 2012-13 | S7: 2013-14 | T7: 2014-15 | U7: 2015-16 | V7: 2016-17 | W7: 2017-18 | X7: 2018-19 | Y7: 2019-20 | Z7: 2020-21 | AA7: 2021-22 | AB7: 2022-23 | AC7: 2023-24 | AD7: 2024-25 | AE7: 2025-26 | AF7: 2026-27 | AG7: 2027-28
E11: Inflation assumptions
W12: Estimate
F13: March quarter annual CPI | I13: 141.3 | J13: 144.1 | K13: 147.5 | L13: 151.9 | M13: 155.6 | N13: 162.2 | O13: 166.2 | P13: 171 | Q13: 176.7 | R13: 99.9 | S13: 102.4 | T13: 105.4 | U13: 106.8 | V13: 108.2 | W13: 110.4999966 | X13: 113.0414965 | Y13: 115.6414509 | Z13: 118.3012043 | AA13: 121.022132 | AB13: 123.805641 | AC13: 126.6531708 | AD13: 129.5661937 | AE13: 132.5462162 | AF13: 135.5947791 | AG13: 138.713459
F14: Inflation | J14: =+J13/I13-1 -> 0.01981599434 | K14: 0.02359472588 | L14: 0.02983050847 | M14: 0.02435813035 | N14: 0.04241645244 | O14: 0.02466091245 | P14: 0.02888086643 | Q14: 0.03333333333 | R14: 0.01584606678 | S14: =+IF(S13=0,$X$44,S13/R13-1) -> 0.02502502503 | T14: 0.029296875 | U14: 0.01328273245 | V14: 0.01310861423 | W14: 0.0212569 | X14: 0.023 | Y14: 0.023 | Z14: 0.023 | AA14: 0.023 | AB14: 0.023 | AC14: 0.023 | AD14: 0.023 | AE14: 0.023 | AF14: 0.023 | AG14: 0.023
F15: Inflation factor | I15: 0.7871866295 | J15: 0.8027855153 | K15: 0.8217270195 | L15: 0.8462395543 | M15: 0.8668523677 | N15: 0.9036211699 | O15: 0.9259052925 | P15: 0.9526462396 | Q15: 0.9844011142 | R15: =+R13/$W$13 -> 0.9040724262 | S15: 0.9266968613 | T15: 0.9538461834 | U15: 0.966515867 | V15: =+V13/$W$13 -> 0.9791855507 | W15: =+W13/$W$13 -> 1 | X15: =+W15*(1+X14) -> 1.023 | Y15: =+X15*(1+Y14) -> 1.046529 | Z15: 1.070599167 | AA15: 1.095222948 | AB15: 1.120413076 | AC15: 1.146182576 | AD15: 1.172544776 | AE15: 1.199513305 | AF15: 1.227102112 | AG15: 1.25532546
I16: CPI index re-referenced in 2012-13, shaded values have been hardcoded to lock in RAB value.
E21: Cost of debt - 10 year trailing average (Nominal)
V22: Estimate | W22: Estimate
E23: Cost of debt | L23: 0.06981666667 | M23: 0.07414 | N23: 0.0691525788 | O23: 0.07361870984 | P23: 0.07046784142 | Q23: 0.06308887941 | R23: 0.0526945046 | S23: 0.070525 | T23: 0.05360833333 | U23: 0.05270138413 | V23: 0.04908333333 | W23: 0.04908333333 | X23: 0.0568 | Y23: 0.0592 | Z23: 0.0613 | AA23: 0.0632 | AB23: 0.0642 | AC23: 0.0642 | AD23: 0.0642 | AE23: 0.0642 | AF23: 0.0642 | AG23: 0.0642
E24: Re-financing weightings - average 10 yrs | L24: =1/10 -> 0.1 | M24: =1/10 -> 0.1 | N24: =1/10 -> 0.1 | O24: =1/10 -> 0.1 | P24: =1/10 -> 0.1 | Q24: 0.1 | R24: 0.1 | S24: 0.1 | T24: 0.1 | U24: 0.1 | V24: 0.1 | W24: 0.1 | X24: 0.1 | Y24: 0.1 | Z24: 0.1 | AA24: 0.1 | AB24: 0.1 | AC24: 0.1 | AD24: 0.1 | AE24: 0.1 | AF24: 0.1 | AG24: 0.1
E26: Cost of debt - 10 year trailing average | V26: =IF(U23<>"",SUMPRODUCT(L23:U23,L24:U24),"") -> 0.06498138982 | W26: =IF(V23<>"",SUMPRODUCT(M23:V23,M24:V24),"") -> 0.06290805649 | X26: =IF(W23<>"",SUMPRODUCT(N23:W23,N24:W24),"") -> 0.06040238982 | Y26: =IF(X23<>"",SUMPRODUCT(O23:X23,O24:X24),"") -> 0.05916713194 | Z26: =IF(Y23<>"",SUMPRODUCT(P23:Y23,P24:Y24),"") -> 0.05772526096 | AA26: 0.05680847681 | AB26: 0.05681958887 | AC26: 0.05797013841 | AD26: 0.05733763841 | AE26: 0.05839680508 | AF26: 0.05954666667 | AG26: 0.06105833333
E30: WACC assumptions (retained for historical purposes only) | U30: Regulatory Rate of Return (RRR) - Nominal
K32: 1st period | M32: 2nd period | O32: 3rd period | U32: Cost of Debt | X32: =+X26 -> 0.06040238982 | Y32: =+$X$32 -> 0.06040238982 | Z32: 0.06040238982 | AA32: 0.06040238982 | AB32: 0.06040238982 | AC32: 0.06040238982 | AD32: 0.06040238982 | AE32: 0.06040238982 | AF32: 0.06040238982 | AG32: 0.06040238982 | AI32: << Linked to Benchmark tax liability calculation (Rev&RAV_FO)
E33: Parameters
F34: Risk Free Rate (Real) | K34: =+HLOOKUP(Contents!$I$7&1,Determination_Lookup!$C$54:$BD$61,2,FALSE) -> 0.0267 | M34: =+HLOOKUP(Contents!$I$7&2,Determination_Lookup!$C$54:$BD$61,2,FALSE) -> 0.0323 | O34: =+HLOOKUP(Contents!$I$7&3,Determination_Lookup!$C$54:$BD$61,2,FALSE) -> 0.005959
F35: Debt Premium | K35: =+HLOOKUP(Contents!$I$7&1,Determination_Lookup!$C$54:$BD$61,3,FALSE) -> 0.0116 | M35: =+HLOOKUP(Contents!$I$7&2,Determination_Lookup!$C$54:$BD$61,3,FALSE) -> 0.0175 | O35: =+HLOOKUP(Contents!$I$7&3,Determination_Lookup!$C$54:$BD$61,3,FALSE) -> 0.0399
F36: Equity Premium | K36: =+HLOOKUP(Contents!$I$7&1,Determination_Lookup!$C$54:$BD$61,4,FALSE) -> 0.06 | M36: =+HLOOKUP(Contents!$I$7&2,Determination_Lookup!$C$54:$BD$61,4,FALSE) -> 0.06 | O36: =+HLOOKUP(Contents!$I$7&3,Determination_Lookup!$C$54:$BD$61,4,FALSE) -> 0.06 | U36: Regulatory Rate of Return (RRR) - Real
F37: Equity Beta | K37: =+HLOOKUP(Contents!$I$7&1,Determination_Lookup!$C$54:$BD$61,5,FALSE) -> 0.75 | M37: =+HLOOKUP(Contents!$I$7&2,Determination_Lookup!$C$54:$BD$61,5,FALSE) -> 0.65 | O37: =+HLOOKUP(Contents!$I$7&3,Determination_Lookup!$C$54:$BD$61,5,FALSE) -> 0.65
F38: Gearing (Debt/Assets) | K38: =+HLOOKUP(Contents!$I$7&1,Determination_Lookup!$C$54:$BD$61,6,FALSE) -> 0.6 | M38: =+HLOOKUP(Contents!$I$7&2,Determination_Lookup!$C$54:$BD$61,6,FALSE) -> 0.6 | O38: =+HLOOKUP(Contents!$I$7&3,Determination_Lookup!$C$54:$BD$61,6,FALSE) -> 0.6 | U38: Cost of Debt | X38: =(1+X32)/(1+X44)-1 -> 0.03656147587 | Y38: =+$X$38 -> 0.03656147587 | Z38: =+$X$38 -> 0.03656147587 | AA38: 0.03656147587 | AB38: 0.03656147587 | AC38: 0.03656147587 | AD38: 0.03656147587 | AE38: 0.03656147587 | AF38: 0.03656147587 | AG38: 0.03656147587
F39: Forecast Inflation | K39: =+HLOOKUP(Contents!$I$7&1,Determination_Lookup!$C$54:$BD$61,7,FALSE) -> 0.0255 | M39: =+HLOOKUP(Contents!$I$7&2,Determination_Lookup!$C$54:$BD$61,7,FALSE) -> 0.029 | O39: =+HLOOKUP(Contents!$I$7&3,Determination_Lookup!$C$54:$BD$61,7,FALSE) -> 0.0275
F40: Franking credit value | K40: =+HLOOKUP(Contents!$I$7&1,Determination_Lookup!$C$54:$BD$61,8,FALSE) -> 0.5 | M40: =+HLOOKUP(Contents!$I$7&2,Determination_Lookup!$C$54:$BD$61,8,FALSE) -> 0.5 | O40: =+HLOOKUP(Contents!$I$7&3,Determination_Lookup!$C$54:$BD$61,8,FALSE) -> 0.5 | U40: Return on Equity | X40: =IF(AG65<>0,(AG65/100),IF(AG63<>0,(AG63/100),(AG61/100))) -> 0.045 | Y40: =+$X$40 -> 0.045 | Z40: 0.045 | AA40: 0.045 | AB40: 0.045 | AC40: 0.045 | AD40: 0.045 | AE40: 0.045 | AF40: 0.045 | AG40: 0.045 | AI40: << Source: PREMO Assessment Matrix
E42: 'Vanilla' After Tax WACC (Real) | K42: =ROUND(((K34+K36*K37)*(1-K38))+((K34+K35)*K38),3) -> 0.052 | M42: =ROUND(((M34+M36*M37)*(1-M38))+((M34+M35)*M38),3) -> 0.058 | O42: =ROUND(((O34+O36*O37)*(1-O38))+((O34+O35)*O38),3) -> 0.045 | U42: RRR (real) | X42: =ROUND((X40*(1-X43)+X38*X43),3) -> 0.04 | Y42: 0.04 | Z42: 0.04 | AA42: 0.04 | AB42: 0.04 | AC42: 0.04 | AD42: 0.04 | AE42: 0.04 | AF42: 0.04 | AG42: 0.04
U43: Gearing | X43: 0.6 | Y43: =+X43 -> 0.6 | Z43: =+Y43 -> 0.6 | AA43: 0.6 | AB43: 0.6 | AC43: 0.6 | AD43: 0.6 | AE43: 0.6 | AF43: 0.6 | AG43: 0.6
U44: Forecast Inflation | X44: 0.023 | Y44: =+X44 -> 0.023 | Z44: 0.023 | AA44: 0.023 | AB44: 0.023 | AC44: 0.023 | AD44: 0.023 | AE44: 0.023 | AF44: 0.023 | AG44: 0.023
E46: Form of price control selected
E48: Price caps | I48: 2
U49: PREMO Graded Scoring System (for reference only) | AB49: PREMO Assessment Matrix (linked to Regulatory Rate of Return calculation above)
E50: Revenue cap / Hybrid Tariff Basket
V52: Water business | X52: ESC assessment | Z52: Difference | AD52: Water business self-assessment
V53: self-assessment | X53: of submission
AD54: Leading | AE54: Advanced | AF54: Standard | AG54: Basic
U55: Risk | V55: 2.5 | Z55: =IFERROR(IF(X55=0,"",X55-V55),"") ->  | AB55: ESC assessment of submission | AC55: Leading | AD55: 5.3
U56: Engagement | V56: 2.75 | Z56: =IFERROR(IF(X56=0,"",X56-V56),"") ->  | AC56: Advanced | AD56: 4.7 | AE56: 4.9
U57: Management | V57: 2.25 | Z57: =IFERROR(IF(X57=0,"",X57-V57),"") ->  | AC57: Standard | AD57: 4.1 | AE57: 4.3 | AF57: 4.5
U58: Outcomes | V58: 2.5 | Z58: =IFERROR(IF(X58=0,"",X58-V58),"") ->  | AC58: Basic | AF58: 3.9 | AG58: 4.1
U60: Total Score | V60: =SUM(V55:V58) -> 10 | X60: =SUM(X55:X58) -> 0 | Z60: =IFERROR(IF(X60=0,"",X60-V60),"") -> 
AB61: Water business self-assessment (Maximum allowable ROE) | AF61: Standard | AG61: =+VLOOKUP(AF61,$AF$72:$AG$76,2,FALSE) -> 4.5
AB63: ROE Override (Must be less than Maximum allowable ROE) | AG63: =+IF(AF63<=AG61,AF63,"CHECK") -> 0
U64: Rating | V64: =IF(V60<4,"",IF(AND(V60>=4,V60<=7.25),"Basic",IF(AND(V60>=7.5,V60<=11.25),"Standard",IF(AND(V60>=11.5,V60<=15.25),"Advanced",IF(AND(V60>=15.5,V60<=16),"Leading"))))) -> Standard | X64: =IF(X60<4,"",IF(AND(X60>=4,X60<=7.25),"Basic",IF(AND(X60>=7.5,X60<=11.25),"Standard",IF(AND(X60>=11.5,X60<=15.25),"Advanced",IF(AND(X60>=15.5,X60<=16),"Leading"))))) -> 
AB65: ESC assessment of submission | AG65: =IFERROR(IF(AF65=AF61,AG61,VLOOKUP(AF61&AF65,AF79:AG83,2,FALSE)),0) -> 0
AF67: Difference | AG67: =IFERROR(IF(AG65=0,"",AG65-AG61),"") -> 
U70: ESC USE ONLY
W71: [Select] | Y71: Rating | Z71: Aggregate score for overall PREMO rating | AF71: Business self assessment
W72: 1 | Y72: Leading | Z72: 15.5 to 16.0 | AF72: [Select]
W73: 1.25 | Y73: Advanced | Z73: 11.5 to 15.25 | AF73: Leading | AG73: =+AD55 -> 5.3
W74: 1.5 | Y74: Standard | Z74: 7.5 to 11.25 | AF74: Advanced | AG74: =+AE56 -> 4.9
W75: 1.75 | Y75: Basic | Z75: 4.0 to 7.25 | AF75: Standard | AG75: =+AF57 -> 4.5
W76: 2 | AF76: Basic | AG76: =+AG58 -> 4.1
W77: 2.25
W78: 2.5 | AF78: downgrading
W79: 2.75 | AF79: =AF54&AC58 -> StandardBasic | AG79: =+AF58 -> 3.9
W80: 3 | AF80: =+AE54&AC57 -> AdvancedStandard | AG80: =+AE57 -> 4.3
W81: 3.25 | AF81: =+AD54&AC56 -> LeadingAdvanced | AG81: =+AD56 -> 4.7
W82: 3.5 | AF82: =+AD54&AC57 -> LeadingStandard | AG82: =+AD57 -> 4.1
W83: 3.75 | AF83: =+AF61&"Basic" -> StandardBasic | AG83: CHECK
W84: 4

Sheet Opex_FO
B1: Operating Expenditure - Forecast
B2: =+Model_Name -> South Gippsland Water
B3: Go to Table of Contents
L4: FIRST REG PERIOD | P4: SECOND REG PERIOD | S4: THIRD REG PERIOD | X4: FOURTH REG PERIOD | AC4: FIFTH REG PERIOD
K5: 2006 | L5: 2007 | M5: 2008 | N5: 2009 | O5: 2010 | P5: 2011 | Q5: 2012 | R5: 2013 | S5: 2014 | T5: 2015 | U5: 2016 | V5: 2017 | W5: 2018 | X5: 2019 | Y5: 2020 | Z5: 2021 | AA5: 2022 | AB5: 2023 | AC5: 2024 | AD5: 2025 | AE5: 2026 | AF5: 2027 | AG5: 2028
B6: $m, 01/01/18 | K6: =+CONCATENATE(K5-1,"-",RIGHT(K5,2)) -> 2005-06 | L6: =+CONCATENATE(L5-1,"-",RIGHT(L5,2)) -> 2006-07 | M6: 2007-08 | N6: 2008-09 | O6: 2009-10 | P6: 2010-11 | Q6: 2011-12 | R6: 2012-13 | S6: 2013-14 | T6: 2014-15 | U6: 2015-16 | V6: 2016-17 | W6: 2017-18 | X6: 2018-19 | Y6: 2019-20 | Z6: 2020-21 | AA6: 2021-22 | AB6: 2022-23 | AC6: 2023-24 | AD6: 2024-25 | AE6: 2025-26 | AF6: 2026-27 | AG6: 2027-28
C9: Parameters | F9: 3rd period | H9: 4th period
D11: Cost efficiency improvement rate (% per annum) | F11: 0.01 | H11: =+SUM(X11:AB11)/5 -> 0.015 | X11: 0.01 | Y11: 0.015 | Z11: 0.015 | AA11: 0.015 | AB11: 0.02 | AC11: 0.02 | AD11: 0.02 | AE11: 0.02 | AF11: 0.02 | AG11: 0.02
D13: Customer growth forecast (% per annum) | F13: =AVERAGE(T13:W13) -> 0.01205959641 | H13: =+SUM(X13:AB13)/5 -> 0.0152 | T13: =IF(T15="","",T15/S15-1) -> 0.01221649485 | U13: =IF(U15="","",U15/T15-1) -> 0.009777460916 | V13: 0.01104442988 | W13: 0.0152 | X13: 0.0152 | Y13: 0.0152 | Z13: 0.0152 | AA13: 0.0152 | AB13: 0.0152 | AC13: 0.0152 | AD13: 0.0152 | AE13: 0.0152 | AF13: 0.0152 | AG13: 0.0152
E14: Net baseline opex growth | F14: =IFERROR(F13-F11,"-") -> 0.002059596409 | H14: =IFERROR(H13-H11,"-") -> 0.0002
D15: Water customers (No.) - Residential & Non-Residential - [BED 1] | S15: =+Determination_Lookup!BF3 -> 19400 | T15: =+Determination_Lookup!BG3 -> 19637 | U15: =+Determination_Lookup!BH3 -> 19829 | V15: 20048 | W15: =+V$15*(1+W$13) -> 20352.7296 | X15: =+W$15*(1+X$13) -> 20662.09109 | Y15: =+X$15*(1+Y$13) -> 20976.15487 | Z15: 21294.99243 | AA15: 21618.67631 | AB15: 21947.28019 | AC15: 22280.87885 | AD15: 22619.54821 | AE15: 22963.36534 | AF15: 23312.4085 | AG15: 23666.75711 | AI15: << Used as normalising metric for dashboard graphs
D17: Sewer customers (No.) - Residential & Non-Residential - [BED 2] | S17: =+Determination_Lookup!BJ3 -> 16613 | T17: =+Determination_Lookup!BK3 -> 16967 | U17: =+Determination_Lookup!BL3 -> 17181 | V17: 17725 | W17: =+V$17*(1+W$13) -> 17994.42 | X17: =+W$17*(1+X$13) -> 18267.93518 | Y17: =+X$17*(1+Y$13) -> 18545.6078 | Z17: 18827.50104 | AA17: 19113.67905 | AB17: 19404.20697 | AC17: 19699.15092 | AD17: 19998.57801 | AE17: 20302.5564 | AF17: 20611.15526 | AG17: 20924.44482 | AI17: << Used as normalising metric for dashboard graphs
D19: Total metered volume of water delivered to customers (ML) - [BED 10] | S19: =+Determination_Lookup!BB3 -> 4663 | T19: =+Determination_Lookup!BC3 -> 4585 | U19: =+Determination_Lookup!BD3 -> 4771 | V19: 4595.568 | W19: 4641.602902 | X19: 4685.698207 | Y19: 4730.386223 | Z19: 4775.676672 | AA19: 4821.579447 | AB19: 4868.104622 | AC19: 4915.262449 | AD19: 4963.063363 | AE19: 5011.517987 | AF19: 5060.637135 | AG19: 5110.431813 | AI19: << Used as normalising metric for dashboard graphs
D20: Residential, Non-Residential & Recycled (Residential & Non-Residential)
C24: Baseline Forecast
D26: Baseline year - total prescribed operating expenditure in 2016-17: | V26: =+Opex_Breakdown!V37 -> 18.65849262
D28: Less non-controllable expenditure items incurred in 2016-17:
E29: External bulk water charges (excl. temporary purchases) | V29: =+Opex_Breakdown!V29 -> 0
E30: External temporary water purchases | V30: =+Opex_Breakdown!V30 -> 0 | X30: Comparison with approved 2016-17 total controllable opex
E31: Licence fees | V31: =+Opex_Breakdown!V31 -> 0.06883573328 | X31: per 2013 determination model
E32: Environment Contribution | V32: =+Opex_Breakdown!V32 -> 1.124403847
E33: Other non-controllable | V33: =+Opex_Breakdown!V33 -> 0
V34: =SUM(V29:V33) -> 1.19323958 | Y34: 2016-17 | Z34: Difference | AA34: %
D36: Baseline year - total controllable operating expenditure in 2016-17: | V36: =+V26-V34 -> 17.46525304 | Y36: =+Determination_Lookup!AX3 -> 16.47919849 | Z36: =+V52-Y36 -> 0.870874558 | AA36: =+Z36/Y36 -> 0.05284690021
D38: Adjustments for non-recurring expenditure items incurred in 2016-17 and any efficiency savings to be realised from 2016-17: | X38: ($, 2017-18)
D40: 1 | E40: Recruitment for GMs and MDs | V40: 0.11518
D41: 2
D42: 3
D43: 4
D44: 5
D45: 6
D46: 7
D47: 8
D48: 9
D49: 10
V50: =SUM(V40:V49) -> 0.11518
D52: Baseline controllable operating expenditure (2016-17) | V52: =+V36-V50 -> 17.35007304
D54: Adjusted Baseline controllable operating expenditure (Forecast) | W54: =+V52*(1+$W$13-$F$11) -> 17.44029342 | X54: =+$W$54*(1+X$13-X$11) -> 17.53098295 | Y54: =+X$54*(1+Y$13-Y$11) -> 17.53448915 | Z54: 17.53799604 | AA54: 17.54150364 | AB54: 17.45730443 | AC54: 17.37350937 | AD54: 17.29011652 | AE54: 17.20712396 | AF54: 17.12452977 | AG54: 17.04233202
C58: Operating expenditure - reconciliation
D61: Adjusted Baseline controllable operating expenditure (Forecast) | X61: =+X54 -> 17.53098295 | Y61: 17.53448915 | Z61: 17.53799604 | AA61: 17.54150364 | AB61: 17.45730443 | AC61: 17.37350937 | AD61: 17.29011652 | AE61: 17.20712396 | AF61: 17.12452977 | AG61: 17.04233202
H62: Controllable
D63: Forecast variations to baseline operating expenditure (above or below baseline) | H63: only
D65: 1 | E65: Strategic Asset Management | H65: Water | X65: 0.082 | Y65: 0.082 | Z65: 0.332 | AA65: 0.082 | AB65: 0.082 | AC65: 0.132 | AD65: 0.132 | AE65: 0.132 | AF65: 0.132 | AG65: 0.132
D66: 2 | E66: Wages above CPI | H66: Water | X66: 0.04973229819 | Y66: 0.06691992691 | Z66: 0 | AA66: 0 | AB66: 0 | AC66: 0 | AD66: 0 | AE66: 0 | AF66: 0 | AG66: 0
D67: 3 | E67: Information Technology | H67: Water | X67: 0.2026841596 | Y67: 0.2795847113 | Z67: 0.3179025545 | AA67: 0.3576957218 | AB67: 0.3890247623 | AC67: 0.3093783819 | AD67: 0.3093783819 | AE67: 0.3093783819 | AF67: 0.3093783819 | AG67: 0.3093783819
D68: 4 | E68: Electricity rate (emissions offset) | H68: Sewerage | X68: 0.1509307788 | Y68: 0.1417197871 | Z68: 0.01503342604 | AA68: -0.03692687811 | AB68: -0.04095784624 | AC68: -0.02504905704 | AD68: -0.009497943444 | AE68: 0.005703536121 | AF68: 0.02056324244 | AG68: 0.03508885956
D69: 5 | E69: Maintenance / Reliability (incl Sewer Sidelines) | H69: Sewerage | X69: 0.5868010255 | Y69: 0.6658010255 | Z69: 0.5918010255 | AA69: 0.6568010255 | AB69: 0.6458010255 | AC69: 0.6294010255 | AD69: 0.6294010255 | AE69: 0.6294010255 | AF69: 0.6294010255 | AG69: 0.6294010255
D70: 6 | E70: Lance Creek Net Operating Costs | H70: Water | X70: 0.02691679782 | Y70: 0.1524173326 | Z70: 0.1512844201 | AA70: 0.1512749219 | AB70: 0.1507922356 | AC70: 0.1503062464 | AD70: 0.1498169317 | AE70: 0.1493242689 | AF70: 0.148828235 | AG70: 0.1483288068
D71: 7 | E71: Customer Support Programs | H71: Water | X71: 0.05 | Y71: 0.05 | Z71: 0.05 | AA71: 0.05 | AB71: 0.05 | AC71: 0.05 | AD71: 0.05 | AE71: 0.05 | AF71: 0.05 | AG71: 0.05
D72: 8 | E72: Stakeholder collaboration & partnerships | H72: Water | X72: 0.11 | Y72: 0.11 | Z72: 0.035 | AA72: 0.035 | AB72: 0.035 | AC72: 0.065 | AD72: 0.065 | AE72: 0.065 | AF72: 0.065 | AG72: 0.065
D73: 9 | E73: Catchment Management | H73: Water | X73: 0.05 | Y73: 0.05 | Z73: 0.05 | AA73: 0.05 | AB73: 0.05 | AC73: 0.05 | AD73: 0.05 | AE73: 0.05 | AF73: 0.05 | AG73: 0.05
D74: 10 | E74: Secure Water Supply (leakage reduction, planning) | H74: Water | X74: 0.045 | Y74: 0.095 | Z74: 0.095 | AA74: 0.045 | AB74: 0.045 | AC74: 0.065 | AD74: 0.065 | AE74: 0.065 | AF74: 0.065 | AG74: 0.065
D75: 11 | E75: Biosolids Management | H75: Sewerage | X75: 0.16 | Y75: 0.16 | Z75: 0.16 | AA75: 0.16 | AB75: 0.16 | AC75: 0.16 | AD75: 0.16 | AE75: 0.16 | AF75: 0.16 | AG75: 0.16
D76: 12 | E76: Ecological Risk Assessments | H76: Water | X76: 0.05 | Y76: 0.05 | Z76: 0.05 | AA76: 0.05 | AB76: 0.05 | AC76: 0.05 | AD76: 0.05 | AE76: 0.05 | AF76: 0.05 | AG76: 0.05
D77: 13 | E77: Rounding | H77: Water | X77: -0.003162464845 | Y77: -0.0003794425018 | Z77: -0.001037080408 | AA77: 0.0002095651048 | AB77: -0.0003486539093 | AC77: -0.002211562239 | AD77: -0.0008481757701 | AE77: 0.0004749818198 | AF77: -2.056639634e-05 | AG77: 0.0006573556146
D78: 14
D79: 15
D81: Total changes required to baseline operating expenditure | X81: =SUM(X65:X80) -> 1.560902595 | Y81: 1.903063341 | Z81: 1.846984346 | AA81: 1.601054356 | AB81: 1.616311523 | AC81: 1.633825034 | AD81: 1.65025022 | AE81: 1.666282194 | AF81: 1.680150318 | AG81: 1.694854429
W82: % Change in baseline opex per annum | X82: =IFERROR(X81/X61,"-") -> 0.08903679842 | Y82: =IFERROR(Y81/Y61,"-") -> 0.1085325797 | Z82: 0.1053133061 | AA82: 0.09127235548 | AB82: 0.09258654622 | AC82: 0.09404116348 | AD82: 0.09544471363 | AE82: 0.09683676354 | AF82: 0.09811366159 | AG82: 0.09944967784
W83: % Change in baseline opex per reg period | AB83: =IFERROR(AVERAGE(X82:AB82),"-") -> 0.09734831718 | AG83: =IFERROR(AVERAGE(AC82:AG82),"-") -> 0.09677719602
D84: Total controllable operating expenditure | X84: =+X81+X61 -> 19.09188555 | Y84: 19.43755249 | Z84: 19.38498039 | AA84: 19.142558 | AB84: 19.07361595 | AC84: 19.0073344 | AD84: 18.94036674 | AE84: 18.87340616 | AF84: 18.80468008 | AG84: 18.73718645
W85: Controllable Opex growth from baseline to 5th year | AB85: =IFERROR(AB84-V52,"-") -> 1.723542905 | AC85: =IFERROR(AB84/V52-1,"-") -> 0.09933923048
D86: Non-controllable operating expenditure
D87: External bulk water charges (excl. temporary purchases) | X87: =+Opex_Breakdown!X29 -> 0.5793663024 | Y87: =+Opex_Breakdown!Y29 -> 0.5793663024 | Z87: =+Opex_Breakdown!Z29 -> 0.5793663024 | AA87: =+Opex_Breakdown!AA29 -> 0.3545289581 | AB87: =+Opex_Breakdown!AB29 -> 0.3545289581 | AC87: =+Opex_Breakdown!AC29 -> 0.3545289581 | AD87: =+Opex_Breakdown!AD29 -> 0.3545289581 | AE87: =+Opex_Breakdown!AE29 -> 0.3545289581 | AF87: =+Opex_Breakdown!AF29 -> 0.3545289581 | AG87: =+Opex_Breakdown!AG29 -> 0.3545289581
D88: External temporary water purchases | X88: =+Opex_Breakdown!X30 -> 0 | Y88: =+Opex_Breakdown!Y30 -> 0 | Z88: =+Opex_Breakdown!Z30 -> 0 | AA88: =+Opex_Breakdown!AA30 -> 0 | AB88: =+Opex_Breakdown!AB30 -> 0 | AC88: =+Opex_Breakdown!AC30 -> 0 | AD88: =+Opex_Breakdown!AD30 -> 0 | AE88: =+Opex_Breakdown!AE30 -> 0 | AF88: =+Opex_Breakdown!AF30 -> 0 | AG88: =+Opex_Breakdown!AG30 -> 0
D89: Licence fees | X89: =+Opex_Breakdown!X31 -> 0.066 | Y89: =+Opex_Breakdown!Y31 -> 0.066 | Z89: =+Opex_Breakdown!Z31 -> 0.066 | AA89: =+Opex_Breakdown!AA31 -> 0.066 | AB89: =+Opex_Breakdown!AB31 -> 0.066 | AC89: =+Opex_Breakdown!AC31 -> 0.066 | AD89: =+Opex_Breakdown!AD31 -> 0.066 | AE89: =+Opex_Breakdown!AE31 -> 0.066 | AF89: =+Opex_Breakdown!AF31 -> 0.066 | AG89: =+Opex_Breakdown!AG31 -> 0.066
D90: Environment Contribution | X90: =+Opex_Breakdown!X32 -> 1.202346041 | Y90: =+Opex_Breakdown!Y32 -> 1.175313823 | Z90: =+Opex_Breakdown!Z32 -> 1.148889368 | AA90: =+Opex_Breakdown!AA32 -> 1.12305901 | AB90: =+Opex_Breakdown!AB32 -> 1.196317081 | AC90: =+Opex_Breakdown!AC32 -> 1.169420411 | AD90: =+Opex_Breakdown!AD32 -> 1.143128457 | AE90: =+Opex_Breakdown!AE32 -> 1.117427622 | AF90: =+Opex_Breakdown!AF32 -> 1.235760033 | AG90: =+Opex_Breakdown!AG32 -> 1.207976572
D91: Other non-controllable | X91: =+Opex_Breakdown!X33 -> 0 | Y91: =+Opex_Breakdown!Y33 -> 0 | Z91: =+Opex_Breakdown!Z33 -> 0 | AA91: =+Opex_Breakdown!AA33 -> 0 | AB91: =+Opex_Breakdown!AB33 -> 0 | AC91: =+Opex_Breakdown!AC33 -> 0 | AD91: =+Opex_Breakdown!AD33 -> 0 | AE91: =+Opex_Breakdown!AE33 -> 0 | AF91: =+Opex_Breakdown!AF33 -> 0 | AG91: =+Opex_Breakdown!AG33 -> 0
D92: Total non-controllable operating expenditure | X92: =SUM(X87:X91) -> 1.847712343 | Y92: 1.820680126 | Z92: 1.79425567 | AA92: 1.543587969 | AB92: 1.616846039 | AC92: 1.589949369 | AD92: 1.563657415 | AE92: 1.53795658 | AF92: 1.656288991 | AG92: 1.62850553
W93: Non-controllable Opex growth from baseline to 5th year | AB93: =IFERROR(AB92-V34,"-") -> 0.4236064588 | AC93: =IFERROR(AB92/V34-1,"-") -> 0.3550053701
D95: Total prescribed operating expenditure | X95: =+X92+X84 -> 20.93959789 | Y95: 21.25823261 | Z95: 21.17923606 | AA95: 20.68614597 | AB95: 20.69046199 | AC95: 20.59728377 | AD95: 20.50402416 | AE95: 20.41136273 | AF95: 20.46096908 | AG95: =+AG92+AG84 -> 20.36569198
W96: Prescribed Opex growth from baseline to 5th year | AB96: =IFERROR(AB95-(V52+V34),"-") -> 2.147149364 | AC96: =IFERROR((AB95/(V52+V34))-1,"-") -> 0.1157910351
W98: To reconcile to 'Opex_Breakdown' tab row 37 >> | X98: =+Opex_Breakdown!X37 -> 20.93959789 | Y98: =+Opex_Breakdown!Y37 -> 21.25823261 | Z98: =+Opex_Breakdown!Z37 -> 21.17923606 | AA98: =+Opex_Breakdown!AA37 -> 20.68614597 | AB98: =+Opex_Breakdown!AB37 -> 20.69046199 | AC98: =+Opex_Breakdown!AC37 -> 20.59728377 | AD98: =+Opex_Breakdown!AD37 -> 20.50402416 | AE98: =+Opex_Breakdown!AE37 -> 20.41136273 | AF98: =+Opex_Breakdown!AF37 -> 20.46096908 | AG98: =+Opex_Breakdown!AG37 -> 20.36569198
W99: Difference | X99: =+X98-X95 -> 0 | Y99: 0 | Z99: 0 | AA99: 0 | AB99: 0 | AC99: 0 | AD99: 0 | AE99: 0 | AF99: 0 | AG99: 0
W100: Test | X100: =+X98=X95 -> TRUE | Y100: TRUE | Z100: TRUE | AA100: TRUE | AB100: TRUE | AC100: TRUE | AD100: TRUE | AE100: TRUE | AF100: TRUE | AG100: TRUE
X139: =+X$160 -> 2018-19 | Y139: 2019-20 | Z139: 2020-21 | AA139: 2021-22 | AB139: 2022-23 | AC139: 2023-24 | AD139: 2024-25 | AE139: 2025-26 | AF139: 2026-27 | AG139: 2027-28
W140: Total controllable opex | X140: =+X84 -> 19.09188555 | Y140: 19.43755249 | Z140: 19.38498039 | AA140: 19.142558 | AB140: 19.07361595 | AC140: 19.0073344 | AD140: 18.94036674 | AE140: 18.87340616 | AF140: 18.80468008 | AG140: 18.73718645
W141: Change - $ | Y141: =+Y140-X140 -> 0.3456669424 | Z141: -0.05257209729 | AA141: -0.2424223903 | AB141: -0.0689420505 | AC141: -0.06628154997 | AD141: -0.06696765953 | AE141: -0.06696058498 | AF141: -0.06872607085 | AG141: -0.06749363185
W142: Change - % | Y142: =IFERROR(Y141/X140,"") -> 0.0181054376 | Z142: -0.002704666512 | AA142: -0.01250568148 | AB142: -0.00360150668 | AC142: -0.003475038511 | AD142: -0.003523253609 | AE142: -0.003535337298 | AF142: -0.003641423826 | AG142: -0.003589193304
X144: =+X$160 -> 2018-19 | Y144: 2019-20 | Z144: 2020-21 | AA144: 2021-22 | AB144: 2022-23 | AC144: 2023-24 | AD144: 2024-25 | AE144: 2025-26 | AF144: 2026-27 | AG144: 2027-28
W145: Total non-controllable opex | X145: =+X92 -> 1.847712343 | Y145: 1.820680126 | Z145: 1.79425567 | AA145: 1.543587969 | AB145: 1.616846039 | AC145: 1.589949369 | AD145: 1.563657415 | AE145: 1.53795658 | AF145: 1.656288991 | AG145: 1.62850553
W146: Change - $ | Y146: =+Y145-X145 -> -0.02703221793 | Z146: -0.02642445546 | AA146: -0.2506677016 | AB146: 0.07325807042 | AC146: -0.02689666946 | AD146: -0.02629195451 | AE146: -0.0257008353 | AF146: 0.1183324114 | AG146: -0.02778346115
W147: Change - % | Y147: =IFERROR(Y146/X145,"") -> -0.01463010085 | Z147: -0.01451350794 | AA147: -0.1397056761 | AB147: 0.04745960186 | AC147: -0.01663526942 | AD147: -0.01653634701 | AE147: -0.01643635943 | AF147: 0.07694132131 | AG147: -0.01677452504
X149: =+X$160 -> 2018-19 | Y149: 2019-20 | Z149: 2020-21 | AA149: 2021-22 | AB149: 2022-23 | AC149: 2023-24 | AD149: 2024-25 | AE149: 2025-26 | AF149: 2026-27 | AG149: 2027-28
W150: Total prescribed opex | X150: =+X140+X145 -> 20.93959789 | Y150: 21.25823261 | Z150: 21.17923606 | AA150: 20.68614597 | AB150: 20.69046199 | AC150: 20.59728377 | AD150: 20.50402416 | AE150: 20.41136273 | AF150: 20.46096908 | AG150: 20.36569198
W151: Change - $ | Y151: =+Y150-X150 -> 0.3186347245 | Z151: -0.07899655275 | AA151: -0.4930900919 | AB151: 0.00431601992 | AC151: -0.09317821943 | AD151: -0.09325961404 | AE151: -0.09266142027 | AF151: 0.04960634051 | AG151: -0.095277093
W152: Change - % | Y152: =IFERROR(Y151/X150,"") -> 0.01521685021 | Z152: -0.003716045176 | AA152: -0.02328176949 | AB152: 0.0002086430177 | AC152: -0.004503438322 | AD152: -0.004527762742 | AE152: -0.004519182165 | AF152: 0.002430329672 | AG152: -0.00465652886
W155: Controllable vs. Non-controllable opex - % | X155: =+X$160 -> 2018-19 | Y155: 2019-20 | Z155: 2020-21 | AA155: 2021-22 | AB155: 2022-23 | AC155: 2023-24 | AD155: 2024-25 | AE155: 2025-26 | AF155: 2026-27 | AG155: 2027-28
W156: Controllable opex - % | X156: =+X84/X95 -> 0.9117598937 | Y156: 0.9143541159 | Z156: 0.9152823235 | AA156: 0.9253805919 | AB156: 0.9218554888 | AC156: 0.9228078135 | AD156: 0.9237389986 | AE156: 0.9246519402 | AF156: 0.919051293 | AG156: 0.9200368182
W157: Non-controllable opex - % | X157: =+X92/X95 -> 0.08824010629 | Y157: 0.08564588405 | Z157: 0.08471767655 | AA157: 0.07461940812 | AB157: 0.07814451122 | AC157: 0.07719218647 | AD157: 0.07626100141 | AE157: 0.07534805979 | AF157: 0.08094870702 | AG157: 0.07996318177
X158: =SUM(X156:X157) -> 1 | Y158: 1 | Z158: 1 | AA158: 1 | AB158: 1 | AC158: 1 | AD158: 1 | AE158: 1 | AF158: 1 | AG158: 1
V160: =+V6 -> 2016-17 | W160: 2017-18 | X160: 2018-19 | Y160: 2019-20 | Z160: 2020-21 | AA160: 2021-22 | AB160: 2022-23 | AC160: 2023-24 | AD160: 2024-25 | AE160: 2025-26 | AF160: 2026-27 | AG160: 2027-28
U161: Third Reg period Opex | V161: =+V169-SUM(V162:V168) -> 17.46525304 | W161: =+W169-SUM(W162:W168) -> 17.10639785
U162: Adjusted baseline opex | X162: =+X61 -> 17.53098295 | Y162: 17.53448915 | Z162: 17.53799604 | AA162: 17.54150364 | AB162: 17.45730443 | AC162: 17.37350937 | AD162: 17.29011652 | AE162: 17.20712396 | AF162: 17.12452977 | AG162: 17.04233202
U163: Forecast variations to baseline operating expenditure | X163: =+X81 -> 1.560902595 | Y163: 1.903063341 | Z163: 1.846984346 | AA163: 1.601054356 | AB163: 1.616311523 | AC163: 1.633825034 | AD163: 1.65025022 | AE163: 1.666282194 | AF163: 1.680150318 | AG163: 1.694854429
U164: Licence fees | V164: =+V193 -> 0.06883573328 | W164: =+W193 -> 0.066 | X164: =+X89 -> 0.066 | Y164: 0.066 | Z164: 0.066 | AA164: 0.066 | AB164: 0.066 | AC164: 0.066 | AD164: 0.066 | AE164: 0.066 | AF164: 0.066 | AG164: 0.066
U165: Environment Contribution | V165: =+V194 -> 1.124403847 | W165: =+W194 -> 1.101 | X165: =+X90 -> 1.202346041 | Y165: 1.175313823 | Z165: 1.148889368 | AA165: 1.12305901 | AB165: 1.196317081 | AC165: 1.169420411 | AD165: 1.143128457 | AE165: 1.117427622 | AF165: 1.235760033 | AG165: 1.207976572
U166: External bulk water charges | V166: =+V191 -> 0 | W166: =+W191 -> 0 | X166: =+X87 -> 0.5793663024 | Y166: 0.5793663024 | Z166: 0.5793663024 | AA166: 0.3545289581 | AB166: 0.3545289581 | AC166: 0.3545289581 | AD166: 0.3545289581 | AE166: 0.3545289581 | AF166: 0.3545289581 | AG166: 0.3545289581
U167: External temporary water purchases | V167: =+V192 -> 0 | W167: =+W192 -> 0 | X167: =+X88 -> 0 | Y167: 0 | Z167: 0 | AA167: 0 | AB167: 0 | AC167: 0 | AD167: 0 | AE167: 0 | AF167: 0 | AG167: 0
U168: Other non-controllable | V168: =+V195 -> 0 | W168: =+W195 -> 0 | X168: =+X91 -> 0 | Y168: 0 | Z168: 0 | AA168: 0 | AB168: 0 | AC168: 0 | AD168: 0 | AE168: 0 | AF168: 0 | AG168: 0
U169: Total prescribed opex | V169: =+Opex_Breakdown!V37 -> 18.65849262 | W169: =+Opex_Breakdown!W37 -> 18.27339785 | X169: =SUM(X162:X168) -> 20.93959789 | Y169: 21.25823261 | Z169: 21.17923606 | AA169: 20.68614597 | AB169: 20.69046199 | AC169: 20.59728377 | AD169: 20.50402416 | AE169: 20.41136273 | AF169: 20.46096908 | AG169: 20.36569198
X171: =+X$160 -> 2018-19 | Y171: 2019-20 | Z171: 2020-21 | AA171: 2021-22 | AB171: 2022-23 | AC171: 2023-24 | AD171: 2024-25 | AE171: 2025-26 | AF171: 2026-27 | AG171: 2027-28
W172: Adjusted baseline opex | X172: =+X162/X$169 -> 0.837216791 | Y172: 0.8248328761 | Z172: 0.8280750068 | AA172: 0.8479831705 | AB172: 0.8437368115 | AC172: 0.8434854595 | AD172: 0.8432547869 | AE172: 0.8430169109 | AF172: 0.8369363984 | AG172: 0.8368157604
W173: Forecast variations to baseline operating expenditure | X173: =+X163/X$169 -> 0.07454310266 | Y173: 0.08952123986 | Z173: 0.08720731666 | AA173: 0.07739742138 | AB173: 0.07811867729 | AC173: 0.07932235399 | AD173: 0.08048421165 | AE173: 0.08163502926 | AF173: 0.08211489457 | AG173: 0.08322105779
W174: Licence fees | X174: =+X164/X$169 -> 0.003151922991 | Y174: 0.003104679547 | Z174: 0.003116259709 | AA174: 0.003190541153 | AB174: 0.003189875607 | AC174: 0.003204306002 | AD174: 0.003218880328 | AE174: 0.003233493072 | AF174: 0.003225653671 | AG174: 0.00324074429
W175: Environment Contribution | X175: =+X165/X$169 -> 0.05741972923 | Y175: 0.05528746648 | Z175: 0.05424602495 | AA175: 0.05429039378 | AB175: 0.0578197375 | AC175: 0.05677546731 | AD175: 0.05575141973 | AE175: 0.05474537081 | AF175: 0.06039596797 | AG175: 0.05931429056
W176: External bulk water charges (excl. temporary purchases) | X176: =+X166/X$169 -> 0.02766845407 | Y176: 0.02725373802 | Z176: 0.02735539189 | AA176: 0.01713847319 | AB176: 0.01713489811 | AC176: 0.01721241315 | AD176: 0.01729070135 | AE176: 0.01736919591 | AF176: 0.01732708538 | AG176: 0.01740814692
W177: External temporary water purchases | X177: =+X167/X$169 -> 0 | Y177: 0 | Z177: 0 | AA177: 0 | AB177: 0 | AC177: 0 | AD177: 0 | AE177: 0 | AF177: 0 | AG177: 0
W178: Other non-controllable | X178: =+X168/X$169 -> 0 | Y178: 0 | Z178: 0 | AA178: 0 | AB178: 0 | AC178: 0 | AD178: 0 | AE178: 0 | AF178: 0 | AG178: 0
W179: Total prescribed opex | X179: =+X169/X$169 -> 1 | Y179: 1 | Z179: 1 | AA179: 1 | AB179: 1 | AC179: 1 | AD179: 1 | AE179: 1 | AF179: 1 | AG179: 1
X181: =+X$160 -> 2018-19 | Y181: 2019-20 | Z181: 2020-21 | AA181: 2021-22 | AB181: 2022-23 | AC181: 2023-24 | AD181: 2024-25 | AE181: 2025-26 | AF181: 2026-27 | AG181: 2027-28
W182: Water | X182: =+SUMIF($H$65:$H$80,$W182,X$65:X$80) -> 0.6631707908 | Y182: 0.9355425283 | Z182: 1.080149894 | AA182: 0.8211802088 | AB182: 0.851468344 | AC182: 0.869473066 | AD182: 0.8703471379 | AE182: 0.8711776326 | AF182: 0.8701860505 | AG182: 0.8703645444
W183: Sewerage | X183: 0.8977318042 | Y183: 0.9675208126 | Z183: 0.7668344515 | AA183: 0.7798741473 | AB183: 0.7648431792 | AC183: 0.7643519684 | AD183: 0.779903082 | AE183: 0.7951045616 | AF183: 0.8099642679 | AG183: 0.824489885
W184: Recycled Water | X184: 0 | Y184: 0 | Z184: 0 | AA184: 0 | AB184: 0 | AC184: 0 | AD184: 0 | AE184: 0 | AF184: 0 | AG184: 0
W185: Rural water | X185: 0 | Y185: 0 | Z185: 0 | AA185: 0 | AB185: 0 | AC185: 0 | AD185: 0 | AE185: 0 | AF185: 0 | AG185: 0
W186: Bulk Water | X186: 0 | Y186: 0 | Z186: 0 | AA186: 0 | AB186: 0 | AC186: 0 | AD186: 0 | AE186: 0 | AF186: 0 | AG186: 0
W187: Forecast variations to baseline operating expenditure | X187: =SUM(X182:X186) -> 1.560902595 | Y187: 1.903063341 | Z187: 1.846984346 | AA187: 1.601054356 | AB187: 1.616311523 | AC187: 1.633825034 | AD187: 1.65025022 | AE187: 1.666282194 | AF187: 1.680150318 | AG187: 1.694854429
V190: =+V6 -> 2016-17 | W190: 2017-18 | X190: 2018-19 | Y190: 2019-20 | Z190: 2020-21 | AA190: 2021-22 | AB190: 2022-23 | AC190: 2023-24 | AD190: 2024-25 | AE190: 2025-26 | AF190: 2026-27 | AG190: 2027-28
U191: External bulk water charges (excl. temporary purchases) | V191: =+Opex_Breakdown!V29 -> 0 | W191: =+Opex_Breakdown!W29 -> 0 | X191: =+X87 -> 0.5793663024 | Y191: 0.5793663024 | Z191: 0.5793663024 | AA191: 0.3545289581 | AB191: 0.3545289581 | AC191: 0.3545289581 | AD191: 0.3545289581 | AE191: 0.3545289581 | AF191: 0.3545289581 | AG191: 0.3545289581
U192: External temporary water purchases | V192: =+Opex_Breakdown!V30 -> 0 | W192: =+Opex_Breakdown!W30 -> 0 | X192: =+X88 -> 0 | Y192: 0 | Z192: 0 | AA192: 0 | AB192: 0 | AC192: 0 | AD192: 0 | AE192: 0 | AF192: 0 | AG192: 0
U193: Licence fees | V193: =+Opex_Breakdown!V31 -> 0.06883573328 | W193: =+Opex_Breakdown!W31 -> 0.066 | X193: =+X89 -> 0.066 | Y193: 0.066 | Z193: 0.066 | AA193: 0.066 | AB193: 0.066 | AC193: 0.066 | AD193: 0.066 | AE193: 0.066 | AF193: 0.066 | AG193: 0.066
U194: Environment Contribution | V194: =+Opex_Breakdown!V32 -> 1.124403847 | W194: =+Opex_Breakdown!W32 -> 1.101 | X194: =+X90 -> 1.202346041 | Y194: 1.175313823 | Z194: 1.148889368 | AA194: 1.12305901 | AB194: 1.196317081 | AC194: 1.169420411 | AD194: 1.143128457 | AE194: 1.117427622 | AF194: 1.235760033 | AG194: 1.207976572
U195: Other non-controllable | V195: =+Opex_Breakdown!V33 -> 0 | W195: =+Opex_Breakdown!W33 -> 0 | X195: =+X91 -> 0 | Y195: 0 | Z195: 0 | AA195: 0 | AB195: 0 | AC195: 0 | AD195: 0 | AE195: 0 | AF195: 0 | AG195: 0
U196: Total Non-controllable operating expenditure | V196: =+Opex_Breakdown!V34 -> 1.19323958 | W196: =+Opex_Breakdown!W34 -> 1.167 | X196: =SUM(X191:X195) -> 1.847712343 | Y196: 1.820680126 | Z196: 1.79425567 | AA196: 1.543587969 | AB196: 1.616846039 | AC196: 1.589949369 | AD196: 1.563657415 | AE196: 1.53795658 | AF196: 1.656288991 | AG196: 1.62850553
V198: ERROR CHECK | X198: =+X169=X95 -> TRUE | Y198: TRUE | Z198: TRUE | AA198: TRUE | AB198: TRUE | AC198: TRUE | AD198: TRUE | AE198: TRUE | AF198: TRUE | AG198: TRUE
X199: =+X187=X163 -> TRUE | Y199: TRUE | Z199: TRUE | AA199: TRUE | AB199: TRUE | AC199: TRUE | AD199: TRUE | AE199: TRUE | AF199: TRUE | AG199: TRUE
X200: =+X150=X169 -> TRUE | Y200: TRUE | Z200: TRUE | AA200: TRUE | AB200: TRUE | AC200: TRUE | AD200: TRUE | AE200: TRUE | AF200: TRUE | AG200: TRUE
X201: =+X196=X145 -> TRUE | Y201: TRUE | Z201: TRUE | AA201: TRUE | AB201: TRUE | AC201: TRUE | AD201: TRUE | AE201: TRUE | AF201: TRUE | AG201: TRUE

Sheet Opex_Breakdown
A1: 80 | B1: Operating Expenditure - Breakdown
B2: =+Contents!H7 -> South Gippsland Water
B3: Go to Table of Contents
L4: FIRST REG PERIOD | P4: SECOND REG PERIOD | U4: THIRD REG PERIOD | Z4: FOURTH REG PERIOD | AC4: FIFTH REG PERIOD
K6: 2006 | L6: 2007 | M6: 2008 | N6: 2009 | O6: 2010 | P6: 2011 | Q6: 2012 | R6: 2013 | S6: 2014 | T6: 2015 | U6: 2016 | V6: 2017 | W6: 2018 | X6: 2019 | Y6: 2020 | Z6: 2021 | AA6: 2022 | AB6: 2023 | AC6: 2024 | AD6: 2025 | AE6: 2026 | AF6: 2027 | AG6: 2028
B7: $m, 01/01/18 | K7: =+CONCATENATE(K6-1,"-",RIGHT(K6,2)) -> 2005-06 | L7: =+CONCATENATE(L6-1,"-",RIGHT(L6,2)) -> 2006-07 | M7: 2007-08 | N7: 2008-09 | O7: 2009-10 | P7: 2010-11 | Q7: 2011-12 | R7: 2012-13 | S7: 2013-14 | T7: 2014-15 | U7: 2015-16 | V7: 2016-17 | W7: 2017-18 | X7: =+CONCATENATE(X6-1,"-",RIGHT(X6,2)) -> 2018-19 | Y7: =+CONCATENATE(Y6-1,"-",RIGHT(Y6,2)) -> 2019-20 | Z7: =+CONCATENATE(Z6-1,"-",RIGHT(Z6,2)) -> 2020-21 | AA7: =+CONCATENATE(AA6-1,"-",RIGHT(AA6,2)) -> 2021-22 | AB7: =+CONCATENATE(AB6-1,"-",RIGHT(AB6,2)) -> 2022-23 | AC7: =+CONCATENATE(AC6-1,"-",RIGHT(AC6,2)) -> 2023-24 | AD7: 2024-25 | AE7: 2025-26 | AF7: 2026-27 | AG7: 2027-28
D10: Operating Expenditure Summary
E12: =C48 -> Water | K12: =+K57-K50-K54 -> 0 | L12: =+L57-L50-L54 -> 0 | M12: 0 | N12: 0 | O12: 0 | P12: 0 | Q12: =+Q57-Q50-Q54 -> 0 | R12: 11.07101567 | S12: 10.34210905 | T12: 9.568112335 | U12: 10.08881523 | V12: 9.745611199 | W12: 9.545370001 | X12: 10.65327213 | Y12: 10.84615429 | Z12: 10.81681906 | AA12: 10.68154736 | AB12: 10.6430777 | AC12: =+AC57-AC50-AC54 -> 10.60609259 | AD12: 10.56872464 | AE12: 10.53136063 | AF12: 10.49301149 | AG12: 10.45535004
E13: =C59 -> Sewerage | K13: =K68-K61-K65 -> 0 | L13: =L68-L61-L65 -> 0 | M13: 0 | N13: 0 | O13: 0 | P13: 0 | Q13: 0 | R13: 6.282682488 | S13: 6.019228329 | T13: 6.445483671 | U13: 7.905716047 | V13: 7.719641846 | W13: 7.56102785 | X13: 8.438613411 | Y13: 8.5913982 | Z13: 8.568161333 | AA13: 8.461010636 | AB13: 8.43053825 | AC13: =AC68-AC61-AC65 -> 8.401241805 | AD13: 8.371642099 | AE13: 8.342045521 | AF13: 8.311668597 | AG13: 8.281836412
E14: =C70 -> Recycled Water | K14: =K79-K72-K76 -> 0 | L14: =L79-L72-L76 -> 0 | M14: 0 | N14: 0 | O14: 0 | P14: 0 | Q14: 0 | R14: 0 | S14: 0 | T14: 0 | U14: 0 | V14: 0 | W14: 0 | X14: 0 | Y14: 0 | Z14: 0 | AA14: 0 | AB14: 0 | AC14: =AC79-AC72-AC76 -> 0 | AD14: 0 | AE14: 0 | AF14: 0 | AG14: 0
E15: =C81 -> Rural Water | K15: =K90-K83-K87 -> 0 | L15: =L90-L83-L87 -> 0 | M15: 0 | N15: 0 | O15: 0 | P15: 0 | Q15: 0 | R15: 0 | S15: 0 | T15: 0 | U15: 0 | V15: 0 | W15: 0 | X15: 0 | Y15: 0 | Z15: 0 | AA15: 0 | AB15: 0 | AC15: =AC90-AC83-AC87 -> 0 | AD15: 0 | AE15: 0 | AF15: 0 | AG15: 0
E16: Bulk Water | K16: =K100-K97 -> 0 | L16: =L100-L97 -> 0 | M16: 0 | N16: 0 | O16: 0 | P16: 0 | Q16: 0 | R16: 0 | S16: 0 | T16: 0 | U16: 0 | V16: 0 | W16: 0 | X16: 0 | Y16: 0 | Z16: 0 | AA16: 0 | AB16: 0 | AC16: =AC100-AC97 -> 0 | AD16: 0 | AE16: 0 | AF16: 0 | AG16: 0
E17: Total controllable operating expenditure | K17: =SUM(K12:K16) -> 0 | L17: 0 | M17: 0 | N17: 0 | O17: 0 | P17: 0 | Q17: 0 | R17: 17.35369816 | S17: 16.36133738 | T17: 16.01359601 | U17: 17.99453128 | V17: 17.46525304 | W17: 17.10639785 | X17: 19.09188555 | Y17: 19.43755249 | Z17: 19.38498039 | AA17: 19.142558 | AB17: 19.07361595 | AC17: 19.0073344 | AD17: 18.94036674 | AE17: 18.87340616 | AF17: 18.80468008 | AG17: 18.73718645
V18: Controllable Opex for 3rd Reg Period | W18: =SUM(S17:W17) -> 84.94111556 | AA18: Controllable Opex for 4th Reg Period | AB18: =SUM(X17:AB17) -> 96.13059237
AA19: Controllable Opex growth from 3rd to 4th Reg Period | AB19: =IFERROR(AB18-W18,"-") -> 11.18947681 | AC19: =IFERROR(AB18/W18-1,"-") -> 0.1317321621
E20: Operations & Maintenance | K20: =K49+K60+K71+K82+K93 -> 0 | L20: 0 | M20: 0 | N20: 0 | O20: 0 | P20: 0 | Q20: 0 | R20: 2.763052968 | S20: 3.045224515 | T20: 3.326266246 | U20: 3.809559807 | V20: 7.336701675 | W20: 6.9099681 | X20: 8.624735858 | Y20: 8.793228718 | Z20: 8.769341914 | AA20: 8.552370852 | AB20: 8.479871783 | AC20: 8.368454415 | AD20: 8.256351089 | AE20: 8.144246269 | AF20: 8.030358882 | AG20: 7.917678541
E21: Treatment | K21: =K51+K62+K73+K84+K94 -> 0 | L21: 0 | M21: 0 | N21: 0 | O21: 0 | P21: 0 | Q21: 0 | R21: 4.549414274 | S21: 3.978647338 | T21: 3.4772494 | U21: 3.512616932 | V21: 3.891234386 | W21: 4.017903962 | X21: 4.052305266 | Y21: 4.186067548 | Z21: 4.181856947 | AA21: 4.185144374 | AB21: 4.188561935 | AC21: 4.203569672 | AD21: 4.218664956 | AE21: 4.233848297 | AF21: 4.249120208 | AG21: 4.264481206
E22: Customer Service and billing | K22: =K52+K63+K74+K85+K95 -> 0 | L22: 0 | M22: 0 | N22: 0 | O22: 0 | P22: 0 | Q22: 0 | R22: 0.6691941735 | S22: 0.7499755627 | T22: 0.8858870694 | U22: 0.7697752571 | V22: 0.5541755723 | W22: 0.5814918096 | X22: 0.6296675259 | Y22: 0.6337763376 | Z22: 0.6348217733 | AA22: 0.6375195802 | AB22: 0.640219475 | AC22: 0.6439744279 | AD22: 0.647751404 | AE22: 0.6515505325 | AF22: 0.6553719432 | AG22: 0.6592157669
E23: GSL Payments | K23: =K53+K64+K75+K86+K96 -> 0 | L23: 0 | M23: 0 | N23: 0 | O23: 0 | P23: 0 | Q23: 0 | R23: 0 | S23: 0 | T23: 0 | U23: 0 | V23: 0 | W23: 0 | X23: 0 | Y23: 0 | Z23: 0 | AA23: 0 | AB23: 0 | AC23: 0 | AD23: 0 | AE23: 0 | AF23: 0 | AG23: 0
E24: Corporate | K24: =K55+K66+K77+K88+K98 -> 0 | L24: 0 | M24: 0 | N24: 0 | O24: 0 | P24: 0 | Q24: 0 | R24: 5.778298119 | S24: 5.420326981 | T24: 5.12451597 | U24: 5.361526051 | V24: 5.260818716 | W24: 5.253894294 | X24: 5.432354643 | Y24: 5.480269912 | Z24: 5.429410554 | AA24: 5.408198012 | AB24: 5.397839847 | AC24: 5.415799852 | AD24: 5.433865194 | AE24: 5.452036492 | AF24: 5.470314365 | AG24: 5.488699441
E25: Other operating expenditure | K25: =K56+K67+K78+K89+K99 -> 0 | L25: 0 | M25: 0 | N25: 0 | O25: 0 | P25: 0 | Q25: 0 | R25: 3.593738628 | S25: 3.167162988 | T25: 3.19967732 | U25: 4.54105323 | V25: 0.4223226958 | W25: 0.3431396852 | X25: 0.3528222527 | Y25: 0.3442099723 | Z25: 0.3695492024 | AA25: 0.359325182 | AB25: 0.367122909 | AC25: 0.3755360328 | AD25: 0.3837340968 | AE25: 0.3917245646 | AF25: 0.3995146848 | AG25: 0.4071114971
E26: Total controllable operating expenditure | K26: =SUM(K20:K25) -> 0 | L26: =SUM(L20:L25) -> 0 | M26: 0 | N26: 0 | O26: 0 | P26: 0 | Q26: 0 | R26: 17.35369816 | S26: 16.36133738 | T26: 16.01359601 | U26: 17.99453128 | V26: 17.46525304 | W26: 17.10639785 | X26: 19.09188555 | Y26: 19.43755249 | Z26: 19.38498039 | AA26: 19.142558 | AB26: 19.07361595 | AC26: 19.0073344 | AD26: 18.94036674 | AE26: 18.87340616 | AF26: 18.80468008 | AG26: 18.73718645
E29: External bulk water charges (excl. temporary purchases) | K29: =K50+K61+K72+K83 -> 0 | L29: 0 | M29: 0 | N29: 0 | O29: 0 | P29: 0 | Q29: 0 | R29: 0 | S29: 0 | T29: 0 | U29: 0 | V29: 0 | W29: 0 | X29: =X50+X61+X72+X83 -> 0.5793663024 | Y29: =Y50+Y61+Y72+Y83 -> 0.5793663024 | Z29: 0.5793663024 | AA29: 0.3545289581 | AB29: 0.3545289581 | AC29: 0.3545289581 | AD29: 0.3545289581 | AE29: 0.3545289581 | AF29: 0.3545289581 | AG29: 0.3545289581
E30: External temporary water purchases | K30: =+K102 -> 0 | L30: 0 | M30: 0 | N30: 0 | O30: 0 | P30: 0 | Q30: 0 | R30: 0 | S30: 0 | T30: 0 | U30: 0 | V30: 0 | W30: 0 | X30: 0 | Y30: 0 | Z30: 0 | AA30: 0 | AB30: 0 | AC30: 0 | AD30: 0 | AE30: 0 | AF30: 0 | AG30: 0
E31: Licence fees | K31: =+K109 -> 0 | L31: 0 | M31: 0 | N31: 0 | O31: 0 | P31: 0 | Q31: 0 | R31: 0.09512512218 | S31: 0.0593505841 | T31: 0.01572580596 | U31: 0.1065683488 | V31: 0.06883573328 | W31: 0.066 | X31: 0.066 | Y31: 0.066 | Z31: 0.066 | AA31: 0.066 | AB31: 0.066 | AC31: 0.066 | AD31: 0.066 | AE31: 0.066 | AF31: 0.066 | AG31: 0.066
E32: Environment Contribution | K32: =K111 -> 0 | L32: 0 | M32: 0 | N32: 0 | O32: 0 | P32: 0 | Q32: 0 | R32: 0.8340039782 | S32: 1.188090784 | T32: 1.154274158 | U32: 1.139143223 | V32: 1.124403847 | W32: 1.101 | X32: 1.202346041 | Y32: 1.175313823 | Z32: 1.148889368 | AA32: 1.12305901 | AB32: 1.196317081 | AC32: 1.169420411 | AD32: 1.143128457 | AE32: 1.117427622 | AF32: 1.235760033 | AG32: 1.207976572
E33: Other non-controllable | K33: =+K124 -> 0 | L33: 0 | M33: 0 | N33: 0 | O33: 0 | P33: 0 | Q33: 0 | R33: 0 | S33: 0 | T33: 0 | U33: 0 | V33: 0 | W33: 0 | X33: 0 | Y33: 0 | Z33: 0 | AA33: 0 | AB33: 0 | AC33: 0 | AD33: 0 | AE33: 0 | AF33: 0 | AG33: =+AG124 -> 0
E34: Total non-controllable operating expenditure | K34: =SUM(K29:K33) -> 0 | L34: =SUM(L29:L33) -> 0 | M34: 0 | N34: 0 | O34: 0 | P34: 0 | Q34: 0 | R34: 0.9291291004 | S34: 1.247441368 | T34: 1.169999964 | U34: 1.245711572 | V34: 1.19323958 | W34: 1.167 | X34: 1.847712343 | Y34: 1.820680126 | Z34: 1.79425567 | AA34: 1.543587969 | AB34: 1.616846039 | AC34: 1.589949369 | AD34: 1.563657415 | AE34: 1.53795658 | AF34: 1.656288991 | AG34: 1.62850553
V35: Non-controllable Opex for 3rd Reg Period | W35: =SUM(S34:W34) -> 6.023392484 | AA35: Non-controllable Opex for 4th Reg Period | AB35: =SUM(X34:AB34) -> 8.623082147
AA36: Non-controllable Opex growth from 3rd to 4th Reg Period | AB36: =IFERROR(AB35-W35,"-") -> 2.599689663 | AC36: =IFERROR(AB35/W35-1,"-") -> 0.4315989154
E37: Total prescribed operating expenditure | K37: =+K34+K17 -> 0 | L37: 0 | M37: 0 | N37: 0 | O37: 0 | P37: 0 | Q37: 0 | R37: 18.28282726 | S37: 17.60877875 | T37: 17.18359597 | U37: 19.24024285 | V37: 18.65849262 | W37: 18.27339785 | X37: 20.93959789 | Y37: 21.25823261 | Z37: 21.17923606 | AA37: 20.68614597 | AB37: 20.69046199 | AC37: 20.59728377 | AD37: 20.50402416 | AE37: 20.41136273 | AF37: 20.46096908 | AG37: 20.36569198
V38: Prescribed Opex for 3rd Reg Period | W38: =SUM(S37:W37) -> 90.96450805 | AA38: Prescribed Opex for 4th Reg Period | AB38: =SUM(X37:AB37) -> 104.7536745
AA39: Prescribed Opex growth from 3rd to 4th Reg Period | AB39: =IFERROR(AB38-W38,"-") -> 13.78916647 | AC39: =IFERROR(AB38/W38-1,"-") -> 0.1515884246
W40: To reconcile to 'Opex_FO' tab row 123>> | X40: =+Opex_FO!X95 -> 20.93959789 | Y40: =+Opex_FO!Y95 -> 21.25823261 | Z40: =+Opex_FO!Z95 -> 21.17923606 | AA40: =+Opex_FO!AA95 -> 20.68614597 | AB40: =+Opex_FO!AB95 -> 20.69046199 | AC40: =+Opex_FO!AC95 -> 20.59728377 | AD40: =+Opex_FO!AD95 -> 20.50402416 | AE40: =+Opex_FO!AE95 -> 20.41136273 | AF40: =+Opex_FO!AF95 -> 20.46096908 | AG40: =+Opex_FO!AG95 -> 20.36569198
W41: Difference | X41: =+X40-X37 -> 0 | Y41: 0 | Z41: 0 | AA41: 0 | AB41: 0 | AC41: 0 | AD41: 0 | AE41: 0 | AF41: 0 | AG41: 0
W42: Test | X42: =+X40=X37 -> TRUE | Y42: TRUE | Z42: TRUE | AA42: TRUE | AB42: TRUE | AC42: TRUE | AD42: TRUE | AE42: TRUE | AF42: TRUE | AG42: TRUE
B46: Total operating expenditure
C48: Water
D49: Operations & Maintenance | R49: 1.846091034 | S49: 2.096694271 | T49: 2.117475961 | U49: 1.964789265 | V49: 4.093879534 | W49: 3.8557622 | X49: 4.812602609 | Y49: 4.906621625 | Z49: 4.893292788 | AA49: 4.772222935 | AB49: 4.731768455 | AC49: 4.669597563 | AD49: 4.607043908 | AE49: 4.544489418 | AF49: 4.480940256 | AG49: 4.418064626
D50: External bulk charges (excl. temporary purchases) | R50: =+R131 -> 0 | S50: =+S131 -> 0 | T50: =+T131 -> 0 | U50: 0 | V50: 0 | W50: 0 | X50: 0.5793663024 | Y50: 0.5793663024 | Z50: 0.5793663024 | AA50: 0.3545289581 | AB50: 0.3545289581 | AC50: 0.3545289581 | AD50: 0.3545289581 | AE50: 0.3545289581 | AF50: 0.3545289581 | AG50: 0.3545289581 | AH50: see reconciliation below
D51: Treatment | R51: 3.220980881 | S51: 2.729047767 | T51: 2.160475247 | U51: 2.400374458 | V51: 2.171308787 | W51: 2.241990411 | X51: 2.261186338 | Y51: 2.335825692 | Z51: 2.333476176 | AA51: 2.335310561 | AB51: 2.33721756 | AC51: 2.345591877 | AD51: 2.354015046 | AE51: 2.36248735 | AF51: 2.371009076 | AG51: 2.379580513
D52: Customer Service and billing | R52: 0.4059409284 | S52: 0.4510644392 | T52: 0.4759677272 | U52: 0.4117883768 | V52: 0.3092299693 | W52: 0.3244724297 | X52: 0.3513544795 | Y52: 0.3536471964 | Z52: 0.3542305495 | AA52: 0.3557359258 | AB52: 0.357242467 | AC52: 0.3593377308 | AD52: 0.3614452834 | AE52: 0.3635651971 | AF52: 0.3656975443 | AG52: 0.367842398
D53: GSL Payments | R53: 0 | S53: 0 | T53: 0 | U53: 0 | V53: 0 | W53: 0 | X53: 0 | Y53: 0 | Z53: 0 | AA53: 0 | AB53: 0 | AC53: 0 | AD53: 0 | AE53: 0 | AF53: 0 | AG53: 0
D54: Licence Fees | R54: 0.02433433358 | S54: 0.009711913762 | T54: 0.00733870945 | U54: 0.01241572995 | V54: 0.03761084911 | W54: 0.036828 | X54: 0.036828 | Y54: 0.036828 | Z54: 0.036828 | AA54: 0.036828 | AB54: 0.036828 | AC54: 0.036828 | AD54: 0.036828 | AE54: 0.036828 | AF54: 0.036828 | AG54: 0.036828
D55: Corporate | R55: 3.226511412 | S55: 2.993427642 | T55: 2.705887013 | U55: 2.859756466 | V55: 2.935536844 | W55: 2.931673016 | X55: 3.031253891 | Y55: 3.057990611 | Z55: 3.029611089 | AA55: 3.017774491 | AB55: 3.011994635 | AC55: 3.022016317 | AD55: 3.032096778 | AE55: 3.042236362 | AF55: 3.052435416 | AG55: 3.062694288
D56: Other operating expenditure | R56: 2.371491418 | S56: 2.071874936 | T56: 2.108306386 | U56: 2.452106666 | V56: 0.2356560643 | W56: 0.1914719443 | X56: 0.196874817 | Y56: 0.1920691645 | Z56: 0.206208455 | AA56: 0.2005034516 | AB56: 0.2048545832 | AC56: 0.2095491063 | AD56: 0.214123626 | AE56: 0.218582307 | AF56: 0.2229291941 | AG56: 0.2271682154
C57: =+CONCATENATE("Total ",C48) -> Total Water | K57: =+SUM(K49:K56) -> 0 | L57: =+SUM(L49:L56) -> 0 | M57: 0 | N57: 0 | O57: 0 | P57: 0 | Q57: 0 | R57: 11.09535001 | S57: 10.35182097 | T57: 9.575451044 | U57: 10.10123096 | V57: 9.783222048 | W57: 9.582198001 | X57: 11.26946644 | Y57: 11.46234859 | Z57: 11.43301336 | AA57: 11.07290432 | AB57: 11.03443466 | AC57: =+SUM(AC49:AC56) -> 10.99744955 | AD57: 10.9600816 | AE57: 10.92271759 | AF57: 10.88436845 | AG57: 10.846707
C59: Sewerage
D60: =+D49 -> Operations & Maintenance | R60: 0.9169619336 | S60: 0.9485302441 | T60: 1.208790285 | U60: 1.844770542 | V60: 3.24282214 | W60: 3.0542059 | X60: 3.812133249 | Y60: 3.886607093 | Z60: 3.876049126 | AA60: 3.780147916 | AB60: 3.748103328 | AC60: 3.698856851 | AD60: 3.649307181 | AE60: 3.599756851 | AF60: 3.549418626 | AG60: 3.499613915
D61: =+D50 -> External bulk charges (excl. temporary purchases) | R61: =+R132 -> 0 | S61: =+S132 -> 0 | T61: =+T132 -> 0 | U61: 0 | V61: 0 | W61: 0 | X61: 0 | Y61: 0 | Z61: 0 | AA61: 0 | AB61: 0 | AC61: 0 | AD61: 0 | AE61: 0 | AF61: 0 | AG61: 0 | AH61: see reconciliation below
D62: Treatment | R62: 1.328433392 | S62: 1.249599571 | T62: 1.316774153 | U62: 1.112242475 | V62: 1.719925599 | W62: 1.775913551 | X62: 1.791118927 | Y62: 1.850241856 | Z62: 1.848380771 | AA62: 1.849833813 | AB62: 1.851344375 | AC62: 1.857977795 | AD62: 1.864649911 | AE62: 1.871360947 | AF62: 1.878111132 | AG62: 1.884900693
D63: Customer Service and billing | R63: 0.2632532451 | S63: 0.2989111236 | T63: 0.4099193422 | U63: 0.3579868803 | V63: 0.2449456029 | W63: 0.2570193798 | X63: 0.2783130465 | Y63: 0.2801291412 | Z63: 0.2805912238 | AA63: 0.2817836544 | AB63: 0.2829770079 | AC63: 0.2846366971 | AD63: 0.2863061206 | AE63: 0.2879853354 | AF63: 0.2896743989 | AG63: 0.291373369
D64: GSL Payments | R64: 0 | S64: 0 | T64: 0 | U64: 0 | V64: 0 | W64: 0 | X64: 0 | Y64: 0 | Z64: 0 | AA64: 0 | AB64: 0 | AC64: 0 | AD64: 0 | AE64: 0 | AF64: 0 | AG64: 0
D65: Licence Fees | R65: 0.08074574325 | S65: 0.04963867034 | T65: 0.008387096515 | U65: 0.09415261881 | V65: 0.02979210629 | W65: 0.029172 | X65: 0.029172 | Y65: 0.029172 | Z65: 0.029172 | AA65: 0.029172 | AB65: 0.029172 | AC65: 0.029172 | AD65: 0.029172 | AE65: 0.029172 | AF65: 0.029172 | AG65: 0.029172
D66: Corporate | R66: 2.551786708 | S66: 2.426899339 | T66: 2.418628957 | U66: 2.501769585 | V66: 2.325281872 | W66: 2.322221278 | X66: 2.401100752 | Y66: 2.422279301 | Z66: 2.399799465 | AA66: 2.390423521 | AB66: 2.385845212 | AC66: 2.393783535 | AD66: 2.401768416 | AE66: 2.409800129 | AF66: 2.41787895 | AG66: 2.426005153
D67: Other operating expenditure | R67: 1.222247209 | S67: 1.095288052 | T67: 1.091370934 | U67: 2.088946565 | V67: 0.1866666316 | W67: 0.1516677408 | X67: 0.1559474357 | Y67: 0.1521408077 | Z67: 0.1633407475 | AA67: 0.1588217305 | AB67: 0.1622683258 | AC67: 0.1659869265 | AD67: 0.1696104708 | AE67: 0.1731422576 | AF67: 0.1765854907 | AG67: 0.1799432817
C68: =+CONCATENATE("Total ",C59) -> Total Sewerage | K68: =+SUM(K60:K67) -> 0 | L68: 0 | M68: 0 | N68: 0 | O68: 0 | P68: 0 | Q68: 0 | R68: 6.363428231 | S68: 6.068867 | T68: 6.453870768 | U68: 7.999868666 | V68: 7.749433952 | W68: 7.59019985 | X68: 8.467785411 | Y68: 8.6205702 | Z68: 8.597333333 | AA68: 8.490182636 | AB68: 8.45971025 | AC68: =+SUM(AC60:AC67) -> 8.430413805 | AD68: 8.400814099 | AE68: 8.371217521 | AF68: 8.340840597 | AG68: 8.311008412
C70: Recycled Water
D71: =+D60 -> Operations & Maintenance | R71: 0 | S71: 0 | T71: 0 | U71: 0 | V71: 0 | W71: 0 | X71: 0 | Y71: 0 | Z71: 0 | AA71: 0 | AB71: 0
D72: =+D61 -> External bulk charges (excl. temporary purchases) | R72: =+R133 -> 0 | S72: =+S133 -> 0 | T72: =+T133 -> 0 | U72: 0 | V72: 0 | W72: 0 | X72: 0 | Y72: 0 | Z72: 0 | AA72: 0 | AB72: 0 | AC72: 0 | AD72: 0 | AE72: 0 | AF72: 0 | AG72: 0 | AH72: see reconciliation below
D73: Treatment | R73: 0 | S73: 0 | T73: 0 | U73: 0 | V73: 0 | W73: 0 | X73: 0 | Y73: 0 | Z73: 0 | AA73: 0 | AB73: 0
D74: Customer Service and billing | R74: 0 | S74: 0 | T74: 0 | U74: 0 | V74: 0 | W74: 0 | X74: 0 | Y74: 0 | Z74: 0 | AA74: 0 | AB74: 0
D75: GSL Payments | R75: 0 | S75: 0 | T75: 0 | U75: 0 | V75: 0 | W75: 0 | X75: 0 | Y75: 0 | Z75: 0 | AA75: 0 | AB75: 0
D76: Licence Fees | R76: 0 | S76: 0 | T76: 0 | U76: 0 | V76: 0 | W76: 0 | X76: 0 | Y76: 0 | Z76: 0 | AA76: 0 | AB76: 0
D77: Corporate | R77: 0 | S77: 0 | T77: 0 | U77: 0 | V77: 0 | W77: 0 | X77: 0 | Y77: 0 | Z77: 0 | AA77: 0 | AB77: 0
D78: Other operating expenditure | R78: 0 | S78: 0 | T78: 0 | U78: 0 | V78: 0 | W78: 0 | X78: 0 | Y78: 0 | Z78: 0 | AA78: 0 | AB78: 0
C79: =+CONCATENATE("Total ",C70) -> Total Recycled Water | K79: =+SUM(K71:K78) -> 0 | L79: =+SUM(L71:L78) -> 0 | M79: =+SUM(M71:M78) -> 0 | N79: =+SUM(N71:N78) -> 0 | O79: 0 | P79: 0 | Q79: 0 | R79: 0 | S79: 0 | T79: 0 | U79: 0 | V79: 0 | W79: 0 | X79: =+SUM(X71:X78) -> 0 | Y79: =+SUM(Y71:Y78) -> 0 | Z79: =+SUM(Z71:Z78) -> 0 | AA79: =+SUM(AA71:AA78) -> 0 | AB79: =+SUM(AB71:AB78) -> 0 | AC79: =+SUM(AC71:AC78) -> 0 | AD79: 0 | AE79: 0 | AF79: 0 | AG79: 0
C81: Rural Water
D82: =+D60 -> Operations & Maintenance | R82: 0 | S82: 0 | T82: 0 | U82: 0 | V82: 0 | W82: 0 | X82: 0 | Y82: 0 | Z82: 0 | AA82: 0 | AB82: 0
D83: =+D61 -> External bulk charges (excl. temporary purchases) | R83: =+R134 -> 0 | S83: =+S134 -> 0 | T83: =+T134 -> 0 | U83: 0 | V83: 0 | W83: 0 | X83: 0 | Y83: 0 | Z83: 0 | AA83: 0 | AB83: 0 | AC83: 0 | AD83: 0 | AE83: 0 | AF83: 0 | AG83: 0 | AH83: see reconciliation below
D84: Treatment | R84: 0 | S84: 0 | T84: 0 | U84: 0 | V84: 0 | W84: 0 | X84: 0 | Y84: 0 | Z84: 0 | AA84: 0 | AB84: 0
D85: Customer Service and billing | R85: 0 | S85: 0 | T85: 0 | U85: 0 | V85: 0 | W85: 0 | X85: 0 | Y85: 0 | Z85: 0 | AA85: 0 | AB85: 0
D86: GSL Payments | R86: 0 | S86: 0 | T86: 0 | U86: 0 | V86: 0 | W86: 0 | X86: 0 | Y86: 0 | Z86: 0 | AA86: 0 | AB86: 0
D87: Licence Fees | R87: 0 | S87: 0 | T87: 0 | U87: 0 | V87: 0 | W87: 0 | X87: 0 | Y87: 0 | Z87: 0 | AA87: 0 | AB87: 0
D88: Corporate | R88: 0 | S88: 0 | T88: 0 | U88: 0 | V88: 0 | W88: 0 | X88: 0 | Y88: 0 | Z88: 0 | AA88: 0 | AB88: 0
D89: Other operating expenditure | R89: 0 | S89: 0 | T89: 0 | U89: 0 | V89: 0 | W89: 0 | X89: 0 | Y89: 0 | Z89: 0 | AA89: 0 | AB89: 0
C90: =+CONCATENATE("Total ",C81) -> Total Rural Water | K90: =+SUM(K82:K89) -> 0 | L90: 0 | M90: 0 | N90: 0 | O90: 0 | P90: 0 | Q90: 0 | R90: 0 | S90: 0 | T90: 0 | U90: 0 | V90: 0 | W90: 0 | X90: =+SUM(X82:X89) -> 0 | Y90: =+SUM(Y82:Y89) -> 0 | Z90: =+SUM(Z82:Z89) -> 0 | AA90: =+SUM(AA82:AA89) -> 0 | AB90: =+SUM(AB82:AB89) -> 0 | AC90: =+SUM(AC82:AC89) -> 0 | AD90: 0 | AE90: 0 | AF90: 0 | AG90: 0
C92: Bulk Water
D93: Operations & Maintenance | R93: 0 | S93: 0 | T93: 0 | U93: 0 | V93: 0 | W93: 0 | X93: 0 | Y93: 0 | Z93: 0 | AA93: 0 | AB93: 0
D94: Treatment | R94: 0 | S94: 0 | T94: 0 | U94: 0 | V94: 0 | W94: 0 | X94: 0 | Y94: 0 | Z94: 0 | AA94: 0 | AB94: 0
D95: Customer Service and billing | R95: 0 | S95: 0 | T95: 0 | U95: 0 | V95: 0 | W95: 0 | X95: 0 | Y95: 0 | Z95: 0 | AA95: 0 | AB95: 0
D96: GSL Payments | R96: 0 | S96: 0 | T96: 0 | U96: 0 | V96: 0 | W96: 0 | X96: 0 | Y96: 0 | Z96: 0 | AA96: 0 | AB96: 0
D97: Licence Fees | R97: 0 | S97: 0 | T97: 0 | U97: 0 | V97: 0 | W97: 0 | X97: 0 | Y97: 0 | Z97: 0 | AA97: 0 | AB97: 0
D98: Corporate | R98: 0 | S98: 0 | T98: 0 | U98: 0 | V98: 0 | W98: 0 | X98: 0 | Y98: 0 | Z98: 0 | AA98: 0 | AB98: 0
D99: Other operating expenditure | R99: 0 | S99: 0 | T99: 0 | U99: 0 | V99: 0 | W99: 0 | X99: 0 | Y99: 0 | Z99: 0 | AA99: 0 | AB99: 0
C100: Total Bulk water | K100: =+SUM(K93:K99) -> 0 | L100: 0 | M100: 0 | N100: 0 | O100: 0 | P100: 0 | Q100: 0 | R100: 0 | S100: 0 | T100: 0 | U100: 0 | V100: 0 | W100: 0 | X100: 0 | Y100: 0 | Z100: 0 | AA100: 0 | AB100: 0 | AC100: =+SUM(AC93:AC99) -> 0 | AD100: 0 | AE100: 0 | AF100: 0 | AG100: 0
C102: External temporary water purchases | R102: 0 | S102: 0 | T102: 0 | U102: 0 | V102: 0 | W102: 0 | X102: 0 | Y102: 0 | Z102: 0 | AA102: 0 | AB102: 0
C105: Licence fees
D106: Essential Services Commission | R106: 0.02654654572 | S106: 0.01834472599 | T106: 0.01362903184 | U106: 0.01241572995 | V106: 0.03841033917 | W106: 0.036828 | X106: 0.036828 | Y106: 0.036828 | Z106: 0.036828 | AA106: 0.036828 | AB106: 0.036828 | AC106: 0.036828 | AD106: 0.036828 | AE106: 0.036828 | AF106: 0.036828 | AG106: 0.036828
D107: Department of Human Services | R107: 0 | S107: 0 | T107: 0 | U107: 0.009311797465
D108: Environment Protection Authority | R108: 0.06857857646 | S108: 0.04100585811 | T108: 0.002096774129 | U108: 0.08484082134 | V108: 0.03042539411 | W108: 0.029172 | X108: 0.029172 | Y108: 0.029172 | Z108: 0.029172 | AA108: 0.029172 | AB108: 0.029172 | AC108: 0.029172 | AD108: 0.029172 | AE108: 0.029172 | AF108: 0.029172 | AG108: 0.029172
C109: =+CONCATENATE("Total ",C105) -> Total Licence fees | K109: =+SUM(K106:K108) -> 0 | L109: =+SUM(L106:L108) -> 0 | M109: 0 | N109: 0 | O109: 0 | P109: 0 | Q109: 0 | R109: 0.09512512218 | S109: 0.0593505841 | T109: 0.01572580596 | U109: 0.1065683488 | V109: 0.06883573328 | W109: 0.066 | X109: =+SUM(X106:X108) -> 0.066 | Y109: =+SUM(Y106:Y108) -> 0.066 | Z109: =+SUM(Z106:Z108) -> 0.066 | AA109: =+SUM(AA106:AA108) -> 0.066 | AB109: =+SUM(AB106:AB108) -> 0.066 | AC109: =+SUM(AC106:AC108) -> 0.066 | AD109: 0.066 | AE109: 0.066 | AF109: 0.066 | AG109: 0.066
C111: Environment Contribution | R111: 0.8340039782 | S111: 1.188090784 | T111: 1.154274158 | U111: 1.139143223 | V111: 1.124403847 | W111: 1.101 | X111: 1.202346041 | Y111: 1.175313823 | Z111: 1.148889368 | AA111: 1.12305901 | AB111: 1.196317081 | AC111: 1.169420411 | AD111: 1.143128457 | AE111: 1.117427622 | AF111: 1.235760033 | AG111: 1.207976572
C113: Other non-controllable
D114: [Non-controllable 1]
D115: [Non-controllable 2]
D116: [Non-controllable 3]
D117: [Non-controllable 4]
D118: [Non-controllable 5]
D119: [Non-controllable 6]
D120: [Non-controllable 7]
D121: [Non-controllable 8]
D122: [Non-controllable 9]
D123: [Non-controllable 10]
K124: =SUM(K114:K123) -> 0 | L124: 0 | M124: 0 | N124: 0 | O124: 0 | P124: 0 | Q124: 0 | R124: 0 | S124: 0 | T124: 0 | U124: 0 | V124: 0 | W124: 0 | X124: 0 | Y124: 0 | Z124: 0 | AA124: 0 | AB124: 0 | AC124: 0 | AD124: 0 | AE124: 0 | AF124: 0 | AG124: 0
C127: External bulk charges (excl. temporary purchases)
C128: Reconciliation
C130: Service | R130: =+R7 -> 2012-13 | S130: 2013-14 | T130: 2014-15 | U130: 2015-16 | V130: 2016-17 | W130: 2017-18 | X130: 2018-19 | Y130: 2019-20 | Z130: 2020-21 | AA130: 2021-22 | AB130: 2022-23 | AC130: 2023-24 | AD130: 2024-25 | AE130: 2025-26 | AF130: 2026-27 | AG130: 2027-28
D131: Water | R131: =+SUMIF($I$138:$I$179,$D$131,R$138:R$179) -> 0 | S131: 0 | T131: 0 | U131: 0 | V131: 0 | W131: 0 | X131: 0.5793663024 | Y131: 0.5793663024 | Z131: 0.5793663024 | AA131: 0.3545289581 | AB131: 0.3545289581 | AC131: 0.3545289581 | AD131: 0.3545289581 | AE131: 0.3545289581 | AF131: 0.3545289581 | AG131: 0.3545289581
D132: Sewerage | R132: =+SUMIF($I$138:$I$179,$D$132,R$138:R$179) -> 0 | S132: 0 | T132: 0 | U132: 0 | V132: 0 | W132: 0 | X132: 0 | Y132: 0 | Z132: 0 | AA132: 0 | AB132: 0 | AC132: 0 | AD132: 0 | AE132: 0 | AF132: 0 | AG132: 0
D133: Recycled Water | R133: =+SUMIF($I$138:$I$179,$D$133,R$138:R$179) -> 0 | S133: 0 | T133: 0 | U133: 0 | V133: 0 | W133: 0 | X133: 0 | Y133: 0 | Z133: 0 | AA133: 0 | AB133: 0 | AC133: 0 | AD133: 0 | AE133: 0 | AF133: 0 | AG133: 0
D134: Rural Water | R134: =+SUMIF($I$138:$I$179,$D$134,R$138:R$179) -> 0 | S134: 0 | T134: 0 | U134: 0 | V134: 0 | W134: 0 | X134: 0 | Y134: 0 | Z134: 0 | AA134: 0 | AB134: 0 | AC134: 0 | AD134: 0 | AE134: 0 | AF134: 0 | AG134: 0
C135: Total External Bulk Charges | R135: =SUM(R131:R134) -> 0 | S135: =SUM(S131:S134) -> 0 | T135: =SUM(T131:T134) -> 0 | U135: 0 | V135: 0 | W135: 0 | X135: 0.5793663024 | Y135: 0.5793663024 | Z135: 0.5793663024 | AA135: 0.3545289581 | AB135: 0.3545289581 | AC135: 0.3545289581 | AD135: 0.3545289581 | AE135: 0.3545289581 | AF135: 0.3545289581 | AG135: 0.3545289581
C137: Description | H137: Source | I137: Service | J137: Price
B138: 1 | C138: Melbourne Water 1GB | H138: Melbourne Water | I138: Water | J138: Fixed | R138: 0 | S138: 0 | T138: 0 | U138: 0 | V138: 0 | W138: 0 | X138: 0.5793663024 | Y138: 0.5793663024 | Z138: 0.5793663024 | AA138: 0.3545289581 | AB138: 0.3545289581 | AC138: 0.3545289581 | AD138: 0.3545289581 | AE138: 0.3545289581 | AF138: 0.3545289581 | AG138: 0.3545289581 | AJ138: ESC USE ONLY
B139: 2 | H139: [Source] | I139: [Service] | J139: [Price]
B140: 3 | H140: [Source] | I140: [Service] | J140: [Price] | AJ140: [Service]
B141: 4 | H141: [Source] | I141: [Service] | J141: [Price] | AJ141: Water
B142: 5 | H142: [Source] | I142: [Service] | J142: [Price] | AJ142: Sewerage
B143: 6 | H143: [Source] | I143: [Service] | J143: [Price] | AJ143: Recycled Water
B144: 7 | H144: [Source] | I144: [Service] | J144: [Price] | AJ144: Rural Water
B145: 8 | H145: [Source] | I145: [Service] | J145: [Price]
B146: 9 | H146: [Source] | I146: [Service] | J146: [Price] | AJ146: [Source]
B147: 10 | H147: [Source] | I147: [Service] | J147: [Price] | AJ147: Melbourne Water
B148: 11 | H148: [Source] | I148: [Service] | J148: [Price] | AJ148: Goulburn-Murray Water
B149: 12 | H149: [Source] | I149: [Service] | J149: [Price] | AJ149: Other Sources
B150: 13 | H150: [Source] | I150: [Service] | J150: [Price]
B151: 14 | H151: [Source] | I151: [Service] | J151: [Price]
B152: 15 | H152: [Source] | I152: [Service] | J152: [Price]
B153: 16 | H153: [Source] | I153: [Service] | J153: [Price]
B154: 17 | H154: [Source] | I154: [Service] | J154: [Price]
B155: 18 | H155: [Source] | I155: [Service] | J155: [Price]
B156: 19 | H156: [Source] | I156: [Service] | J156: [Price]
B157: 20 | H157: [Source] | I157: [Service] | J157: [Price]
B158: 21 | H158: [Source] | I158: [Service] | J158: [Price]
B159: 22 | H159: [Source] | I159: [Service] | J159: [Price]
B160: 23 | H160: [Source] | I160: [Service] | J160: [Price]
B161: 24 | H161: [Source] | I161: [Service] | J161: [Price]
B162: 25 | H162: [Source] | I162: [Service] | J162: [Price]
B163: 26 | H163: [Source] | I163: [Service] | J163: [Price]
B164: 27 | H164: [Source] | I164: [Service] | J164: [Price]
B165: 28 | H165: [Source] | I165: [Service] | J165: [Price]
B166: 29 | H166: [Source] | I166: [Service] | J166: [Price]
B167: 30 | H167: [Source] | I167: [Service] | J167: [Price]
B168: 31 | H168: [Source] | I168: [Service] | J168: [Price]
B169: 32 | H169: [Source] | I169: [Service] | J169: [Price]
B170: 33 | H170: [Source] | I170: [Service] | J170: [Price]
B171: 34 | H171: [Source] | I171: [Service] | J171: [Price]
B172: 35 | H172: [Source] | I172: [Service] | J172: [Price]
B173: 36 | H173: [Source] | I173: [Service] | J173: [Price]
B174: 37 | H174: [Source] | I174: [Service] | J174: [Price]
B175: 38 | H175: [Source] | I175: [Service] | J175: [Price]
B176: 39 | H176: [Source] | I176: [Service] | J176: [Price]
B177: 40 | H177: [Source] | I177: [Service] | J177: [Price]

Sheet Capex_FO input
B1: Capital Expenditure - Forecast Input
B2: =+Contents!H7 -> South Gippsland Water
B3: Go to Table of Contents
C7: Input Summary | F7: FOURTH REG PERIOD | K7: FIFTH REG PERIOD
D9: =+O39 -> 2018-19 | E9: 2019-20 | F9: 2020-21 | G9: 2021-22 | H9: 2022-23 | I9: 2023-24 | J9: 2024-25 | K9: 2025-26 | L9: 2026-27 | M9: 2027-28 | P9: 4th Reg Period | S9: 5th Reg Period
C10: By Cost Driver | P10: Total | Q10: % of Total | S10: Total | T10: % of Total
C11: Net capital expenditure - Renewals | D11: =+SUMIF($F$42:$F$1019,"Renewals",AV$42:AV$1019) -> 7.357048102 | E11: 10.254709 | F11: 10.2990271 | G11: 11.9619018 | H11: 11.9912259 | I11: 19.0180528 | J11: 23.6292129 | K11: 20.2522508 | L11: 17.4392539 | M11: 16.5125998 | P11: =SUM(D11:H11) -> 51.8639119 | Q11: =IFERROR(P11/$P$16,"-") -> 0.5878079307 | S11: =SUM(I11:M11) -> 96.8513702 | T11: =IFERROR(S11/$S$16,"-") -> 0.9377122078
C12: Net capital expenditure - Growth | D12: =+SUMIF($F$42:$F$1019,"Growth",AV$42:AV$1019) -> 10.60281 | E12: 5.285145 | F12: 6.021284 | G12: 3.93528 | H12: 4.848308 | I12: 1.16825 | J12: 1.94625 | K12: 0.88825 | L12: 1.270946 | M12: 1.159683 | P12: =SUM(D12:H12) -> 30.692827 | Q12: =IFERROR(P12/$P$16,"-") -> 0.3478620579 | S12: =SUM(I12:M12) -> 6.433379 | T12: =IFERROR(S12/$S$16,"-") -> 0.06228779224
C13: Net capital expenditure - Improvements / Compliance | D13: =+SUMIF($F$42:$F$1019,"Improvements / Compliance",AV$42:AV$1019) -> 2.004 | E13: 1.55 | F13: 0.1 | G13: 1.011007 | H13: 1.011007 | I13: 0 | J13: 0 | K13: 0 | L13: 0 | M13: 0 | P13: 5.676014 | Q13: 0.0643300114 | S13: 0 | T13: 0
C14: Government Contributions | D14: =+Z41 -> 0 | E14: =+AA41 -> 0 | F14: 0 | G14: 0 | H14: 0 | I14: 0 | J14: 0 | K14: 0 | L14: 0 | M14: 0 | P14: 0 | Q14: 0 | S14: 0 | T14: 0
C15: Customer Contributions | D15: =+AK41 -> 0 | E15: =+AL41 -> 0 | F15: 0 | G15: 0 | H15: 0 | I15: 0 | J15: 0 | K15: 0 | L15: 0 | M15: 0 | P15: 0 | Q15: 0 | S15: 0 | T15: 0
C16: Total prescribed capex | D16: =SUM(D11:D15) -> 19.9638581 | E16: 17.089854 | F16: 16.4203111 | G16: 16.9081888 | H16: 17.8505409 | I16: 20.1863028 | J16: 25.5754629 | K16: 21.1405008 | L16: 18.7101999 | M16: 17.6722828 | P16: 88.2327529 | Q16: 1 | S16: 103.2847492 | T16: 1
C18: By Capital Type
C19: Top 10 Major Projects | D19: =+SUMIF($H$42:$H$1019,$C$19,O$42:O$1019) -> 11.03802 | E19: 5.867555 | F19: 6.319694 | G19: 7.362197 | H19: 4.812725 | I19: 0.28 | J19: 1.058 | K19: 0 | L19: 0.382696 | M19: 0.271433 | P19: =SUM(D19:H19) -> 35.400191 | Q19: =IFERROR(P19/$P$23,"-") -> 0.4012137198 | S19: =SUM(I19:M19) -> 1.992129 | T19: =IFERROR(S19/$S$23,"-") -> 0.01928773624
C20: Significant projects | D20: =+SUMIF($H$42:$H$1019,$C$20,O$42:O$1019) -> 0 | E20: 0 | F20: 0 | G20: 0 | H20: 0 | I20: 0 | J20: 0 | K20: 0 | L20: 0 | M20: 0 | P20: =SUM(D20:H20) -> 0 | Q20: =IFERROR(P20/$P$23,"-") -> 0 | S20: =SUM(I20:M20) -> 0 | T20: =IFERROR(S20/$S$23,"-") -> 0
C21: Capital Programs / Allocation | D21: =+SUMIF($H$42:$H$1019,$C$21,O$42:O$1019) -> 7.357048102 | E21: 10.054709 | F21: 8.999027102 | G21: 8.4719018 | H21: 11.9912259 | I21: 19.0180528 | J21: 23.6292129 | K21: 20.2522508 | L21: 17.4392539 | M21: 16.5125998 | P21: 46.8739119 | Q21: 0.5312529686 | S21: 96.8513702 | T21: 0.9377122078
C22: Other Capital expenditure | D22: =+SUMIF($H$42:$H$1019,$C$22,O$42:O$1019) -> 1.56879 | E22: 1.16759 | F22: 1.10159 | G22: 1.07409 | H22: 1.04659 | I22: 0.88825 | J22: 0.88825 | K22: 0.88825 | L22: 0.88825 | M22: 0.88825 | P22: 5.95865 | Q22: 0.06753331165 | S22: 4.44125 | T22: 0.043000056
C23: Total prescribed capex | D23: =SUM(D19:D22) -> 19.9638581 | E23: =SUM(E19:E22) -> 17.089854 | F23: 16.4203111 | G23: 16.9081888 | H23: 17.8505409 | I23: 20.1863028 | J23: 25.5754629 | K23: 21.1405008 | L23: 18.7101999 | M23: 17.6722828 | P23: 88.2327529 | Q23: 1 | S23: 103.2847492 | T23: 1
C25: Difference | D25: =+D23-D16 -> 0 | E25: =+E23-E16 -> 0 | F25: 0 | G25: 0 | H25: 0 | I25: 0 | J25: 0 | K25: 0 | L25: 0 | M25: 0
C26: Test | D26: =+D23=D16 -> TRUE | E26: TRUE | F26: TRUE | G26: TRUE | H26: TRUE | I26: TRUE | J26: TRUE | K26: TRUE | L26: TRUE | M26: TRUE
C29: Total prescribed capex | D29: =+D23 -> 19.9638581 | E29: =+E23 -> 17.089854 | F29: 16.4203111 | G29: 16.9081888 | H29: 17.8505409 | I29: 20.1863028 | J29: 25.5754629 | K29: 21.1405008 | L29: 18.7101999 | M29: 17.6722828
C32: Regulatory Depreciation | D32: =+BG41 -> 0.1250452807 | E32: =+BH41 -> 0.4655190429 | F32: 0.843658835 | G32: 1.157937707 | H32: 1.615018044 | I32: 2.425971133 | J32: 3.223221785 | K32: 3.777779232 | L32: 4.280018813 | M32: 4.743411974
B35: $m, 01/01/18
O36: Gross capital expenditure | Z36: Government contributions | AK36: Customer contributions | AV36: Net capital expenditure | BG36: Regulatory Depreciation | BR36: Accumulated capex | CC36: Gross capital expenditure | CN36: Tax Depreciation
O37: $m, 01/01/18 | Z37: $m, 01/01/18 | AK37: $m, 01/01/18 | AV37: $m, 01/01/18 | BG37: $m, 01/01/18 | BR37: $m, 01/01/18 | CC37: Nominal,$ | CN37: Nominal,$
O39: 2018-19 | P39: 2019-20 | Q39: 2020-21 | R39: 2021-22 | S39: 2022-23 | T39: 2023-24 | U39: 2024-25 | V39: 2025-26 | W39: 2026-27 | X39: 2027-28 | Z39: 2018-19 | AA39: 2019-20 | AB39: 2020-21 | AC39: 2021-22 | AD39: 2022-23 | AE39: 2023-24 | AF39: 2024-25 | AG39: 2025-26 | AH39: 2026-27 | AI39: 2027-28 | AK39: 2018-19 | AL39: 2019-20 | AM39: 2020-21 | AN39: 2021-22 | AO39: 2022-23 | AP39: 2023-24 | AQ39: 2024-25 | AR39: 2025-26 | AS39: 2026-27 | AT39: 2027-28 | AV39: 2018-19 | AW39: 2019-20 | AX39: 2020-21 | AY39: 2021-22 | AZ39: 2022-23 | BA39: 2023-24 | BB39: 2024-25 | BC39: 2025-26 | BD39: 2026-27 | BE39: 2027-28 | BG39: 2018-19 | BH39: 2019-20 | BI39: 2020-21 | BJ39: 2021-22 | BK39: 2022-23 | BL39: 2023-24 | BM39: 2024-25 | BN39: 2025-26 | BO39: 2026-27 | BP39: 2027-28 | BR39: 2018-19 | BS39: 2019-20 | BT39: 2020-21 | BU39: 2021-22 | BV39: 2022-23 | BW39: 2023-24 | BX39: 2024-25 | BY39: 2025-26 | BZ39: 2026-27 | CA39: 2027-28 | CC39: 2018-19 | CD39: 2019-20 | CE39: 2020-21 | CF39: 2021-22 | CG39: 2022-23 | CH39: 2023-24 | CI39: 2024-25 | CJ39: 2025-26 | CK39: 2026-27 | CL39: 2027-28 | CN39: 2018-19 | CO39: 2019-20 | CP39: 2020-21 | CQ39: 2021-22 | CR39: 2022-23 | CS39: 2023-24 | CT39: 2024-25 | CU39: 2025-26 | CV39: 2026-27 | CW39: 2027-28
BG40: 1 | BH40: 2 | BI40: 3 | BJ40: 4 | BK40: 5 | BL40: 6 | BM40: 7 | BN40: 8 | BO40: 9 | BP40: 10 | CN40: 1 | CO40: 2 | CP40: 3 | CQ40: 4 | CR40: 5 | CS40: 6 | CT40: 7 | CU40: 8 | CV40: 9 | CW40: 10
C41: Project/program Name | E41: Service | F41: Major cost driver | G41: Asset category | H41: Capital type | J41: Depreciation Method | K41: Year asset operational | L41: Asset life (Regulatory) | M41: Asset life (Tax) | O41: =SUM(O42:O1019) -> 19.9638581 | P41: 17.089854 | Q41: 16.4203111 | R41: 16.9081888 | S41: 17.8505409 | T41: 20.1863028 | U41: 25.5754629 | V41: 21.1405008 | W41: 18.7101999 | X41: 17.6722828 | Z41: =SUM(Z42:Z1019) -> 0 | AA41: 0 | AB41: 0 | AC41: 0 | AD41: 0 | AE41: 0 | AF41: 0 | AG41: 0 | AH41: 0 | AI41: 0 | AK41: =SUM(AK42:AK1019) -> 0 | AL41: 0 | AM41: 0 | AN41: 0 | AO41: 0 | AP41: 0 | AQ41: 0 | AR41: 0 | AS41: 0 | AT41: 0 | AV41: =SUM(AV42:AV1019) -> 19.9638581 | AW41: 17.089854 | AX41: 16.4203111 | AY41: 16.9081888 | AZ41: 17.8505409 | BA41: 20.1863028 | BB41: 25.5754629 | BC41: 21.1405008 | BD41: 18.7101999 | BE41: 17.6722828 | BG41: =SUM(BG42:BG1019) -> 0.1250452807 | BH41: 0.4655190429 | BI41: 0.843658835 | BJ41: 1.157937707 | BK41: 1.615018044 | BL41: 2.425971133 | BM41: 3.223221785 | BN41: 3.777779232 | BO41: 4.280018813 | BP41: 4.743411974 | BR41: =SUM(BR42:BR1019) -> 7.359938102 | BS41: 20.233853 | BT41: 11.4135551 | BU41: 13.2030918 | BV41: 29.4918149 | BW41: 26.7168028 | BX41: 25.5754629 | BY41: 21.1405008 | BZ41: 18.7101999 | CA41: 17.6722828 | CC41: =SUM(CC42:CC1019) -> 20.42302684 | CD41: 17.88502782 | CE41: 17.57957139 | CF41: 18.51823638 | CG41: 19.99997943 | CH41: 23.13718855 | CI41: 29.98837541 | CJ41: 25.35831199 | CK41: 22.95932581 | CL41: 22.18446654 | CN41: =SUM(CN42:CN1019) -> 0.2720432633 | CO41: 0.8157021459 | CP41: 1.345562835 | CQ41: 1.853180122 | CR41: 2.365550698 | CS41: 2.899735396 | CT41: 3.513082422 | CU41: 4.170411762 | CV41: 4.779462134 | CW41: 5.354412088
C42: Lance Creek Water Connection Project | E42: Water | F42: Growth | G42: Headworks | H42: Top 10 Major Projects | J42: Straight line | K42: 2019-20 | L42: 70 | M42: 70 | O42: 7.056528 | P42: 0 | Q42: 0 | R42: 0 | S42: 0 | T42: 0 | U42: 0 | V42: 0 | W42: 0 | X42: 0 | AV42: =+O42-Z42-AK42 -> 7.056528 | AW42: =+P42-AA42-AL42 -> 0 | AX42: 0 | AY42: 0 | AZ42: 0 | BA42: 0 | BB42: 0 | BC42: 0 | BD42: 0 | BE42: 0 | BG42: =IF($L42=0,0, IF($L42<=0.5,BR42, IF($J42="straight line", IF((LEFT(BG$39,4)*1)-INT($L42)<LEFT($BG$39,4)*1,0,((OFFSET(BR42,0,-INT($L42+0.5),1,1))/$L42)*(IF($L42-INT($L42)>0.5,$L42-0.5-INT($L42),IF($L42-INT($L42)<=0.5,$L42-0.5-INT($L42)+1,0)))) +BR42/$L42*0.5, IF($J42="Declining Balance",-$BG$38,0)))) -> 0 | BH42: =IF($L42=0,0, IF($L42<=0.5,BS42, IF(AND($J42="straight line",$L42<1.51),(BR42-((BR42/$L42)*0.5))+BS42/$L42*0.5, IF($J42="straight line", IF((LEFT(BH$39,4)*1)-INT($L42)<LEFT($BG$39,4)*1,0,((OFFSET(BS42,0,-INT($L42+0.5),1,1))/$L42)*(IF($L42-INT($L42)>0.5,$L42-0.5-INT($L42),IF($L42-INT($L42)<=0.5,$L42-0.5-INT($L42)+1,0)))) +BS42/$L42*0.5 +SUM(OFFSET(BS42,0,MAX(-INT($L42+(0.5-(10^-12))),-BH$40)+1,1,MIN(INT($L42+(0.5-(10^-12))),BH$40)-1))*1/$L42, IF($J42="Declining Balance",-$BG$38,0))))) -> 0.05040377143 | BI42: =IF($L42=0,0, IF($L42<=0.5,BT42, IF(AND($J42="straight line",$L42<1.51),(BS42-((BS42/$L42)*0.5))+BT42/$L42*0.5, IF($J42="straight line", IF((LEFT(BI$39,4)*1)-INT($L42)<LEFT($BG$39,4)*1,0,((OFFSET(BT42,0,-INT($L42+0.5),1,1))/$L42)*(IF($L42-INT($L42)>0.5,$L42-0.5-INT($L42),IF($L42-INT($L42)<=0.5,$L42-0.5-INT($L42)+1,0)))) +BT42/$L42*0.5 +SUM(OFFSET(BT42,0,MAX(-INT($L42+(0.5-(10^-12))),-BI$40)+1,1,MIN(INT($L42+(0.5-(10^-12))),BI$40)-1))*1/$L42, IF($J42="Declining Balance",-$BG$38,0))))) -> 0.1008075429 | BJ42: 0.1008075429 | BK42: 0.1008075429 | BL42: 0.1008075429 | BM42: 0.1008075429 | BN42: 0.1008075429 | BO42: 0.1008075429 | BP42: 0.1008075429 | BR42: =+IF($K42="Ongoing",AV42,IF(RIGHT($K42,2)=RIGHT(BR$39,2),SUM($AV42:AV42),0)+IF(RIGHT(BR$39,2)>RIGHT($K42,2),AV42,0)) -> 0 | BS42: =+IF($K42="Ongoing",AW42,IF(RIGHT($K42,2)=RIGHT(BS$39,2),SUM($AV42:AW42),0)+IF(RIGHT(BS$39,2)>RIGHT($K42,2),AW42,0)) -> 7.056528 | BT42: =+IF($K42="Ongoing",AX42,IF(RIGHT($K42,2)=RIGHT(BT$39,2),SUM($AV42:AX42),0)+IF(RIGHT(BT$39,2)>RIGHT($K42,2),AX42,0)) -> 0 | BU42: =+IF($K42="Ongoing",AY42,IF(RIGHT($K42,2)=RIGHT(BU$39,2),SUM($AV42:AY42),0)+IF(RIGHT(BU$39,2)>RIGHT($K42,2),AY42,0)) -> 0 | BV42: =+IF($K42="Ongoing",AZ42,IF(RIGHT($K42,2)=RIGHT(BV$39,2),SUM($AV42:AZ42),0)+IF(RIGHT(BV$39,2)>RIGHT($K42,2),AZ42,0)) -> 0 | BW42: =+IF($K42="Ongoing",BA42,IF(RIGHT($K42,2)=RIGHT(BW$39,2),SUM($AV42:BA42),0)+IF(RIGHT(BW$39,2)>RIGHT($K42,2),BA42,0)) -> 0 | BX42: =+IF($K42="Ongoing",BB42,IF(RIGHT($K42,2)=RIGHT(BX$39,2),SUM($AV42:BB42),0)+IF(RIGHT(BX$39,2)>RIGHT($K42,2),BB42,0)) -> 0 | BY42: =+IF($K42="Ongoing",BC42,IF(RIGHT($K42,2)=RIGHT(BY$39,2),SUM($AV42:BC42),0)+IF(RIGHT(BY$39,2)>RIGHT($K42,2),BC42,0)) -> 0 | BZ42: =+IF($K42="Ongoing",BD42,IF(RIGHT($K42,2)=RIGHT(BZ$39,2),SUM($AV42:BD42),0)+IF(RIGHT(BZ$39,2)>RIGHT($K42,2),BD42,0)) -> 0 | CA42: =+IF($K42="Ongoing",BE42,IF(RIGHT($K42,2)=RIGHT(CA$39,2),SUM($AV42:BE42),0)+IF(RIGHT(CA$39,2)>RIGHT($K42,2),BE42,0)) -> 0 | CC42: =+O42*KeyAssumptionsPriceControl_FO!X$15 -> 7.218828144 | CD42: =+P42*KeyAssumptionsPriceControl_FO!Y$15 -> 0 | CE42: =+Q42*KeyAssumptionsPriceControl_FO!Z$15 -> 0 | CF42: =+R42*KeyAssumptionsPriceControl_FO!AA$15 -> 0 | CG42: =+S42*KeyAssumptionsPriceControl_FO!AB$15 -> 0 | CH42: =+T42*KeyAssumptionsPriceControl_FO!AC$15 -> 0 | CI42: =+U42*KeyAssumptionsPriceControl_FO!AD$15 -> 0 | CJ42: =+V42*KeyAssumptionsPriceControl_FO!AE$15 -> 0 | CK42: =+W42*KeyAssumptionsPriceControl_FO!AF$15 -> 0 | CL42: =+X42*KeyAssumptionsPriceControl_FO!AG$15 -> 0 | CN42: =IF($M42=0,0, IF($M42<=0.5,CC42, IF($J42="straight line", IF((LEFT(CN$39,4)*1)-INT($M42)<LEFT($CN$39,4)*1,0,((OFFSET(CC42,0,-INT($M42+0.5),1,1))/$M42)*(IF($M42-INT($M42)>0.5,$M42-0.5-INT($M42),IF($M42-INT($M42)<=0.5,$M42-0.5-INT($M42)+1,0)))) +CC42/$M42*0.5, IF($J42="Declining Balance",-$CN$38,0)))) -> 0.05156305817 | CO42: =IF($M42=0,0, IF($M42<=0.5,CD42, IF(AND($J42="straight line",$M42<1.51),(CC42-((CC42/$M42)*0.5))+CD42/$M42*0.5, IF($J42="straight line", IF((LEFT(CO$39,4)*1)-INT($M42)<LEFT($CN$39,4)*1,0,((OFFSET(CD42,0,-INT($M42+0.5),1,1))/$M42)*(IF($M42-INT($M42)>0.5,$M42-0.5-INT($M42),IF($M42-INT($M42)<=0.5,$M42-0.5-INT($M42)+1,0)))) +CD42/$M42*0.5 +SUM(OFFSET(CD42,0,MAX(-INT($M42+(0.5-(10^-12))),-CO$40)+1,1,MIN(INT($M42+(0.5-(10^-12))),CO$40)-1))*1/$M42, IF($J42="Declining Balance",-$CN$38,0))))) -> 0.1031261163 | CP42: =IF($M42=0,0, IF($M42<=0.5,CE42, IF(AND($J42="straight line",$M42<1.51),(CD42-((CD42/$M42)*0.5))+CE42/$M42*0.5, IF($J42="straight line", IF((LEFT(CP$39,4)*1)-INT($M42)<LEFT($CN$39,4)*1,0,((OFFSET(CE42,0,-INT($M42+0.5),1,1))/$M42)*(IF($M42-INT($M42)>0.5,$M42-0.5-INT($M42),IF($M42-INT($M42)<=0.5,$M42-0.5-INT($M42)+1,0)))) +CE42/$M42*0.5 +SUM(OFFSET(CE42,0,MAX(-INT($M42+(0.5-(10^-12))),-CP$40)+1,1,MIN(INT($M42+(0.5-(10^-12))),CP$40)-1))*1/$M42, IF($J42="Declining Balance",-$CN$38,0))))) -> 0.1031261163 | CQ42: 0.1031261163 | CR42: 0.1031261163 | CS42: 0.1031261163 | CT42: 0.1031261163 | CU42: 0.1031261163 | CV42: 0.1031261163 | CW42: 0.1031261163
C43: Sewer System Expansion (Wonthaggi) Mains | E43: Sewerage | F43: Growth | G43: Pipelines/network | H43: Top 10 Major Projects | J43: Straight line | K43: 2022-23 | L43: 70 | M43: 70 | O43: 0.87111 | P43: 1.14975 | Q43: 2.01105 | R43: 1.4304 | S43: 0.94285 | T43: 0 | U43: 0 | V43: 0 | W43: 0.215496 | X43: 0 | AV43: =+O43-Z43-AK43 -> 0.87111 | AW43: 1.14975 | AX43: 2.01105 | AY43: 1.4304 | AZ43: 0.94285 | BA43: 0 | BB43: 0 | BC43: 0 | BD43: 0.215496 | BE43: 0 | BG43: =IF($L43=0,0, IF($L43<=0.5,BR43, IF($J43="straight line", IF((LEFT(BG$39,4)*1)-INT($L43)<LEFT($BG$39,4)*1,0,((OFFSET(BR43,0,-INT($L43+0.5),1,1))/$L43)*(IF($L43-INT($L43)>0.5,$L43-0.5-INT($L43),IF($L43-INT($L43)<=0.5,$L43-0.5-INT($L43)+1,0)))) +BR43/$L43*0.5, IF($J43="Declining Balance",-$BG$38,0)))) -> 0 | BH43: =IF($L43=0,0, IF($L43<=0.5,BS43, IF(AND($J43="straight line",$L43<1.51),(BR43-((BR43/$L43)*0.5))+BS43/$L43*0.5, IF($J43="straight line", IF((LEFT(BH$39,4)*1)-INT($L43)<LEFT($BG$39,4)*1,0,((OFFSET(BS43,0,-INT($L43+0.5),1,1))/$L43)*(IF($L43-INT($L43)>0.5,$L43-0.5-INT($L43),IF($L43-INT($L43)<=0.5,$L43-0.5-INT($L43)+1,0)))) +BS43/$L43*0.5 +SUM(OFFSET(BS43,0,MAX(-INT($L43+(0.5-(10^-12))),-BH$40)+1,1,MIN(INT($L43+(0.5-(10^-12))),BH$40)-1))*1/$L43, IF($J43="Declining Balance",-$BG$38,0))))) -> 0 | BI43: 0 | BJ43: 0 | BK43: 0.04575114286 | BL43: 0.09150228571 | BM43: 0.09150228571 | BN43: 0.09150228571 | BO43: 0.09304154286 | BP43: 0.0945808 | BR43: =+IF($K43="Ongoing",AV43,IF(RIGHT($K43,2)=RIGHT(BR$39,2),SUM($AV43:AV43),0)+IF(RIGHT(BR$39,2)>RIGHT($K43,2),AV43,0)) -> 0 | BS43: =+IF($K43="Ongoing",AW43,IF(RIGHT($K43,2)=RIGHT(BS$39,2),SUM($AV43:AW43),0)+IF(RIGHT(BS$39,2)>RIGHT($K43,2),AW43,0)) -> 0 | BT43: =+IF($K43="Ongoing",AX43,IF(RIGHT($K43,2)=RIGHT(BT$39,2),SUM($AV43:AX43),0)+IF(RIGHT(BT$39,2)>RIGHT($K43,2),AX43,0)) -> 0 | BU43: =+IF($K43="Ongoing",AY43,IF(RIGHT($K43,2)=RIGHT(BU$39,2),SUM($AV43:AY43),0)+IF(RIGHT(BU$39,2)>RIGHT($K43,2),AY43,0)) -> 0 | BV43: =+IF($K43="Ongoing",AZ43,IF(RIGHT($K43,2)=RIGHT(BV$39,2),SUM($AV43:AZ43),0)+IF(RIGHT(BV$39,2)>RIGHT($K43,2),AZ43,0)) -> 6.40516 | BW43: =+IF($K43="Ongoing",BA43,IF(RIGHT($K43,2)=RIGHT(BW$39,2),SUM($AV43:BA43),0)+IF(RIGHT(BW$39,2)>RIGHT($K43,2),BA43,0)) -> 0 | BX43: =+IF($K43="Ongoing",BB43,IF(RIGHT($K43,2)=RIGHT(BX$39,2),SUM($AV43:BB43),0)+IF(RIGHT(BX$39,2)>RIGHT($K43,2),BB43,0)) -> 0 | BY43: =+IF($K43="Ongoing",BC43,IF(RIGHT($K43,2)=RIGHT(BY$39,2),SUM($AV43:BC43),0)+IF(RIGHT(BY$39,2)>RIGHT($K43,2),BC43,0)) -> 0 | BZ43: =+IF($K43="Ongoing",BD43,IF(RIGHT($K43,2)=RIGHT(BZ$39,2),SUM($AV43:BD43),0)+IF(RIGHT(BZ$39,2)>RIGHT($K43,2),BD43,0)) -> 0.215496 | CA43: =+IF($K43="Ongoing",BE43,IF(RIGHT($K43,2)=RIGHT(CA$39,2),SUM($AV43:BE43),0)+IF(RIGHT(CA$39,2)>RIGHT($K43,2),BE43,0)) -> 0 | CC43: =+O43*KeyAssumptionsPriceControl_FO!X$15 -> 0.89114553 | CD43: =+P43*KeyAssumptionsPriceControl_FO!Y$15 -> 1.203246718 | CE43: =+Q43*KeyAssumptionsPriceControl_FO!Z$15 -> 2.153028455 | CF43: =+R43*KeyAssumptionsPriceControl_FO!AA$15 -> 1.566606905 | CG43: =+S43*KeyAssumptionsPriceControl_FO!AB$15 -> 1.056381468 | CH43: =+T43*KeyAssumptionsPriceControl_FO!AC$15 -> 0 | CI43: =+U43*KeyAssumptionsPriceControl_FO!AD$15 -> 0 | CJ43: =+V43*KeyAssumptionsPriceControl_FO!AE$15 -> 0 | CK43: =+W43*KeyAssumptionsPriceControl_FO!AF$15 -> 0.2644355966 | CL43: =+X43*KeyAssumptionsPriceControl_FO!AG$15 -> 0 | CN43: =IF($M43=0,0, IF($M43<=0.5,CC43, IF($J43="straight line", IF((LEFT(CN$39,4)*1)-INT($M43)<LEFT($CN$39,4)*1,0,((OFFSET(CC43,0,-INT($M43+0.5),1,1))/$M43)*(IF($M43-INT($M43)>0.5,$M43-0.5-INT($M43),IF($M43-INT($M43)<=0.5,$M43-0.5-INT($M43)+1,0)))) +CC43/$M43*0.5, IF($J43="Declining Balance",-$CN$38,0)))) -> 0.006365325214 | CO43: =IF($M43=0,0, IF($M43<=0.5,CD43, IF(AND($J43="straight line",$M43<1.51),(CC43-((CC43/$M43)*0.5))+CD43/$M43*0.5, IF($J43="straight line", IF((LEFT(CO$39,4)*1)-INT($M43)<LEFT($CN$39,4)*1,0,((OFFSET(CD43,0,-INT($M43+0.5),1,1))/$M43)*(IF($M43-INT($M43)>0.5,$M43-0.5-INT($M43),IF($M43-INT($M43)<=0.5,$M43-0.5-INT($M43)+1,0)))) +CD43/$M43*0.5 +SUM(OFFSET(CD43,0,MAX(-INT($M43+(0.5-(10^-12))),-CO$40)+1,1,MIN(INT($M43+(0.5-(10^-12))),CO$40)-1))*1/$M43, IF($J43="Declining Balance",-$CN$38,0))))) -> 0.02132526984 | CP43: 0.04529866393 | CQ43: 0.07186748793 | CR43: 0.09060311916 | CS43: 0.09814870108 | CT43: 0.09814870108 | CU43: 0.09814870108 | CV43: 0.1000375268 | CW43: 0.1019263525
C44: Leongatha Raw Water Transfer Main Renewal | E44: Water | F44: Renewals | G44: Pipelines/network | H44: Top 10 Major Projects | J44: Straight line | K44: 2021-22 | L44: 70 | M44: 70 | O44: 0 | P44: 0.2 | Q44: 1.3 | R44: 3.49 | S44: 0 | T44: 0 | U44: 0 | V44: 0 | W44: 0 | X44: 0 | AV44: 0 | AW44: 0.2 | AX44: 1.3 | AY44: 3.49 | AZ44: 0 | BA44: 0 | BB44: 0 | BC44: 0 | BD44: 0 | BE44: 0 | BG44: 0 | BH44: 0 | BI44: 0 | BJ44: 0.03564285714 | BK44: 0.07128571429 | BL44: 0.07128571429 | BM44: 0.07128571429 | BN44: 0.07128571429 | BO44: 0.07128571429 | BP44: 0.07128571429 | BR44: =+IF($K44="Ongoing",AV44,IF(RIGHT($K44,2)=RIGHT(BR$39,2),SUM($AV44:AV44),0)+IF(RIGHT(BR$39,2)>RIGHT($K44,2),AV44,0)) -> 0 | BS44: =+IF($K44="Ongoing",AW44,IF(RIGHT($K44,2)=RIGHT(BS$39,2),SUM($AV44:AW44),0)+IF(RIGHT(BS$39,2)>RIGHT($K44,2),AW44,0)) -> 0 | BT44: =+IF($K44="Ongoing",AX44,IF(RIGHT($K44,2)=RIGHT(BT$39,2),SUM($AV44:AX44),0)+IF(RIGHT(BT$39,2)>RIGHT($K44,2),AX44,0)) -> 0 | BU44: =+IF($K44="Ongoing",AY44,IF(RIGHT($K44,2)=RIGHT(BU$39,2),SUM($AV44:AY44),0)+IF(RIGHT(BU$39,2)>RIGHT($K44,2),AY44,0)) -> 4.99 | BV44: =+IF($K44="Ongoing",AZ44,IF(RIGHT($K44,2)=RIGHT(BV$39,2),SUM($AV44:AZ44),0)+IF(RIGHT(BV$39,2)>RIGHT($K44,2),AZ44,0)) -> 0 | BW44: =+IF($K44="Ongoing",BA44,IF(RIGHT($K44,2)=RIGHT(BW$39,2),SUM($AV44:BA44),0)+IF(RIGHT(BW$39,2)>RIGHT($K44,2),BA44,0)) -> 0 | BX44: =+IF($K44="Ongoing",BB44,IF(RIGHT($K44,2)=RIGHT(BX$39,2),SUM($AV44:BB44),0)+IF(RIGHT(BX$39,2)>RIGHT($K44,2),BB44,0)) -> 0 | BY44: =+IF($K44="Ongoing",BC44,IF(RIGHT($K44,2)=RIGHT(BY$39,2),SUM($AV44:BC44),0)+IF(RIGHT(BY$39,2)>RIGHT($K44,2),BC44,0)) -> 0 | BZ44: =+IF($K44="Ongoing",BD44,IF(RIGHT($K44,2)=RIGHT(BZ$39,2),SUM($AV44:BD44),0)+IF(RIGHT(BZ$39,2)>RIGHT($K44,2),BD44,0)) -> 0 | CA44: =+IF($K44="Ongoing",BE44,IF(RIGHT($K44,2)=RIGHT(CA$39,2),SUM($AV44:BE44),0)+IF(RIGHT(CA$39,2)>RIGHT($K44,2),BE44,0)) -> 0 | CC44: =+O44*KeyAssumptionsPriceControl_FO!X$15 -> 0 | CD44: =+P44*KeyAssumptionsPriceControl_FO!Y$15 -> 0.2093058 | CE44: =+Q44*KeyAssumptionsPriceControl_FO!Z$15 -> 1.391778917 | CF44: =+R44*KeyAssumptionsPriceControl_FO!AA$15 -> 3.822328088 | CG44: =+S44*KeyAssumptionsPriceControl_FO!AB$15 -> 0 | CH44: =+T44*KeyAssumptionsPriceControl_FO!AC$15 -> 0 | CI44: =+U44*KeyAssumptionsPriceControl_FO!AD$15 -> 0 | CJ44: =+V44*KeyAssumptionsPriceControl_FO!AE$15 -> 0 | CK44: =+W44*KeyAssumptionsPriceControl_FO!AF$15 -> 0 | CL44: =+X44*KeyAssumptionsPriceControl_FO!AG$15 -> 0 | CN44: 0 | CO44: 0.001495041429 | CP44: 0.01293136084 | CQ44: 0.0501749823 | CR44: 0.07747732579 | CS44: 0.07747732579 | CT44: 0.07747732579 | CU44: 0.07747732579 | CV44: 0.07747732579 | CW44: 0.07747732579
C45: Sewer System Expansion (Inverloch) SPS | E45: Water | F45: Growth | G45: Pipelines/network | H45: Top 10 Major Projects | J45: Straight line | K45: 2022-23 | L45: 70 | M45: 70 | O45: 0 | P45: 0.311423 | Q45: 2.458644 | R45: 0.69279 | S45: 0.728868 | T45: 0 | U45: 0 | V45: 0 | W45: 0.0372 | X45: 0.171433 | AV45: 0 | AW45: 0.311423 | AX45: 2.458644 | AY45: 0.69279 | AZ45: 0.728868 | BA45: 0 | BB45: 0 | BC45: 0 | BD45: 0.0372 | BE45: 0.171433 | BG45: 0 | BH45: 0 | BI45: 0 | BJ45: 0 | BK45: 0.02994089286 | BL45: 0.05988178571 | BM45: 0.05988178571 | BN45: 0.05988178571 | BO45: 0.0601475 | BP45: 0.06163773571 | BR45: =+IF($K45="Ongoing",AV45,IF(RIGHT($K45,2)=RIGHT(BR$39,2),SUM($AV45:AV45),0)+IF(RIGHT(BR$39,2)>RIGHT($K45,2),AV45,0)) -> 0 | BS45: =+IF($K45="Ongoing",AW45,IF(RIGHT($K45,2)=RIGHT(BS$39,2),SUM($AV45:AW45),0)+IF(RIGHT(BS$39,2)>RIGHT($K45,2),AW45,0)) -> 0 | BT45: =+IF($K45="Ongoing",AX45,IF(RIGHT($K45,2)=RIGHT(BT$39,2),SUM($AV45:AX45),0)+IF(RIGHT(BT$39,2)>RIGHT($K45,2),AX45,0)) -> 0 | BU45: =+IF($K45="Ongoing",AY45,IF(RIGHT($K45,2)=RIGHT(BU$39,2),SUM($AV45:AY45),0)+IF(RIGHT(BU$39,2)>RIGHT($K45,2),AY45,0)) -> 0 | BV45: =+IF($K45="Ongoing",AZ45,IF(RIGHT($K45,2)=RIGHT(BV$39,2),SUM($AV45:AZ45),0)+IF(RIGHT(BV$39,2)>RIGHT($K45,2),AZ45,0)) -> 4.191725 | BW45: =+IF($K45="Ongoing",BA45,IF(RIGHT($K45,2)=RIGHT(BW$39,2),SUM($AV45:BA45),0)+IF(RIGHT(BW$39,2)>RIGHT($K45,2),BA45,0)) -> 0 | BX45: =+IF($K45="Ongoing",BB45,IF(RIGHT($K45,2)=RIGHT(BX$39,2),SUM($AV45:BB45),0)+IF(RIGHT(BX$39,2)>RIGHT($K45,2),BB45,0)) -> 0 | BY45: =+IF($K45="Ongoing",BC45,IF(RIGHT($K45,2)=RIGHT(BY$39,2),SUM($AV45:BC45),0)+IF(RIGHT(BY$39,2)>RIGHT($K45,2),BC45,0)) -> 0 | BZ45: =+IF($K45="Ongoing",BD45,IF(RIGHT($K45,2)=RIGHT(BZ$39,2),SUM($AV45:BD45),0)+IF(RIGHT(BZ$39,2)>RIGHT($K45,2),BD45,0)) -> 0.0372 | CA45: =+IF($K45="Ongoing",BE45,IF(RIGHT($K45,2)=RIGHT(CA$39,2),SUM($AV45:BE45),0)+IF(RIGHT(CA$39,2)>RIGHT($K45,2),BE45,0)) -> 0.171433 | CC45: =+O45*KeyAssumptionsPriceControl_FO!X$15 -> 0 | CD45: =+P45*KeyAssumptionsPriceControl_FO!Y$15 -> 0.3259132008 | CE45: =+Q45*KeyAssumptionsPriceControl_FO!Z$15 -> 2.632222218 | CF45: =+R45*KeyAssumptionsPriceControl_FO!AA$15 -> 0.758759506 | CG45: =+S45*KeyAssumptionsPriceControl_FO!AB$15 -> 0.8166332376 | CH45: =+T45*KeyAssumptionsPriceControl_FO!AC$15 -> 0 | CI45: =+U45*KeyAssumptionsPriceControl_FO!AD$15 -> 0 | CJ45: =+V45*KeyAssumptionsPriceControl_FO!AE$15 -> 0 | CK45: =+W45*KeyAssumptionsPriceControl_FO!AF$15 -> 0.04564819855 | CL45: =+X45*KeyAssumptionsPriceControl_FO!AG$15 -> 0.2152042096 | CN45: 0 | CO45: 0.002327951434 | CP45: 0.02345749014 | CQ45: 0.04767878817 | CR45: 0.05893159349 | CS45: 0.06476468804 | CT45: 0.06476468804 | CU45: 0.06476468804 | CV45: 0.0650907466 | CW45: 0.06695397809
C46: Carbon Emission Reduction Upgrades | E46: Water | F46: Growth | G46: Corporate | H46: Top 10 Major Projects | J46: Straight line | K46: 2022-23 | L46: 25 | M46: 25 | O46: 0.05 | P46: 1.6 | Q46: 0.45 | R46: 0.4 | S46: 0.13 | T46: 0 | U46: 0 | V46: 0 | W46: 0.1 | X46: 0.1 | AV46: 0.05 | AW46: 1.6 | AX46: 0.45 | AY46: 0.4 | AZ46: 0.13 | BA46: 0 | BB46: 0 | BC46: 0 | BD46: 0.1 | BE46: 0.1 | BG46: 0 | BH46: 0 | BI46: 0 | BJ46: 0 | BK46: 0.0526 | BL46: 0.1052 | BM46: 0.1052 | BN46: 0.1052 | BO46: 0.1072 | BP46: 0.1112 | BR46: =+IF($K46="Ongoing",AV46,IF(RIGHT($K46,2)=RIGHT(BR$39,2),SUM($AV46:AV46),0)+IF(RIGHT(BR$39,2)>RIGHT($K46,2),AV46,0)) -> 0 | BS46: =+IF($K46="Ongoing",AW46,IF(RIGHT($K46,2)=RIGHT(BS$39,2),SUM($AV46:AW46),0)+IF(RIGHT(BS$39,2)>RIGHT($K46,2),AW46,0)) -> 0 | BT46: =+IF($K46="Ongoing",AX46,IF(RIGHT($K46,2)=RIGHT(BT$39,2),SUM($AV46:AX46),0)+IF(RIGHT(BT$39,2)>RIGHT($K46,2),AX46,0)) -> 0 | BU46: =+IF($K46="Ongoing",AY46,IF(RIGHT($K46,2)=RIGHT(BU$39,2),SUM($AV46:AY46),0)+IF(RIGHT(BU$39,2)>RIGHT($K46,2),AY46,0)) -> 0 | BV46: =+IF($K46="Ongoing",AZ46,IF(RIGHT($K46,2)=RIGHT(BV$39,2),SUM($AV46:AZ46),0)+IF(RIGHT(BV$39,2)>RIGHT($K46,2),AZ46,0)) -> 2.63 | BW46: =+IF($K46="Ongoing",BA46,IF(RIGHT($K46,2)=RIGHT(BW$39,2),SUM($AV46:BA46),0)+IF(RIGHT(BW$39,2)>RIGHT($K46,2),BA46,0)) -> 0 | BX46: =+IF($K46="Ongoing",BB46,IF(RIGHT($K46,2)=RIGHT(BX$39,2),SUM($AV46:BB46),0)+IF(RIGHT(BX$39,2)>RIGHT($K46,2),BB46,0)) -> 0 | BY46: =+IF($K46="Ongoing",BC46,IF(RIGHT($K46,2)=RIGHT(BY$39,2),SUM($AV46:BC46),0)+IF(RIGHT(BY$39,2)>RIGHT($K46,2),BC46,0)) -> 0 | BZ46: =+IF($K46="Ongoing",BD46,IF(RIGHT($K46,2)=RIGHT(BZ$39,2),SUM($AV46:BD46),0)+IF(RIGHT(BZ$39,2)>RIGHT($K46,2),BD46,0)) -> 0.1 | CA46: =+IF($K46="Ongoing",BE46,IF(RIGHT($K46,2)=RIGHT(CA$39,2),SUM($AV46:BE46),0)+IF(RIGHT(CA$39,2)>RIGHT($K46,2),BE46,0)) -> 0.1 | CC46: =+O46*KeyAssumptionsPriceControl_FO!X$15 -> 0.05115 | CD46: =+P46*KeyAssumptionsPriceControl_FO!Y$15 -> 1.6744464 | CE46: =+Q46*KeyAssumptionsPriceControl_FO!Z$15 -> 0.4817696251 | CF46: =+R46*KeyAssumptionsPriceControl_FO!AA$15 -> 0.4380891791 | CG46: =+S46*KeyAssumptionsPriceControl_FO!AB$15 -> 0.1456536998 | CH46: =+T46*KeyAssumptionsPriceControl_FO!AC$15 -> 0 | CI46: =+U46*KeyAssumptionsPriceControl_FO!AD$15 -> 0 | CJ46: =+V46*KeyAssumptionsPriceControl_FO!AE$15 -> 0 | CK46: =+W46*KeyAssumptionsPriceControl_FO!AF$15 -> 0.1227102112 | CL46: =+X46*KeyAssumptionsPriceControl_FO!AG$15 -> 0.125532546 | CN46: 0.001023 | CO46: 0.035534928 | CP46: 0.0786592485 | CQ46: 0.09705642459 | CR46: 0.1087312822 | CS46: 0.1116443562 | CT46: 0.1116443562 | CU46: 0.1116443562 | CV46: 0.1140985604 | CW46: 0.1190634155
C47: Wonthaggi WWTP Treated Effluent Rising Main | E47: Sewerage | F47: Growth | G47: Pipelines/network | H47: Top 10 Major Projects | J47: Straight line | K47: 2022-23 | L47: 70 | M47: 70 | O47: 0 | P47: 0 | Q47: 0 | R47: 0.338 | S47: 2 | T47: 0 | U47: 0 | V47: 0 | W47: 0 | X47: 0 | AV47: 0 | AW47: 0 | AX47: 0 | AY47: 0.338 | AZ47: 2 | BA47: 0 | BB47: 0 | BC47: 0 | BD47: 0 | BE47: 0 | BG47: 0 | BH47: 0 | BI47: 0 | BJ47: 0 | BK47: 0.0167 | BL47: 0.0334 | BM47: 0.0334 | BN47: 0.0334 | BO47: 0.0334 | BP47: 0.0334 | BR47: =+IF($K47="Ongoing",AV47,IF(RIGHT($K47,2)=RIGHT(BR$39,2),SUM($AV47:AV47),0)+IF(RIGHT(BR$39,2)>RIGHT($K47,2),AV47,0)) -> 0 | BS47: =+IF($K47="Ongoing",AW47,IF(RIGHT($K47,2)=RIGHT(BS$39,2),SUM($AV47:AW47),0)+IF(RIGHT(BS$39,2)>RIGHT($K47,2),AW47,0)) -> 0 | BT47: =+IF($K47="Ongoing",AX47,IF(RIGHT($K47,2)=RIGHT(BT$39,2),SUM($AV47:AX47),0)+IF(RIGHT(BT$39,2)>RIGHT($K47,2),AX47,0)) -> 0 | BU47: =+IF($K47="Ongoing",AY47,IF(RIGHT($K47,2)=RIGHT(BU$39,2),SUM($AV47:AY47),0)+IF(RIGHT(BU$39,2)>RIGHT($K47,2),AY47,0)) -> 0 | BV47: =+IF($K47="Ongoing",AZ47,IF(RIGHT($K47,2)=RIGHT(BV$39,2),SUM($AV47:AZ47),0)+IF(RIGHT(BV$39,2)>RIGHT($K47,2),AZ47,0)) -> 2.338 | BW47: =+IF($K47="Ongoing",BA47,IF(RIGHT($K47,2)=RIGHT(BW$39,2),SUM($AV47:BA47),0)+IF(RIGHT(BW$39,2)>RIGHT($K47,2),BA47,0)) -> 0 | BX47: =+IF($K47="Ongoing",BB47,IF(RIGHT($K47,2)=RIGHT(BX$39,2),SUM($AV47:BB47),0)+IF(RIGHT(BX$39,2)>RIGHT($K47,2),BB47,0)) -> 0 | BY47: =+IF($K47="Ongoing",BC47,IF(RIGHT($K47,2)=RIGHT(BY$39,2),SUM($AV47:BC47),0)+IF(RIGHT(BY$39,2)>RIGHT($K47,2),BC47,0)) -> 0 | BZ47: =+IF($K47="Ongoing",BD47,IF(RIGHT($K47,2)=RIGHT(BZ$39,2),SUM($AV47:BD47),0)+IF(RIGHT(BZ$39,2)>RIGHT($K47,2),BD47,0)) -> 0 | CA47: =+IF($K47="Ongoing",BE47,IF(RIGHT($K47,2)=RIGHT(CA$39,2),SUM($AV47:BE47),0)+IF(RIGHT(CA$39,2)>RIGHT($K47,2),BE47,0)) -> 0 | CC47: =+O47*KeyAssumptionsPriceControl_FO!X$15 -> 0 | CD47: =+P47*KeyAssumptionsPriceControl_FO!Y$15 -> 0 | CE47: =+Q47*KeyAssumptionsPriceControl_FO!Z$15 -> 0 | CF47: =+R47*KeyAssumptionsPriceControl_FO!AA$15 -> 0.3701853564 | CG47: =+S47*KeyAssumptionsPriceControl_FO!AB$15 -> 2.240826151 | CH47: =+T47*KeyAssumptionsPriceControl_FO!AC$15 -> 0 | CI47: =+U47*KeyAssumptionsPriceControl_FO!AD$15 -> 0 | CJ47: =+V47*KeyAssumptionsPriceControl_FO!AE$15 -> 0 | CK47: =+W47*KeyAssumptionsPriceControl_FO!AF$15 -> 0 | CL47: =+X47*KeyAssumptionsPriceControl_FO!AG$15 -> 0 | CN47: 0 | CO47: 0 | CP47: 0 | CQ47: 0.002644181117 | CR47: 0.02129426331 | CS47: 0.0373001644 | CT47: 0.0373001644 | CU47: 0.0373001644 | CV47: 0.0373001644 | CW47: 0.0373001644
C48: Fish Creek Treated Water Distribution Main Renewal | E48: Sewerage | F48: Improvements / Compliance | G48: Pipelines/network | H48: Top 10 Major Projects | J48: Straight line | K48: 2022-23 | L48: 70 | M48: 70 | O48: 0.05 | P48: 0.05 | Q48: 0.1 | R48: 1.011007 | S48: 1.011007 | T48: 0 | U48: 0 | V48: 0 | W48: 0 | X48: 0 | AV48: 0.05 | AW48: 0.05 | AX48: 0.1 | AY48: 1.011007 | AZ48: 1.011007 | BA48: 0 | BB48: 0 | BC48: 0 | BD48: 0 | BE48: 0 | BG48: 0 | BH48: 0 | BI48: 0 | BJ48: 0 | BK48: 0.01587152857 | BL48: 0.03174305714 | BM48: 0.03174305714 | BN48: 0.03174305714 | BO48: 0.03174305714 | BP48: 0.03174305714 | BR48: =+IF($K48="Ongoing",AV48,IF(RIGHT($K48,2)=RIGHT(BR$39,2),SUM($AV48:AV48),0)+IF(RIGHT(BR$39,2)>RIGHT($K48,2),AV48,0)) -> 0 | BS48: =+IF($K48="Ongoing",AW48,IF(RIGHT($K48,2)=RIGHT(BS$39,2),SUM($AV48:AW48),0)+IF(RIGHT(BS$39,2)>RIGHT($K48,2),AW48,0)) -> 0 | BT48: =+IF($K48="Ongoing",AX48,IF(RIGHT($K48,2)=RIGHT(BT$39,2),SUM($AV48:AX48),0)+IF(RIGHT(BT$39,2)>RIGHT($K48,2),AX48,0)) -> 0 | BU48: =+IF($K48="Ongoing",AY48,IF(RIGHT($K48,2)=RIGHT(BU$39,2),SUM($AV48:AY48),0)+IF(RIGHT(BU$39,2)>RIGHT($K48,2),AY48,0)) -> 0 | BV48: =+IF($K48="Ongoing",AZ48,IF(RIGHT($K48,2)=RIGHT(BV$39,2),SUM($AV48:AZ48),0)+IF(RIGHT(BV$39,2)>RIGHT($K48,2),AZ48,0)) -> 2.222014 | BW48: =+IF($K48="Ongoing",BA48,IF(RIGHT($K48,2)=RIGHT(BW$39,2),SUM($AV48:BA48),0)+IF(RIGHT(BW$39,2)>RIGHT($K48,2),BA48,0)) -> 0 | BX48: =+IF($K48="Ongoing",BB48,IF(RIGHT($K48,2)=RIGHT(BX$39,2),SUM($AV48:BB48),0)+IF(RIGHT(BX$39,2)>RIGHT($K48,2),BB48,0)) -> 0 | BY48: =+IF($K48="Ongoing",BC48,IF(RIGHT($K48,2)=RIGHT(BY$39,2),SUM($AV48:BC48),0)+IF(RIGHT(BY$39,2)>RIGHT($K48,2),BC48,0)) -> 0 | BZ48: =+IF($K48="Ongoing",BD48,IF(RIGHT($K48,2)=RIGHT(BZ$39,2),SUM($AV48:BD48),0)+IF(RIGHT(BZ$39,2)>RIGHT($K48,2),BD48,0)) -> 0 | CA48: =+IF($K48="Ongoing",BE48,IF(RIGHT($K48,2)=RIGHT(CA$39,2),SUM($AV48:BE48),0)+IF(RIGHT(CA$39,2)>RIGHT($K48,2),BE48,0)) -> 0 | CC48: =+O48*KeyAssumptionsPriceControl_FO!X$15 -> 0.05115 | CD48: =+P48*KeyAssumptionsPriceControl_FO!Y$15 -> 0.05232645 | CE48: =+Q48*KeyAssumptionsPriceControl_FO!Z$15 -> 0.1070599167 | CF48: =+R48*KeyAssumptionsPriceControl_FO!AA$15 -> 1.107278067 | CG48: =+S48*KeyAssumptionsPriceControl_FO!AB$15 -> 1.132745462 | CH48: =+T48*KeyAssumptionsPriceControl_FO!AC$15 -> 0 | CI48: =+U48*KeyAssumptionsPriceControl_FO!AD$15 -> 0 | CJ48: =+V48*KeyAssumptionsPriceControl_FO!AE$15 -> 0 | CK48: =+W48*KeyAssumptionsPriceControl_FO!AF$15 -> 0 | CL48: =+X48*KeyAssumptionsPriceControl_FO!AG$15 -> 0 | CN48: 0.0003653571429 | CO48: 0.001104474643 | CP48: 0.002242948691 | CQ48: 0.01091679143 | CR48: 0.0269169595 | CS48: 0.03500799851 | CT48: 0.03500799851 | CU48: 0.03500799851 | CV48: 0.03500799851 | CW48: 0.03500799851
C49: WTP Disinfection Upgrade Projects | E49: Sewerage | F49: Growth | G49: Pipelines/network | H49: Top 10 Major Projects | J49: Straight line | K49: 2019-20 | L49: 50 | M49: 50 | O49: 1.056382 | P49: 1.056382 | Q49: 0 | R49: 0 | S49: 0 | T49: 0.28 | U49: 1.058 | V49: 0 | W49: 0.03 | X49: 0 | AV49: 1.056382 | AW49: 1.056382 | AX49: 0 | AY49: 0 | AZ49: 0 | BA49: 0.28 | BB49: 1.058 | BC49: 0 | BD49: 0.03 | BE49: 0 | BG49: 0 | BH49: 0.02112764 | BI49: 0.04225528 | BJ49: 0.04225528 | BK49: 0.04225528 | BL49: 0.04505528 | BM49: 0.05843528 | BN49: 0.06901528 | BO49: 0.06931528 | BP49: 0.06961528 | BR49: =+IF($K49="Ongoing",AV49,IF(RIGHT($K49,2)=RIGHT(BR$39,2),SUM($AV49:AV49),0)+IF(RIGHT(BR$39,2)>RIGHT($K49,2),AV49,0)) -> 0 | BS49: =+IF($K49="Ongoing",AW49,IF(RIGHT($K49,2)=RIGHT(BS$39,2),SUM($AV49:AW49),0)+IF(RIGHT(BS$39,2)>RIGHT($K49,2),AW49,0)) -> 2.112764 | BT49: =+IF($K49="Ongoing",AX49,IF(RIGHT($K49,2)=RIGHT(BT$39,2),SUM($AV49:AX49),0)+IF(RIGHT(BT$39,2)>RIGHT($K49,2),AX49,0)) -> 0 | BU49: =+IF($K49="Ongoing",AY49,IF(RIGHT($K49,2)=RIGHT(BU$39,2),SUM($AV49:AY49),0)+IF(RIGHT(BU$39,2)>RIGHT($K49,2),AY49,0)) -> 0 | BV49: =+IF($K49="Ongoing",AZ49,IF(RIGHT($K49,2)=RIGHT(BV$39,2),SUM($AV49:AZ49),0)+IF(RIGHT(BV$39,2)>RIGHT($K49,2),AZ49,0)) -> 0 | BW49: =+IF($K49="Ongoing",BA49,IF(RIGHT($K49,2)=RIGHT(BW$39,2),SUM($AV49:BA49),0)+IF(RIGHT(BW$39,2)>RIGHT($K49,2),BA49,0)) -> 0.28 | BX49: =+IF($K49="Ongoing",BB49,IF(RIGHT($K49,2)=RIGHT(BX$39,2),SUM($AV49:BB49),0)+IF(RIGHT(BX$39,2)>RIGHT($K49,2),BB49,0)) -> 1.058 | BY49: =+IF($K49="Ongoing",BC49,IF(RIGHT($K49,2)=RIGHT(BY$39,2),SUM($AV49:BC49),0)+IF(RIGHT(BY$39,2)>RIGHT($K49,2),BC49,0)) -> 0 | BZ49: =+IF($K49="Ongoing",BD49,IF(RIGHT($K49,2)=RIGHT(BZ$39,2),SUM($AV49:BD49),0)+IF(RIGHT(BZ$39,2)>RIGHT($K49,2),BD49,0)) -> 0.03 | CA49: =+IF($K49="Ongoing",BE49,IF(RIGHT($K49,2)=RIGHT(CA$39,2),SUM($AV49:BE49),0)+IF(RIGHT(CA$39,2)>RIGHT($K49,2),BE49,0)) -> 0 | CC49: =+O49*KeyAssumptionsPriceControl_FO!X$15 -> 1.080678786 | CD49: =+P49*KeyAssumptionsPriceControl_FO!Y$15 -> 1.105534398 | CE49: =+Q49*KeyAssumptionsPriceControl_FO!Z$15 -> 0 | CF49: =+R49*KeyAssumptionsPriceControl_FO!AA$15 -> 0 | CG49: =+S49*KeyAssumptionsPriceControl_FO!AB$15 -> 0 | CH49: =+T49*KeyAssumptionsPriceControl_FO!AC$15 -> 0.3209311214 | CI49: =+U49*KeyAssumptionsPriceControl_FO!AD$15 -> 1.240552373 | CJ49: =+V49*KeyAssumptionsPriceControl_FO!AE$15 -> 0 | CK49: =+W49*KeyAssumptionsPriceControl_FO!AF$15 -> 0.03681306335 | CL49: =+X49*KeyAssumptionsPriceControl_FO!AG$15 -> 0 | CN49: 0.01080678786 | CO49: 0.0326689197 | CP49: 0.04372426368 | CQ49: 0.04372426368 | CR49: 0.04372426368 | CS49: 0.0469335749 | CT49: 0.06254840984 | CU49: 0.07495393356 | CV49: 0.0753220642 | CW49: 0.07569019483
C50: Sewer System Major Renewal Item | E50: Sewerage | F50: Improvements / Compliance | G50: Pipelines/network | H50: Top 10 Major Projects | J50: Straight line | K50: 2019-20 | L50: 70 | M50: 70 | O50: 1.25 | P50: 0.5 | Q50: 0 | R50: 0 | S50: 0 | T50: 0 | U50: 0 | V50: 0 | W50: 0 | X50: 0 | AV50: 1.25 | AW50: 0.5 | AX50: 0 | AY50: 0 | AZ50: 0 | BA50: 0 | BB50: 0 | BC50: 0 | BD50: 0 | BE50: 0 | BG50: 0 | BH50: 0.0125 | BI50: 0.025 | BJ50: 0.025 | BK50: 0.025 | BL50: 0.025 | BM50: 0.025 | BN50: 0.025 | BO50: 0.025 | BP50: 0.025 | BR50: =+IF($K50="Ongoing",AV50,IF(RIGHT($K50,2)=RIGHT(BR$39,2),SUM($AV50:AV50),0)+IF(RIGHT(BR$39,2)>RIGHT($K50,2),AV50,0)) -> 0 | BS50: =+IF($K50="Ongoing",AW50,IF(RIGHT($K50,2)=RIGHT(BS$39,2),SUM($AV50:AW50),0)+IF(RIGHT(BS$39,2)>RIGHT($K50,2),AW50,0)) -> 1.75 | BT50: =+IF($K50="Ongoing",AX50,IF(RIGHT($K50,2)=RIGHT(BT$39,2),SUM($AV50:AX50),0)+IF(RIGHT(BT$39,2)>RIGHT($K50,2),AX50,0)) -> 0 | BU50: =+IF($K50="Ongoing",AY50,IF(RIGHT($K50,2)=RIGHT(BU$39,2),SUM($AV50:AY50),0)+IF(RIGHT(BU$39,2)>RIGHT($K50,2),AY50,0)) -> 0 | BV50: =+IF($K50="Ongoing",AZ50,IF(RIGHT($K50,2)=RIGHT(BV$39,2),SUM($AV50:AZ50),0)+IF(RIGHT(BV$39,2)>RIGHT($K50,2),AZ50,0)) -> 0 | BW50: =+IF($K50="Ongoing",BA50,IF(RIGHT($K50,2)=RIGHT(BW$39,2),SUM($AV50:BA50),0)+IF(RIGHT(BW$39,2)>RIGHT($K50,2),BA50,0)) -> 0 | BX50: =+IF($K50="Ongoing",BB50,IF(RIGHT($K50,2)=RIGHT(BX$39,2),SUM($AV50:BB50),0)+IF(RIGHT(BX$39,2)>RIGHT($K50,2),BB50,0)) -> 0 | BY50: =+IF($K50="Ongoing",BC50,IF(RIGHT($K50,2)=RIGHT(BY$39,2),SUM($AV50:BC50),0)+IF(RIGHT(BY$39,2)>RIGHT($K50,2),BC50,0)) -> 0 | BZ50: =+IF($K50="Ongoing",BD50,IF(RIGHT($K50,2)=RIGHT(BZ$39,2),SUM($AV50:BD50),0)+IF(RIGHT(BZ$39,2)>RIGHT($K50,2),BD50,0)) -> 0 | CA50: =+IF($K50="Ongoing",BE50,IF(RIGHT($K50,2)=RIGHT(CA$39,2),SUM($AV50:BE50),0)+IF(RIGHT(CA$39,2)>RIGHT($K50,2),BE50,0)) -> 0 | CC50: =+O50*KeyAssumptionsPriceControl_FO!X$15 -> 1.27875 | CD50: =+P50*KeyAssumptionsPriceControl_FO!Y$15 -> 0.5232645 | CE50: =+Q50*KeyAssumptionsPriceControl_FO!Z$15 -> 0 | CF50: =+R50*KeyAssumptionsPriceControl_FO!AA$15 -> 0 | CG50: =+S50*KeyAssumptionsPriceControl_FO!AB$15 -> 0 | CH50: =+T50*KeyAssumptionsPriceControl_FO!AC$15 -> 0 | CI50: =+U50*KeyAssumptionsPriceControl_FO!AD$15 -> 0 | CJ50: =+V50*KeyAssumptionsPriceControl_FO!AE$15 -> 0 | CK50: =+W50*KeyAssumptionsPriceControl_FO!AF$15 -> 0 | CL50: =+X50*KeyAssumptionsPriceControl_FO!AG$15 -> 0 | CN50: 0.009133928571 | CO50: 0.02200546071 | CP50: 0.02574306429 | CQ50: 0.02574306429 | CR50: 0.02574306429 | CS50: 0.02574306429 | CT50: 0.02574306429 | CU50: 0.02574306429 | CV50: 0.02574306429 | CW50: 0.02574306429
C51: Wonthaggi WWTP Inlet Pump Station Renewal | E51: Sewerage | F51: Improvements / Compliance | G51: Pipelines/network | H51: Top 10 Major Projects | J51: Straight line | K51: 2019-20 | L51: 50 | M51: 50 | O51: 0.704 | P51: 1 | Q51: 0 | R51: 0 | S51: 0 | T51: 0 | U51: 0 | V51: 0 | W51: 0 | X51: 0 | AV51: 0.704 | AW51: 1 | AX51: 0 | AY51: 0 | AZ51: 0 | BA51: 0 | BB51: 0 | BC51: 0 | BD51: 0 | BE51: 0 | BG51: 0 | BH51: 0.01704 | BI51: 0.03408 | BJ51: 0.03408 | BK51: 0.03408 | BL51: 0.03408 | BM51: 0.03408 | BN51: 0.03408 | BO51: 0.03408 | BP51: 0.03408 | BR51: =+IF($K51="Ongoing",AV51,IF(RIGHT($K51,2)=RIGHT(BR$39,2),SUM($AV51:AV51),0)+IF(RIGHT(BR$39,2)>RIGHT($K51,2),AV51,0)) -> 0 | BS51: =+IF($K51="Ongoing",AW51,IF(RIGHT($K51,2)=RIGHT(BS$39,2),SUM($AV51:AW51),0)+IF(RIGHT(BS$39,2)>RIGHT($K51,2),AW51,0)) -> 1.704 | BT51: =+IF($K51="Ongoing",AX51,IF(RIGHT($K51,2)=RIGHT(BT$39,2),SUM($AV51:AX51),0)+IF(RIGHT(BT$39,2)>RIGHT($K51,2),AX51,0)) -> 0 | BU51: =+IF($K51="Ongoing",AY51,IF(RIGHT($K51,2)=RIGHT(BU$39,2),SUM($AV51:AY51),0)+IF(RIGHT(BU$39,2)>RIGHT($K51,2),AY51,0)) -> 0 | BV51: =+IF($K51="Ongoing",AZ51,IF(RIGHT($K51,2)=RIGHT(BV$39,2),SUM($AV51:AZ51),0)+IF(RIGHT(BV$39,2)>RIGHT($K51,2),AZ51,0)) -> 0 | BW51: =+IF($K51="Ongoing",BA51,IF(RIGHT($K51,2)=RIGHT(BW$39,2),SUM($AV51:BA51),0)+IF(RIGHT(BW$39,2)>RIGHT($K51,2),BA51,0)) -> 0 | BX51: =+IF($K51="Ongoing",BB51,IF(RIGHT($K51,2)=RIGHT(BX$39,2),SUM($AV51:BB51),0)+IF(RIGHT(BX$39,2)>RIGHT($K51,2),BB51,0)) -> 0 | BY51: =+IF($K51="Ongoing",BC51,IF(RIGHT($K51,2)=RIGHT(BY$39,2),SUM($AV51:BC51),0)+IF(RIGHT(BY$39,2)>RIGHT($K51,2),BC51,0)) -> 0 | BZ51: =+IF($K51="Ongoing",BD51,IF(RIGHT($K51,2)=RIGHT(BZ$39,2),SUM($AV51:BD51),0)+IF(RIGHT(BZ$39,2)>RIGHT($K51,2),BD51,0)) -> 0 | CA51: =+IF($K51="Ongoing",BE51,IF(RIGHT($K51,2)=RIGHT(CA$39,2),SUM($AV51:BE51),0)+IF(RIGHT(CA$39,2)>RIGHT($K51,2),BE51,0)) -> 0 | CC51: =+O51*KeyAssumptionsPriceControl_FO!X$15 -> 0.720192 | CD51: =+P51*KeyAssumptionsPriceControl_FO!Y$15 -> 1.046529 | CE51: =+Q51*KeyAssumptionsPriceControl_FO!Z$15 -> 0 | CF51: =+R51*KeyAssumptionsPriceControl_FO!AA$15 -> 0 | CG51: =+S51*KeyAssumptionsPriceControl_FO!AB$15 -> 0 | CH51: =+T51*KeyAssumptionsPriceControl_FO!AC$15 -> 0 | CI51: =+U51*KeyAssumptionsPriceControl_FO!AD$15 -> 0 | CJ51: =+V51*KeyAssumptionsPriceControl_FO!AE$15 -> 0 | CK51: =+W51*KeyAssumptionsPriceControl_FO!AF$15 -> 0 | CL51: =+X51*KeyAssumptionsPriceControl_FO!AG$15 -> 0 | CN51: 0.00720192 | CO51: 0.02486913 | CP51: 0.03533442 | CQ51: 0.03533442 | CR51: 0.03533442 | CS51: 0.03533442 | CT51: 0.03533442 | CU51: 0.03533442 | CV51: 0.03533442 | CW51: 0.03533442
C53: Sewer Retic & Rising Mains | E53: Sewerage | F53: Renewals | G53: Pipelines/network | H53: Capital Programs / Allocation | J53: Straight line | K53: 2018-19 | L53: 70 | M53: 70 | O53: 1.090389 | AV53: 1.090389 | AW53: 0 | AX53: 0 | AY53: 0 | AZ53: 0 | BA53: 0 | BB53: 0 | BC53: 0 | BD53: 0 | BE53: 0 | BG53: 0.007788492857 | BH53: 0.01557698571 | BI53: 0.01557698571 | BJ53: 0.01557698571 | BK53: 0.01557698571 | BL53: 0.01557698571 | BM53: 0.01557698571 | BN53: 0.01557698571 | BO53: 0.01557698571 | BP53: 0.01557698571 | BR53: =+IF($K53="Ongoing",AV53,IF(RIGHT($K53,2)=RIGHT(BR$39,2),SUM($AV53:AV53),0)+IF(RIGHT(BR$39,2)>RIGHT($K53,2),AV53,0)) -> 1.090389 | BS53: =+IF($K53="Ongoing",AW53,IF(RIGHT($K53,2)=RIGHT(BS$39,2),SUM($AV53:AW53),0)+IF(RIGHT(BS$39,2)>RIGHT($K53,2),AW53,0)) -> 0 | BT53: =+IF($K53="Ongoing",AX53,IF(RIGHT($K53,2)=RIGHT(BT$39,2),SUM($AV53:AX53),0)+IF(RIGHT(BT$39,2)>RIGHT($K53,2),AX53,0)) -> 0 | BU53: =+IF($K53="Ongoing",AY53,IF(RIGHT($K53,2)=RIGHT(BU$39,2),SUM($AV53:AY53),0)+IF(RIGHT(BU$39,2)>RIGHT($K53,2),AY53,0)) -> 0 | BV53: =+IF($K53="Ongoing",AZ53,IF(RIGHT($K53,2)=RIGHT(BV$39,2),SUM($AV53:AZ53),0)+IF(RIGHT(BV$39,2)>RIGHT($K53,2),AZ53,0)) -> 0 | BW53: =+IF($K53="Ongoing",BA53,IF(RIGHT($K53,2)=RIGHT(BW$39,2),SUM($AV53:BA53),0)+IF(RIGHT(BW$39,2)>RIGHT($K53,2),BA53,0)) -> 0 | BX53: =+IF($K53="Ongoing",BB53,IF(RIGHT($K53,2)=RIGHT(BX$39,2),SUM($AV53:BB53),0)+IF(RIGHT(BX$39,2)>RIGHT($K53,2),BB53,0)) -> 0 | BY53: =+IF($K53="Ongoing",BC53,IF(RIGHT($K53,2)=RIGHT(BY$39,2),SUM($AV53:BC53),0)+IF(RIGHT(BY$39,2)>RIGHT($K53,2),BC53,0)) -> 0 | BZ53: =+IF($K53="Ongoing",BD53,IF(RIGHT($K53,2)=RIGHT(BZ$39,2),SUM($AV53:BD53),0)+IF(RIGHT(BZ$39,2)>RIGHT($K53,2),BD53,0)) -> 0 | CA53: =+IF($K53="Ongoing",BE53,IF(RIGHT($K53,2)=RIGHT(CA$39,2),SUM($AV53:BE53),0)+IF(RIGHT(CA$39,2)>RIGHT($K53,2),BE53,0)) -> 0 | CC53: =+O53*KeyAssumptionsPriceControl_FO!X$15 -> 1.115467947 | CD53: =+P53*KeyAssumptionsPriceControl_FO!Y$15 -> 0 | CE53: =+Q53*KeyAssumptionsPriceControl_FO!Z$15 -> 0 | CF53: =+R53*KeyAssumptionsPriceControl_FO!AA$15 -> 0 | CG53: =+S53*KeyAssumptionsPriceControl_FO!AB$15 -> 0 | CH53: =+T53*KeyAssumptionsPriceControl_FO!AC$15 -> 0 | CI53: =+U53*KeyAssumptionsPriceControl_FO!AD$15 -> 0 | CJ53: =+V53*KeyAssumptionsPriceControl_FO!AE$15 -> 0 | CK53: =+W53*KeyAssumptionsPriceControl_FO!AF$15 -> 0 | CL53: =+X53*KeyAssumptionsPriceControl_FO!AG$15 -> 0 | CN53: 0.007967628193 | CO53: 0.01593525639 | CP53: 0.01593525639 | CQ53: 0.01593525639 | CR53: 0.01593525639 | CS53: 0.01593525639 | CT53: 0.01593525639 | CU53: 0.01593525639 | CV53: 0.01593525639 | CW53: 0.01593525639
C54: Sewer Retic & Rising Mains | E54: Sewerage | F54: Renewals | G54: Pipelines/network | H54: Capital Programs / Allocation | J54: Straight line | K54: 2019-20 | L54: 70 | M54: 70 | P54: 1.236499 | AV54: 0 | AW54: 1.236499 | AX54: 0 | AY54: 0 | AZ54: 0 | BA54: 0 | BB54: 0 | BC54: 0 | BD54: 0 | BE54: 0 | BG54: 0 | BH54: 0.008832135714 | BI54: 0.01766427143 | BJ54: 0.01766427143 | BK54: 0.01766427143 | BL54: 0.01766427143 | BM54: 0.01766427143 | BN54: 0.01766427143 | BO54: 0.01766427143 | BP54: 0.01766427143 | BR54: =+IF($K54="Ongoing",AV54,IF(RIGHT($K54,2)=RIGHT(BR$39,2),SUM($AV54:AV54),0)+IF(RIGHT(BR$39,2)>RIGHT($K54,2),AV54,0)) -> 0 | BS54: =+IF($K54="Ongoing",AW54,IF(RIGHT($K54,2)=RIGHT(BS$39,2),SUM($AV54:AW54),0)+IF(RIGHT(BS$39,2)>RIGHT($K54,2),AW54,0)) -> 1.236499 | BT54: =+IF($K54="Ongoing",AX54,IF(RIGHT($K54,2)=RIGHT(BT$39,2),SUM($AV54:AX54),0)+IF(RIGHT(BT$39,2)>RIGHT($K54,2),AX54,0)) -> 0 | BU54: =+IF($K54="Ongoing",AY54,IF(RIGHT($K54,2)=RIGHT(BU$39,2),SUM($AV54:AY54),0)+IF(RIGHT(BU$39,2)>RIGHT($K54,2),AY54,0)) -> 0 | BV54: =+IF($K54="Ongoing",AZ54,IF(RIGHT($K54,2)=RIGHT(BV$39,2),SUM($AV54:AZ54),0)+IF(RIGHT(BV$39,2)>RIGHT($K54,2),AZ54,0)) -> 0 | BW54: =+IF($K54="Ongoing",BA54,IF(RIGHT($K54,2)=RIGHT(BW$39,2),SUM($AV54:BA54),0)+IF(RIGHT(BW$39,2)>RIGHT($K54,2),BA54,0)) -> 0 | BX54: =+IF($K54="Ongoing",BB54,IF(RIGHT($K54,2)=RIGHT(BX$39,2),SUM($AV54:BB54),0)+IF(RIGHT(BX$39,2)>RIGHT($K54,2),BB54,0)) -> 0 | BY54: =+IF($K54="Ongoing",BC54,IF(RIGHT($K54,2)=RIGHT(BY$39,2),SUM($AV54:BC54),0)+IF(RIGHT(BY$39,2)>RIGHT($K54,2),BC54,0)) -> 0 | BZ54: =+IF($K54="Ongoing",BD54,IF(RIGHT($K54,2)=RIGHT(BZ$39,2),SUM($AV54:BD54),0)+IF(RIGHT(BZ$39,2)>RIGHT($K54,2),BD54,0)) -> 0 | CA54: =+IF($K54="Ongoing",BE54,IF(RIGHT($K54,2)=RIGHT(CA$39,2),SUM($AV54:BE54),0)+IF(RIGHT(CA$39,2)>RIGHT($K54,2),BE54,0)) -> 0 | CC54: =+O54*KeyAssumptionsPriceControl_FO!X$15 -> 0 | CD54: =+P54*KeyAssumptionsPriceControl_FO!Y$15 -> 1.294032062 | CE54: =+Q54*KeyAssumptionsPriceControl_FO!Z$15 -> 0 | CF54: =+R54*KeyAssumptionsPriceControl_FO!AA$15 -> 0 | CG54: =+S54*KeyAssumptionsPriceControl_FO!AB$15 -> 0 | CH54: =+T54*KeyAssumptionsPriceControl_FO!AC$15 -> 0 | CI54: =+U54*KeyAssumptionsPriceControl_FO!AD$15 -> 0 | CJ54: =+V54*KeyAssumptionsPriceControl_FO!AE$15 -> 0 | CK54: =+W54*KeyAssumptionsPriceControl_FO!AF$15 -> 0 | CL54: =+X54*KeyAssumptionsPriceControl_FO!AG$15 -> 0 | CN54: 0 | CO54: 0.009243086157 | CP54: 0.01848617231 | CQ54: 0.01848617231 | CR54: 0.01848617231 | CS54: 0.01848617231 | CT54: 0.01848617231 | CU54: 0.01848617231 | CV54: 0.01848617231 | CW54: 0.01848617231
C55: Sewer Retic & Rising Mains | E55: Sewerage | F55: Renewals | G55: Pipelines/network | H55: Capital Programs / Allocation | J55: Straight line | K55: 2020-21 | L55: 70 | M55: 70 | Q55: 1.373138 | AV55: 0 | AW55: 0 | AX55: 1.373138 | AY55: 0 | AZ55: 0 | BA55: 0 | BB55: 0 | BC55: 0 | BD55: 0 | BE55: 0 | BG55: 0 | BH55: 0 | BI55: 0.009808128571 | BJ55: 0.01961625714 | BK55: 0.01961625714 | BL55: 0.01961625714 | BM55: 0.01961625714 | BN55: 0.01961625714 | BO55: 0.01961625714 | BP55: 0.01961625714 | BR55: =+IF($K55="Ongoing",AV55,IF(RIGHT($K55,2)=RIGHT(BR$39,2),SUM($AV55:AV55),0)+IF(RIGHT(BR$39,2)>RIGHT($K55,2),AV55,0)) -> 0 | BS55: =+IF($K55="Ongoing",AW55,IF(RIGHT($K55,2)=RIGHT(BS$39,2),SUM($AV55:AW55),0)+IF(RIGHT(BS$39,2)>RIGHT($K55,2),AW55,0)) -> 0 | BT55: =+IF($K55="Ongoing",AX55,IF(RIGHT($K55,2)=RIGHT(BT$39,2),SUM($AV55:AX55),0)+IF(RIGHT(BT$39,2)>RIGHT($K55,2),AX55,0)) -> 1.373138 | BU55: =+IF($K55="Ongoing",AY55,IF(RIGHT($K55,2)=RIGHT(BU$39,2),SUM($AV55:AY55),0)+IF(RIGHT(BU$39,2)>RIGHT($K55,2),AY55,0)) -> 0 | BV55: =+IF($K55="Ongoing",AZ55,IF(RIGHT($K55,2)=RIGHT(BV$39,2),SUM($AV55:AZ55),0)+IF(RIGHT(BV$39,2)>RIGHT($K55,2),AZ55,0)) -> 0 | BW55: =+IF($K55="Ongoing",BA55,IF(RIGHT($K55,2)=RIGHT(BW$39,2),SUM($AV55:BA55),0)+IF(RIGHT(BW$39,2)>RIGHT($K55,2),BA55,0)) -> 0 | BX55: =+IF($K55="Ongoing",BB55,IF(RIGHT($K55,2)=RIGHT(BX$39,2),SUM($AV55:BB55),0)+IF(RIGHT(BX$39,2)>RIGHT($K55,2),BB55,0)) -> 0 | BY55: =+IF($K55="Ongoing",BC55,IF(RIGHT($K55,2)=RIGHT(BY$39,2),SUM($AV55:BC55),0)+IF(RIGHT(BY$39,2)>RIGHT($K55,2),BC55,0)) -> 0 | BZ55: =+IF($K55="Ongoing",BD55,IF(RIGHT($K55,2)=RIGHT(BZ$39,2),SUM($AV55:BD55),0)+IF(RIGHT(BZ$39,2)>RIGHT($K55,2),BD55,0)) -> 0 | CA55: =+IF($K55="Ongoing",BE55,IF(RIGHT($K55,2)=RIGHT(CA$39,2),SUM($AV55:BE55),0)+IF(RIGHT(CA$39,2)>RIGHT($K55,2),BE55,0)) -> 0 | CC55: =+O55*KeyAssumptionsPriceControl_FO!X$15 -> 0 | CD55: =+P55*KeyAssumptionsPriceControl_FO!Y$15 -> 0 | CE55: =+Q55*KeyAssumptionsPriceControl_FO!Z$15 -> 1.470080399 | CF55: =+R55*KeyAssumptionsPriceControl_FO!AA$15 -> 0 | CG55: =+S55*KeyAssumptionsPriceControl_FO!AB$15 -> 0 | CH55: =+T55*KeyAssumptionsPriceControl_FO!AC$15 -> 0 | CI55: =+U55*KeyAssumptionsPriceControl_FO!AD$15 -> 0 | CJ55: =+V55*KeyAssumptionsPriceControl_FO!AE$15 -> 0 | CK55: =+W55*KeyAssumptionsPriceControl_FO!AF$15 -> 0 | CL55: =+X55*KeyAssumptionsPriceControl_FO!AG$15 -> 0 | CN55: 0 | CO55: 0 | CP55: 0.01050057428 | CQ55: 0.02100114856 | CR55: 0.02100114856 | CS55: 0.02100114856 | CT55: 0.02100114856 | CU55: 0.02100114856 | CV55: 0.02100114856 | CW55: 0.02100114856
C56: Sewer Retic & Rising Mains | E56: Sewerage | F56: Renewals | G56: Pipelines/network | H56: Capital Programs / Allocation | J56: Straight line | K56: 2021-22 | L56: 70 | M56: 70 | R56: 1.8609348 | AV56: 0 | AW56: 0 | AX56: 0 | AY56: 1.8609348 | AZ56: 0 | BA56: 0 | BB56: 0 | BC56: 0 | BD56: 0 | BE56: 0 | BG56: 0 | BH56: 0 | BI56: 0 | BJ56: 0.01329239143 | BK56: 0.02658478286 | BL56: 0.02658478286 | BM56: 0.02658478286 | BN56: 0.02658478286 | BO56: 0.02658478286 | BP56: 0.02658478286 | BR56: =+IF($K56="Ongoing",AV56,IF(RIGHT($K56,2)=RIGHT(BR$39,2),SUM($AV56:AV56),0)+IF(RIGHT(BR$39,2)>RIGHT($K56,2),AV56,0)) -> 0 | BS56: =+IF($K56="Ongoing",AW56,IF(RIGHT($K56,2)=RIGHT(BS$39,2),SUM($AV56:AW56),0)+IF(RIGHT(BS$39,2)>RIGHT($K56,2),AW56,0)) -> 0 | BT56: =+IF($K56="Ongoing",AX56,IF(RIGHT($K56,2)=RIGHT(BT$39,2),SUM($AV56:AX56),0)+IF(RIGHT(BT$39,2)>RIGHT($K56,2),AX56,0)) -> 0 | BU56: =+IF($K56="Ongoing",AY56,IF(RIGHT($K56,2)=RIGHT(BU$39,2),SUM($AV56:AY56),0)+IF(RIGHT(BU$39,2)>RIGHT($K56,2),AY56,0)) -> 1.8609348 | BV56: =+IF($K56="Ongoing",AZ56,IF(RIGHT($K56,2)=RIGHT(BV$39,2),SUM($AV56:AZ56),0)+IF(RIGHT(BV$39,2)>RIGHT($K56,2),AZ56,0)) -> 0 | BW56: =+IF($K56="Ongoing",BA56,IF(RIGHT($K56,2)=RIGHT(BW$39,2),SUM($AV56:BA56),0)+IF(RIGHT(BW$39,2)>RIGHT($K56,2),BA56,0)) -> 0 | BX56: =+IF($K56="Ongoing",BB56,IF(RIGHT($K56,2)=RIGHT(BX$39,2),SUM($AV56:BB56),0)+IF(RIGHT(BX$39,2)>RIGHT($K56,2),BB56,0)) -> 0 | BY56: =+IF($K56="Ongoing",BC56,IF(RIGHT($K56,2)=RIGHT(BY$39,2),SUM($AV56:BC56),0)+IF(RIGHT(BY$39,2)>RIGHT($K56,2),BC56,0)) -> 0 | BZ56: =+IF($K56="Ongoing",BD56,IF(RIGHT($K56,2)=RIGHT(BZ$39,2),SUM($AV56:BD56),0)+IF(RIGHT(BZ$39,2)>RIGHT($K56,2),BD56,0)) -> 0 | CA56: =+IF($K56="Ongoing",BE56,IF(RIGHT($K56,2)=RIGHT(CA$39,2),SUM($AV56:BE56),0)+IF(RIGHT(CA$39,2)>RIGHT($K56,2),BE56,0)) -> 0 | CC56: =+O56*KeyAssumptionsPriceControl_FO!X$15 -> 0 | CD56: =+P56*KeyAssumptionsPriceControl_FO!Y$15 -> 0 | CE56: =+Q56*KeyAssumptionsPriceControl_FO!Z$15 -> 0 | CF56: =+R56*KeyAssumptionsPriceControl_FO!AA$15 -> 2.038138497 | CG56: =+S56*KeyAssumptionsPriceControl_FO!AB$15 -> 0 | CH56: =+T56*KeyAssumptionsPriceControl_FO!AC$15 -> 0 | CI56: =+U56*KeyAssumptionsPriceControl_FO!AD$15 -> 0 | CJ56: =+V56*KeyAssumptionsPriceControl_FO!AE$15 -> 0 | CK56: =+W56*KeyAssumptionsPriceControl_FO!AF$15 -> 0 | CL56: =+X56*KeyAssumptionsPriceControl_FO!AG$15 -> 0 | CN56: 0 | CO56: 0 | CP56: 0 | CQ56: 0.01455813212 | CR56: 0.02911626425 | CS56: 0.02911626425 | CT56: 0.02911626425 | CU56: 0.02911626425 | CV56: 0.02911626425 | CW56: 0.02911626425
C57: Sewer Retic & Rising Mains | E57: Sewerage | F57: Renewals | G57: Pipelines/network | H57: Capital Programs / Allocation | J57: Straight line | K57: 2022-23 | L57: 70 | M57: 70 | S57: 3.8706358 | AV57: 0 | AW57: 0 | AX57: 0 | AY57: 0 | AZ57: 3.8706358 | BA57: 0 | BB57: 0 | BC57: 0 | BD57: 0 | BE57: 0 | BG57: 0 | BH57: 0 | BI57: 0 | BJ57: 0 | BK57: 0.02764739857 | BL57: 0.05529479714 | BM57: 0.05529479714 | BN57: 0.05529479714 | BO57: 0.05529479714 | BP57: 0.05529479714 | BR57: =+IF($K57="Ongoing",AV57,IF(RIGHT($K57,2)=RIGHT(BR$39,2),SUM($AV57:AV57),0)+IF(RIGHT(BR$39,2)>RIGHT($K57,2),AV57,0)) -> 0 | BS57: =+IF($K57="Ongoing",AW57,IF(RIGHT($K57,2)=RIGHT(BS$39,2),SUM($AV57:AW57),0)+IF(RIGHT(BS$39,2)>RIGHT($K57,2),AW57,0)) -> 0 | BT57: =+IF($K57="Ongoing",AX57,IF(RIGHT($K57,2)=RIGHT(BT$39,2),SUM($AV57:AX57),0)+IF(RIGHT(BT$39,2)>RIGHT($K57,2),AX57,0)) -> 0 | BU57: =+IF($K57="Ongoing",AY57,IF(RIGHT($K57,2)=RIGHT(BU$39,2),SUM($AV57:AY57),0)+IF(RIGHT(BU$39,2)>RIGHT($K57,2),AY57,0)) -> 0 | BV57: =+IF($K57="Ongoing",AZ57,IF(RIGHT($K57,2)=RIGHT(BV$39,2),SUM($AV57:AZ57),0)+IF(RIGHT(BV$39,2)>RIGHT($K57,2),AZ57,0)) -> 3.8706358 | BW57: =+IF($K57="Ongoing",BA57,IF(RIGHT($K57,2)=RIGHT(BW$39,2),SUM($AV57:BA57),0)+IF(RIGHT(BW$39,2)>RIGHT($K57,2),BA57,0)) -> 0 | BX57: =+IF($K57="Ongoing",BB57,IF(RIGHT($K57,2)=RIGHT(BX$39,2),SUM($AV57:BB57),0)+IF(RIGHT(BX$39,2)>RIGHT($K57,2),BB57,0)) -> 0 | BY57: =+IF($K57="Ongoing",BC57,IF(RIGHT($K57,2)=RIGHT(BY$39,2),SUM($AV57:BC57),0)+IF(RIGHT(BY$39,2)>RIGHT($K57,2),BC57,0)) -> 0 | BZ57: =+IF($K57="Ongoing",BD57,IF(RIGHT($K57,2)=RIGHT(BZ$39,2),SUM($AV57:BD57),0)+IF(RIGHT(BZ$39,2)>RIGHT($K57,2),BD57,0)) -> 0 | CA57: =+IF($K57="Ongoing",BE57,IF(RIGHT($K57,2)=RIGHT(CA$39,2),SUM($AV57:BE57),0)+IF(RIGHT(CA$39,2)>RIGHT($K57,2),BE57,0)) -> 0 | CC57: =+O57*KeyAssumptionsPriceControl_FO!X$15 -> 0 | CD57: =+P57*KeyAssumptionsPriceControl_FO!Y$15 -> 0 | CE57: =+Q57*KeyAssumptionsPriceControl_FO!Z$15 -> 0 | CF57: =+R57*KeyAssumptionsPriceControl_FO!AA$15 -> 0 | CG57: =+S57*KeyAssumptionsPriceControl_FO!AB$15 -> 4.336710961 | CH57: =+T57*KeyAssumptionsPriceControl_FO!AC$15 -> 0 | CI57: =+U57*KeyAssumptionsPriceControl_FO!AD$15 -> 0 | CJ57: =+V57*KeyAssumptionsPriceControl_FO!AE$15 -> 0 | CK57: =+W57*KeyAssumptionsPriceControl_FO!AF$15 -> 0 | CL57: =+X57*KeyAssumptionsPriceControl_FO!AG$15 -> 0 | CN57: 0 | CO57: 0 | CP57: 0 | CQ57: 0 | CR57: 0.03097650687 | CS57: 0.06195301373 | CT57: 0.06195301373 | CU57: 0.06195301373 | CV57: 0.06195301373 | CW57: 0.06195301373
C58: Sewer Retic & Rising Mains | E58: Sewerage | F58: Renewals | G58: Pipelines/network | H58: Capital Programs / Allocation | J58: Straight line | K58: 2023-24 | L58: 70 | M58: 70 | T58: 1.7382988 | AV58: 0 | AW58: 0 | AX58: 0 | AY58: 0 | AZ58: 0 | BA58: 1.7382988 | BB58: 0 | BC58: 0 | BD58: 0 | BE58: 0 | BG58: 0 | BH58: 0 | BI58: 0 | BJ58: 0 | BK58: 0 | BL58: 0.01241642 | BM58: 0.02483284 | BN58: 0.02483284 | BO58: 0.02483284 | BP58: 0.02483284 | BR58: =+IF($K58="Ongoing",AV58,IF(RIGHT($K58,2)=RIGHT(BR$39,2),SUM($AV58:AV58),0)+IF(RIGHT(BR$39,2)>RIGHT($K58,2),AV58,0)) -> 0 | BS58: =+IF($K58="Ongoing",AW58,IF(RIGHT($K58,2)=RIGHT(BS$39,2),SUM($AV58:AW58),0)+IF(RIGHT(BS$39,2)>RIGHT($K58,2),AW58,0)) -> 0 | BT58: =+IF($K58="Ongoing",AX58,IF(RIGHT($K58,2)=RIGHT(BT$39,2),SUM($AV58:AX58),0)+IF(RIGHT(BT$39,2)>RIGHT($K58,2),AX58,0)) -> 0 | BU58: =+IF($K58="Ongoing",AY58,IF(RIGHT($K58,2)=RIGHT(BU$39,2),SUM($AV58:AY58),0)+IF(RIGHT(BU$39,2)>RIGHT($K58,2),AY58,0)) -> 0 | BV58: =+IF($K58="Ongoing",AZ58,IF(RIGHT($K58,2)=RIGHT(BV$39,2),SUM($AV58:AZ58),0)+IF(RIGHT(BV$39,2)>RIGHT($K58,2),AZ58,0)) -> 0 | BW58: =+IF($K58="Ongoing",BA58,IF(RIGHT($K58,2)=RIGHT(BW$39,2),SUM($AV58:BA58),0)+IF(RIGHT(BW$39,2)>RIGHT($K58,2),BA58,0)) -> 1.7382988 | BX58: =+IF($K58="Ongoing",BB58,IF(RIGHT($K58,2)=RIGHT(BX$39,2),SUM($AV58:BB58),0)+IF(RIGHT(BX$39,2)>RIGHT($K58,2),BB58,0)) -> 0 | BY58: =+IF($K58="Ongoing",BC58,IF(RIGHT($K58,2)=RIGHT(BY$39,2),SUM($AV58:BC58),0)+IF(RIGHT(BY$39,2)>RIGHT($K58,2),BC58,0)) -> 0 | BZ58: =+IF($K58="Ongoing",BD58,IF(RIGHT($K58,2)=RIGHT(BZ$39,2),SUM($AV58:BD58),0)+IF(RIGHT(BZ$39,2)>RIGHT($K58,2),BD58,0)) -> 0 | CA58: =+IF($K58="Ongoing",BE58,IF(RIGHT($K58,2)=RIGHT(CA$39,2),SUM($AV58:BE58),0)+IF(RIGHT(CA$39,2)>RIGHT($K58,2),BE58,0)) -> 0 | CC58: =+O58*KeyAssumptionsPriceControl_FO!X$15 -> 0 | CD58: =+P58*KeyAssumptionsPriceControl_FO!Y$15 -> 0 | CE58: =+Q58*KeyAssumptionsPriceControl_FO!Z$15 -> 0 | CF58: =+R58*KeyAssumptionsPriceControl_FO!AA$15 -> 0 | CG58: =+S58*KeyAssumptionsPriceControl_FO!AB$15 -> 0 | CH58: =+T58*KeyAssumptionsPriceControl_FO!AC$15 -> 1.992407797 | CI58: =+U58*KeyAssumptionsPriceControl_FO!AD$15 -> 0 | CJ58: =+V58*KeyAssumptionsPriceControl_FO!AE$15 -> 0 | CK58: =+W58*KeyAssumptionsPriceControl_FO!AF$15 -> 0 | CL58: =+X58*KeyAssumptionsPriceControl_FO!AG$15 -> 0 | CN58: 0 | CO58: 0 | CP58: 0 | CQ58: 0 | CR58: 0 | CS58: 0.01423148427 | CT58: 0.02846296853 | CU58: 0.02846296853 | CV58: 0.02846296853 | CW58: 0.02846296853
C59: Sewer Retic & Rising Mains | E59: Sewerage | F59: Renewals | G59: Pipelines/network | H59: Capital Programs / Allocation | J59: Straight line | K59: 2024-25 | L59: 70 | M59: 70 | U59: 3.5246458 | AV59: 0 | AW59: 0 | AX59: 0 | AY59: 0 | AZ59: 0 | BA59: 0 | BB59: 3.5246458 | BC59: 0 | BD59: 0 | BE59: 0 | BG59: 0 | BH59: 0 | BI59: 0 | BJ59: 0 | BK59: 0 | BL59: 0 | BM59: 0.02517604143 | BN59: 0.05035208286 | BO59: 0.05035208286 | BP59: 0.05035208286 | BR59: =+IF($K59="Ongoing",AV59,IF(RIGHT($K59,2)=RIGHT(BR$39,2),SUM($AV59:AV59),0)+IF(RIGHT(BR$39,2)>RIGHT($K59,2),AV59,0)) -> 0 | BS59: =+IF($K59="Ongoing",AW59,IF(RIGHT($K59,2)=RIGHT(BS$39,2),SUM($AV59:AW59),0)+IF(RIGHT(BS$39,2)>RIGHT($K59,2),AW59,0)) -> 0 | BT59: =+IF($K59="Ongoing",AX59,IF(RIGHT($K59,2)=RIGHT(BT$39,2),SUM($AV59:AX59),0)+IF(RIGHT(BT$39,2)>RIGHT($K59,2),AX59,0)) -> 0 | BU59: =+IF($K59="Ongoing",AY59,IF(RIGHT($K59,2)=RIGHT(BU$39,2),SUM($AV59:AY59),0)+IF(RIGHT(BU$39,2)>RIGHT($K59,2),AY59,0)) -> 0 | BV59: =+IF($K59="Ongoing",AZ59,IF(RIGHT($K59,2)=RIGHT(BV$39,2),SUM($AV59:AZ59),0)+IF(RIGHT(BV$39,2)>RIGHT($K59,2),AZ59,0)) -> 0 | BW59: =+IF($K59="Ongoing",BA59,IF(RIGHT($K59,2)=RIGHT(BW$39,2),SUM($AV59:BA59),0)+IF(RIGHT(BW$39,2)>RIGHT($K59,2),BA59,0)) -> 0 | BX59: =+IF($K59="Ongoing",BB59,IF(RIGHT($K59,2)=RIGHT(BX$39,2),SUM($AV59:BB59),0)+IF(RIGHT(BX$39,2)>RIGHT($K59,2),BB59,0)) -> 3.5246458 | BY59: =+IF($K59="Ongoing",BC59,IF(RIGHT($K59,2)=RIGHT(BY$39,2),SUM($AV59:BC59),0)+IF(RIGHT(BY$39,2)>RIGHT($K59,2),BC59,0)) -> 0 | BZ59: =+IF($K59="Ongoing",BD59,IF(RIGHT($K59,2)=RIGHT(BZ$39,2),SUM($AV59:BD59),0)+IF(RIGHT(BZ$39,2)>RIGHT($K59,2),BD59,0)) -> 0 | CA59: =+IF($K59="Ongoing",BE59,IF(RIGHT($K59,2)=RIGHT(CA$39,2),SUM($AV59:BE59),0)+IF(RIGHT(CA$39,2)>RIGHT($K59,2),BE59,0)) -> 0 | CC59: =+O59*KeyAssumptionsPriceControl_FO!X$15 -> 0 | CD59: =+P59*KeyAssumptionsPriceControl_FO!Y$15 -> 0 | CE59: =+Q59*KeyAssumptionsPriceControl_FO!Z$15 -> 0 | CF59: =+R59*KeyAssumptionsPriceControl_FO!AA$15 -> 0 | CG59: =+S59*KeyAssumptionsPriceControl_FO!AB$15 -> 0 | CH59: =+T59*KeyAssumptionsPriceControl_FO!AC$15 -> 0 | CI59: =+U59*KeyAssumptionsPriceControl_FO!AD$15 -> 4.132805019 | CJ59: =+V59*KeyAssumptionsPriceControl_FO!AE$15 -> 0 | CK59: =+W59*KeyAssumptionsPriceControl_FO!AF$15 -> 0 | CL59: =+X59*KeyAssumptionsPriceControl_FO!AG$15 -> 0 | CN59: 0 | CO59: 0 | CP59: 0 | CQ59: 0 | CR59: 0 | CS59: 0 | CT59: 0.02952003585 | CU59: 0.0590400717 | CV59: 0.0590400717 | CW59: 0.0590400717
C60: Sewer Retic & Rising Mains | E60: Sewerage | F60: Renewals | G60: Pipelines/network | H60: Capital Programs / Allocation | J60: Straight line | K60: 2025-26 | L60: 70 | M60: 70 | V60: 6.6135148 | AV60: 0 | AW60: 0 | AX60: 0 | AY60: 0 | AZ60: 0 | BA60: 0 | BB60: 0 | BC60: 6.6135148 | BD60: 0 | BE60: 0 | BG60: 0 | BH60: 0 | BI60: 0 | BJ60: 0 | BK60: 0 | BL60: 0 | BM60: 0 | BN60: 0.04723939143 | BO60: 0.09447878286 | BP60: 0.09447878286 | BR60: =+IF($K60="Ongoing",AV60,IF(RIGHT($K60,2)=RIGHT(BR$39,2),SUM($AV60:AV60),0)+IF(RIGHT(BR$39,2)>RIGHT($K60,2),AV60,0)) -> 0 | BS60: =+IF($K60="Ongoing",AW60,IF(RIGHT($K60,2)=RIGHT(BS$39,2),SUM($AV60:AW60),0)+IF(RIGHT(BS$39,2)>RIGHT($K60,2),AW60,0)) -> 0 | BT60: =+IF($K60="Ongoing",AX60,IF(RIGHT($K60,2)=RIGHT(BT$39,2),SUM($AV60:AX60),0)+IF(RIGHT(BT$39,2)>RIGHT($K60,2),AX60,0)) -> 0 | BU60: =+IF($K60="Ongoing",AY60,IF(RIGHT($K60,2)=RIGHT(BU$39,2),SUM($AV60:AY60),0)+IF(RIGHT(BU$39,2)>RIGHT($K60,2),AY60,0)) -> 0 | BV60: =+IF($K60="Ongoing",AZ60,IF(RIGHT($K60,2)=RIGHT(BV$39,2),SUM($AV60:AZ60),0)+IF(RIGHT(BV$39,2)>RIGHT($K60,2),AZ60,0)) -> 0 | BW60: =+IF($K60="Ongoing",BA60,IF(RIGHT($K60,2)=RIGHT(BW$39,2),SUM($AV60:BA60),0)+IF(RIGHT(BW$39,2)>RIGHT($K60,2),BA60,0)) -> 0 | BX60: =+IF($K60="Ongoing",BB60,IF(RIGHT($K60,2)=RIGHT(BX$39,2),SUM($AV60:BB60),0)+IF(RIGHT(BX$39,2)>RIGHT($K60,2),BB60,0)) -> 0 | BY60: =+IF($K60="Ongoing",BC60,IF(RIGHT($K60,2)=RIGHT(BY$39,2),SUM($AV60:BC60),0)+IF(RIGHT(BY$39,2)>RIGHT($K60,2),BC60,0)) -> 6.6135148 | BZ60: =+IF($K60="Ongoing",BD60,IF(RIGHT($K60,2)=RIGHT(BZ$39,2),SUM($AV60:BD60),0)+IF(RIGHT(BZ$39,2)>RIGHT($K60,2),BD60,0)) -> 0 | CA60: =+IF($K60="Ongoing",BE60,IF(RIGHT($K60,2)=RIGHT(CA$39,2),SUM($AV60:BE60),0)+IF(RIGHT(CA$39,2)>RIGHT($K60,2),BE60,0)) -> 0 | CC60: =+O60*KeyAssumptionsPriceControl_FO!X$15 -> 0 | CD60: =+P60*KeyAssumptionsPriceControl_FO!Y$15 -> 0 | CE60: =+Q60*KeyAssumptionsPriceControl_FO!Z$15 -> 0 | CF60: =+R60*KeyAssumptionsPriceControl_FO!AA$15 -> 0 | CG60: =+S60*KeyAssumptionsPriceControl_FO!AB$15 -> 0 | CH60: =+T60*KeyAssumptionsPriceControl_FO!AC$15 -> 0 | CI60: =+U60*KeyAssumptionsPriceControl_FO!AD$15 -> 0 | CJ60: =+V60*KeyAssumptionsPriceControl_FO!AE$15 -> 7.932998999 | CK60: =+W60*KeyAssumptionsPriceControl_FO!AF$15 -> 0 | CL60: =+X60*KeyAssumptionsPriceControl_FO!AG$15 -> 0 | CN60: 0 | CO60: 0 | CP60: 0 | CQ60: 0 | CR60: 0 | CS60: 0 | CT60: 0 | CU60: 0.05666427856 | CV60: 0.1133285571 | CW60: 0.1133285571
C61: Sewer Retic & Rising Mains | E61: Sewerage | F61: Renewals | G61: Pipelines/network | H61: Capital Programs / Allocation | J61: Straight line | K61: 2026-27 | L61: 70 | M61: 70 | W61: 2.1990878 | AV61: 0 | AW61: 0 | AX61: 0 | AY61: 0 | AZ61: 0 | BA61: 0 | BB61: 0 | BC61: 0 | BD61: 2.1990878 | BE61: 0 | BG61: 0 | BH61: 0 | BI61: 0 | BJ61: 0 | BK61: 0 | BL61: 0 | BM61: 0 | BN61: 0 | BO61: 0.01570777 | BP61: 0.03141554 | BR61: =+IF($K61="Ongoing",AV61,IF(RIGHT($K61,2)=RIGHT(BR$39,2),SUM($AV61:AV61),0)+IF(RIGHT(BR$39,2)>RIGHT($K61,2),AV61,0)) -> 0 | BS61: =+IF($K61="Ongoing",AW61,IF(RIGHT($K61,2)=RIGHT(BS$39,2),SUM($AV61:AW61),0)+IF(RIGHT(BS$39,2)>RIGHT($K61,2),AW61,0)) -> 0 | BT61: =+IF($K61="Ongoing",AX61,IF(RIGHT($K61,2)=RIGHT(BT$39,2),SUM($AV61:AX61),0)+IF(RIGHT(BT$39,2)>RIGHT($K61,2),AX61,0)) -> 0 | BU61: =+IF($K61="Ongoing",AY61,IF(RIGHT($K61,2)=RIGHT(BU$39,2),SUM($AV61:AY61),0)+IF(RIGHT(BU$39,2)>RIGHT($K61,2),AY61,0)) -> 0 | BV61: =+IF($K61="Ongoing",AZ61,IF(RIGHT($K61,2)=RIGHT(BV$39,2),SUM($AV61:AZ61),0)+IF(RIGHT(BV$39,2)>RIGHT($K61,2),AZ61,0)) -> 0 | BW61: =+IF($K61="Ongoing",BA61,IF(RIGHT($K61,2)=RIGHT(BW$39,2),SUM($AV61:BA61),0)+IF(RIGHT(BW$39,2)>RIGHT($K61,2),BA61,0)) -> 0 | BX61: =+IF($K61="Ongoing",BB61,IF(RIGHT($K61,2)=RIGHT(BX$39,2),SUM($AV61:BB61),0)+IF(RIGHT(BX$39,2)>RIGHT($K61,2),BB61,0)) -> 0 | BY61: =+IF($K61="Ongoing",BC61,IF(RIGHT($K61,2)=RIGHT(BY$39,2),SUM($AV61:BC61),0)+IF(RIGHT(BY$39,2)>RIGHT($K61,2),BC61,0)) -> 0 | BZ61: =+IF($K61="Ongoing",BD61,IF(RIGHT($K61,2)=RIGHT(BZ$39,2),SUM($AV61:BD61),0)+IF(RIGHT(BZ$39,2)>RIGHT($K61,2),BD61,0)) -> 2.1990878 | CA61: =+IF($K61="Ongoing",BE61,IF(RIGHT($K61,2)=RIGHT(CA$39,2),SUM($AV61:BE61),0)+IF(RIGHT(CA$39,2)>RIGHT($K61,2),BE61,0)) -> 0 | CC61: =+O61*KeyAssumptionsPriceControl_FO!X$15 -> 0 | CD61: =+P61*KeyAssumptionsPriceControl_FO!Y$15 -> 0 | CE61: =+Q61*KeyAssumptionsPriceControl_FO!Z$15 -> 0 | CF61: =+R61*KeyAssumptionsPriceControl_FO!AA$15 -> 0 | CG61: =+S61*KeyAssumptionsPriceControl_FO!AB$15 -> 0 | CH61: =+T61*KeyAssumptionsPriceControl_FO!AC$15 -> 0 | CI61: =+U61*KeyAssumptionsPriceControl_FO!AD$15 -> 0 | CJ61: =+V61*KeyAssumptionsPriceControl_FO!AE$15 -> 0 | CK61: =+W61*KeyAssumptionsPriceControl_FO!AF$15 -> 2.698505283 | CL61: =+X61*KeyAssumptionsPriceControl_FO!AG$15 -> 0 | CN61: 0 | CO61: 0 | CP61: 0 | CQ61: 0 | CR61: 0 | CS61: 0 | CT61: 0 | CU61: 0 | CV61: 0.01927503773 | CW61: 0.03855007547
C62: Sewer Retic & Rising Mains | E62: Sewerage | F62: Renewals | G62: Pipelines/network | H62: Capital Programs / Allocation | J62: Straight line | K62: 2027-28 | L62: 70 | M62: 70 | X62: 1.9058158 | AV62: 0 | AW62: 0 | AX62: 0 | AY62: 0 | AZ62: 0 | BA62: 0 | BB62: 0 | BC62: 0 | BD62: 0 | BE62: 1.9058158 | BG62: 0 | BH62: 0 | BI62: 0 | BJ62: 0 | BK62: 0 | BL62: 0 | BM62: 0 | BN62: 0 | BO62: 0 | BP62: 0.01361297 | BR62: =+IF($K62="Ongoing",AV62,IF(RIGHT($K62,2)=RIGHT(BR$39,2),SUM($AV62:AV62),0)+IF(RIGHT(BR$39,2)>RIGHT($K62,2),AV62,0)) -> 0 | BS62: =+IF($K62="Ongoing",AW62,IF(RIGHT($K62,2)=RIGHT(BS$39,2),SUM($AV62:AW62),0)+IF(RIGHT(BS$39,2)>RIGHT($K62,2),AW62,0)) -> 0 | BT62: =+IF($K62="Ongoing",AX62,IF(RIGHT($K62,2)=RIGHT(BT$39,2),SUM($AV62:AX62),0)+IF(RIGHT(BT$39,2)>RIGHT($K62,2),AX62,0)) -> 0 | BU62: =+IF($K62="Ongoing",AY62,IF(RIGHT($K62,2)=RIGHT(BU$39,2),SUM($AV62:AY62),0)+IF(RIGHT(BU$39,2)>RIGHT($K62,2),AY62,0)) -> 0 | BV62: =+IF($K62="Ongoing",AZ62,IF(RIGHT($K62,2)=RIGHT(BV$39,2),SUM($AV62:AZ62),0)+IF(RIGHT(BV$39,2)>RIGHT($K62,2),AZ62,0)) -> 0 | BW62: =+IF($K62="Ongoing",BA62,IF(RIGHT($K62,2)=RIGHT(BW$39,2),SUM($AV62:BA62),0)+IF(RIGHT(BW$39,2)>RIGHT($K62,2),BA62,0)) -> 0 | BX62: =+IF($K62="Ongoing",BB62,IF(RIGHT($K62,2)=RIGHT(BX$39,2),SUM($AV62:BB62),0)+IF(RIGHT(BX$39,2)>RIGHT($K62,2),BB62,0)) -> 0 | BY62: =+IF($K62="Ongoing",BC62,IF(RIGHT($K62,2)=RIGHT(BY$39,2),SUM($AV62:BC62),0)+IF(RIGHT(BY$39,2)>RIGHT($K62,2),BC62,0)) -> 0 | BZ62: =+IF($K62="Ongoing",BD62,IF(RIGHT($K62,2)=RIGHT(BZ$39,2),SUM($AV62:BD62),0)+IF(RIGHT(BZ$39,2)>RIGHT($K62,2),BD62,0)) -> 0 | CA62: =+IF($K62="Ongoing",BE62,IF(RIGHT($K62,2)=RIGHT(CA$39,2),SUM($AV62:BE62),0)+IF(RIGHT(CA$39,2)>RIGHT($K62,2),BE62,0)) -> 1.9058158 | CC62: =+O62*KeyAssumptionsPriceControl_FO!X$15 -> 0 | CD62: =+P62*KeyAssumptionsPriceControl_FO!Y$15 -> 0 | CE62: =+Q62*KeyAssumptionsPriceControl_FO!Z$15 -> 0 | CF62: =+R62*KeyAssumptionsPriceControl_FO!AA$15 -> 0 | CG62: =+S62*KeyAssumptionsPriceControl_FO!AB$15 -> 0 | CH62: =+T62*KeyAssumptionsPriceControl_FO!AC$15 -> 0 | CI62: =+U62*KeyAssumptionsPriceControl_FO!AD$15 -> 0 | CJ62: =+V62*KeyAssumptionsPriceControl_FO!AE$15 -> 0 | CK62: =+W62*KeyAssumptionsPriceControl_FO!AF$15 -> 0 | CL62: =+X62*KeyAssumptionsPriceControl_FO!AG$15 -> 2.392419096 | CN62: 0 | CO62: 0 | CP62: 0 | CQ62: 0 | CR62: 0 | CS62: 0 | CT62: 0 | CU62: 0 | CV62: 0 | CW62: 0.01708870783
C63: Water Retic & Rising Mains | E63: Water | F63: Renewals | G63: Pipelines/network | H63: Capital Programs / Allocation | J63: Straight line | K63: 2018-19 | L63: 70 | M63: 70 | O63: 1.907606102 | AV63: 1.907606102 | AW63: 0 | AX63: 0 | AY63: 0 | AZ63: 0 | BA63: 0 | BB63: 0 | BC63: 0 | BD63: 0 | BE63: 0 | BG63: 0.01362575787 | BH63: 0.02725151574 | BI63: 0.02725151574 | BJ63: 0.02725151574 | BK63: 0.02725151574 | BL63: 0.02725151574 | BM63: 0.02725151574 | BN63: 0.02725151574 | BO63: 0.02725151574 | BP63: 0.02725151574 | BR63: =+IF($K63="Ongoing",AV63,IF(RIGHT($K63,2)=RIGHT(BR$39,2),SUM($AV63:AV63),0)+IF(RIGHT(BR$39,2)>RIGHT($K63,2),AV63,0)) -> 1.907606102 | BS63: =+IF($K63="Ongoing",AW63,IF(RIGHT($K63,2)=RIGHT(BS$39,2),SUM($AV63:AW63),0)+IF(RIGHT(BS$39,2)>RIGHT($K63,2),AW63,0)) -> 0 | BT63: =+IF($K63="Ongoing",AX63,IF(RIGHT($K63,2)=RIGHT(BT$39,2),SUM($AV63:AX63),0)+IF(RIGHT(BT$39,2)>RIGHT($K63,2),AX63,0)) -> 0 | BU63: =+IF($K63="Ongoing",AY63,IF(RIGHT($K63,2)=RIGHT(BU$39,2),SUM($AV63:AY63),0)+IF(RIGHT(BU$39,2)>RIGHT($K63,2),AY63,0)) -> 0 | BV63: =+IF($K63="Ongoing",AZ63,IF(RIGHT($K63,2)=RIGHT(BV$39,2),SUM($AV63:AZ63),0)+IF(RIGHT(BV$39,2)>RIGHT($K63,2),AZ63,0)) -> 0 | BW63: =+IF($K63="Ongoing",BA63,IF(RIGHT($K63,2)=RIGHT(BW$39,2),SUM($AV63:BA63),0)+IF(RIGHT(BW$39,2)>RIGHT($K63,2),BA63,0)) -> 0 | BX63: =+IF($K63="Ongoing",BB63,IF(RIGHT($K63,2)=RIGHT(BX$39,2),SUM($AV63:BB63),0)+IF(RIGHT(BX$39,2)>RIGHT($K63,2),BB63,0)) -> 0 | BY63: =+IF($K63="Ongoing",BC63,IF(RIGHT($K63,2)=RIGHT(BY$39,2),SUM($AV63:BC63),0)+IF(RIGHT(BY$39,2)>RIGHT($K63,2),BC63,0)) -> 0 | BZ63: =+IF($K63="Ongoing",BD63,IF(RIGHT($K63,2)=RIGHT(BZ$39,2),SUM($AV63:BD63),0)+IF(RIGHT(BZ$39,2)>RIGHT($K63,2),BD63,0)) -> 0 | CA63: =+IF($K63="Ongoing",BE63,IF(RIGHT($K63,2)=RIGHT(CA$39,2),SUM($AV63:BE63),0)+IF(RIGHT(CA$39,2)>RIGHT($K63,2),BE63,0)) -> 0 | CC63: =+O63*KeyAssumptionsPriceControl_FO!X$15 -> 1.951481042 | CD63: =+P63*KeyAssumptionsPriceControl_FO!Y$15 -> 0 | CE63: =+Q63*KeyAssumptionsPriceControl_FO!Z$15 -> 0 | CF63: =+R63*KeyAssumptionsPriceControl_FO!AA$15 -> 0 | CG63: =+S63*KeyAssumptionsPriceControl_FO!AB$15 -> 0 | CH63: =+T63*KeyAssumptionsPriceControl_FO!AC$15 -> 0 | CI63: =+U63*KeyAssumptionsPriceControl_FO!AD$15 -> 0 | CJ63: =+V63*KeyAssumptionsPriceControl_FO!AE$15 -> 0 | CK63: =+W63*KeyAssumptionsPriceControl_FO!AF$15 -> 0 | CL63: =+X63*KeyAssumptionsPriceControl_FO!AG$15 -> 0 | CN63: 0.0139391503 | CO63: 0.0278783006 | CP63: 0.0278783006 | CQ63: 0.0278783006 | CR63: 0.0278783006 | CS63: 0.0278783006 | CT63: 0.0278783006 | CU63: 0.0278783006 | CV63: 0.0278783006 | CW63: 0.0278783006
C64: Water Retic & Rising Mains | E64: Water | F64: Renewals | G64: Pipelines/network | H64: Capital Programs / Allocation | J64: Straight line | K64: 2019-20 | L64: 70 | M64: 70 | P64: 1.692 | AV64: 0 | AW64: 1.692 | AX64: 0 | AY64: 0 | AZ64: 0 | BA64: 0 | BB64: 0 | BC64: 0 | BD64: 0 | BE64: 0 | BG64: 0 | BH64: 0.01208571429 | BI64: 0.02417142857 | BJ64: 0.02417142857 | BK64: 0.02417142857 | BL64: 0.02417142857 | BM64: 0.02417142857 | BN64: 0.02417142857 | BO64: 0.02417142857 | BP64: 0.02417142857 | BR64: =+IF($K64="Ongoing",AV64,IF(RIGHT($K64,2)=RIGHT(BR$39,2),SUM($AV64:AV64),0)+IF(RIGHT(BR$39,2)>RIGHT($K64,2),AV64,0)) -> 0 | BS64: =+IF($K64="Ongoing",AW64,IF(RIGHT($K64,2)=RIGHT(BS$39,2),SUM($AV64:AW64),0)+IF(RIGHT(BS$39,2)>RIGHT($K64,2),AW64,0)) -> 1.692 | BT64: =+IF($K64="Ongoing",AX64,IF(RIGHT($K64,2)=RIGHT(BT$39,2),SUM($AV64:AX64),0)+IF(RIGHT(BT$39,2)>RIGHT($K64,2),AX64,0)) -> 0 | BU64: =+IF($K64="Ongoing",AY64,IF(RIGHT($K64,2)=RIGHT(BU$39,2),SUM($AV64:AY64),0)+IF(RIGHT(BU$39,2)>RIGHT($K64,2),AY64,0)) -> 0 | BV64: =+IF($K64="Ongoing",AZ64,IF(RIGHT($K64,2)=RIGHT(BV$39,2),SUM($AV64:AZ64),0)+IF(RIGHT(BV$39,2)>RIGHT($K64,2),AZ64,0)) -> 0 | BW64: =+IF($K64="Ongoing",BA64,IF(RIGHT($K64,2)=RIGHT(BW$39,2),SUM($AV64:BA64),0)+IF(RIGHT(BW$39,2)>RIGHT($K64,2),BA64,0)) -> 0 | BX64: =+IF($K64="Ongoing",BB64,IF(RIGHT($K64,2)=RIGHT(BX$39,2),SUM($AV64:BB64),0)+IF(RIGHT(BX$39,2)>RIGHT($K64,2),BB64,0)) -> 0 | BY64: =+IF($K64="Ongoing",BC64,IF(RIGHT($K64,2)=RIGHT(BY$39,2),SUM($AV64:BC64),0)+IF(RIGHT(BY$39,2)>RIGHT($K64,2),BC64,0)) -> 0 | BZ64: =+IF($K64="Ongoing",BD64,IF(RIGHT($K64,2)=RIGHT(BZ$39,2),SUM($AV64:BD64),0)+IF(RIGHT(BZ$39,2)>RIGHT($K64,2),BD64,0)) -> 0 | CA64: =+IF($K64="Ongoing",BE64,IF(RIGHT($K64,2)=RIGHT(CA$39,2),SUM($AV64:BE64),0)+IF(RIGHT(CA$39,2)>RIGHT($K64,2),BE64,0)) -> 0 | CC64: =+O64*KeyAssumptionsPriceControl_FO!X$15 -> 0 | CD64: =+P64*KeyAssumptionsPriceControl_FO!Y$15 -> 1.770727068 | CE64: =+Q64*KeyAssumptionsPriceControl_FO!Z$15 -> 0 | CF64: =+R64*KeyAssumptionsPriceControl_FO!AA$15 -> 0 | CG64: =+S64*KeyAssumptionsPriceControl_FO!AB$15 -> 0 | CH64: =+T64*KeyAssumptionsPriceControl_FO!AC$15 -> 0 | CI64: =+U64*KeyAssumptionsPriceControl_FO!AD$15 -> 0 | CJ64: =+V64*KeyAssumptionsPriceControl_FO!AE$15 -> 0 | CK64: =+W64*KeyAssumptionsPriceControl_FO!AF$15 -> 0 | CL64: =+X64*KeyAssumptionsPriceControl_FO!AG$15 -> 0 | CN64: 0 | CO64: 0.01264805049 | CP64: 0.02529610097 | CQ64: 0.02529610097 | CR64: 0.02529610097 | CS64: 0.02529610097 | CT64: 0.02529610097 | CU64: 0.02529610097 | CV64: 0.02529610097 | CW64: 0.02529610097
C65: Water Retic & Rising Mains | E65: Water | F65: Renewals | G65: Pipelines/network | H65: Capital Programs / Allocation | J65: Straight line | K65: 2020-21 | L65: 70 | M65: 70 | Q65: 1.527606102 | AV65: 0 | AW65: 0 | AX65: 1.527606102 | AY65: 0 | AZ65: 0 | BA65: 0 | BB65: 0 | BC65: 0 | BD65: 0 | BE65: 0 | BG65: 0 | BH65: 0 | BI65: 0.01091147215 | BJ65: 0.02182294431 | BK65: 0.02182294431 | BL65: 0.02182294431 | BM65: 0.02182294431 | BN65: 0.02182294431 | BO65: 0.02182294431 | BP65: 0.02182294431 | BR65: =+IF($K65="Ongoing",AV65,IF(RIGHT($K65,2)=RIGHT(BR$39,2),SUM($AV65:AV65),0)+IF(RIGHT(BR$39,2)>RIGHT($K65,2),AV65,0)) -> 0 | BS65: =+IF($K65="Ongoing",AW65,IF(RIGHT($K65,2)=RIGHT(BS$39,2),SUM($AV65:AW65),0)+IF(RIGHT(BS$39,2)>RIGHT($K65,2),AW65,0)) -> 0 | BT65: =+IF($K65="Ongoing",AX65,IF(RIGHT($K65,2)=RIGHT(BT$39,2),SUM($AV65:AX65),0)+IF(RIGHT(BT$39,2)>RIGHT($K65,2),AX65,0)) -> 1.527606102 | BU65: =+IF($K65="Ongoing",AY65,IF(RIGHT($K65,2)=RIGHT(BU$39,2),SUM($AV65:AY65),0)+IF(RIGHT(BU$39,2)>RIGHT($K65,2),AY65,0)) -> 0 | BV65: =+IF($K65="Ongoing",AZ65,IF(RIGHT($K65,2)=RIGHT(BV$39,2),SUM($AV65:AZ65),0)+IF(RIGHT(BV$39,2)>RIGHT($K65,2),AZ65,0)) -> 0 | BW65: =+IF($K65="Ongoing",BA65,IF(RIGHT($K65,2)=RIGHT(BW$39,2),SUM($AV65:BA65),0)+IF(RIGHT(BW$39,2)>RIGHT($K65,2),BA65,0)) -> 0 | BX65: =+IF($K65="Ongoing",BB65,IF(RIGHT($K65,2)=RIGHT(BX$39,2),SUM($AV65:BB65),0)+IF(RIGHT(BX$39,2)>RIGHT($K65,2),BB65,0)) -> 0 | BY65: =+IF($K65="Ongoing",BC65,IF(RIGHT($K65,2)=RIGHT(BY$39,2),SUM($AV65:BC65),0)+IF(RIGHT(BY$39,2)>RIGHT($K65,2),BC65,0)) -> 0 | BZ65: =+IF($K65="Ongoing",BD65,IF(RIGHT($K65,2)=RIGHT(BZ$39,2),SUM($AV65:BD65),0)+IF(RIGHT(BZ$39,2)>RIGHT($K65,2),BD65,0)) -> 0 | CA65: =+IF($K65="Ongoing",BE65,IF(RIGHT($K65,2)=RIGHT(CA$39,2),SUM($AV65:BE65),0)+IF(RIGHT(CA$39,2)>RIGHT($K65,2),BE65,0)) -> 0 | CC65: =+O65*KeyAssumptionsPriceControl_FO!X$15 -> 0 | CD65: =+P65*KeyAssumptionsPriceControl_FO!Y$15 -> 0 | CE65: =+Q65*KeyAssumptionsPriceControl_FO!Z$15 -> 1.63545382 | CF65: =+R65*KeyAssumptionsPriceControl_FO!AA$15 -> 0 | CG65: =+S65*KeyAssumptionsPriceControl_FO!AB$15 -> 0 | CH65: =+T65*KeyAssumptionsPriceControl_FO!AC$15 -> 0 | CI65: =+U65*KeyAssumptionsPriceControl_FO!AD$15 -> 0 | CJ65: =+V65*KeyAssumptionsPriceControl_FO!AE$15 -> 0 | CK65: =+W65*KeyAssumptionsPriceControl_FO!AF$15 -> 0 | CL65: =+X65*KeyAssumptionsPriceControl_FO!AG$15 -> 0 | CN65: 0 | CO65: 0 | CP65: 0.011681813 | CQ65: 0.023363626 | CR65: 0.023363626 | CS65: 0.023363626 | CT65: 0.023363626 | CU65: 0.023363626 | CV65: 0.023363626 | CW65: 0.023363626
C66: Water Retic & Rising Mains | E66: Water | F66: Renewals | G66: Pipelines/network | H66: Capital Programs / Allocation | J66: Straight line | K66: 2021-22 | L66: 70 | M66: 70 | R66: 1.457 | AV66: 0 | AW66: 0 | AX66: 0 | AY66: 1.457 | AZ66: 0 | BA66: 0 | BB66: 0 | BC66: 0 | BD66: 0 | BE66: 0 | BG66: 0 | BH66: 0 | BI66: 0 | BJ66: 0.01040714286 | BK66: 0.02081428571 | BL66: 0.02081428571 | BM66: 0.02081428571 | BN66: 0.02081428571 | BO66: 0.02081428571 | BP66: 0.02081428571 | BR66: =+IF($K66="Ongoing",AV66,IF(RIGHT($K66,2)=RIGHT(BR$39,2),SUM($AV66:AV66),0)+IF(RIGHT(BR$39,2)>RIGHT($K66,2),AV66,0)) -> 0 | BS66: =+IF($K66="Ongoing",AW66,IF(RIGHT($K66,2)=RIGHT(BS$39,2),SUM($AV66:AW66),0)+IF(RIGHT(BS$39,2)>RIGHT($K66,2),AW66,0)) -> 0 | BT66: =+IF($K66="Ongoing",AX66,IF(RIGHT($K66,2)=RIGHT(BT$39,2),SUM($AV66:AX66),0)+IF(RIGHT(BT$39,2)>RIGHT($K66,2),AX66,0)) -> 0 | BU66: =+IF($K66="Ongoing",AY66,IF(RIGHT($K66,2)=RIGHT(BU$39,2),SUM($AV66:AY66),0)+IF(RIGHT(BU$39,2)>RIGHT($K66,2),AY66,0)) -> 1.457 | BV66: =+IF($K66="Ongoing",AZ66,IF(RIGHT($K66,2)=RIGHT(BV$39,2),SUM($AV66:AZ66),0)+IF(RIGHT(BV$39,2)>RIGHT($K66,2),AZ66,0)) -> 0 | BW66: =+IF($K66="Ongoing",BA66,IF(RIGHT($K66,2)=RIGHT(BW$39,2),SUM($AV66:BA66),0)+IF(RIGHT(BW$39,2)>RIGHT($K66,2),BA66,0)) -> 0 | BX66: =+IF($K66="Ongoing",BB66,IF(RIGHT($K66,2)=RIGHT(BX$39,2),SUM($AV66:BB66),0)+IF(RIGHT(BX$39,2)>RIGHT($K66,2),BB66,0)) -> 0 | BY66: =+IF($K66="Ongoing",BC66,IF(RIGHT($K66,2)=RIGHT(BY$39,2),SUM($AV66:BC66),0)+IF(RIGHT(BY$39,2)>RIGHT($K66,2),BC66,0)) -> 0 | BZ66: =+IF($K66="Ongoing",BD66,IF(RIGHT($K66,2)=RIGHT(BZ$39,2),SUM($AV66:BD66),0)+IF(RIGHT(BZ$39,2)>RIGHT($K66,2),BD66,0)) -> 0 | CA66: =+IF($K66="Ongoing",BE66,IF(RIGHT($K66,2)=RIGHT(CA$39,2),SUM($AV66:BE66),0)+IF(RIGHT(CA$39,2)>RIGHT($K66,2),BE66,0)) -> 0 | CC66: =+O66*KeyAssumptionsPriceControl_FO!X$15 -> 0 | CD66: =+P66*KeyAssumptionsPriceControl_FO!Y$15 -> 0 | CE66: =+Q66*KeyAssumptionsPriceControl_FO!Z$15 -> 0 | CF66: =+R66*KeyAssumptionsPriceControl_FO!AA$15 -> 1.595739835 | CG66: =+S66*KeyAssumptionsPriceControl_FO!AB$15 -> 0 | CH66: =+T66*KeyAssumptionsPriceControl_FO!AC$15 -> 0 | CI66: =+U66*KeyAssumptionsPriceControl_FO!AD$15 -> 0 | CJ66: =+V66*KeyAssumptionsPriceControl_FO!AE$15 -> 0 | CK66: =+W66*KeyAssumptionsPriceControl_FO!AF$15 -> 0 | CL66: =+X66*KeyAssumptionsPriceControl_FO!AG$15 -> 0 | CN66: 0 | CO66: 0 | CP66: 0 | CQ66: 0.01139814168 | CR66: 0.02279628336 | CS66: 0.02279628336 | CT66: 0.02279628336 | CU66: 0.02279628336 | CV66: 0.02279628336 | CW66: 0.02279628336
C67: Water Retic & Rising Mains | E67: Water | F67: Renewals | G67: Pipelines/network | H67: Capital Programs / Allocation | J67: Straight line | K67: 2022-23 | L67: 70 | M67: 70 | S67: 1.527606102 | AV67: 0 | AW67: 0 | AX67: 0 | AY67: 0 | AZ67: 1.527606102 | BA67: 0 | BB67: 0 | BC67: 0 | BD67: 0 | BE67: 0 | BG67: 0 | BH67: 0 | BI67: 0 | BJ67: 0 | BK67: 0.01091147215 | BL67: 0.02182294431 | BM67: 0.02182294431 | BN67: 0.02182294431 | BO67: 0.02182294431 | BP67: 0.02182294431 | BR67: =+IF($K67="Ongoing",AV67,IF(RIGHT($K67,2)=RIGHT(BR$39,2),SUM($AV67:AV67),0)+IF(RIGHT(BR$39,2)>RIGHT($K67,2),AV67,0)) -> 0 | BS67: =+IF($K67="Ongoing",AW67,IF(RIGHT($K67,2)=RIGHT(BS$39,2),SUM($AV67:AW67),0)+IF(RIGHT(BS$39,2)>RIGHT($K67,2),AW67,0)) -> 0 | BT67: =+IF($K67="Ongoing",AX67,IF(RIGHT($K67,2)=RIGHT(BT$39,2),SUM($AV67:AX67),0)+IF(RIGHT(BT$39,2)>RIGHT($K67,2),AX67,0)) -> 0 | BU67: =+IF($K67="Ongoing",AY67,IF(RIGHT($K67,2)=RIGHT(BU$39,2),SUM($AV67:AY67),0)+IF(RIGHT(BU$39,2)>RIGHT($K67,2),AY67,0)) -> 0 | BV67: =+IF($K67="Ongoing",AZ67,IF(RIGHT($K67,2)=RIGHT(BV$39,2),SUM($AV67:AZ67),0)+IF(RIGHT(BV$39,2)>RIGHT($K67,2),AZ67,0)) -> 1.527606102 | BW67: =+IF($K67="Ongoing",BA67,IF(RIGHT($K67,2)=RIGHT(BW$39,2),SUM($AV67:BA67),0)+IF(RIGHT(BW$39,2)>RIGHT($K67,2),BA67,0)) -> 0 | BX67: =+IF($K67="Ongoing",BB67,IF(RIGHT($K67,2)=RIGHT(BX$39,2),SUM($AV67:BB67),0)+IF(RIGHT(BX$39,2)>RIGHT($K67,2),BB67,0)) -> 0 | BY67: =+IF($K67="Ongoing",BC67,IF(RIGHT($K67,2)=RIGHT(BY$39,2),SUM($AV67:BC67),0)+IF(RIGHT(BY$39,2)>RIGHT($K67,2),BC67,0)) -> 0 | BZ67: =+IF($K67="Ongoing",BD67,IF(RIGHT($K67,2)=RIGHT(BZ$39,2),SUM($AV67:BD67),0)+IF(RIGHT(BZ$39,2)>RIGHT($K67,2),BD67,0)) -> 0 | CA67: =+IF($K67="Ongoing",BE67,IF(RIGHT($K67,2)=RIGHT(CA$39,2),SUM($AV67:BE67),0)+IF(RIGHT(CA$39,2)>RIGHT($K67,2),BE67,0)) -> 0 | CC67: =+O67*KeyAssumptionsPriceControl_FO!X$15 -> 0 | CD67: =+P67*KeyAssumptionsPriceControl_FO!Y$15 -> 0 | CE67: =+Q67*KeyAssumptionsPriceControl_FO!Z$15 -> 0 | CF67: =+R67*KeyAssumptionsPriceControl_FO!AA$15 -> 0 | CG67: =+S67*KeyAssumptionsPriceControl_FO!AB$15 -> 1.711549851 | CH67: =+T67*KeyAssumptionsPriceControl_FO!AC$15 -> 0 | CI67: =+U67*KeyAssumptionsPriceControl_FO!AD$15 -> 0 | CJ67: =+V67*KeyAssumptionsPriceControl_FO!AE$15 -> 0 | CK67: =+W67*KeyAssumptionsPriceControl_FO!AF$15 -> 0 | CL67: =+X67*KeyAssumptionsPriceControl_FO!AG$15 -> 0 | CN67: 0 | CO67: 0 | CP67: 0 | CQ67: 0 | CR67: 0.01222535608 | CS67: 0.02445071215 | CT67: 0.02445071215 | CU67: 0.02445071215 | CV67: 0.02445071215 | CW67: 0.02445071215
C68: Water Retic & Rising Mains | E68: Water | F68: Renewals | G68: Pipelines/network | H68: Capital Programs / Allocation | J68: Straight line | K68: 2023-24 | L68: 70 | M68: 70 | T68: 4.054401 | AV68: 0 | AW68: 0 | AX68: 0 | AY68: 0 | AZ68: 0 | BA68: 4.054401 | BB68: 0 | BC68: 0 | BD68: 0 | BE68: 0 | BG68: 0 | BH68: 0 | BI68: 0 | BJ68: 0 | BK68: 0 | BL68: 0.02896000714 | BM68: 0.05792001429 | BN68: 0.05792001429 | BO68: 0.05792001429 | BP68: 0.05792001429 | BR68: =+IF($K68="Ongoing",AV68,IF(RIGHT($K68,2)=RIGHT(BR$39,2),SUM($AV68:AV68),0)+IF(RIGHT(BR$39,2)>RIGHT($K68,2),AV68,0)) -> 0 | BS68: =+IF($K68="Ongoing",AW68,IF(RIGHT($K68,2)=RIGHT(BS$39,2),SUM($AV68:AW68),0)+IF(RIGHT(BS$39,2)>RIGHT($K68,2),AW68,0)) -> 0 | BT68: =+IF($K68="Ongoing",AX68,IF(RIGHT($K68,2)=RIGHT(BT$39,2),SUM($AV68:AX68),0)+IF(RIGHT(BT$39,2)>RIGHT($K68,2),AX68,0)) -> 0 | BU68: =+IF($K68="Ongoing",AY68,IF(RIGHT($K68,2)=RIGHT(BU$39,2),SUM($AV68:AY68),0)+IF(RIGHT(BU$39,2)>RIGHT($K68,2),AY68,0)) -> 0 | BV68: =+IF($K68="Ongoing",AZ68,IF(RIGHT($K68,2)=RIGHT(BV$39,2),SUM($AV68:AZ68),0)+IF(RIGHT(BV$39,2)>RIGHT($K68,2),AZ68,0)) -> 0 | BW68: =+IF($K68="Ongoing",BA68,IF(RIGHT($K68,2)=RIGHT(BW$39,2),SUM($AV68:BA68),0)+IF(RIGHT(BW$39,2)>RIGHT($K68,2),BA68,0)) -> 4.054401 | BX68: =+IF($K68="Ongoing",BB68,IF(RIGHT($K68,2)=RIGHT(BX$39,2),SUM($AV68:BB68),0)+IF(RIGHT(BX$39,2)>RIGHT($K68,2),BB68,0)) -> 0 | BY68: =+IF($K68="Ongoing",BC68,IF(RIGHT($K68,2)=RIGHT(BY$39,2),SUM($AV68:BC68),0)+IF(RIGHT(BY$39,2)>RIGHT($K68,2),BC68,0)) -> 0 | BZ68: =+IF($K68="Ongoing",BD68,IF(RIGHT($K68,2)=RIGHT(BZ$39,2),SUM($AV68:BD68),0)+IF(RIGHT(BZ$39,2)>RIGHT($K68,2),BD68,0)) -> 0 | CA68: =+IF($K68="Ongoing",BE68,IF(RIGHT($K68,2)=RIGHT(CA$39,2),SUM($AV68:BE68),0)+IF(RIGHT(CA$39,2)>RIGHT($K68,2),BE68,0)) -> 0 | CC68: =+O68*KeyAssumptionsPriceControl_FO!X$15 -> 0 | CD68: =+P68*KeyAssumptionsPriceControl_FO!Y$15 -> 0 | CE68: =+Q68*KeyAssumptionsPriceControl_FO!Z$15 -> 0 | CF68: =+R68*KeyAssumptionsPriceControl_FO!AA$15 -> 0 | CG68: =+S68*KeyAssumptionsPriceControl_FO!AB$15 -> 0 | CH68: =+T68*KeyAssumptionsPriceControl_FO!AC$15 -> 4.647083784 | CI68: =+U68*KeyAssumptionsPriceControl_FO!AD$15 -> 0 | CJ68: =+V68*KeyAssumptionsPriceControl_FO!AE$15 -> 0 | CK68: =+W68*KeyAssumptionsPriceControl_FO!AF$15 -> 0 | CL68: =+X68*KeyAssumptionsPriceControl_FO!AG$15 -> 0 | CN68: 0 | CO68: 0 | CP68: 0 | CQ68: 0 | CR68: 0 | CS68: 0.0331934556 | CT68: 0.0663869112 | CU68: 0.0663869112 | CV68: 0.0663869112 | CW68: 0.0663869112
C69: Water Retic & Rising Mains | E69: Water | F69: Renewals | G69: Pipelines/network | H69: Capital Programs / Allocation | J69: Straight line | K69: 2024-25 | L69: 70 | M69: 70 | U69: 2.147606102 | AV69: 0 | AW69: 0 | AX69: 0 | AY69: 0 | AZ69: 0 | BA69: 0 | BB69: 2.147606102 | BC69: 0 | BD69: 0 | BE69: 0 | BG69: 0 | BH69: 0 | BI69: 0 | BJ69: 0 | BK69: 0 | BL69: 0 | BM69: 0.01534004358 | BN69: 0.03068008717 | BO69: 0.03068008717 | BP69: 0.03068008717 | BR69: =+IF($K69="Ongoing",AV69,IF(RIGHT($K69,2)=RIGHT(BR$39,2),SUM($AV69:AV69),0)+IF(RIGHT(BR$39,2)>RIGHT($K69,2),AV69,0)) -> 0 | BS69: =+IF($K69="Ongoing",AW69,IF(RIGHT($K69,2)=RIGHT(BS$39,2),SUM($AV69:AW69),0)+IF(RIGHT(BS$39,2)>RIGHT($K69,2),AW69,0)) -> 0 | BT69: =+IF($K69="Ongoing",AX69,IF(RIGHT($K69,2)=RIGHT(BT$39,2),SUM($AV69:AX69),0)+IF(RIGHT(BT$39,2)>RIGHT($K69,2),AX69,0)) -> 0 | BU69: =+IF($K69="Ongoing",AY69,IF(RIGHT($K69,2)=RIGHT(BU$39,2),SUM($AV69:AY69),0)+IF(RIGHT(BU$39,2)>RIGHT($K69,2),AY69,0)) -> 0 | BV69: =+IF($K69="Ongoing",AZ69,IF(RIGHT($K69,2)=RIGHT(BV$39,2),SUM($AV69:AZ69),0)+IF(RIGHT(BV$39,2)>RIGHT($K69,2),AZ69,0)) -> 0 | BW69: =+IF($K69="Ongoing",BA69,IF(RIGHT($K69,2)=RIGHT(BW$39,2),SUM($AV69:BA69),0)+IF(RIGHT(BW$39,2)>RIGHT($K69,2),BA69,0)) -> 0 | BX69: =+IF($K69="Ongoing",BB69,IF(RIGHT($K69,2)=RIGHT(BX$39,2),SUM($AV69:BB69),0)+IF(RIGHT(BX$39,2)>RIGHT($K69,2),BB69,0)) -> 2.147606102 | BY69: =+IF($K69="Ongoing",BC69,IF(RIGHT($K69,2)=RIGHT(BY$39,2),SUM($AV69:BC69),0)+IF(RIGHT(BY$39,2)>RIGHT($K69,2),BC69,0)) -> 0 | BZ69: =+IF($K69="Ongoing",BD69,IF(RIGHT($K69,2)=RIGHT(BZ$39,2),SUM($AV69:BD69),0)+IF(RIGHT(BZ$39,2)>RIGHT($K69,2),BD69,0)) -> 0 | CA69: =+IF($K69="Ongoing",BE69,IF(RIGHT($K69,2)=RIGHT(CA$39,2),SUM($AV69:BE69),0)+IF(RIGHT(CA$39,2)>RIGHT($K69,2),BE69,0)) -> 0 | CC69: =+O69*KeyAssumptionsPriceControl_FO!X$15 -> 0 | CD69: =+P69*KeyAssumptionsPriceControl_FO!Y$15 -> 0 | CE69: =+Q69*KeyAssumptionsPriceControl_FO!Z$15 -> 0 | CF69: =+R69*KeyAssumptionsPriceControl_FO!AA$15 -> 0 | CG69: =+S69*KeyAssumptionsPriceControl_FO!AB$15 -> 0 | CH69: =+T69*KeyAssumptionsPriceControl_FO!AC$15 -> 0 | CI69: =+U69*KeyAssumptionsPriceControl_FO!AD$15 -> 2.518164315 | CJ69: =+V69*KeyAssumptionsPriceControl_FO!AE$15 -> 0 | CK69: =+W69*KeyAssumptionsPriceControl_FO!AF$15 -> 0 | CL69: =+X69*KeyAssumptionsPriceControl_FO!AG$15 -> 0 | CN69: 0 | CO69: 0 | CP69: 0 | CQ69: 0 | CR69: 0 | CS69: 0 | CT69: 0.01798688796 | CU69: 0.03597377592 | CV69: 0.03597377592 | CW69: 0.03597377592
C70: Water Retic & Rising Mains | E70: Water | F70: Renewals | G70: Pipelines/network | H70: Capital Programs / Allocation | J70: Straight line | K70: 2025-26 | L70: 70 | M70: 70 | V70: 2.077 | AV70: 0 | AW70: 0 | AX70: 0 | AY70: 0 | AZ70: 0 | BA70: 0 | BB70: 0 | BC70: 2.077 | BD70: 0 | BE70: 0 | BG70: 0 | BH70: 0 | BI70: 0 | BJ70: 0 | BK70: 0 | BL70: 0 | BM70: 0 | BN70: 0.01483571429 | BO70: 0.02967142857 | BP70: 0.02967142857 | BR70: =+IF($K70="Ongoing",AV70,IF(RIGHT($K70,2)=RIGHT(BR$39,2),SUM($AV70:AV70),0)+IF(RIGHT(BR$39,2)>RIGHT($K70,2),AV70,0)) -> 0 | BS70: =+IF($K70="Ongoing",AW70,IF(RIGHT($K70,2)=RIGHT(BS$39,2),SUM($AV70:AW70),0)+IF(RIGHT(BS$39,2)>RIGHT($K70,2),AW70,0)) -> 0 | BT70: =+IF($K70="Ongoing",AX70,IF(RIGHT($K70,2)=RIGHT(BT$39,2),SUM($AV70:AX70),0)+IF(RIGHT(BT$39,2)>RIGHT($K70,2),AX70,0)) -> 0 | BU70: =+IF($K70="Ongoing",AY70,IF(RIGHT($K70,2)=RIGHT(BU$39,2),SUM($AV70:AY70),0)+IF(RIGHT(BU$39,2)>RIGHT($K70,2),AY70,0)) -> 0 | BV70: =+IF($K70="Ongoing",AZ70,IF(RIGHT($K70,2)=RIGHT(BV$39,2),SUM($AV70:AZ70),0)+IF(RIGHT(BV$39,2)>RIGHT($K70,2),AZ70,0)) -> 0 | BW70: =+IF($K70="Ongoing",BA70,IF(RIGHT($K70,2)=RIGHT(BW$39,2),SUM($AV70:BA70),0)+IF(RIGHT(BW$39,2)>RIGHT($K70,2),BA70,0)) -> 0 | BX70: =+IF($K70="Ongoing",BB70,IF(RIGHT($K70,2)=RIGHT(BX$39,2),SUM($AV70:BB70),0)+IF(RIGHT(BX$39,2)>RIGHT($K70,2),BB70,0)) -> 0 | BY70: =+IF($K70="Ongoing",BC70,IF(RIGHT($K70,2)=RIGHT(BY$39,2),SUM($AV70:BC70),0)+IF(RIGHT(BY$39,2)>RIGHT($K70,2),BC70,0)) -> 2.077 | BZ70: =+IF($K70="Ongoing",BD70,IF(RIGHT($K70,2)=RIGHT(BZ$39,2),SUM($AV70:BD70),0)+IF(RIGHT(BZ$39,2)>RIGHT($K70,2),BD70,0)) -> 0 | CA70: =+IF($K70="Ongoing",BE70,IF(RIGHT($K70,2)=RIGHT(CA$39,2),SUM($AV70:BE70),0)+IF(RIGHT(CA$39,2)>RIGHT($K70,2),BE70,0)) -> 0 | CC70: =+O70*KeyAssumptionsPriceControl_FO!X$15 -> 0 | CD70: =+P70*KeyAssumptionsPriceControl_FO!Y$15 -> 0 | CE70: =+Q70*KeyAssumptionsPriceControl_FO!Z$15 -> 0 | CF70: =+R70*KeyAssumptionsPriceControl_FO!AA$15 -> 0 | CG70: =+S70*KeyAssumptionsPriceControl_FO!AB$15 -> 0 | CH70: =+T70*KeyAssumptionsPriceControl_FO!AC$15 -> 0 | CI70: =+U70*KeyAssumptionsPriceControl_FO!AD$15 -> 0 | CJ70: =+V70*KeyAssumptionsPriceControl_FO!AE$15 -> 2.491389135 | CK70: =+W70*KeyAssumptionsPriceControl_FO!AF$15 -> 0 | CL70: =+X70*KeyAssumptionsPriceControl_FO!AG$15 -> 0 | CN70: 0 | CO70: 0 | CP70: 0 | CQ70: 0 | CR70: 0 | CS70: 0 | CT70: 0 | CU70: 0.01779563668 | CV70: 0.03559127336 | CW70: 0.03559127336
C71: Water Retic & Rising Mains | E71: Water | F71: Renewals | G71: Pipelines/network | H71: Capital Programs / Allocation | J71: Straight line | K71: 2026-27 | L71: 70 | M71: 70 | W71: 2.147606102 | AV71: 0 | AW71: 0 | AX71: 0 | AY71: 0 | AZ71: 0 | BA71: 0 | BB71: 0 | BC71: 0 | BD71: 2.147606102 | BE71: 0 | BG71: 0 | BH71: 0 | BI71: 0 | BJ71: 0 | BK71: 0 | BL71: 0 | BM71: 0 | BN71: 0 | BO71: 0.01534004358 | BP71: 0.03068008717 | BR71: =+IF($K71="Ongoing",AV71,IF(RIGHT($K71,2)=RIGHT(BR$39,2),SUM($AV71:AV71),0)+IF(RIGHT(BR$39,2)>RIGHT($K71,2),AV71,0)) -> 0 | BS71: =+IF($K71="Ongoing",AW71,IF(RIGHT($K71,2)=RIGHT(BS$39,2),SUM($AV71:AW71),0)+IF(RIGHT(BS$39,2)>RIGHT($K71,2),AW71,0)) -> 0 | BT71: =+IF($K71="Ongoing",AX71,IF(RIGHT($K71,2)=RIGHT(BT$39,2),SUM($AV71:AX71),0)+IF(RIGHT(BT$39,2)>RIGHT($K71,2),AX71,0)) -> 0 | BU71: =+IF($K71="Ongoing",AY71,IF(RIGHT($K71,2)=RIGHT(BU$39,2),SUM($AV71:AY71),0)+IF(RIGHT(BU$39,2)>RIGHT($K71,2),AY71,0)) -> 0 | BV71: =+IF($K71="Ongoing",AZ71,IF(RIGHT($K71,2)=RIGHT(BV$39,2),SUM($AV71:AZ71),0)+IF(RIGHT(BV$39,2)>RIGHT($K71,2),AZ71,0)) -> 0 | BW71: =+IF($K71="Ongoing",BA71,IF(RIGHT($K71,2)=RIGHT(BW$39,2),SUM($AV71:BA71),0)+IF(RIGHT(BW$39,2)>RIGHT($K71,2),BA71,0)) -> 0 | BX71: =+IF($K71="Ongoing",BB71,IF(RIGHT($K71,2)=RIGHT(BX$39,2),SUM($AV71:BB71),0)+IF(RIGHT(BX$39,2)>RIGHT($K71,2),BB71,0)) -> 0 | BY71: =+IF($K71="Ongoing",BC71,IF(RIGHT($K71,2)=RIGHT(BY$39,2),SUM($AV71:BC71),0)+IF(RIGHT(BY$39,2)>RIGHT($K71,2),BC71,0)) -> 0 | BZ71: =+IF($K71="Ongoing",BD71,IF(RIGHT($K71,2)=RIGHT(BZ$39,2),SUM($AV71:BD71),0)+IF(RIGHT(BZ$39,2)>RIGHT($K71,2),BD71,0)) -> 2.147606102 | CA71: =+IF($K71="Ongoing",BE71,IF(RIGHT($K71,2)=RIGHT(CA$39,2),SUM($AV71:BE71),0)+IF(RIGHT(CA$39,2)>RIGHT($K71,2),BE71,0)) -> 0 | CC71: =+O71*KeyAssumptionsPriceControl_FO!X$15 -> 0 | CD71: =+P71*KeyAssumptionsPriceControl_FO!Y$15 -> 0 | CE71: =+Q71*KeyAssumptionsPriceControl_FO!Z$15 -> 0 | CF71: =+R71*KeyAssumptionsPriceControl_FO!AA$15 -> 0 | CG71: =+S71*KeyAssumptionsPriceControl_FO!AB$15 -> 0 | CH71: =+T71*KeyAssumptionsPriceControl_FO!AC$15 -> 0 | CI71: =+U71*KeyAssumptionsPriceControl_FO!AD$15 -> 0 | CJ71: =+V71*KeyAssumptionsPriceControl_FO!AE$15 -> 0 | CK71: =+W71*KeyAssumptionsPriceControl_FO!AF$15 -> 2.635331982 | CL71: =+X71*KeyAssumptionsPriceControl_FO!AG$15 -> 0 | CN71: 0 | CO71: 0 | CP71: 0 | CQ71: 0 | CR71: 0 | CS71: 0 | CT71: 0 | CU71: 0 | CV71: 0.01882379987 | CW71: 0.03764759974
C72: Water Retic & Rising Mains | E72: Water | F72: Renewals | G72: Pipelines/network | H72: Capital Programs / Allocation | J72: Straight line | K72: 2027-28 | L72: 70 | M72: 70 | X72: 2.077 | AV72: 0 | AW72: 0 | AX72: 0 | AY72: 0 | AZ72: 0 | BA72: 0 | BB72: 0 | BC72: 0 | BD72: 0 | BE72: 2.077 | BG72: 0 | BH72: 0 | BI72: 0 | BJ72: 0 | BK72: 0 | BL72: 0 | BM72: 0 | BN72: 0 | BO72: 0 | BP72: 0.01483571429 | BR72: =+IF($K72="Ongoing",AV72,IF(RIGHT($K72,2)=RIGHT(BR$39,2),SUM($AV72:AV72),0)+IF(RIGHT(BR$39,2)>RIGHT($K72,2),AV72,0)) -> 0 | BS72: =+IF($K72="Ongoing",AW72,IF(RIGHT($K72,2)=RIGHT(BS$39,2),SUM($AV72:AW72),0)+IF(RIGHT(BS$39,2)>RIGHT($K72,2),AW72,0)) -> 0 | BT72: =+IF($K72="Ongoing",AX72,IF(RIGHT($K72,2)=RIGHT(BT$39,2),SUM($AV72:AX72),0)+IF(RIGHT(BT$39,2)>RIGHT($K72,2),AX72,0)) -> 0 | BU72: =+IF($K72="Ongoing",AY72,IF(RIGHT($K72,2)=RIGHT(BU$39,2),SUM($AV72:AY72),0)+IF(RIGHT(BU$39,2)>RIGHT($K72,2),AY72,0)) -> 0 | BV72: =+IF($K72="Ongoing",AZ72,IF(RIGHT($K72,2)=RIGHT(BV$39,2),SUM($AV72:AZ72),0)+IF(RIGHT(BV$39,2)>RIGHT($K72,2),AZ72,0)) -> 0 | BW72: =+IF($K72="Ongoing",BA72,IF(RIGHT($K72,2)=RIGHT(BW$39,2),SUM($AV72:BA72),0)+IF(RIGHT(BW$39,2)>RIGHT($K72,2),BA72,0)) -> 0 | BX72: =+IF($K72="Ongoing",BB72,IF(RIGHT($K72,2)=RIGHT(BX$39,2),SUM($AV72:BB72),0)+IF(RIGHT(BX$39,2)>RIGHT($K72,2),BB72,0)) -> 0 | BY72: =+IF($K72="Ongoing",BC72,IF(RIGHT($K72,2)=RIGHT(BY$39,2),SUM($AV72:BC72),0)+IF(RIGHT(BY$39,2)>RIGHT($K72,2),BC72,0)) -> 0 | BZ72: =+IF($K72="Ongoing",BD72,IF(RIGHT($K72,2)=RIGHT(BZ$39,2),SUM($AV72:BD72),0)+IF(RIGHT(BZ$39,2)>RIGHT($K72,2),BD72,0)) -> 0 | CA72: =+IF($K72="Ongoing",BE72,IF(RIGHT($K72,2)=RIGHT(CA$39,2),SUM($AV72:BE72),0)+IF(RIGHT(CA$39,2)>RIGHT($K72,2),BE72,0)) -> 2.077 | CC72: =+O72*KeyAssumptionsPriceControl_FO!X$15 -> 0 | CD72: =+P72*KeyAssumptionsPriceControl_FO!Y$15 -> 0 | CE72: =+Q72*KeyAssumptionsPriceControl_FO!Z$15 -> 0 | CF72: =+R72*KeyAssumptionsPriceControl_FO!AA$15 -> 0 | CG72: =+S72*KeyAssumptionsPriceControl_FO!AB$15 -> 0 | CH72: =+T72*KeyAssumptionsPriceControl_FO!AC$15 -> 0 | CI72: =+U72*KeyAssumptionsPriceControl_FO!AD$15 -> 0 | CJ72: =+V72*KeyAssumptionsPriceControl_FO!AE$15 -> 0 | CK72: =+W72*KeyAssumptionsPriceControl_FO!AF$15 -> 0 | CL72: =+X72*KeyAssumptionsPriceControl_FO!AG$15 -> 2.607310981 | CN72: 0 | CO72: 0 | CP72: 0 | CQ72: 0 | CR72: 0 | CS72: 0 | CT72: 0 | CU72: 0 | CV72: 0 | CW72: 0.01862364986
C73: Sewage PS and Outfall Pipelines & PS | E73: Sewerage | F73: Renewals | G73: Pipelines/network | H73: Capital Programs / Allocation | J73: Straight line | K73: 2018-19 | L73: 50 | M73: 50 | O73: 0.354653 | AV73: 0.354653 | AW73: 0 | AX73: 0 | AY73: 0 | AZ73: 0 | BA73: 0 | BB73: 0 | BC73: 0 | BD73: 0 | BE73: 0 | BG73: 0.00354653 | BH73: 0.00709306 | BI73: 0.00709306 | BJ73: 0.00709306 | BK73: 0.00709306 | BL73: 0.00709306 | BM73: 0.00709306 | BN73: 0.00709306 | BO73: 0.00709306 | BP73: 0.00709306 | BR73: =+IF($K73="Ongoing",AV73,IF(RIGHT($K73,2)=RIGHT(BR$39,2),SUM($AV73:AV73),0)+IF(RIGHT(BR$39,2)>RIGHT($K73,2),AV73,0)) -> 0.354653 | BS73: =+IF($K73="Ongoing",AW73,IF(RIGHT($K73,2)=RIGHT(BS$39,2),SUM($AV73:AW73),0)+IF(RIGHT(BS$39,2)>RIGHT($K73,2),AW73,0)) -> 0 | BT73: =+IF($K73="Ongoing",AX73,IF(RIGHT($K73,2)=RIGHT(BT$39,2),SUM($AV73:AX73),0)+IF(RIGHT(BT$39,2)>RIGHT($K73,2),AX73,0)) -> 0 | BU73: =+IF($K73="Ongoing",AY73,IF(RIGHT($K73,2)=RIGHT(BU$39,2),SUM($AV73:AY73),0)+IF(RIGHT(BU$39,2)>RIGHT($K73,2),AY73,0)) -> 0 | BV73: =+IF($K73="Ongoing",AZ73,IF(RIGHT($K73,2)=RIGHT(BV$39,2),SUM($AV73:AZ73),0)+IF(RIGHT(BV$39,2)>RIGHT($K73,2),AZ73,0)) -> 0 | BW73: =+IF($K73="Ongoing",BA73,IF(RIGHT($K73,2)=RIGHT(BW$39,2),SUM($AV73:BA73),0)+IF(RIGHT(BW$39,2)>RIGHT($K73,2),BA73,0)) -> 0 | BX73: =+IF($K73="Ongoing",BB73,IF(RIGHT($K73,2)=RIGHT(BX$39,2),SUM($AV73:BB73),0)+IF(RIGHT(BX$39,2)>RIGHT($K73,2),BB73,0)) -> 0 | BY73: =+IF($K73="Ongoing",BC73,IF(RIGHT($K73,2)=RIGHT(BY$39,2),SUM($AV73:BC73),0)+IF(RIGHT(BY$39,2)>RIGHT($K73,2),BC73,0)) -> 0 | BZ73: =+IF($K73="Ongoing",BD73,IF(RIGHT($K73,2)=RIGHT(BZ$39,2),SUM($AV73:BD73),0)+IF(RIGHT(BZ$39,2)>RIGHT($K73,2),BD73,0)) -> 0 | CA73: =+IF($K73="Ongoing",BE73,IF(RIGHT($K73,2)=RIGHT(CA$39,2),SUM($AV73:BE73),0)+IF(RIGHT(CA$39,2)>RIGHT($K73,2),BE73,0)) -> 0 | CC73: =+O73*KeyAssumptionsPriceControl_FO!X$15 -> 0.362810019 | CD73: =+P73*KeyAssumptionsPriceControl_FO!Y$15 -> 0 | CE73: =+Q73*KeyAssumptionsPriceControl_FO!Z$15 -> 0 | CF73: =+R73*KeyAssumptionsPriceControl_FO!AA$15 -> 0 | CG73: =+S73*KeyAssumptionsPriceControl_FO!AB$15 -> 0 | CH73: =+T73*KeyAssumptionsPriceControl_FO!AC$15 -> 0 | CI73: =+U73*KeyAssumptionsPriceControl_FO!AD$15 -> 0 | CJ73: =+V73*KeyAssumptionsPriceControl_FO!AE$15 -> 0 | CK73: =+W73*KeyAssumptionsPriceControl_FO!AF$15 -> 0 | CL73: =+X73*KeyAssumptionsPriceControl_FO!AG$15 -> 0 | CN73: 0.00362810019 | CO73: 0.00725620038 | CP73: 0.00725620038 | CQ73: 0.00725620038 | CR73: 0.00725620038 | CS73: 0.00725620038 | CT73: 0.00725620038 | CU73: 0.00725620038 | CV73: 0.00725620038 | CW73: 0.00725620038
C74: Sewage PS and Outfall Pipelines & PS | E74: Sewerage | F74: Renewals | G74: Pipelines/network | H74: Capital Programs / Allocation | J74: Straight line | K74: 2019-20 | L74: 50 | M74: 50 | P74: 0.915472 | AV74: 0 | AW74: 0.915472 | AX74: 0 | AY74: 0 | AZ74: 0 | BA74: 0 | BB74: 0 | BC74: 0 | BD74: 0 | BE74: 0 | BG74: 0 | BH74: 0.00915472 | BI74: 0.01830944 | BJ74: 0.01830944 | BK74: 0.01830944 | BL74: 0.01830944 | BM74: 0.01830944 | BN74: 0.01830944 | BO74: 0.01830944 | BP74: 0.01830944 | BR74: =+IF($K74="Ongoing",AV74,IF(RIGHT($K74,2)=RIGHT(BR$39,2),SUM($AV74:AV74),0)+IF(RIGHT(BR$39,2)>RIGHT($K74,2),AV74,0)) -> 0 | BS74: =+IF($K74="Ongoing",AW74,IF(RIGHT($K74,2)=RIGHT(BS$39,2),SUM($AV74:AW74),0)+IF(RIGHT(BS$39,2)>RIGHT($K74,2),AW74,0)) -> 0.915472 | BT74: =+IF($K74="Ongoing",AX74,IF(RIGHT($K74,2)=RIGHT(BT$39,2),SUM($AV74:AX74),0)+IF(RIGHT(BT$39,2)>RIGHT($K74,2),AX74,0)) -> 0 | BU74: =+IF($K74="Ongoing",AY74,IF(RIGHT($K74,2)=RIGHT(BU$39,2),SUM($AV74:AY74),0)+IF(RIGHT(BU$39,2)>RIGHT($K74,2),AY74,0)) -> 0 | BV74: =+IF($K74="Ongoing",AZ74,IF(RIGHT($K74,2)=RIGHT(BV$39,2),SUM($AV74:AZ74),0)+IF(RIGHT(BV$39,2)>RIGHT($K74,2),AZ74,0)) -> 0 | BW74: =+IF($K74="Ongoing",BA74,IF(RIGHT($K74,2)=RIGHT(BW$39,2),SUM($AV74:BA74),0)+IF(RIGHT(BW$39,2)>RIGHT($K74,2),BA74,0)) -> 0 | BX74: =+IF($K74="Ongoing",BB74,IF(RIGHT($K74,2)=RIGHT(BX$39,2),SUM($AV74:BB74),0)+IF(RIGHT(BX$39,2)>RIGHT($K74,2),BB74,0)) -> 0 | BY74: =+IF($K74="Ongoing",BC74,IF(RIGHT($K74,2)=RIGHT(BY$39,2),SUM($AV74:BC74),0)+IF(RIGHT(BY$39,2)>RIGHT($K74,2),BC74,0)) -> 0 | BZ74: =+IF($K74="Ongoing",BD74,IF(RIGHT($K74,2)=RIGHT(BZ$39,2),SUM($AV74:BD74),0)+IF(RIGHT(BZ$39,2)>RIGHT($K74,2),BD74,0)) -> 0 | CA74: =+IF($K74="Ongoing",BE74,IF(RIGHT($K74,2)=RIGHT(CA$39,2),SUM($AV74:BE74),0)+IF(RIGHT(CA$39,2)>RIGHT($K74,2),BE74,0)) -> 0 | CC74: =+O74*KeyAssumptionsPriceControl_FO!X$15 -> 0 | CD74: =+P74*KeyAssumptionsPriceControl_FO!Y$15 -> 0.9580679967 | CE74: =+Q74*KeyAssumptionsPriceControl_FO!Z$15 -> 0 | CF74: =+R74*KeyAssumptionsPriceControl_FO!AA$15 -> 0 | CG74: =+S74*KeyAssumptionsPriceControl_FO!AB$15 -> 0 | CH74: =+T74*KeyAssumptionsPriceControl_FO!AC$15 -> 0 | CI74: =+U74*KeyAssumptionsPriceControl_FO!AD$15 -> 0 | CJ74: =+V74*KeyAssumptionsPriceControl_FO!AE$15 -> 0 | CK74: =+W74*KeyAssumptionsPriceControl_FO!AF$15 -> 0 | CL74: =+X74*KeyAssumptionsPriceControl_FO!AG$15 -> 0 | CN74: 0 | CO74: 0.009580679967 | CP74: 0.01916135993 | CQ74: 0.01916135993 | CR74: 0.01916135993 | CS74: 0.01916135993 | CT74: 0.01916135993 | CU74: 0.01916135993 | CV74: 0.01916135993 | CW74: 0.01916135993
C75: Sewage PS and Outfall Pipelines & PS | E75: Sewerage | F75: Renewals | G75: Pipelines/network | H75: Capital Programs / Allocation | J75: Straight line | K75: 2020-21 | L75: 50 | M75: 50 | Q75: 0.569549 | AV75: 0 | AW75: 0 | AX75: 0.569549 | AY75: 0 | AZ75: 0 | BA75: 0 | BB75: 0 | BC75: 0 | BD75: 0 | BE75: 0 | BG75: 0 | BH75: 0 | BI75: 0.00569549 | BJ75: 0.01139098 | BK75: 0.01139098 | BL75: 0.01139098 | BM75: 0.01139098 | BN75: 0.01139098 | BO75: 0.01139098 | BP75: 0.01139098 | BR75: =+IF($K75="Ongoing",AV75,IF(RIGHT($K75,2)=RIGHT(BR$39,2),SUM($AV75:AV75),0)+IF(RIGHT(BR$39,2)>RIGHT($K75,2),AV75,0)) -> 0 | BS75: =+IF($K75="Ongoing",AW75,IF(RIGHT($K75,2)=RIGHT(BS$39,2),SUM($AV75:AW75),0)+IF(RIGHT(BS$39,2)>RIGHT($K75,2),AW75,0)) -> 0 | BT75: =+IF($K75="Ongoing",AX75,IF(RIGHT($K75,2)=RIGHT(BT$39,2),SUM($AV75:AX75),0)+IF(RIGHT(BT$39,2)>RIGHT($K75,2),AX75,0)) -> 0.569549 | BU75: =+IF($K75="Ongoing",AY75,IF(RIGHT($K75,2)=RIGHT(BU$39,2),SUM($AV75:AY75),0)+IF(RIGHT(BU$39,2)>RIGHT($K75,2),AY75,0)) -> 0 | BV75: =+IF($K75="Ongoing",AZ75,IF(RIGHT($K75,2)=RIGHT(BV$39,2),SUM($AV75:AZ75),0)+IF(RIGHT(BV$39,2)>RIGHT($K75,2),AZ75,0)) -> 0 | BW75: =+IF($K75="Ongoing",BA75,IF(RIGHT($K75,2)=RIGHT(BW$39,2),SUM($AV75:BA75),0)+IF(RIGHT(BW$39,2)>RIGHT($K75,2),BA75,0)) -> 0 | BX75: =+IF($K75="Ongoing",BB75,IF(RIGHT($K75,2)=RIGHT(BX$39,2),SUM($AV75:BB75),0)+IF(RIGHT(BX$39,2)>RIGHT($K75,2),BB75,0)) -> 0 | BY75: =+IF($K75="Ongoing",BC75,IF(RIGHT($K75,2)=RIGHT(BY$39,2),SUM($AV75:BC75),0)+IF(RIGHT(BY$39,2)>RIGHT($K75,2),BC75,0)) -> 0 | BZ75: =+IF($K75="Ongoing",BD75,IF(RIGHT($K75,2)=RIGHT(BZ$39,2),SUM($AV75:BD75),0)+IF(RIGHT(BZ$39,2)>RIGHT($K75,2),BD75,0)) -> 0 | CA75: =+IF($K75="Ongoing",BE75,IF(RIGHT($K75,2)=RIGHT(CA$39,2),SUM($AV75:BE75),0)+IF(RIGHT(CA$39,2)>RIGHT($K75,2),BE75,0)) -> 0 | CC75: =+O75*KeyAssumptionsPriceControl_FO!X$15 -> 0 | CD75: =+P75*KeyAssumptionsPriceControl_FO!Y$15 -> 0 | CE75: =+Q75*KeyAssumptionsPriceControl_FO!Z$15 -> 0.609758685 | CF75: =+R75*KeyAssumptionsPriceControl_FO!AA$15 -> 0 | CG75: =+S75*KeyAssumptionsPriceControl_FO!AB$15 -> 0 | CH75: =+T75*KeyAssumptionsPriceControl_FO!AC$15 -> 0 | CI75: =+U75*KeyAssumptionsPriceControl_FO!AD$15 -> 0 | CJ75: =+V75*KeyAssumptionsPriceControl_FO!AE$15 -> 0 | CK75: =+W75*KeyAssumptionsPriceControl_FO!AF$15 -> 0 | CL75: =+X75*KeyAssumptionsPriceControl_FO!AG$15 -> 0 | CN75: 0 | CO75: 0 | CP75: 0.00609758685 | CQ75: 0.0121951737 | CR75: 0.0121951737 | CS75: 0.0121951737 | CT75: 0.0121951737 | CU75: 0.0121951737 | CV75: 0.0121951737 | CW75: 0.0121951737
C76: Sewage PS and Outfall Pipelines & PS | E76: Sewerage | F76: Renewals | G76: Pipelines/network | H76: Capital Programs / Allocation | J76: Straight line | K76: 2021-22 | L76: 50 | M76: 50 | R76: 0.674233 | AV76: 0 | AW76: 0 | AX76: 0 | AY76: 0.674233 | AZ76: 0 | BA76: 0 | BB76: 0 | BC76: 0 | BD76: 0 | BE76: 0 | BG76: 0 | BH76: 0 | BI76: 0 | BJ76: 0.00674233 | BK76: 0.01348466 | BL76: 0.01348466 | BM76: 0.01348466 | BN76: 0.01348466 | BO76: 0.01348466 | BP76: 0.01348466 | BR76: =+IF($K76="Ongoing",AV76,IF(RIGHT($K76,2)=RIGHT(BR$39,2),SUM($AV76:AV76),0)+IF(RIGHT(BR$39,2)>RIGHT($K76,2),AV76,0)) -> 0 | BS76: =+IF($K76="Ongoing",AW76,IF(RIGHT($K76,2)=RIGHT(BS$39,2),SUM($AV76:AW76),0)+IF(RIGHT(BS$39,2)>RIGHT($K76,2),AW76,0)) -> 0 | BT76: =+IF($K76="Ongoing",AX76,IF(RIGHT($K76,2)=RIGHT(BT$39,2),SUM($AV76:AX76),0)+IF(RIGHT(BT$39,2)>RIGHT($K76,2),AX76,0)) -> 0 | BU76: =+IF($K76="Ongoing",AY76,IF(RIGHT($K76,2)=RIGHT(BU$39,2),SUM($AV76:AY76),0)+IF(RIGHT(BU$39,2)>RIGHT($K76,2),AY76,0)) -> 0.674233 | BV76: =+IF($K76="Ongoing",AZ76,IF(RIGHT($K76,2)=RIGHT(BV$39,2),SUM($AV76:AZ76),0)+IF(RIGHT(BV$39,2)>RIGHT($K76,2),AZ76,0)) -> 0 | BW76: =+IF($K76="Ongoing",BA76,IF(RIGHT($K76,2)=RIGHT(BW$39,2),SUM($AV76:BA76),0)+IF(RIGHT(BW$39,2)>RIGHT($K76,2),BA76,0)) -> 0 | BX76: =+IF($K76="Ongoing",BB76,IF(RIGHT($K76,2)=RIGHT(BX$39,2),SUM($AV76:BB76),0)+IF(RIGHT(BX$39,2)>RIGHT($K76,2),BB76,0)) -> 0 | BY76: =+IF($K76="Ongoing",BC76,IF(RIGHT($K76,2)=RIGHT(BY$39,2),SUM($AV76:BC76),0)+IF(RIGHT(BY$39,2)>RIGHT($K76,2),BC76,0)) -> 0 | BZ76: =+IF($K76="Ongoing",BD76,IF(RIGHT($K76,2)=RIGHT(BZ$39,2),SUM($AV76:BD76),0)+IF(RIGHT(BZ$39,2)>RIGHT($K76,2),BD76,0)) -> 0 | CA76: =+IF($K76="Ongoing",BE76,IF(RIGHT($K76,2)=RIGHT(CA$39,2),SUM($AV76:BE76),0)+IF(RIGHT(CA$39,2)>RIGHT($K76,2),BE76,0)) -> 0 | CC76: =+O76*KeyAssumptionsPriceControl_FO!X$15 -> 0 | CD76: =+P76*KeyAssumptionsPriceControl_FO!Y$15 -> 0 | CE76: =+Q76*KeyAssumptionsPriceControl_FO!Z$15 -> 0 | CF76: =+R76*KeyAssumptionsPriceControl_FO!AA$15 -> 0.7384354538 | CG76: =+S76*KeyAssumptionsPriceControl_FO!AB$15 -> 0 | CH76: =+T76*KeyAssumptionsPriceControl_FO!AC$15 -> 0 | CI76: =+U76*KeyAssumptionsPriceControl_FO!AD$15 -> 0 | CJ76: =+V76*KeyAssumptionsPriceControl_FO!AE$15 -> 0 | CK76: =+W76*KeyAssumptionsPriceControl_FO!AF$15 -> 0 | CL76: =+X76*KeyAssumptionsPriceControl_FO!AG$15 -> 0 | CN76: 0 | CO76: 0 | CP76: 0 | CQ76: 0.007384354538 | CR76: 0.01476870908 | CS76: 0.01476870908 | CT76: 0.01476870908 | CU76: 0.01476870908 | CV76: 0.01476870908 | CW76: 0.01476870908
C77: Sewage PS and Outfall Pipelines & PS | E77: Sewerage | F77: Renewals | G77: Pipelines/network | H77: Capital Programs / Allocation | J77: Straight line | K77: 2022-23 | L77: 50 | M77: 50 | S77: 1.33025 | AV77: 0 | AW77: 0 | AX77: 0 | AY77: 0 | AZ77: 1.33025 | BA77: 0 | BB77: 0 | BC77: 0 | BD77: 0 | BE77: 0 | BG77: 0 | BH77: 0 | BI77: 0 | BJ77: 0 | BK77: 0.0133025 | BL77: 0.026605 | BM77: 0.026605 | BN77: 0.026605 | BO77: 0.026605 | BP77: 0.026605 | BR77: =+IF($K77="Ongoing",AV77,IF(RIGHT($K77,2)=RIGHT(BR$39,2),SUM($AV77:AV77),0)+IF(RIGHT(BR$39,2)>RIGHT($K77,2),AV77,0)) -> 0 | BS77: =+IF($K77="Ongoing",AW77,IF(RIGHT($K77,2)=RIGHT(BS$39,2),SUM($AV77:AW77),0)+IF(RIGHT(BS$39,2)>RIGHT($K77,2),AW77,0)) -> 0 | BT77: =+IF($K77="Ongoing",AX77,IF(RIGHT($K77,2)=RIGHT(BT$39,2),SUM($AV77:AX77),0)+IF(RIGHT(BT$39,2)>RIGHT($K77,2),AX77,0)) -> 0 | BU77: =+IF($K77="Ongoing",AY77,IF(RIGHT($K77,2)=RIGHT(BU$39,2),SUM($AV77:AY77),0)+IF(RIGHT(BU$39,2)>RIGHT($K77,2),AY77,0)) -> 0 | BV77: =+IF($K77="Ongoing",AZ77,IF(RIGHT($K77,2)=RIGHT(BV$39,2),SUM($AV77:AZ77),0)+IF(RIGHT(BV$39,2)>RIGHT($K77,2),AZ77,0)) -> 1.33025 | BW77: =+IF($K77="Ongoing",BA77,IF(RIGHT($K77,2)=RIGHT(BW$39,2),SUM($AV77:BA77),0)+IF(RIGHT(BW$39,2)>RIGHT($K77,2),BA77,0)) -> 0 | BX77: =+IF($K77="Ongoing",BB77,IF(RIGHT($K77,2)=RIGHT(BX$39,2),SUM($AV77:BB77),0)+IF(RIGHT(BX$39,2)>RIGHT($K77,2),BB77,0)) -> 0 | BY77: =+IF($K77="Ongoing",BC77,IF(RIGHT($K77,2)=RIGHT(BY$39,2),SUM($AV77:BC77),0)+IF(RIGHT(BY$39,2)>RIGHT($K77,2),BC77,0)) -> 0 | BZ77: =+IF($K77="Ongoing",BD77,IF(RIGHT($K77,2)=RIGHT(BZ$39,2),SUM($AV77:BD77),0)+IF(RIGHT(BZ$39,2)>RIGHT($K77,2),BD77,0)) -> 0 | CA77: =+IF($K77="Ongoing",BE77,IF(RIGHT($K77,2)=RIGHT(CA$39,2),SUM($AV77:BE77),0)+IF(RIGHT(CA$39,2)>RIGHT($K77,2),BE77,0)) -> 0 | CC77: =+O77*KeyAssumptionsPriceControl_FO!X$15 -> 0 | CD77: =+P77*KeyAssumptionsPriceControl_FO!Y$15 -> 0 | CE77: =+Q77*KeyAssumptionsPriceControl_FO!Z$15 -> 0 | CF77: =+R77*KeyAssumptionsPriceControl_FO!AA$15 -> 0 | CG77: =+S77*KeyAssumptionsPriceControl_FO!AB$15 -> 1.490429494 | CH77: =+T77*KeyAssumptionsPriceControl_FO!AC$15 -> 0 | CI77: =+U77*KeyAssumptionsPriceControl_FO!AD$15 -> 0 | CJ77: =+V77*KeyAssumptionsPriceControl_FO!AE$15 -> 0 | CK77: =+W77*KeyAssumptionsPriceControl_FO!AF$15 -> 0 | CL77: =+X77*KeyAssumptionsPriceControl_FO!AG$15 -> 0 | CN77: 0 | CO77: 0 | CP77: 0 | CQ77: 0 | CR77: 0.01490429494 | CS77: 0.02980858988 | CT77: 0.02980858988 | CU77: 0.02980858988 | CV77: 0.02980858988 | CW77: 0.02980858988
C78: Sewage PS and Outfall Pipelines & PS | E78: Sewerage | F78: Renewals | G78: Pipelines/network | H78: Capital Programs / Allocation | J78: Straight line | K78: 2023-24 | L78: 50 | M78: 50 | T78: 2.561953 | AV78: 0 | AW78: 0 | AX78: 0 | AY78: 0 | AZ78: 0 | BA78: 2.561953 | BB78: 0 | BC78: 0 | BD78: 0 | BE78: 0 | BG78: 0 | BH78: 0 | BI78: 0 | BJ78: 0 | BK78: 0 | BL78: 0.02561953 | BM78: 0.05123906 | BN78: 0.05123906 | BO78: 0.05123906 | BP78: 0.05123906 | BR78: =+IF($K78="Ongoing",AV78,IF(RIGHT($K78,2)=RIGHT(BR$39,2),SUM($AV78:AV78),0)+IF(RIGHT(BR$39,2)>RIGHT($K78,2),AV78,0)) -> 0 | BS78: =+IF($K78="Ongoing",AW78,IF(RIGHT($K78,2)=RIGHT(BS$39,2),SUM($AV78:AW78),0)+IF(RIGHT(BS$39,2)>RIGHT($K78,2),AW78,0)) -> 0 | BT78: =+IF($K78="Ongoing",AX78,IF(RIGHT($K78,2)=RIGHT(BT$39,2),SUM($AV78:AX78),0)+IF(RIGHT(BT$39,2)>RIGHT($K78,2),AX78,0)) -> 0 | BU78: =+IF($K78="Ongoing",AY78,IF(RIGHT($K78,2)=RIGHT(BU$39,2),SUM($AV78:AY78),0)+IF(RIGHT(BU$39,2)>RIGHT($K78,2),AY78,0)) -> 0 | BV78: =+IF($K78="Ongoing",AZ78,IF(RIGHT($K78,2)=RIGHT(BV$39,2),SUM($AV78:AZ78),0)+IF(RIGHT(BV$39,2)>RIGHT($K78,2),AZ78,0)) -> 0 | BW78: =+IF($K78="Ongoing",BA78,IF(RIGHT($K78,2)=RIGHT(BW$39,2),SUM($AV78:BA78),0)+IF(RIGHT(BW$39,2)>RIGHT($K78,2),BA78,0)) -> 2.561953 | BX78: =+IF($K78="Ongoing",BB78,IF(RIGHT($K78,2)=RIGHT(BX$39,2),SUM($AV78:BB78),0)+IF(RIGHT(BX$39,2)>RIGHT($K78,2),BB78,0)) -> 0 | BY78: =+IF($K78="Ongoing",BC78,IF(RIGHT($K78,2)=RIGHT(BY$39,2),SUM($AV78:BC78),0)+IF(RIGHT(BY$39,2)>RIGHT($K78,2),BC78,0)) -> 0 | BZ78: =+IF($K78="Ongoing",BD78,IF(RIGHT($K78,2)=RIGHT(BZ$39,2),SUM($AV78:BD78),0)+IF(RIGHT(BZ$39,2)>RIGHT($K78,2),BD78,0)) -> 0 | CA78: =+IF($K78="Ongoing",BE78,IF(RIGHT($K78,2)=RIGHT(CA$39,2),SUM($AV78:BE78),0)+IF(RIGHT(CA$39,2)>RIGHT($K78,2),BE78,0)) -> 0 | CC78: =+O78*KeyAssumptionsPriceControl_FO!X$15 -> 0 | CD78: =+P78*KeyAssumptionsPriceControl_FO!Y$15 -> 0 | CE78: =+Q78*KeyAssumptionsPriceControl_FO!Z$15 -> 0 | CF78: =+R78*KeyAssumptionsPriceControl_FO!AA$15 -> 0 | CG78: =+S78*KeyAssumptionsPriceControl_FO!AB$15 -> 0 | CH78: =+T78*KeyAssumptionsPriceControl_FO!AC$15 -> 2.93646589 | CI78: =+U78*KeyAssumptionsPriceControl_FO!AD$15 -> 0 | CJ78: =+V78*KeyAssumptionsPriceControl_FO!AE$15 -> 0 | CK78: =+W78*KeyAssumptionsPriceControl_FO!AF$15 -> 0 | CL78: =+X78*KeyAssumptionsPriceControl_FO!AG$15 -> 0 | CN78: 0 | CO78: 0 | CP78: 0 | CQ78: 0 | CR78: 0 | CS78: 0.0293646589 | CT78: 0.0587293178 | CU78: 0.0587293178 | CV78: 0.0587293178 | CW78: 0.0587293178
C79: Sewage PS and Outfall Pipelines & PS | E79: Sewerage | F79: Renewals | G79: Pipelines/network | H79: Capital Programs / Allocation | J79: Straight line | K79: 2024-25 | L79: 50 | M79: 50 | U79: 4.988561 | AV79: 0 | AW79: 0 | AX79: 0 | AY79: 0 | AZ79: 0 | BA79: 0 | BB79: 4.988561 | BC79: 0 | BD79: 0 | BE79: 0 | BG79: 0 | BH79: 0 | BI79: 0 | BJ79: 0 | BK79: 0 | BL79: 0 | BM79: 0.04988561 | BN79: 0.09977122 | BO79: 0.09977122 | BP79: 0.09977122 | BR79: =+IF($K79="Ongoing",AV79,IF(RIGHT($K79,2)=RIGHT(BR$39,2),SUM($AV79:AV79),0)+IF(RIGHT(BR$39,2)>RIGHT($K79,2),AV79,0)) -> 0 | BS79: =+IF($K79="Ongoing",AW79,IF(RIGHT($K79,2)=RIGHT(BS$39,2),SUM($AV79:AW79),0)+IF(RIGHT(BS$39,2)>RIGHT($K79,2),AW79,0)) -> 0 | BT79: =+IF($K79="Ongoing",AX79,IF(RIGHT($K79,2)=RIGHT(BT$39,2),SUM($AV79:AX79),0)+IF(RIGHT(BT$39,2)>RIGHT($K79,2),AX79,0)) -> 0 | BU79: =+IF($K79="Ongoing",AY79,IF(RIGHT($K79,2)=RIGHT(BU$39,2),SUM($AV79:AY79),0)+IF(RIGHT(BU$39,2)>RIGHT($K79,2),AY79,0)) -> 0 | BV79: =+IF($K79="Ongoing",AZ79,IF(RIGHT($K79,2)=RIGHT(BV$39,2),SUM($AV79:AZ79),0)+IF(RIGHT(BV$39,2)>RIGHT($K79,2),AZ79,0)) -> 0 | BW79: =+IF($K79="Ongoing",BA79,IF(RIGHT($K79,2)=RIGHT(BW$39,2),SUM($AV79:BA79),0)+IF(RIGHT(BW$39,2)>RIGHT($K79,2),BA79,0)) -> 0 | BX79: =+IF($K79="Ongoing",BB79,IF(RIGHT($K79,2)=RIGHT(BX$39,2),SUM($AV79:BB79),0)+IF(RIGHT(BX$39,2)>RIGHT($K79,2),BB79,0)) -> 4.988561 | BY79: =+IF($K79="Ongoing",BC79,IF(RIGHT($K79,2)=RIGHT(BY$39,2),SUM($AV79:BC79),0)+IF(RIGHT(BY$39,2)>RIGHT($K79,2),BC79,0)) -> 0 | BZ79: =+IF($K79="Ongoing",BD79,IF(RIGHT($K79,2)=RIGHT(BZ$39,2),SUM($AV79:BD79),0)+IF(RIGHT(BZ$39,2)>RIGHT($K79,2),BD79,0)) -> 0 | CA79: =+IF($K79="Ongoing",BE79,IF(RIGHT($K79,2)=RIGHT(CA$39,2),SUM($AV79:BE79),0)+IF(RIGHT(CA$39,2)>RIGHT($K79,2),BE79,0)) -> 0 | CC79: =+O79*KeyAssumptionsPriceControl_FO!X$15 -> 0 | CD79: =+P79*KeyAssumptionsPriceControl_FO!Y$15 -> 0 | CE79: =+Q79*KeyAssumptionsPriceControl_FO!Z$15 -> 0 | CF79: =+R79*KeyAssumptionsPriceControl_FO!AA$15 -> 0 | CG79: =+S79*KeyAssumptionsPriceControl_FO!AB$15 -> 0 | CH79: =+T79*KeyAssumptionsPriceControl_FO!AC$15 -> 0 | CI79: =+U79*KeyAssumptionsPriceControl_FO!AD$15 -> 5.849311139 | CJ79: =+V79*KeyAssumptionsPriceControl_FO!AE$15 -> 0 | CK79: =+W79*KeyAssumptionsPriceControl_FO!AF$15 -> 0 | CL79: =+X79*KeyAssumptionsPriceControl_FO!AG$15 -> 0 | CN79: 0 | CO79: 0 | CP79: 0 | CQ79: 0 | CR79: 0 | CS79: 0 | CT79: 0.05849311139 | CU79: 0.1169862228 | CV79: 0.1169862228 | CW79: 0.1169862228
C80: Sewage PS and Outfall Pipelines & PS | E80: Sewerage | F80: Renewals | G80: Pipelines/network | H80: Capital Programs / Allocation | J80: Straight line | K80: 2025-26 | L80: 50 | M80: 50 | V80: 2.780336 | AV80: 0 | AW80: 0 | AX80: 0 | AY80: 0 | AZ80: 0 | BA80: 0 | BB80: 0 | BC80: 2.780336 | BD80: 0 | BE80: 0 | BG80: 0 | BH80: 0 | BI80: 0 | BJ80: 0 | BK80: 0 | BL80: 0 | BM80: 0 | BN80: 0.02780336 | BO80: 0.05560672 | BP80: 0.05560672 | BR80: =+IF($K80="Ongoing",AV80,IF(RIGHT($K80,2)=RIGHT(BR$39,2),SUM($AV80:AV80),0)+IF(RIGHT(BR$39,2)>RIGHT($K80,2),AV80,0)) -> 0 | BS80: =+IF($K80="Ongoing",AW80,IF(RIGHT($K80,2)=RIGHT(BS$39,2),SUM($AV80:AW80),0)+IF(RIGHT(BS$39,2)>RIGHT($K80,2),AW80,0)) -> 0 | BT80: =+IF($K80="Ongoing",AX80,IF(RIGHT($K80,2)=RIGHT(BT$39,2),SUM($AV80:AX80),0)+IF(RIGHT(BT$39,2)>RIGHT($K80,2),AX80,0)) -> 0 | BU80: =+IF($K80="Ongoing",AY80,IF(RIGHT($K80,2)=RIGHT(BU$39,2),SUM($AV80:AY80),0)+IF(RIGHT(BU$39,2)>RIGHT($K80,2),AY80,0)) -> 0 | BV80: =+IF($K80="Ongoing",AZ80,IF(RIGHT($K80,2)=RIGHT(BV$39,2),SUM($AV80:AZ80),0)+IF(RIGHT(BV$39,2)>RIGHT($K80,2),AZ80,0)) -> 0 | BW80: =+IF($K80="Ongoing",BA80,IF(RIGHT($K80,2)=RIGHT(BW$39,2),SUM($AV80:BA80),0)+IF(RIGHT(BW$39,2)>RIGHT($K80,2),BA80,0)) -> 0 | BX80: =+IF($K80="Ongoing",BB80,IF(RIGHT($K80,2)=RIGHT(BX$39,2),SUM($AV80:BB80),0)+IF(RIGHT(BX$39,2)>RIGHT($K80,2),BB80,0)) -> 0 | BY80: =+IF($K80="Ongoing",BC80,IF(RIGHT($K80,2)=RIGHT(BY$39,2),SUM($AV80:BC80),0)+IF(RIGHT(BY$39,2)>RIGHT($K80,2),BC80,0)) -> 2.780336 | BZ80: =+IF($K80="Ongoing",BD80,IF(RIGHT($K80,2)=RIGHT(BZ$39,2),SUM($AV80:BD80),0)+IF(RIGHT(BZ$39,2)>RIGHT($K80,2),BD80,0)) -> 0 | CA80: =+IF($K80="Ongoing",BE80,IF(RIGHT($K80,2)=RIGHT(CA$39,2),SUM($AV80:BE80),0)+IF(RIGHT(CA$39,2)>RIGHT($K80,2),BE80,0)) -> 0 | CC80: =+O80*KeyAssumptionsPriceControl_FO!X$15 -> 0 | CD80: =+P80*KeyAssumptionsPriceControl_FO!Y$15 -> 0 | CE80: =+Q80*KeyAssumptionsPriceControl_FO!Z$15 -> 0 | CF80: =+R80*KeyAssumptionsPriceControl_FO!AA$15 -> 0 | CG80: =+S80*KeyAssumptionsPriceControl_FO!AB$15 -> 0 | CH80: =+T80*KeyAssumptionsPriceControl_FO!AC$15 -> 0 | CI80: =+U80*KeyAssumptionsPriceControl_FO!AD$15 -> 0 | CJ80: =+V80*KeyAssumptionsPriceControl_FO!AE$15 -> 3.335050026 | CK80: =+W80*KeyAssumptionsPriceControl_FO!AF$15 -> 0 | CL80: =+X80*KeyAssumptionsPriceControl_FO!AG$15 -> 0 | CN80: 0 | CO80: 0 | CP80: 0 | CQ80: 0 | CR80: 0 | CS80: 0 | CT80: 0 | CU80: 0.03335050026 | CV80: 0.06670100051 | CW80: 0.06670100051
C81: Sewage PS and Outfall Pipelines & PS | E81: Sewerage | F81: Renewals | G81: Pipelines/network | H81: Capital Programs / Allocation | J81: Straight line | K81: 2026-27 | L81: 50 | M81: 50 | W81: 0.922049 | AV81: 0 | AW81: 0 | AX81: 0 | AY81: 0 | AZ81: 0 | BA81: 0 | BB81: 0 | BC81: 0 | BD81: 0.922049 | BE81: 0 | BG81: 0 | BH81: 0 | BI81: 0 | BJ81: 0 | BK81: 0 | BL81: 0 | BM81: 0 | BN81: 0 | BO81: 0.00922049 | BP81: 0.01844098 | BR81: =+IF($K81="Ongoing",AV81,IF(RIGHT($K81,2)=RIGHT(BR$39,2),SUM($AV81:AV81),0)+IF(RIGHT(BR$39,2)>RIGHT($K81,2),AV81,0)) -> 0 | BS81: =+IF($K81="Ongoing",AW81,IF(RIGHT($K81,2)=RIGHT(BS$39,2),SUM($AV81:AW81),0)+IF(RIGHT(BS$39,2)>RIGHT($K81,2),AW81,0)) -> 0 | BT81: =+IF($K81="Ongoing",AX81,IF(RIGHT($K81,2)=RIGHT(BT$39,2),SUM($AV81:AX81),0)+IF(RIGHT(BT$39,2)>RIGHT($K81,2),AX81,0)) -> 0 | BU81: =+IF($K81="Ongoing",AY81,IF(RIGHT($K81,2)=RIGHT(BU$39,2),SUM($AV81:AY81),0)+IF(RIGHT(BU$39,2)>RIGHT($K81,2),AY81,0)) -> 0 | BV81: =+IF($K81="Ongoing",AZ81,IF(RIGHT($K81,2)=RIGHT(BV$39,2),SUM($AV81:AZ81),0)+IF(RIGHT(BV$39,2)>RIGHT($K81,2),AZ81,0)) -> 0 | BW81: =+IF($K81="Ongoing",BA81,IF(RIGHT($K81,2)=RIGHT(BW$39,2),SUM($AV81:BA81),0)+IF(RIGHT(BW$39,2)>RIGHT($K81,2),BA81,0)) -> 0 | BX81: =+IF($K81="Ongoing",BB81,IF(RIGHT($K81,2)=RIGHT(BX$39,2),SUM($AV81:BB81),0)+IF(RIGHT(BX$39,2)>RIGHT($K81,2),BB81,0)) -> 0 | BY81: =+IF($K81="Ongoing",BC81,IF(RIGHT($K81,2)=RIGHT(BY$39,2),SUM($AV81:BC81),0)+IF(RIGHT(BY$39,2)>RIGHT($K81,2),BC81,0)) -> 0 | BZ81: =+IF($K81="Ongoing",BD81,IF(RIGHT($K81,2)=RIGHT(BZ$39,2),SUM($AV81:BD81),0)+IF(RIGHT(BZ$39,2)>RIGHT($K81,2),BD81,0)) -> 0.922049 | CA81: =+IF($K81="Ongoing",BE81,IF(RIGHT($K81,2)=RIGHT(CA$39,2),SUM($AV81:BE81),0)+IF(RIGHT(CA$39,2)>RIGHT($K81,2),BE81,0)) -> 0 | CC81: =+O81*KeyAssumptionsPriceControl_FO!X$15 -> 0 | CD81: =+P81*KeyAssumptionsPriceControl_FO!Y$15 -> 0 | CE81: =+Q81*KeyAssumptionsPriceControl_FO!Z$15 -> 0 | CF81: =+R81*KeyAssumptionsPriceControl_FO!AA$15 -> 0 | CG81: =+S81*KeyAssumptionsPriceControl_FO!AB$15 -> 0 | CH81: =+T81*KeyAssumptionsPriceControl_FO!AC$15 -> 0 | CI81: =+U81*KeyAssumptionsPriceControl_FO!AD$15 -> 0 | CJ81: =+V81*KeyAssumptionsPriceControl_FO!AE$15 -> 0 | CK81: =+W81*KeyAssumptionsPriceControl_FO!AF$15 -> 1.131448275 | CL81: =+X81*KeyAssumptionsPriceControl_FO!AG$15 -> 0 | CN81: 0 | CO81: 0 | CP81: 0 | CQ81: 0 | CR81: 0 | CS81: 0 | CT81: 0 | CU81: 0 | CV81: 0.01131448275 | CW81: 0.0226289655
C82: Sewage PS and Outfall Pipelines & PS | E82: Sewerage | F82: Renewals | G82: Pipelines/network | H82: Capital Programs / Allocation | J82: Straight line | K82: 2027-28 | L82: 50 | M82: 50 | X82: 1.867384 | AV82: 0 | AW82: =+P82-AA82-AL82 -> 0 | AX82: 0 | AY82: 0 | AZ82: 0 | BA82: 0 | BB82: 0 | BC82: 0 | BD82: 0 | BE82: 1.867384 | BG82: 0 | BH82: 0 | BI82: 0 | BJ82: 0 | BK82: 0 | BL82: 0 | BM82: 0 | BN82: 0 | BO82: 0 | BP82: 0.01867384 | BR82: =+IF($K82="Ongoing",AV82,IF(RIGHT($K82,2)=RIGHT(BR$39,2),SUM($AV82:AV82),0)+IF(RIGHT(BR$39,2)>RIGHT($K82,2),AV82,0)) -> 0 | BS82: =+IF($K82="Ongoing",AW82,IF(RIGHT($K82,2)=RIGHT(BS$39,2),SUM($AV82:AW82),0)+IF(RIGHT(BS$39,2)>RIGHT($K82,2),AW82,0)) -> 0 | BT82: =+IF($K82="Ongoing",AX82,IF(RIGHT($K82,2)=RIGHT(BT$39,2),SUM($AV82:AX82),0)+IF(RIGHT(BT$39,2)>RIGHT($K82,2),AX82,0)) -> 0 | BU82: =+IF($K82="Ongoing",AY82,IF(RIGHT($K82,2)=RIGHT(BU$39,2),SUM($AV82:AY82),0)+IF(RIGHT(BU$39,2)>RIGHT($K82,2),AY82,0)) -> 0 | BV82: =+IF($K82="Ongoing",AZ82,IF(RIGHT($K82,2)=RIGHT(BV$39,2),SUM($AV82:AZ82),0)+IF(RIGHT(BV$39,2)>RIGHT($K82,2),AZ82,0)) -> 0 | BW82: =+IF($K82="Ongoing",BA82,IF(RIGHT($K82,2)=RIGHT(BW$39,2),SUM($AV82:BA82),0)+IF(RIGHT(BW$39,2)>RIGHT($K82,2),BA82,0)) -> 0 | BX82: =+IF($K82="Ongoing",BB82,IF(RIGHT($K82,2)=RIGHT(BX$39,2),SUM($AV82:BB82),0)+IF(RIGHT(BX$39,2)>RIGHT($K82,2),BB82,0)) -> 0 | BY82: =+IF($K82="Ongoing",BC82,IF(RIGHT($K82,2)=RIGHT(BY$39,2),SUM($AV82:BC82),0)+IF(RIGHT(BY$39,2)>RIGHT($K82,2),BC82,0)) -> 0 | BZ82: =+IF($K82="Ongoing",BD82,IF(RIGHT($K82,2)=RIGHT(BZ$39,2),SUM($AV82:BD82),0)+IF(RIGHT(BZ$39,2)>RIGHT($K82,2),BD82,0)) -> 0 | CA82: =+IF($K82="Ongoing",BE82,IF(RIGHT($K82,2)=RIGHT(CA$39,2),SUM($AV82:BE82),0)+IF(RIGHT(CA$39,2)>RIGHT($K82,2),BE82,0)) -> 1.867384 | CC82: =+O82*KeyAssumptionsPriceControl_FO!X$15 -> 0 | CD82: =+P82*KeyAssumptionsPriceControl_FO!Y$15 -> 0 | CE82: =+Q82*KeyAssumptionsPriceControl_FO!Z$15 -> 0 | CF82: =+R82*KeyAssumptionsPriceControl_FO!AA$15 -> 0 | CG82: =+S82*KeyAssumptionsPriceControl_FO!AB$15 -> 0 | CH82: =+T82*KeyAssumptionsPriceControl_FO!AC$15 -> 0 | CI82: =+U82*KeyAssumptionsPriceControl_FO!AD$15 -> 0 | CJ82: =+V82*KeyAssumptionsPriceControl_FO!AE$15 -> 0 | CK82: =+W82*KeyAssumptionsPriceControl_FO!AF$15 -> 0 | CL82: =+X82*KeyAssumptionsPriceControl_FO!AG$15 -> 2.344174679 | CN82: 0 | CO82: 0 | CP82: 0 | CQ82: 0 | CR82: 0 | CS82: 0 | CT82: 0 | CU82: 0 | CV82: 0 | CW82: 0.02344174679
C83: Water Treatment | E83: Water | F83: Renewals | G83: Treatment | H83: Capital Programs / Allocation | J83: Straight line | K83: 2018-19 | L83: 50 | M83: 50 | O83: 0.31 | AV83: =+O83-Z83-AK83 -> 0.31 | AW83: 0 | AX83: 0 | AY83: 0 | AZ83: 0 | BA83: 0 | BB83: 0 | BC83: 0 | BD83: 0 | BE83: 0 | BG83: 0.0031 | BH83: 0.0062 | BI83: 0.0062 | BJ83: 0.0062 | BK83: 0.0062 | BL83: 0.0062 | BM83: 0.0062 | BN83: 0.0062 | BO83: 0.0062 | BP83: 0.0062 | BR83: =+IF($K83="Ongoing",AV83,IF(RIGHT($K83,2)=RIGHT(BR$39,2),SUM($AV83:AV83),0)+IF(RIGHT(BR$39,2)>RIGHT($K83,2),AV83,0)) -> 0.31 | BS83: =+IF($K83="Ongoing",AW83,IF(RIGHT($K83,2)=RIGHT(BS$39,2),SUM($AV83:AW83),0)+IF(RIGHT(BS$39,2)>RIGHT($K83,2),AW83,0)) -> 0 | BT83: =+IF($K83="Ongoing",AX83,IF(RIGHT($K83,2)=RIGHT(BT$39,2),SUM($AV83:AX83),0)+IF(RIGHT(BT$39,2)>RIGHT($K83,2),AX83,0)) -> 0 | BU83: =+IF($K83="Ongoing",AY83,IF(RIGHT($K83,2)=RIGHT(BU$39,2),SUM($AV83:AY83),0)+IF(RIGHT(BU$39,2)>RIGHT($K83,2),AY83,0)) -> 0 | BV83: =+IF($K83="Ongoing",AZ83,IF(RIGHT($K83,2)=RIGHT(BV$39,2),SUM($AV83:AZ83),0)+IF(RIGHT(BV$39,2)>RIGHT($K83,2),AZ83,0)) -> 0 | BW83: =+IF($K83="Ongoing",BA83,IF(RIGHT($K83,2)=RIGHT(BW$39,2),SUM($AV83:BA83),0)+IF(RIGHT(BW$39,2)>RIGHT($K83,2),BA83,0)) -> 0 | BX83: =+IF($K83="Ongoing",BB83,IF(RIGHT($K83,2)=RIGHT(BX$39,2),SUM($AV83:BB83),0)+IF(RIGHT(BX$39,2)>RIGHT($K83,2),BB83,0)) -> 0 | BY83: =+IF($K83="Ongoing",BC83,IF(RIGHT($K83,2)=RIGHT(BY$39,2),SUM($AV83:BC83),0)+IF(RIGHT(BY$39,2)>RIGHT($K83,2),BC83,0)) -> 0 | BZ83: =+IF($K83="Ongoing",BD83,IF(RIGHT($K83,2)=RIGHT(BZ$39,2),SUM($AV83:BD83),0)+IF(RIGHT(BZ$39,2)>RIGHT($K83,2),BD83,0)) -> 0 | CA83: =+IF($K83="Ongoing",BE83,IF(RIGHT($K83,2)=RIGHT(CA$39,2),SUM($AV83:BE83),0)+IF(RIGHT(CA$39,2)>RIGHT($K83,2),BE83,0)) -> 0 | CC83: =+O83*KeyAssumptionsPriceControl_FO!X$15 -> 0.31713 | CD83: =+P83*KeyAssumptionsPriceControl_FO!Y$15 -> 0 | CE83: =+Q83*KeyAssumptionsPriceControl_FO!Z$15 -> 0 | CF83: =+R83*KeyAssumptionsPriceControl_FO!AA$15 -> 0 | CG83: =+S83*KeyAssumptionsPriceControl_FO!AB$15 -> 0 | CH83: =+T83*KeyAssumptionsPriceControl_FO!AC$15 -> 0 | CI83: =+U83*KeyAssumptionsPriceControl_FO!AD$15 -> 0 | CJ83: =+V83*KeyAssumptionsPriceControl_FO!AE$15 -> 0 | CK83: =+W83*KeyAssumptionsPriceControl_FO!AF$15 -> 0 | CL83: =+X83*KeyAssumptionsPriceControl_FO!AG$15 -> 0 | CN83: 0.0031713 | CO83: 0.0063426 | CP83: 0.0063426 | CQ83: 0.0063426 | CR83: 0.0063426 | CS83: 0.0063426 | CT83: 0.0063426 | CU83: 0.0063426 | CV83: 0.0063426 | CW83: 0.0063426
C84: Water Treatment | E84: Water | F84: Renewals | G84: Treatment | H84: Capital Programs / Allocation | J84: Straight line | K84: 2019-20 | L84: 50 | M84: 50 | P84: 0.4 | AV84: 0 | AW84: 0.4 | AX84: 0 | AY84: 0 | AZ84: 0 | BA84: 0 | BB84: 0 | BC84: 0 | BD84: 0 | BE84: 0 | BG84: 0 | BH84: 0.004 | BI84: 0.008 | BJ84: 0.008 | BK84: 0.008 | BL84: 0.008 | BM84: 0.008 | BN84: 0.008 | BO84: =IF($L84=0,0, IF($L84<=0.5,BZ84, IF(AND($J84="straight line",$L84<1.51),(BY84-((BY84/$L84)*0.5))+BZ84/$L84*0.5, IF($J84="straight line", IF((LEFT(BO$39,4)*1)-INT($L84)<LEFT($BG$39,4)*1,0,((OFFSET(BZ84,0,-INT($L84+0.5),1,1))/$L84)*(IF($L84-INT($L84)>0.5,$L84-0.5-INT($L84),IF($L84-INT($L84)<=0.5,$L84-0.5-INT($L84)+1,0)))) +BZ84/$L84*0.5 +SUM(OFFSET(BZ84,0,MAX(-INT($L84+(0.5-(10^-12))),-BO$40)+1,1,MIN(INT($L84+(0.5-(10^-12))),BO$40)-1))*1/$L84, IF($J84="Declining Balance",-$BG$38,0))))) -> 0.008 | BP84: 0.008 | BR84: =+IF($K84="Ongoing",AV84,IF(RIGHT($K84,2)=RIGHT(BR$39,2),SUM($AV84:AV84),0)+IF(RIGHT(BR$39,2)>RIGHT($K84,2),AV84,0)) -> 0 | BS84: =+IF($K84="Ongoing",AW84,IF(RIGHT($K84,2)=RIGHT(BS$39,2),SUM($AV84:AW84),0)+IF(RIGHT(BS$39,2)>RIGHT($K84,2),AW84,0)) -> 0.4 | BT84: =+IF($K84="Ongoing",AX84,IF(RIGHT($K84,2)=RIGHT(BT$39,2),SUM($AV84:AX84),0)+IF(RIGHT(BT$39,2)>RIGHT($K84,2),AX84,0)) -> 0 | BU84: =+IF($K84="Ongoing",AY84,IF(RIGHT($K84,2)=RIGHT(BU$39,2),SUM($AV84:AY84),0)+IF(RIGHT(BU$39,2)>RIGHT($K84,2),AY84,0)) -> 0 | BV84: =+IF($K84="Ongoing",AZ84,IF(RIGHT($K84,2)=RIGHT(BV$39,2),SUM($AV84:AZ84),0)+IF(RIGHT(BV$39,2)>RIGHT($K84,2),AZ84,0)) -> 0 | BW84: =+IF($K84="Ongoing",BA84,IF(RIGHT($K84,2)=RIGHT(BW$39,2),SUM($AV84:BA84),0)+IF(RIGHT(BW$39,2)>RIGHT($K84,2),BA84,0)) -> 0 | BX84: =+IF($K84="Ongoing",BB84,IF(RIGHT($K84,2)=RIGHT(BX$39,2),SUM($AV84:BB84),0)+IF(RIGHT(BX$39,2)>RIGHT($K84,2),BB84,0)) -> 0 | BY84: =+IF($K84="Ongoing",BC84,IF(RIGHT($K84,2)=RIGHT(BY$39,2),SUM($AV84:BC84),0)+IF(RIGHT(BY$39,2)>RIGHT($K84,2),BC84,0)) -> 0 | BZ84: =+IF($K84="Ongoing",BD84,IF(RIGHT($K84,2)=RIGHT(BZ$39,2),SUM($AV84:BD84),0)+IF(RIGHT(BZ$39,2)>RIGHT($K84,2),BD84,0)) -> 0 | CA84: =+IF($K84="Ongoing",BE84,IF(RIGHT($K84,2)=RIGHT(CA$39,2),SUM($AV84:BE84),0)+IF(RIGHT(CA$39,2)>RIGHT($K84,2),BE84,0)) -> 0 | CC84: =+O84*KeyAssumptionsPriceControl_FO!X$15 -> 0 | CD84: =+P84*KeyAssumptionsPriceControl_FO!Y$15 -> 0.4186116 | CE84: =+Q84*KeyAssumptionsPriceControl_FO!Z$15 -> 0 | CF84: =+R84*KeyAssumptionsPriceControl_FO!AA$15 -> 0 | CG84: =+S84*KeyAssumptionsPriceControl_FO!AB$15 -> 0 | CH84: =+T84*KeyAssumptionsPriceControl_FO!AC$15 -> 0 | CI84: =+U84*KeyAssumptionsPriceControl_FO!AD$15 -> 0 | CJ84: =+V84*KeyAssumptionsPriceControl_FO!AE$15 -> 0 | CK84: =+W84*KeyAssumptionsPriceControl_FO!AF$15 -> 0 | CL84: =+X84*KeyAssumptionsPriceControl_FO!AG$15 -> 0 | CN84: 0 | CO84: 0.004186116 | CP84: 0.008372232 | CQ84: 0.008372232 | CR84: 0.008372232 | CS84: 0.008372232 | CT84: 0.008372232 | CU84: 0.008372232 | CV84: =IF($M84=0,0, IF($M84<=0.5,CK84, IF(AND($J84="straight line",$M84<1.51),(CJ84-((CJ84/$M84)*0.5))+CK84/$M84*0.5, IF($J84="straight line", IF((LEFT(CV$39,4)*1)-INT($M84)<LEFT($CN$39,4)*1,0,((OFFSET(CK84,0,-INT($M84+0.5),1,1))/$M84)*(IF($M84-INT($M84)>0.5,$M84-0.5-INT($M84),IF($M84-INT($M84)<=0.5,$M84-0.5-INT($M84)+1,0)))) +CK84/$M84*0.5 +SUM(OFFSET(CK84,0,MAX(-INT($M84+(0.5-(10^-12))),-CV$40)+1,1,MIN(INT($M84+(0.5-(10^-12))),CV$40)-1))*1/$M84, IF($J84="Declining Balance",-$CN$38,0))))) -> 0.008372232 | CW84: 0.008372232
C85: Water Treatment | E85: Water | F85: Renewals | G85: Treatment | H85: Capital Programs / Allocation | J85: Straight line | K85: 2020-21 | L85: 50 | M85: 50 | Q85: 1.496667 | AV85: 0 | AW85: 0 | AX85: 1.496667 | AY85: 0 | AZ85: 0 | BA85: 0 | BB85: 0 | BC85: 0 | BD85: 0 | BE85: 0 | BG85: 0 | BH85: =IF($L85=0,0, IF($L85<=0.5,BS85, IF(AND($J85="straight line",$L85<1.51),(BR85-((BR85/$L85)*0.5))+BS85/$L85*0.5, IF($J85="straight line", IF((LEFT(BH$39,4)*1)-INT($L85)<LEFT($BG$39,4)*1,0,((OFFSET(BS85,0,-INT($L85+0.5),1,1))/$L85)*(IF($L85-INT($L85)>0.5,$L85-0.5-INT($L85),IF($L85-INT($L85)<=0.5,$L85-0.5-INT($L85)+1,0)))) +BS85/$L85*0.5 +SUM(OFFSET(BS85,0,MAX(-INT($L85+(0.5-(10^-12))),-BH$40)+1,1,MIN(INT($L85+(0.5-(10^-12))),BH$40)-1))*1/$L85, IF($J85="Declining Balance",-$BG$38,0))))) -> 0 | BI85: 0.01496667 | BJ85: 0.02993334 | BK85: 0.02993334 | BL85: 0.02993334 | BM85: 0.02993334 | BN85: 0.02993334 | BO85: 0.02993334 | BP85: 0.02993334 | BR85: =+IF($K85="Ongoing",AV85,IF(RIGHT($K85,2)=RIGHT(BR$39,2),SUM($AV85:AV85),0)+IF(RIGHT(BR$39,2)>RIGHT($K85,2),AV85,0)) -> 0 | BS85: =+IF($K85="Ongoing",AW85,IF(RIGHT($K85,2)=RIGHT(BS$39,2),SUM($AV85:AW85),0)+IF(RIGHT(BS$39,2)>RIGHT($K85,2),AW85,0)) -> 0 | BT85: =+IF($K85="Ongoing",AX85,IF(RIGHT($K85,2)=RIGHT(BT$39,2),SUM($AV85:AX85),0)+IF(RIGHT(BT$39,2)>RIGHT($K85,2),AX85,0)) -> 1.496667 | BU85: =+IF($K85="Ongoing",AY85,IF(RIGHT($K85,2)=RIGHT(BU$39,2),SUM($AV85:AY85),0)+IF(RIGHT(BU$39,2)>RIGHT($K85,2),AY85,0)) -> 0 | BV85: =+IF($K85="Ongoing",AZ85,IF(RIGHT($K85,2)=RIGHT(BV$39,2),SUM($AV85:AZ85),0)+IF(RIGHT(BV$39,2)>RIGHT($K85,2),AZ85,0)) -> 0 | BW85: =+IF($K85="Ongoing",BA85,IF(RIGHT($K85,2)=RIGHT(BW$39,2),SUM($AV85:BA85),0)+IF(RIGHT(BW$39,2)>RIGHT($K85,2),BA85,0)) -> 0 | BX85: =+IF($K85="Ongoing",BB85,IF(RIGHT($K85,2)=RIGHT(BX$39,2),SUM($AV85:BB85),0)+IF(RIGHT(BX$39,2)>RIGHT($K85,2),BB85,0)) -> 0 | BY85: =+IF($K85="Ongoing",BC85,IF(RIGHT($K85,2)=RIGHT(BY$39,2),SUM($AV85:BC85),0)+IF(RIGHT(BY$39,2)>RIGHT($K85,2),BC85,0)) -> 0 | BZ85: =+IF($K85="Ongoing",BD85,IF(RIGHT($K85,2)=RIGHT(BZ$39,2),SUM($AV85:BD85),0)+IF(RIGHT(BZ$39,2)>RIGHT($K85,2),BD85,0)) -> 0 | CA85: =+IF($K85="Ongoing",BE85,IF(RIGHT($K85,2)=RIGHT(CA$39,2),SUM($AV85:BE85),0)+IF(RIGHT(CA$39,2)>RIGHT($K85,2),BE85,0)) -> 0 | CC85: =+O85*KeyAssumptionsPriceControl_FO!X$15 -> 0 | CD85: =+P85*KeyAssumptionsPriceControl_FO!Y$15 -> 0 | CE85: =+Q85*KeyAssumptionsPriceControl_FO!Z$15 -> 1.602330443 | CF85: =+R85*KeyAssumptionsPriceControl_FO!AA$15 -> 0 | CG85: =+S85*KeyAssumptionsPriceControl_FO!AB$15 -> 0 | CH85: =+T85*KeyAssumptionsPriceControl_FO!AC$15 -> 0 | CI85: =+U85*KeyAssumptionsPriceControl_FO!AD$15 -> 0 | CJ85: =+V85*KeyAssumptionsPriceControl_FO!AE$15 -> 0 | CK85: =+W85*KeyAssumptionsPriceControl_FO!AF$15 -> 0 | CL85: =+X85*KeyAssumptionsPriceControl_FO!AG$15 -> 0 | CN85: 0 | CO85: =IF($M85=0,0, IF($M85<=0.5,CD85, IF(AND($J85="straight line",$M85<1.51),(CC85-((CC85/$M85)*0.5))+CD85/$M85*0.5, IF($J85="straight line", IF((LEFT(CO$39,4)*1)-INT($M85)<LEFT($CN$39,4)*1,0,((OFFSET(CD85,0,-INT($M85+0.5),1,1))/$M85)*(IF($M85-INT($M85)>0.5,$M85-0.5-INT($M85),IF($M85-INT($M85)<=0.5,$M85-0.5-INT($M85)+1,0)))) +CD85/$M85*0.5 +SUM(OFFSET(CD85,0,MAX(-INT($M85+(0.5-(10^-12))),-CO$40)+1,1,MIN(INT($M85+(0.5-(10^-12))),CO$40)-1))*1/$M85, IF($J85="Declining Balance",-$CN$38,0))))) -> 0 | CP85: 0.01602330443 | CQ85: 0.03204660887 | CR85: 0.03204660887 | CS85: 0.03204660887 | CT85: 0.03204660887 | CU85: 0.03204660887 | CV85: 0.03204660887 | CW85: 0.03204660887
C86: Water Treatment | E86: Water | F86: Renewals | G86: Treatment | H86: Capital Programs / Allocation | J86: Straight line | K86: 2021-22 | L86: 50 | M86: 50 | R86: 1.221667 | AV86: 0 | AW86: 0 | AX86: 0 | AY86: 1.221667 | AZ86: 0 | BA86: 0 | BB86: 0 | BC86: 0 | BD86: 0 | BE86: 0 | BG86: 0 | BH86: 0 | BI86: 0 | BJ86: 0.01221667 | BK86: 0.02443334 | BL86: 0.02443334 | BM86: 0.02443334 | BN86: 0.02443334 | BO86: 0.02443334 | BP86: 0.02443334 | BR86: =+IF($K86="Ongoing",AV86,IF(RIGHT($K86,2)=RIGHT(BR$39,2),SUM($AV86:AV86),0)+IF(RIGHT(BR$39,2)>RIGHT($K86,2),AV86,0)) -> 0 | BS86: =+IF($K86="Ongoing",AW86,IF(RIGHT($K86,2)=RIGHT(BS$39,2),SUM($AV86:AW86),0)+IF(RIGHT(BS$39,2)>RIGHT($K86,2),AW86,0)) -> 0 | BT86: =+IF($K86="Ongoing",AX86,IF(RIGHT($K86,2)=RIGHT(BT$39,2),SUM($AV86:AX86),0)+IF(RIGHT(BT$39,2)>RIGHT($K86,2),AX86,0)) -> 0 | BU86: =+IF($K86="Ongoing",AY86,IF(RIGHT($K86,2)=RIGHT(BU$39,2),SUM($AV86:AY86),0)+IF(RIGHT(BU$39,2)>RIGHT($K86,2),AY86,0)) -> 1.221667 | BV86: =+IF($K86="Ongoing",AZ86,IF(RIGHT($K86,2)=RIGHT(BV$39,2),SUM($AV86:AZ86),0)+IF(RIGHT(BV$39,2)>RIGHT($K86,2),AZ86,0)) -> 0 | BW86: =+IF($K86="Ongoing",BA86,IF(RIGHT($K86,2)=RIGHT(BW$39,2),SUM($AV86:BA86),0)+IF(RIGHT(BW$39,2)>RIGHT($K86,2),BA86,0)) -> 0 | BX86: =+IF($K86="Ongoing",BB86,IF(RIGHT($K86,2)=RIGHT(BX$39,2),SUM($AV86:BB86),0)+IF(RIGHT(BX$39,2)>RIGHT($K86,2),BB86,0)) -> 0 | BY86: =+IF($K86="Ongoing",BC86,IF(RIGHT($K86,2)=RIGHT(BY$39,2),SUM($AV86:BC86),0)+IF(RIGHT(BY$39,2)>RIGHT($K86,2),BC86,0)) -> 0 | BZ86: =+IF($K86="Ongoing",BD86,IF(RIGHT($K86,2)=RIGHT(BZ$39,2),SUM($AV86:BD86),0)+IF(RIGHT(BZ$39,2)>RIGHT($K86,2),BD86,0)) -> 0 | CA86: =+IF($K86="Ongoing",BE86,IF(RIGHT($K86,2)=RIGHT(CA$39,2),SUM($AV86:BE86),0)+IF(RIGHT(CA$39,2)>RIGHT($K86,2),BE86,0)) -> 0 | CC86: =+O86*KeyAssumptionsPriceControl_FO!X$15 -> 0 | CD86: =+P86*KeyAssumptionsPriceControl_FO!Y$15 -> 0 | CE86: =+Q86*KeyAssumptionsPriceControl_FO!Z$15 -> 0 | CF86: =+R86*KeyAssumptionsPriceControl_FO!AA$15 -> 1.337997733 | CG86: =+S86*KeyAssumptionsPriceControl_FO!AB$15 -> 0 | CH86: =+T86*KeyAssumptionsPriceControl_FO!AC$15 -> 0 | CI86: =+U86*KeyAssumptionsPriceControl_FO!AD$15 -> 0 | CJ86: =+V86*KeyAssumptionsPriceControl_FO!AE$15 -> 0 | CK86: =+W86*KeyAssumptionsPriceControl_FO!AF$15 -> 0 | CL86: =+X86*KeyAssumptionsPriceControl_FO!AG$15 -> 0 | CN86: 0 | CO86: 0 | CP86: 0 | CQ86: 0.01337997733 | CR86: 0.02675995466 | CS86: 0.02675995466 | CT86: 0.02675995466 | CU86: 0.02675995466 | CV86: 0.02675995466 | CW86: 0.02675995466
C87: Water Treatment | E87: Water | F87: Renewals | G87: Treatment | H87: Capital Programs / Allocation | J87: Straight line | K87: 2022-23 | L87: 50 | M87: 50 | S87: 1.471667 | AV87: 0 | AW87: 0 | AX87: 0 | AY87: 0 | AZ87: 1.471667 | BA87: 0 | BB87: 0 | BC87: 0 | BD87: 0 | BE87: 0 | BG87: 0 | BH87: 0 | BI87: 0 | BJ87: 0 | BK87: 0.01471667 | BL87: 0.02943334 | BM87: 0.02943334 | BN87: 0.02943334 | BO87: 0.02943334 | BP87: 0.02943334 | BR87: =+IF($K87="Ongoing",AV87,IF(RIGHT($K87,2)=RIGHT(BR$39,2),SUM($AV87:AV87),0)+IF(RIGHT(BR$39,2)>RIGHT($K87,2),AV87,0)) -> 0 | BS87: =+IF($K87="Ongoing",AW87,IF(RIGHT($K87,2)=RIGHT(BS$39,2),SUM($AV87:AW87),0)+IF(RIGHT(BS$39,2)>RIGHT($K87,2),AW87,0)) -> 0 | BT87: =+IF($K87="Ongoing",AX87,IF(RIGHT($K87,2)=RIGHT(BT$39,2),SUM($AV87:AX87),0)+IF(RIGHT(BT$39,2)>RIGHT($K87,2),AX87,0)) -> 0 | BU87: =+IF($K87="Ongoing",AY87,IF(RIGHT($K87,2)=RIGHT(BU$39,2),SUM($AV87:AY87),0)+IF(RIGHT(BU$39,2)>RIGHT($K87,2),AY87,0)) -> 0 | BV87: =+IF($K87="Ongoing",AZ87,IF(RIGHT($K87,2)=RIGHT(BV$39,2),SUM($AV87:AZ87),0)+IF(RIGHT(BV$39,2)>RIGHT($K87,2),AZ87,0)) -> 1.471667 | BW87: =+IF($K87="Ongoing",BA87,IF(RIGHT($K87,2)=RIGHT(BW$39,2),SUM($AV87:BA87),0)+IF(RIGHT(BW$39,2)>RIGHT($K87,2),BA87,0)) -> 0 | BX87: =+IF($K87="Ongoing",BB87,IF(RIGHT($K87,2)=RIGHT(BX$39,2),SUM($AV87:BB87),0)+IF(RIGHT(BX$39,2)>RIGHT($K87,2),BB87,0)) -> 0 | BY87: =+IF($K87="Ongoing",BC87,IF(RIGHT($K87,2)=RIGHT(BY$39,2),SUM($AV87:BC87),0)+IF(RIGHT(BY$39,2)>RIGHT($K87,2),BC87,0)) -> 0 | BZ87: =+IF($K87="Ongoing",BD87,IF(RIGHT($K87,2)=RIGHT(BZ$39,2),SUM($AV87:BD87),0)+IF(RIGHT(BZ$39,2)>RIGHT($K87,2),BD87,0)) -> 0 | CA87: =+IF($K87="Ongoing",BE87,IF(RIGHT($K87,2)=RIGHT(CA$39,2),SUM($AV87:BE87),0)+IF(RIGHT(CA$39,2)>RIGHT($K87,2),BE87,0)) -> 0 | CC87: =+O87*KeyAssumptionsPriceControl_FO!X$15 -> 0 | CD87: =+P87*KeyAssumptionsPriceControl_FO!Y$15 -> 0 | CE87: =+Q87*KeyAssumptionsPriceControl_FO!Z$15 -> 0 | CF87: =+R87*KeyAssumptionsPriceControl_FO!AA$15 -> 0 | CG87: =+S87*KeyAssumptionsPriceControl_FO!AB$15 -> 1.64887495 | CH87: =+T87*KeyAssumptionsPriceControl_FO!AC$15 -> 0 | CI87: =+U87*KeyAssumptionsPriceControl_FO!AD$15 -> 0 | CJ87: =+V87*KeyAssumptionsPriceControl_FO!AE$15 -> 0 | CK87: =+W87*KeyAssumptionsPriceControl_FO!AF$15 -> 0 | CL87: =+X87*KeyAssumptionsPriceControl_FO!AG$15 -> 0 | CN87: 0 | CO87: 0 | CP87: 0 | CQ87: 0 | CR87: 0.0164887495 | CS87: 0.032977499 | CT87: 0.032977499 | CU87: 0.032977499 | CV87: 0.032977499 | CW87: 0.032977499
C88: Water Treatment | E88: Water | F88: Renewals | G88: Treatment | H88: Capital Programs / Allocation | J88: Straight line | K88: 2023-24 | L88: 50 | M88: 50 | T88: 1.524 | AV88: 0 | AW88: 0 | AX88: 0 | AY88: 0 | AZ88: 0 | BA88: 1.524 | BB88: 0 | BC88: 0 | BD88: 0 | BE88: 0 | BG88: 0 | BH88: 0 | BI88: 0 | BJ88: 0 | BK88: 0 | BL88: 0.01524 | BM88: 0.03048 | BN88: 0.03048 | BO88: 0.03048 | BP88: 0.03048 | BR88: =+IF($K88="Ongoing",AV88,IF(RIGHT($K88,2)=RIGHT(BR$39,2),SUM($AV88:AV88),0)+IF(RIGHT(BR$39,2)>RIGHT($K88,2),AV88,0)) -> 0 | BS88: =+IF($K88="Ongoing",AW88,IF(RIGHT($K88,2)=RIGHT(BS$39,2),SUM($AV88:AW88),0)+IF(RIGHT(BS$39,2)>RIGHT($K88,2),AW88,0)) -> 0 | BT88: =+IF($K88="Ongoing",AX88,IF(RIGHT($K88,2)=RIGHT(BT$39,2),SUM($AV88:AX88),0)+IF(RIGHT(BT$39,2)>RIGHT($K88,2),AX88,0)) -> 0 | BU88: =+IF($K88="Ongoing",AY88,IF(RIGHT($K88,2)=RIGHT(BU$39,2),SUM($AV88:AY88),0)+IF(RIGHT(BU$39,2)>RIGHT($K88,2),AY88,0)) -> 0 | BV88: =+IF($K88="Ongoing",AZ88,IF(RIGHT($K88,2)=RIGHT(BV$39,2),SUM($AV88:AZ88),0)+IF(RIGHT(BV$39,2)>RIGHT($K88,2),AZ88,0)) -> 0 | BW88: =+IF($K88="Ongoing",BA88,IF(RIGHT($K88,2)=RIGHT(BW$39,2),SUM($AV88:BA88),0)+IF(RIGHT(BW$39,2)>RIGHT($K88,2),BA88,0)) -> 1.524 | BX88: =+IF($K88="Ongoing",BB88,IF(RIGHT($K88,2)=RIGHT(BX$39,2),SUM($AV88:BB88),0)+IF(RIGHT(BX$39,2)>RIGHT($K88,2),BB88,0)) -> 0 | BY88: =+IF($K88="Ongoing",BC88,IF(RIGHT($K88,2)=RIGHT(BY$39,2),SUM($AV88:BC88),0)+IF(RIGHT(BY$39,2)>RIGHT($K88,2),BC88,0)) -> 0 | BZ88: =+IF($K88="Ongoing",BD88,IF(RIGHT($K88,2)=RIGHT(BZ$39,2),SUM($AV88:BD88),0)+IF(RIGHT(BZ$39,2)>RIGHT($K88,2),BD88,0)) -> 0 | CA88: =+IF($K88="Ongoing",BE88,IF(RIGHT($K88,2)=RIGHT(CA$39,2),SUM($AV88:BE88),0)+IF(RIGHT(CA$39,2)>RIGHT($K88,2),BE88,0)) -> 0 | CC88: =+O88*KeyAssumptionsPriceControl_FO!X$15 -> 0 | CD88: =+P88*KeyAssumptionsPriceControl_FO!Y$15 -> 0 | CE88: =+Q88*KeyAssumptionsPriceControl_FO!Z$15 -> 0 | CF88: =+R88*KeyAssumptionsPriceControl_FO!AA$15 -> 0 | CG88: =+S88*KeyAssumptionsPriceControl_FO!AB$15 -> 0 | CH88: =+T88*KeyAssumptionsPriceControl_FO!AC$15 -> 1.746782246 | CI88: =+U88*KeyAssumptionsPriceControl_FO!AD$15 -> 0 | CJ88: =+V88*KeyAssumptionsPriceControl_FO!AE$15 -> 0 | CK88: =+W88*KeyAssumptionsPriceControl_FO!AF$15 -> 0 | CL88: =+X88*KeyAssumptionsPriceControl_FO!AG$15 -> 0 | CN88: 0 | CO88: 0 | CP88: 0 | CQ88: 0 | CR88: 0 | CS88: 0.01746782246 | CT88: 0.03493564493 | CU88: 0.03493564493 | CV88: 0.03493564493 | CW88: 0.03493564493
C89: Water Treatment | E89: Water | F89: Renewals | G89: Treatment | H89: Capital Programs / Allocation | J89: Straight line | K89: 2024-25 | L89: 50 | M89: 50 | U89: 3.874 | AV89: 0 | AW89: 0 | AX89: 0 | AY89: 0 | AZ89: 0 | BA89: 0 | BB89: 3.874 | BC89: 0 | BD89: 0 | BE89: 0 | BG89: 0 | BH89: 0 | BI89: 0 | BJ89: 0 | BK89: 0 | BL89: 0 | BM89: 0.03874 | BN89: 0.07748 | BO89: 0.07748 | BP89: 0.07748 | BR89: =+IF($K89="Ongoing",AV89,IF(RIGHT($K89,2)=RIGHT(BR$39,2),SUM($AV89:AV89),0)+IF(RIGHT(BR$39,2)>RIGHT($K89,2),AV89,0)) -> 0 | BS89: =+IF($K89="Ongoing",AW89,IF(RIGHT($K89,2)=RIGHT(BS$39,2),SUM($AV89:AW89),0)+IF(RIGHT(BS$39,2)>RIGHT($K89,2),AW89,0)) -> 0 | BT89: =+IF($K89="Ongoing",AX89,IF(RIGHT($K89,2)=RIGHT(BT$39,2),SUM($AV89:AX89),0)+IF(RIGHT(BT$39,2)>RIGHT($K89,2),AX89,0)) -> 0 | BU89: =+IF($K89="Ongoing",AY89,IF(RIGHT($K89,2)=RIGHT(BU$39,2),SUM($AV89:AY89),0)+IF(RIGHT(BU$39,2)>RIGHT($K89,2),AY89,0)) -> 0 | BV89: =+IF($K89="Ongoing",AZ89,IF(RIGHT($K89,2)=RIGHT(BV$39,2),SUM($AV89:AZ89),0)+IF(RIGHT(BV$39,2)>RIGHT($K89,2),AZ89,0)) -> 0 | BW89: =+IF($K89="Ongoing",BA89,IF(RIGHT($K89,2)=RIGHT(BW$39,2),SUM($AV89:BA89),0)+IF(RIGHT(BW$39,2)>RIGHT($K89,2),BA89,0)) -> 0 | BX89: =+IF($K89="Ongoing",BB89,IF(RIGHT($K89,2)=RIGHT(BX$39,2),SUM($AV89:BB89),0)+IF(RIGHT(BX$39,2)>RIGHT($K89,2),BB89,0)) -> 3.874 | BY89: =+IF($K89="Ongoing",BC89,IF(RIGHT($K89,2)=RIGHT(BY$39,2),SUM($AV89:BC89),0)+IF(RIGHT(BY$39,2)>RIGHT($K89,2),BC89,0)) -> 0 | BZ89: =+IF($K89="Ongoing",BD89,IF(RIGHT($K89,2)=RIGHT(BZ$39,2),SUM($AV89:BD89),0)+IF(RIGHT(BZ$39,2)>RIGHT($K89,2),BD89,0)) -> 0 | CA89: =+IF($K89="Ongoing",BE89,IF(RIGHT($K89,2)=RIGHT(CA$39,2),SUM($AV89:BE89),0)+IF(RIGHT(CA$39,2)>RIGHT($K89,2),BE89,0)) -> 0 | CC89: =+O89*KeyAssumptionsPriceControl_FO!X$15 -> 0 | CD89: =+P89*KeyAssumptionsPriceControl_FO!Y$15 -> 0 | CE89: =+Q89*KeyAssumptionsPriceControl_FO!Z$15 -> 0 | CF89: =+R89*KeyAssumptionsPriceControl_FO!AA$15 -> 0 | CG89: =+S89*KeyAssumptionsPriceControl_FO!AB$15 -> 0 | CH89: =+T89*KeyAssumptionsPriceControl_FO!AC$15 -> 0 | CI89: =+U89*KeyAssumptionsPriceControl_FO!AD$15 -> 4.542438461 | CJ89: =+V89*KeyAssumptionsPriceControl_FO!AE$15 -> 0 | CK89: =+W89*KeyAssumptionsPriceControl_FO!AF$15 -> 0 | CL89: =+X89*KeyAssumptionsPriceControl_FO!AG$15 -> 0 | CN89: 0 | CO89: 0 | CP89: 0 | CQ89: 0 | CR89: 0 | CS89: 0 | CT89: 0.04542438461 | CU89: 0.09084876922 | CV89: 0.09084876922 | CW89: 0.09084876922
C90: Water Treatment | E90: Water | F90: Renewals | G90: Treatment | H90: Capital Programs / Allocation | J90: Straight line | K90: 2025-26 | L90: 50 | M90: 50 | V90: 4.369 | AV90: 0 | AW90: 0 | AX90: 0 | AY90: 0 | AZ90: 0 | BA90: 0 | BB90: 0 | BC90: 4.369 | BD90: 0 | BE90: 0 | BG90: 0 | BH90: 0 | BI90: 0 | BJ90: 0 | BK90: 0 | BL90: 0 | BM90: 0 | BN90: 0.04369 | BO90: 0.08738 | BP90: 0.08738 | BR90: =+IF($K90="Ongoing",AV90,IF(RIGHT($K90,2)=RIGHT(BR$39,2),SUM($AV90:AV90),0)+IF(RIGHT(BR$39,2)>RIGHT($K90,2),AV90,0)) -> 0 | BS90: =+IF($K90="Ongoing",AW90,IF(RIGHT($K90,2)=RIGHT(BS$39,2),SUM($AV90:AW90),0)+IF(RIGHT(BS$39,2)>RIGHT($K90,2),AW90,0)) -> 0 | BT90: =+IF($K90="Ongoing",AX90,IF(RIGHT($K90,2)=RIGHT(BT$39,2),SUM($AV90:AX90),0)+IF(RIGHT(BT$39,2)>RIGHT($K90,2),AX90,0)) -> 0 | BU90: =+IF($K90="Ongoing",AY90,IF(RIGHT($K90,2)=RIGHT(BU$39,2),SUM($AV90:AY90),0)+IF(RIGHT(BU$39,2)>RIGHT($K90,2),AY90,0)) -> 0 | BV90: =+IF($K90="Ongoing",AZ90,IF(RIGHT($K90,2)=RIGHT(BV$39,2),SUM($AV90:AZ90),0)+IF(RIGHT(BV$39,2)>RIGHT($K90,2),AZ90,0)) -> 0 | BW90: =+IF($K90="Ongoing",BA90,IF(RIGHT($K90,2)=RIGHT(BW$39,2),SUM($AV90:BA90),0)+IF(RIGHT(BW$39,2)>RIGHT($K90,2),BA90,0)) -> 0 | BX90: =+IF($K90="Ongoing",BB90,IF(RIGHT($K90,2)=RIGHT(BX$39,2),SUM($AV90:BB90),0)+IF(RIGHT(BX$39,2)>RIGHT($K90,2),BB90,0)) -> 0 | BY90: =+IF($K90="Ongoing",BC90,IF(RIGHT($K90,2)=RIGHT(BY$39,2),SUM($AV90:BC90),0)+IF(RIGHT(BY$39,2)>RIGHT($K90,2),BC90,0)) -> 4.369 | BZ90: =+IF($K90="Ongoing",BD90,IF(RIGHT($K90,2)=RIGHT(BZ$39,2),SUM($AV90:BD90),0)+IF(RIGHT(BZ$39,2)>RIGHT($K90,2),BD90,0)) -> 0 | CA90: =+IF($K90="Ongoing",BE90,IF(RIGHT($K90,2)=RIGHT(CA$39,2),SUM($AV90:BE90),0)+IF(RIGHT(CA$39,2)>RIGHT($K90,2),BE90,0)) -> 0 | CC90: =+O90*KeyAssumptionsPriceControl_FO!X$15 -> 0 | CD90: =+P90*KeyAssumptionsPriceControl_FO!Y$15 -> 0 | CE90: =+Q90*KeyAssumptionsPriceControl_FO!Z$15 -> 0 | CF90: =+R90*KeyAssumptionsPriceControl_FO!AA$15 -> 0 | CG90: =+S90*KeyAssumptionsPriceControl_FO!AB$15 -> 0 | CH90: =+T90*KeyAssumptionsPriceControl_FO!AC$15 -> 0 | CI90: =+U90*KeyAssumptionsPriceControl_FO!AD$15 -> 0 | CJ90: =+V90*KeyAssumptionsPriceControl_FO!AE$15 -> 5.240673632 | CK90: =+W90*KeyAssumptionsPriceControl_FO!AF$15 -> 0 | CL90: =+X90*KeyAssumptionsPriceControl_FO!AG$15 -> 0 | CN90: 0 | CO90: 0 | CP90: 0 | CQ90: 0 | CR90: 0 | CS90: 0 | CT90: 0 | CU90: 0.05240673632 | CV90: 0.1048134726 | CW90: 0.1048134726
C91: Water Treatment | E91: Water | F91: Renewals | G91: Treatment | H91: Capital Programs / Allocation | J91: Straight line | K91: 2026-27 | L91: 50 | M91: 50 | W91: 4.771 | AV91: 0 | AW91: 0 | AX91: 0 | AY91: 0 | AZ91: 0 | BA91: 0 | BB91: 0 | BC91: 0 | BD91: 4.771 | BE91: 0 | BG91: 0 | BH91: 0 | BI91: 0 | BJ91: 0 | BK91: 0 | BL91: 0 | BM91: 0 | BN91: 0 | BO91: 0.04771 | BP91: 0.09542 | BR91: =+IF($K91="Ongoing",AV91,IF(RIGHT($K91,2)=RIGHT(BR$39,2),SUM($AV91:AV91),0)+IF(RIGHT(BR$39,2)>RIGHT($K91,2),AV91,0)) -> 0 | BS91: =+IF($K91="Ongoing",AW91,IF(RIGHT($K91,2)=RIGHT(BS$39,2),SUM($AV91:AW91),0)+IF(RIGHT(BS$39,2)>RIGHT($K91,2),AW91,0)) -> 0 | BT91: =+IF($K91="Ongoing",AX91,IF(RIGHT($K91,2)=RIGHT(BT$39,2),SUM($AV91:AX91),0)+IF(RIGHT(BT$39,2)>RIGHT($K91,2),AX91,0)) -> 0 | BU91: =+IF($K91="Ongoing",AY91,IF(RIGHT($K91,2)=RIGHT(BU$39,2),SUM($AV91:AY91),0)+IF(RIGHT(BU$39,2)>RIGHT($K91,2),AY91,0)) -> 0 | BV91: =+IF($K91="Ongoing",AZ91,IF(RIGHT($K91,2)=RIGHT(BV$39,2),SUM($AV91:AZ91),0)+IF(RIGHT(BV$39,2)>RIGHT($K91,2),AZ91,0)) -> 0 | BW91: =+IF($K91="Ongoing",BA91,IF(RIGHT($K91,2)=RIGHT(BW$39,2),SUM($AV91:BA91),0)+IF(RIGHT(BW$39,2)>RIGHT($K91,2),BA91,0)) -> 0 | BX91: =+IF($K91="Ongoing",BB91,IF(RIGHT($K91,2)=RIGHT(BX$39,2),SUM($AV91:BB91),0)+IF(RIGHT(BX$39,2)>RIGHT($K91,2),BB91,0)) -> 0 | BY91: =+IF($K91="Ongoing",BC91,IF(RIGHT($K91,2)=RIGHT(BY$39,2),SUM($AV91:BC91),0)+IF(RIGHT(BY$39,2)>RIGHT($K91,2),BC91,0)) -> 0 | BZ91: =+IF($K91="Ongoing",BD91,IF(RIGHT($K91,2)=RIGHT(BZ$39,2),SUM($AV91:BD91),0)+IF(RIGHT(BZ$39,2)>RIGHT($K91,2),BD91,0)) -> 4.771 | CA91: =+IF($K91="Ongoing",BE91,IF(RIGHT($K91,2)=RIGHT(CA$39,2),SUM($AV91:BE91),0)+IF(RIGHT(CA$39,2)>RIGHT($K91,2),BE91,0)) -> 0 | CC91: =+O91*KeyAssumptionsPriceControl_FO!X$15 -> 0 | CD91: =+P91*KeyAssumptionsPriceControl_FO!Y$15 -> 0 | CE91: =+Q91*KeyAssumptionsPriceControl_FO!Z$15 -> 0 | CF91: =+R91*KeyAssumptionsPriceControl_FO!AA$15 -> 0 | CG91: =+S91*KeyAssumptionsPriceControl_FO!AB$15 -> 0 | CH91: =+T91*KeyAssumptionsPriceControl_FO!AC$15 -> 0 | CI91: =+U91*KeyAssumptionsPriceControl_FO!AD$15 -> 0 | CJ91: =+V91*KeyAssumptionsPriceControl_FO!AE$15 -> 0 | CK91: =+W91*KeyAssumptionsPriceControl_FO!AF$15 -> 5.854504174 | CL91: =+X91*KeyAssumptionsPriceControl_FO!AG$15 -> 0 | CN91: 0 | CO91: 0 | CP91: 0 | CQ91: 0 | CR91: 0 | CS91: 0 | CT91: 0 | CU91: 0 | CV91: 0.05854504174 | CW91: 0.1170900835
C92: Water Treatment | E92: Water | F92: Renewals | G92: Treatment | H92: Capital Programs / Allocation | J92: Straight line | K92: 2027-28 | L92: 50 | M92: 50 | X92: 3.5 | AV92: 0 | AW92: 0 | AX92: 0 | AY92: 0 | AZ92: 0 | BA92: 0 | BB92: 0 | BC92: 0 | BD92: 0 | BE92: 3.5 | BG92: 0 | BH92: 0 | BI92: 0 | BJ92: 0 | BK92: 0 | BL92: 0 | BM92: 0 | BN92: 0 | BO92: 0 | BP92: 0.035 | BR92: =+IF($K92="Ongoing",AV92,IF(RIGHT($K92,2)=RIGHT(BR$39,2),SUM($AV92:AV92),0)+IF(RIGHT(BR$39,2)>RIGHT($K92,2),AV92,0)) -> 0 | BS92: =+IF($K92="Ongoing",AW92,IF(RIGHT($K92,2)=RIGHT(BS$39,2),SUM($AV92:AW92),0)+IF(RIGHT(BS$39,2)>RIGHT($K92,2),AW92,0)) -> 0 | BT92: =+IF($K92="Ongoing",AX92,IF(RIGHT($K92,2)=RIGHT(BT$39,2),SUM($AV92:AX92),0)+IF(RIGHT(BT$39,2)>RIGHT($K92,2),AX92,0)) -> 0 | BU92: =+IF($K92="Ongoing",AY92,IF(RIGHT($K92,2)=RIGHT(BU$39,2),SUM($AV92:AY92),0)+IF(RIGHT(BU$39,2)>RIGHT($K92,2),AY92,0)) -> 0 | BV92: =+IF($K92="Ongoing",AZ92,IF(RIGHT($K92,2)=RIGHT(BV$39,2),SUM($AV92:AZ92),0)+IF(RIGHT(BV$39,2)>RIGHT($K92,2),AZ92,0)) -> 0 | BW92: =+IF($K92="Ongoing",BA92,IF(RIGHT($K92,2)=RIGHT(BW$39,2),SUM($AV92:BA92),0)+IF(RIGHT(BW$39,2)>RIGHT($K92,2),BA92,0)) -> 0 | BX92: =+IF($K92="Ongoing",BB92,IF(RIGHT($K92,2)=RIGHT(BX$39,2),SUM($AV92:BB92),0)+IF(RIGHT(BX$39,2)>RIGHT($K92,2),BB92,0)) -> 0 | BY92: =+IF($K92="Ongoing",BC92,IF(RIGHT($K92,2)=RIGHT(BY$39,2),SUM($AV92:BC92),0)+IF(RIGHT(BY$39,2)>RIGHT($K92,2),BC92,0)) -> 0 | BZ92: =+IF($K92="Ongoing",BD92,IF(RIGHT($K92,2)=RIGHT(BZ$39,2),SUM($AV92:BD92),0)+IF(RIGHT(BZ$39,2)>RIGHT($K92,2),BD92,0)) -> 0 | CA92: =+IF($K92="Ongoing",BE92,IF(RIGHT($K92,2)=RIGHT(CA$39,2),SUM($AV92:BE92),0)+IF(RIGHT(CA$39,2)>RIGHT($K92,2),BE92,0)) -> 3.5 | CC92: =+O92*KeyAssumptionsPriceControl_FO!X$15 -> 0 | CD92: =+P92*KeyAssumptionsPriceControl_FO!Y$15 -> 0 | CE92: =+Q92*KeyAssumptionsPriceControl_FO!Z$15 -> 0 | CF92: =+R92*KeyAssumptionsPriceControl_FO!AA$15 -> 0 | CG92: =+S92*KeyAssumptionsPriceControl_FO!AB$15 -> 0 | CH92: =+T92*KeyAssumptionsPriceControl_FO!AC$15 -> 0 | CI92: =+U92*KeyAssumptionsPriceControl_FO!AD$15 -> 0 | CJ92: =+V92*KeyAssumptionsPriceControl_FO!AE$15 -> 0 | CK92: =+W92*KeyAssumptionsPriceControl_FO!AF$15 -> 0 | CL92: =+X92*KeyAssumptionsPriceControl_FO!AG$15 -> 4.39363911 | CN92: 0 | CO92: 0 | CP92: 0 | CQ92: 0 | CR92: 0 | CS92: 0 | CT92: 0 | CU92: 0 | CV92: 0 | CW92: 0.0439363911
C93: Intangible | E93: Water | F93: Growth | G93: Corporate | H93: Other Capital expenditure | J93: Straight line | K93: 2018-19 | L93: 10 | M93: 10 | O93: 1.56879 | AV93: 1.56879 | AW93: 0 | AX93: 0 | AY93: 0 | AZ93: 0 | BA93: 0 | BB93: 0 | BC93: 0 | BD93: 0 | BE93: 0 | BG93: 0.0784395 | BH93: 0.156879 | BI93: 0.156879 | BJ93: 0.156879 | BK93: 0.156879 | BL93: 0.156879 | BM93: 0.156879 | BN93: 0.156879 | BO93: 0.156879 | BP93: 0.156879 | BR93: =+IF($K93="Ongoing",AV93,IF(RIGHT($K93,2)=RIGHT(BR$39,2),SUM($AV93:AV93),0)+IF(RIGHT(BR$39,2)>RIGHT($K93,2),AV93,0)) -> 1.56879 | BS93: =+IF($K93="Ongoing",AW93,IF(RIGHT($K93,2)=RIGHT(BS$39,2),SUM($AV93:AW93),0)+IF(RIGHT(BS$39,2)>RIGHT($K93,2),AW93,0)) -> 0 | BT93: =+IF($K93="Ongoing",AX93,IF(RIGHT($K93,2)=RIGHT(BT$39,2),SUM($AV93:AX93),0)+IF(RIGHT(BT$39,2)>RIGHT($K93,2),AX93,0)) -> 0 | BU93: =+IF($K93="Ongoing",AY93,IF(RIGHT($K93,2)=RIGHT(BU$39,2),SUM($AV93:AY93),0)+IF(RIGHT(BU$39,2)>RIGHT($K93,2),AY93,0)) -> 0 | BV93: =+IF($K93="Ongoing",AZ93,IF(RIGHT($K93,2)=RIGHT(BV$39,2),SUM($AV93:AZ93),0)+IF(RIGHT(BV$39,2)>RIGHT($K93,2),AZ93,0)) -> 0 | BW93: =+IF($K93="Ongoing",BA93,IF(RIGHT($K93,2)=RIGHT(BW$39,2),SUM($AV93:BA93),0)+IF(RIGHT(BW$39,2)>RIGHT($K93,2),BA93,0)) -> 0 | BX93: =+IF($K93="Ongoing",BB93,IF(RIGHT($K93,2)=RIGHT(BX$39,2),SUM($AV93:BB93),0)+IF(RIGHT(BX$39,2)>RIGHT($K93,2),BB93,0)) -> 0 | BY93: =+IF($K93="Ongoing",BC93,IF(RIGHT($K93,2)=RIGHT(BY$39,2),SUM($AV93:BC93),0)+IF(RIGHT(BY$39,2)>RIGHT($K93,2),BC93,0)) -> 0 | BZ93: =+IF($K93="Ongoing",BD93,IF(RIGHT($K93,2)=RIGHT(BZ$39,2),SUM($AV93:BD93),0)+IF(RIGHT(BZ$39,2)>RIGHT($K93,2),BD93,0)) -> 0 | CA93: =+IF($K93="Ongoing",BE93,IF(RIGHT($K93,2)=RIGHT(CA$39,2),SUM($AV93:BE93),0)+IF(RIGHT(CA$39,2)>RIGHT($K93,2),BE93,0)) -> 0 | CC93: =+O93*KeyAssumptionsPriceControl_FO!X$15 -> 1.60487217 | CD93: =+P93*KeyAssumptionsPriceControl_FO!Y$15 -> 0 | CE93: =+Q93*KeyAssumptionsPriceControl_FO!Z$15 -> 0 | CF93: =+R93*KeyAssumptionsPriceControl_FO!AA$15 -> 0 | CG93: =+S93*KeyAssumptionsPriceControl_FO!AB$15 -> 0 | CH93: =+T93*KeyAssumptionsPriceControl_FO!AC$15 -> 0 | CI93: =+U93*KeyAssumptionsPriceControl_FO!AD$15 -> 0 | CJ93: =+V93*KeyAssumptionsPriceControl_FO!AE$15 -> 0 | CK93: =+W93*KeyAssumptionsPriceControl_FO!AF$15 -> 0 | CL93: =+X93*KeyAssumptionsPriceControl_FO!AG$15 -> 0 | CN93: 0.0802436085 | CO93: 0.160487217 | CP93: 0.160487217 | CQ93: 0.160487217 | CR93: 0.160487217 | CS93: 0.160487217 | CT93: 0.160487217 | CU93: 0.160487217 | CV93: 0.160487217 | CW93: 0.160487217
C94: Intangible | E94: Water | F94: Growth | G94: Corporate | H94: Other Capital expenditure | J94: Straight line | K94: 2019-20 | L94: 10 | M94: 10 | P94: 1.16759 | AV94: 0 | AW94: 1.16759 | AX94: 0 | AY94: 0 | AZ94: 0 | BA94: 0 | BB94: 0 | BC94: 0 | BD94: 0 | BE94: 0 | BG94: 0 | BH94: 0.0583795 | BI94: 0.116759 | BJ94: 0.116759 | BK94: 0.116759 | BL94: 0.116759 | BM94: 0.116759 | BN94: 0.116759 | BO94: 0.116759 | BP94: 0.116759 | BR94: =+IF($K94="Ongoing",AV94,IF(RIGHT($K94,2)=RIGHT(BR$39,2),SUM($AV94:AV94),0)+IF(RIGHT(BR$39,2)>RIGHT($K94,2),AV94,0)) -> 0 | BS94: =+IF($K94="Ongoing",AW94,IF(RIGHT($K94,2)=RIGHT(BS$39,2),SUM($AV94:AW94),0)+IF(RIGHT(BS$39,2)>RIGHT($K94,2),AW94,0)) -> 1.16759 | BT94: =+IF($K94="Ongoing",AX94,IF(RIGHT($K94,2)=RIGHT(BT$39,2),SUM($AV94:AX94),0)+IF(RIGHT(BT$39,2)>RIGHT($K94,2),AX94,0)) -> 0 | BU94: =+IF($K94="Ongoing",AY94,IF(RIGHT($K94,2)=RIGHT(BU$39,2),SUM($AV94:AY94),0)+IF(RIGHT(BU$39,2)>RIGHT($K94,2),AY94,0)) -> 0 | BV94: =+IF($K94="Ongoing",AZ94,IF(RIGHT($K94,2)=RIGHT(BV$39,2),SUM($AV94:AZ94),0)+IF(RIGHT(BV$39,2)>RIGHT($K94,2),AZ94,0)) -> 0 | BW94: =+IF($K94="Ongoing",BA94,IF(RIGHT($K94,2)=RIGHT(BW$39,2),SUM($AV94:BA94),0)+IF(RIGHT(BW$39,2)>RIGHT($K94,2),BA94,0)) -> 0 | BX94: =+IF($K94="Ongoing",BB94,IF(RIGHT($K94,2)=RIGHT(BX$39,2),SUM($AV94:BB94),0)+IF(RIGHT(BX$39,2)>RIGHT($K94,2),BB94,0)) -> 0 | BY94: =+IF($K94="Ongoing",BC94,IF(RIGHT($K94,2)=RIGHT(BY$39,2),SUM($AV94:BC94),0)+IF(RIGHT(BY$39,2)>RIGHT($K94,2),BC94,0)) -> 0 | BZ94: =+IF($K94="Ongoing",BD94,IF(RIGHT($K94,2)=RIGHT(BZ$39,2),SUM($AV94:BD94),0)+IF(RIGHT(BZ$39,2)>RIGHT($K94,2),BD94,0)) -> 0 | CA94: =+IF($K94="Ongoing",BE94,IF(RIGHT($K94,2)=RIGHT(CA$39,2),SUM($AV94:BE94),0)+IF(RIGHT(CA$39,2)>RIGHT($K94,2),BE94,0)) -> 0 | CC94: =+O94*KeyAssumptionsPriceControl_FO!X$15 -> 0 | CD94: =+P94*KeyAssumptionsPriceControl_FO!Y$15 -> 1.221916795 | CE94: =+Q94*KeyAssumptionsPriceControl_FO!Z$15 -> 0 | CF94: =+R94*KeyAssumptionsPriceControl_FO!AA$15 -> 0 | CG94: =+S94*KeyAssumptionsPriceControl_FO!AB$15 -> 0 | CH94: =+T94*KeyAssumptionsPriceControl_FO!AC$15 -> 0 | CI94: =+U94*KeyAssumptionsPriceControl_FO!AD$15 -> 0 | CJ94: =+V94*KeyAssumptionsPriceControl_FO!AE$15 -> 0 | CK94: =+W94*KeyAssumptionsPriceControl_FO!AF$15 -> 0 | CL94: =+X94*KeyAssumptionsPriceControl_FO!AG$15 -> 0 | CN94: 0 | CO94: 0.06109583976 | CP94: 0.1221916795 | CQ94: 0.1221916795 | CR94: 0.1221916795 | CS94: 0.1221916795 | CT94: 0.1221916795 | CU94: 0.1221916795 | CV94: 0.1221916795 | CW94: 0.1221916795
C95: Intangible | E95: Water | F95: Growth | G95: Corporate | H95: Other Capital expenditure | J95: Straight line | K95: 2020-21 | L95: 10 | M95: 10 | Q95: 1.10159 | AV95: 0 | AW95: 0 | AX95: 1.10159 | AY95: 0 | AZ95: 0 | BA95: 0 | BB95: 0 | BC95: 0 | BD95: 0 | BE95: 0 | BG95: 0 | BH95: 0 | BI95: 0.0550795 | BJ95: 0.110159 | BK95: 0.110159 | BL95: 0.110159 | BM95: 0.110159 | BN95: 0.110159 | BO95: 0.110159 | BP95: 0.110159 | BR95: =+IF($K95="Ongoing",AV95,IF(RIGHT($K95,2)=RIGHT(BR$39,2),SUM($AV95:AV95),0)+IF(RIGHT(BR$39,2)>RIGHT($K95,2),AV95,0)) -> 0 | BS95: =+IF($K95="Ongoing",AW95,IF(RIGHT($K95,2)=RIGHT(BS$39,2),SUM($AV95:AW95),0)+IF(RIGHT(BS$39,2)>RIGHT($K95,2),AW95,0)) -> 0 | BT95: =+IF($K95="Ongoing",AX95,IF(RIGHT($K95,2)=RIGHT(BT$39,2),SUM($AV95:AX95),0)+IF(RIGHT(BT$39,2)>RIGHT($K95,2),AX95,0)) -> 1.10159 | BU95: =+IF($K95="Ongoing",AY95,IF(RIGHT($K95,2)=RIGHT(BU$39,2),SUM($AV95:AY95),0)+IF(RIGHT(BU$39,2)>RIGHT($K95,2),AY95,0)) -> 0 | BV95: =+IF($K95="Ongoing",AZ95,IF(RIGHT($K95,2)=RIGHT(BV$39,2),SUM($AV95:AZ95),0)+IF(RIGHT(BV$39,2)>RIGHT($K95,2),AZ95,0)) -> 0 | BW95: =+IF($K95="Ongoing",BA95,IF(RIGHT($K95,2)=RIGHT(BW$39,2),SUM($AV95:BA95),0)+IF(RIGHT(BW$39,2)>RIGHT($K95,2),BA95,0)) -> 0 | BX95: =+IF($K95="Ongoing",BB95,IF(RIGHT($K95,2)=RIGHT(BX$39,2),SUM($AV95:BB95),0)+IF(RIGHT(BX$39,2)>RIGHT($K95,2),BB95,0)) -> 0 | BY95: =+IF($K95="Ongoing",BC95,IF(RIGHT($K95,2)=RIGHT(BY$39,2),SUM($AV95:BC95),0)+IF(RIGHT(BY$39,2)>RIGHT($K95,2),BC95,0)) -> 0 | BZ95: =+IF($K95="Ongoing",BD95,IF(RIGHT($K95,2)=RIGHT(BZ$39,2),SUM($AV95:BD95),0)+IF(RIGHT(BZ$39,2)>RIGHT($K95,2),BD95,0)) -> 0 | CA95: =+IF($K95="Ongoing",BE95,IF(RIGHT($K95,2)=RIGHT(CA$39,2),SUM($AV95:BE95),0)+IF(RIGHT(CA$39,2)>RIGHT($K95,2),BE95,0)) -> 0 | CC95: =+O95*KeyAssumptionsPriceControl_FO!X$15 -> 0 | CD95: =+P95*KeyAssumptionsPriceControl_FO!Y$15 -> 0 | CE95: =+Q95*KeyAssumptionsPriceControl_FO!Z$15 -> 1.179361336 | CF95: =+R95*KeyAssumptionsPriceControl_FO!AA$15 -> 0 | CG95: =+S95*KeyAssumptionsPriceControl_FO!AB$15 -> 0 | CH95: =+T95*KeyAssumptionsPriceControl_FO!AC$15 -> 0 | CI95: =+U95*KeyAssumptionsPriceControl_FO!AD$15 -> 0 | CJ95: =+V95*KeyAssumptionsPriceControl_FO!AE$15 -> 0 | CK95: =+W95*KeyAssumptionsPriceControl_FO!AF$15 -> 0 | CL95: =+X95*KeyAssumptionsPriceControl_FO!AG$15 -> 0 | CN95: 0 | CO95: 0 | CP95: 0.05896806682 | CQ95: 0.1179361336 | CR95: 0.1179361336 | CS95: 0.1179361336 | CT95: 0.1179361336 | CU95: 0.1179361336 | CV95: 0.1179361336 | CW95: 0.1179361336
C96: Intangible | E96: Water | F96: Growth | G96: Corporate | H96: Other Capital expenditure | J96: Straight line | K96: 2021-22 | L96: 10 | M96: 10 | R96: 1.07409 | AV96: 0 | AW96: 0 | AX96: 0 | AY96: 1.07409 | AZ96: 0 | BA96: 0 | BB96: 0 | BC96: 0 | BD96: 0 | BE96: 0 | BG96: 0 | BH96: 0 | BI96: 0 | BJ96: 0.0537045 | BK96: 0.107409 | BL96: 0.107409 | BM96: 0.107409 | BN96: 0.107409 | BO96: 0.107409 | BP96: 0.107409 | BR96: =+IF($K96="Ongoing",AV96,IF(RIGHT($K96,2)=RIGHT(BR$39,2),SUM($AV96:AV96),0)+IF(RIGHT(BR$39,2)>RIGHT($K96,2),AV96,0)) -> 0 | BS96: =+IF($K96="Ongoing",AW96,IF(RIGHT($K96,2)=RIGHT(BS$39,2),SUM($AV96:AW96),0)+IF(RIGHT(BS$39,2)>RIGHT($K96,2),AW96,0)) -> 0 | BT96: =+IF($K96="Ongoing",AX96,IF(RIGHT($K96,2)=RIGHT(BT$39,2),SUM($AV96:AX96),0)+IF(RIGHT(BT$39,2)>RIGHT($K96,2),AX96,0)) -> 0 | BU96: =+IF($K96="Ongoing",AY96,IF(RIGHT($K96,2)=RIGHT(BU$39,2),SUM($AV96:AY96),0)+IF(RIGHT(BU$39,2)>RIGHT($K96,2),AY96,0)) -> 1.07409 | BV96: =+IF($K96="Ongoing",AZ96,IF(RIGHT($K96,2)=RIGHT(BV$39,2),SUM($AV96:AZ96),0)+IF(RIGHT(BV$39,2)>RIGHT($K96,2),AZ96,0)) -> 0 | BW96: =+IF($K96="Ongoing",BA96,IF(RIGHT($K96,2)=RIGHT(BW$39,2),SUM($AV96:BA96),0)+IF(RIGHT(BW$39,2)>RIGHT($K96,2),BA96,0)) -> 0 | BX96: =+IF($K96="Ongoing",BB96,IF(RIGHT($K96,2)=RIGHT(BX$39,2),SUM($AV96:BB96),0)+IF(RIGHT(BX$39,2)>RIGHT($K96,2),BB96,0)) -> 0 | BY96: =+IF($K96="Ongoing",BC96,IF(RIGHT($K96,2)=RIGHT(BY$39,2),SUM($AV96:BC96),0)+IF(RIGHT(BY$39,2)>RIGHT($K96,2),BC96,0)) -> 0 | BZ96: =+IF($K96="Ongoing",BD96,IF(RIGHT($K96,2)=RIGHT(BZ$39,2),SUM($AV96:BD96),0)+IF(RIGHT(BZ$39,2)>RIGHT($K96,2),BD96,0)) -> 0 | CA96: =+IF($K96="Ongoing",BE96,IF(RIGHT($K96,2)=RIGHT(CA$39,2),SUM($AV96:BE96),0)+IF(RIGHT(CA$39,2)>RIGHT($K96,2),BE96,0)) -> 0 | CC96: =+O96*KeyAssumptionsPriceControl_FO!X$15 -> 0 | CD96: =+P96*KeyAssumptionsPriceControl_FO!Y$15 -> 0 | CE96: =+Q96*KeyAssumptionsPriceControl_FO!Z$15 -> 0 | CF96: =+R96*KeyAssumptionsPriceControl_FO!AA$15 -> 1.176368016 | CG96: =+S96*KeyAssumptionsPriceControl_FO!AB$15 -> 0 | CH96: =+T96*KeyAssumptionsPriceControl_FO!AC$15 -> 0 | CI96: =+U96*KeyAssumptionsPriceControl_FO!AD$15 -> 0 | CJ96: =+V96*KeyAssumptionsPriceControl_FO!AE$15 -> 0 | CK96: =+W96*KeyAssumptionsPriceControl_FO!AF$15 -> 0 | CL96: =+X96*KeyAssumptionsPriceControl_FO!AG$15 -> 0 | CN96: 0 | CO96: 0 | CP96: 0 | CQ96: 0.0588184008 | CR96: 0.1176368016 | CS96: 0.1176368016 | CT96: 0.1176368016 | CU96: 0.1176368016 | CV96: 0.1176368016 | CW96: 0.1176368016
C97: Intangible | E97: Water | F97: Growth | G97: Corporate | H97: Other Capital expenditure | J97: Straight line | K97: 2022-23 | L97: 10 | M97: 10 | S97: 1.04659 | AV97: 0 | AW97: 0 | AX97: 0 | AY97: 0 | AZ97: 1.04659 | BA97: 0 | BB97: 0 | BC97: 0 | BD97: 0 | BE97: 0 | BG97: 0 | BH97: 0 | BI97: 0 | BJ97: 0 | BK97: 0.0523295 | BL97: 0.104659 | BM97: 0.104659 | BN97: 0.104659 | BO97: 0.104659 | BP97: 0.104659 | BR97: =+IF($K97="Ongoing",AV97,IF(RIGHT($K97,2)=RIGHT(BR$39,2),SUM($AV97:AV97),0)+IF(RIGHT(BR$39,2)>RIGHT($K97,2),AV97,0)) -> 0 | BS97: =+IF($K97="Ongoing",AW97,IF(RIGHT($K97,2)=RIGHT(BS$39,2),SUM($AV97:AW97),0)+IF(RIGHT(BS$39,2)>RIGHT($K97,2),AW97,0)) -> 0 | BT97: =+IF($K97="Ongoing",AX97,IF(RIGHT($K97,2)=RIGHT(BT$39,2),SUM($AV97:AX97),0)+IF(RIGHT(BT$39,2)>RIGHT($K97,2),AX97,0)) -> 0 | BU97: =+IF($K97="Ongoing",AY97,IF(RIGHT($K97,2)=RIGHT(BU$39,2),SUM($AV97:AY97),0)+IF(RIGHT(BU$39,2)>RIGHT($K97,2),AY97,0)) -> 0 | BV97: =+IF($K97="Ongoing",AZ97,IF(RIGHT($K97,2)=RIGHT(BV$39,2),SUM($AV97:AZ97),0)+IF(RIGHT(BV$39,2)>RIGHT($K97,2),AZ97,0)) -> 1.04659 | BW97: =+IF($K97="Ongoing",BA97,IF(RIGHT($K97,2)=RIGHT(BW$39,2),SUM($AV97:BA97),0)+IF(RIGHT(BW$39,2)>RIGHT($K97,2),BA97,0)) -> 0 | BX97: =+IF($K97="Ongoing",BB97,IF(RIGHT($K97,2)=RIGHT(BX$39,2),SUM($AV97:BB97),0)+IF(RIGHT(BX$39,2)>RIGHT($K97,2),BB97,0)) -> 0 | BY97: =+IF($K97="Ongoing",BC97,IF(RIGHT($K97,2)=RIGHT(BY$39,2),SUM($AV97:BC97),0)+IF(RIGHT(BY$39,2)>RIGHT($K97,2),BC97,0)) -> 0 | BZ97: =+IF($K97="Ongoing",BD97,IF(RIGHT($K97,2)=RIGHT(BZ$39,2),SUM($AV97:BD97),0)+IF(RIGHT(BZ$39,2)>RIGHT($K97,2),BD97,0)) -> 0 | CA97: =+IF($K97="Ongoing",BE97,IF(RIGHT($K97,2)=RIGHT(CA$39,2),SUM($AV97:BE97),0)+IF(RIGHT(CA$39,2)>RIGHT($K97,2),BE97,0)) -> 0 | CC97: =+O97*KeyAssumptionsPriceControl_FO!X$15 -> 0 | CD97: =+P97*KeyAssumptionsPriceControl_FO!Y$15 -> 0 | CE97: =+Q97*KeyAssumptionsPriceControl_FO!Z$15 -> 0 | CF97: =+R97*KeyAssumptionsPriceControl_FO!AA$15 -> 0 | CG97: =+S97*KeyAssumptionsPriceControl_FO!AB$15 -> 1.172613121 | CH97: =+T97*KeyAssumptionsPriceControl_FO!AC$15 -> 0 | CI97: =+U97*KeyAssumptionsPriceControl_FO!AD$15 -> 0 | CJ97: =+V97*KeyAssumptionsPriceControl_FO!AE$15 -> 0 | CK97: =+W97*KeyAssumptionsPriceControl_FO!AF$15 -> 0 | CL97: =+X97*KeyAssumptionsPriceControl_FO!AG$15 -> 0 | CN97: 0 | CO97: 0 | CP97: 0 | CQ97: 0 | CR97: 0.05863065604 | CS97: 0.1172613121 | CT97: 0.1172613121 | CU97: 0.1172613121 | CV97: 0.1172613121 | CW97: 0.1172613121
C98: Intangible | E98: Water | F98: Growth | G98: Corporate | H98: Other Capital expenditure | J98: Straight line | K98: 2023-24 | L98: 10 | M98: 10 | T98: 0.88825 | AV98: 0 | AW98: 0 | AX98: 0 | AY98: 0 | AZ98: 0 | BA98: 0.88825 | BB98: 0 | BC98: 0 | BD98: 0 | BE98: 0 | BG98: 0 | BH98: 0 | BI98: 0 | BJ98: 0 | BK98: 0 | BL98: 0.0444125 | BM98: 0.088825 | BN98: 0.088825 | BO98: 0.088825 | BP98: 0.088825 | BR98: =+IF($K98="Ongoing",AV98,IF(RIGHT($K98,2)=RIGHT(BR$39,2),SUM($AV98:AV98),0)+IF(RIGHT(BR$39,2)>RIGHT($K98,2),AV98,0)) -> 0 | BS98: =+IF($K98="Ongoing",AW98,IF(RIGHT($K98,2)=RIGHT(BS$39,2),SUM($AV98:AW98),0)+IF(RIGHT(BS$39,2)>RIGHT($K98,2),AW98,0)) -> 0 | BT98: =+IF($K98="Ongoing",AX98,IF(RIGHT($K98,2)=RIGHT(BT$39,2),SUM($AV98:AX98),0)+IF(RIGHT(BT$39,2)>RIGHT($K98,2),AX98,0)) -> 0 | BU98: =+IF($K98="Ongoing",AY98,IF(RIGHT($K98,2)=RIGHT(BU$39,2),SUM($AV98:AY98),0)+IF(RIGHT(BU$39,2)>RIGHT($K98,2),AY98,0)) -> 0 | BV98: =+IF($K98="Ongoing",AZ98,IF(RIGHT($K98,2)=RIGHT(BV$39,2),SUM($AV98:AZ98),0)+IF(RIGHT(BV$39,2)>RIGHT($K98,2),AZ98,0)) -> 0 | BW98: =+IF($K98="Ongoing",BA98,IF(RIGHT($K98,2)=RIGHT(BW$39,2),SUM($AV98:BA98),0)+IF(RIGHT(BW$39,2)>RIGHT($K98,2),BA98,0)) -> 0.88825 | BX98: =+IF($K98="Ongoing",BB98,IF(RIGHT($K98,2)=RIGHT(BX$39,2),SUM($AV98:BB98),0)+IF(RIGHT(BX$39,2)>RIGHT($K98,2),BB98,0)) -> 0 | BY98: =+IF($K98="Ongoing",BC98,IF(RIGHT($K98,2)=RIGHT(BY$39,2),SUM($AV98:BC98),0)+IF(RIGHT(BY$39,2)>RIGHT($K98,2),BC98,0)) -> 0 | BZ98: =+IF($K98="Ongoing",BD98,IF(RIGHT($K98,2)=RIGHT(BZ$39,2),SUM($AV98:BD98),0)+IF(RIGHT(BZ$39,2)>RIGHT($K98,2),BD98,0)) -> 0 | CA98: =+IF($K98="Ongoing",BE98,IF(RIGHT($K98,2)=RIGHT(CA$39,2),SUM($AV98:BE98),0)+IF(RIGHT(CA$39,2)>RIGHT($K98,2),BE98,0)) -> 0 | CC98: =+O98*KeyAssumptionsPriceControl_FO!X$15 -> 0 | CD98: =+P98*KeyAssumptionsPriceControl_FO!Y$15 -> 0 | CE98: =+Q98*KeyAssumptionsPriceControl_FO!Z$15 -> 0 | CF98: =+R98*KeyAssumptionsPriceControl_FO!AA$15 -> 0 | CG98: =+S98*KeyAssumptionsPriceControl_FO!AB$15 -> 0 | CH98: =+T98*KeyAssumptionsPriceControl_FO!AC$15 -> 1.018096673 | CI98: =+U98*KeyAssumptionsPriceControl_FO!AD$15 -> 0 | CJ98: =+V98*KeyAssumptionsPriceControl_FO!AE$15 -> 0 | CK98: =+W98*KeyAssumptionsPriceControl_FO!AF$15 -> 0 | CL98: =+X98*KeyAssumptionsPriceControl_FO!AG$15 -> 0 | CN98: 0 | CO98: 0 | CP98: 0 | CQ98: 0 | CR98: 0 | CS98: 0.05090483367 | CT98: 0.1018096673 | CU98: 0.1018096673 | CV98: 0.1018096673 | CW98: 0.1018096673
C99: Intangible | E99: Water | F99: Growth | G99: Corporate | H99: Other Capital expenditure | J99: Straight line | K99: 2024-25 | L99: 10 | M99: 10 | U99: 0.88825 | AV99: 0 | AW99: 0 | AX99: 0 | AY99: 0 | AZ99: 0 | BA99: 0 | BB99: 0.88825 | BC99: 0 | BD99: 0 | BE99: 0 | BG99: 0 | BH99: 0 | BI99: 0 | BJ99: 0 | BK99: 0 | BL99: 0 | BM99: 0.0444125 | BN99: 0.088825 | BO99: 0.088825 | BP99: 0.088825 | BR99: =+IF($K99="Ongoing",AV99,IF(RIGHT($K99,2)=RIGHT(BR$39,2),SUM($AV99:AV99),0)+IF(RIGHT(BR$39,2)>RIGHT($K99,2),AV99,0)) -> 0 | BS99: =+IF($K99="Ongoing",AW99,IF(RIGHT($K99,2)=RIGHT(BS$39,2),SUM($AV99:AW99),0)+IF(RIGHT(BS$39,2)>RIGHT($K99,2),AW99,0)) -> 0 | BT99: =+IF($K99="Ongoing",AX99,IF(RIGHT($K99,2)=RIGHT(BT$39,2),SUM($AV99:AX99),0)+IF(RIGHT(BT$39,2)>RIGHT($K99,2),AX99,0)) -> 0 | BU99: =+IF($K99="Ongoing",AY99,IF(RIGHT($K99,2)=RIGHT(BU$39,2),SUM($AV99:AY99),0)+IF(RIGHT(BU$39,2)>RIGHT($K99,2),AY99,0)) -> 0 | BV99: =+IF($K99="Ongoing",AZ99,IF(RIGHT($K99,2)=RIGHT(BV$39,2),SUM($AV99:AZ99),0)+IF(RIGHT(BV$39,2)>RIGHT($K99,2),AZ99,0)) -> 0 | BW99: =+IF($K99="Ongoing",BA99,IF(RIGHT($K99,2)=RIGHT(BW$39,2),SUM($AV99:BA99),0)+IF(RIGHT(BW$39,2)>RIGHT($K99,2),BA99,0)) -> 0 | BX99: =+IF($K99="Ongoing",BB99,IF(RIGHT($K99,2)=RIGHT(BX$39,2),SUM($AV99:BB99),0)+IF(RIGHT(BX$39,2)>RIGHT($K99,2),BB99,0)) -> 0.88825 | BY99: =+IF($K99="Ongoing",BC99,IF(RIGHT($K99,2)=RIGHT(BY$39,2),SUM($AV99:BC99),0)+IF(RIGHT(BY$39,2)>RIGHT($K99,2),BC99,0)) -> 0 | BZ99: =+IF($K99="Ongoing",BD99,IF(RIGHT($K99,2)=RIGHT(BZ$39,2),SUM($AV99:BD99),0)+IF(RIGHT(BZ$39,2)>RIGHT($K99,2),BD99,0)) -> 0 | CA99: =+IF($K99="Ongoing",BE99,IF(RIGHT($K99,2)=RIGHT(CA$39,2),SUM($AV99:BE99),0)+IF(RIGHT(CA$39,2)>RIGHT($K99,2),BE99,0)) -> 0 | CC99: =+O99*KeyAssumptionsPriceControl_FO!X$15 -> 0 | CD99: =+P99*KeyAssumptionsPriceControl_FO!Y$15 -> 0 | CE99: =+Q99*KeyAssumptionsPriceControl_FO!Z$15 -> 0 | CF99: =+R99*KeyAssumptionsPriceControl_FO!AA$15 -> 0 | CG99: =+S99*KeyAssumptionsPriceControl_FO!AB$15 -> 0 | CH99: =+T99*KeyAssumptionsPriceControl_FO!AC$15 -> 0 | CI99: =+U99*KeyAssumptionsPriceControl_FO!AD$15 -> 1.041512897 | CJ99: =+V99*KeyAssumptionsPriceControl_FO!AE$15 -> 0 | CK99: =+W99*KeyAssumptionsPriceControl_FO!AF$15 -> 0 | CL99: =+X99*KeyAssumptionsPriceControl_FO!AG$15 -> 0 | CN99: 0 | CO99: 0 | CP99: 0 | CQ99: 0 | CR99: 0 | CS99: 0 | CT99: 0.05207564485 | CU99: 0.1041512897 | CV99: 0.1041512897 | CW99: 0.1041512897
C100: Intangible | E100: Water | F100: Growth | G100: Corporate | H100: Other Capital expenditure | J100: Straight line | K100: 2025-26 | L100: 10 | M100: 10 | V100: 0.88825 | AV100: 0 | AW100: 0 | AX100: 0 | AY100: 0 | AZ100: 0 | BA100: 0 | BB100: 0 | BC100: 0.88825 | BD100: 0 | BE100: 0 | BG100: 0 | BH100: 0 | BI100: 0 | BJ100: 0 | BK100: 0 | BL100: 0 | BM100: 0 | BN100: 0.0444125 | BO100: 0.088825 | BP100: 0.088825 | BR100: =+IF($K100="Ongoing",AV100,IF(RIGHT($K100,2)=RIGHT(BR$39,2),SUM($AV100:AV100),0)+IF(RIGHT(BR$39,2)>RIGHT($K100,2),AV100,0)) -> 0 | BS100: =+IF($K100="Ongoing",AW100,IF(RIGHT($K100,2)=RIGHT(BS$39,2),SUM($AV100:AW100),0)+IF(RIGHT(BS$39,2)>RIGHT($K100,2),AW100,0)) -> 0 | BT100: =+IF($K100="Ongoing",AX100,IF(RIGHT($K100,2)=RIGHT(BT$39,2),SUM($AV100:AX100),0)+IF(RIGHT(BT$39,2)>RIGHT($K100,2),AX100,0)) -> 0 | BU100: =+IF($K100="Ongoing",AY100,IF(RIGHT($K100,2)=RIGHT(BU$39,2),SUM($AV100:AY100),0)+IF(RIGHT(BU$39,2)>RIGHT($K100,2),AY100,0)) -> 0 | BV100: =+IF($K100="Ongoing",AZ100,IF(RIGHT($K100,2)=RIGHT(BV$39,2),SUM($AV100:AZ100),0)+IF(RIGHT(BV$39,2)>RIGHT($K100,2),AZ100,0)) -> 0 | BW100: =+IF($K100="Ongoing",BA100,IF(RIGHT($K100,2)=RIGHT(BW$39,2),SUM($AV100:BA100),0)+IF(RIGHT(BW$39,2)>RIGHT($K100,2),BA100,0)) -> 0 | BX100: =+IF($K100="Ongoing",BB100,IF(RIGHT($K100,2)=RIGHT(BX$39,2),SUM($AV100:BB100),0)+IF(RIGHT(BX$39,2)>RIGHT($K100,2),BB100,0)) -> 0 | BY100: =+IF($K100="Ongoing",BC100,IF(RIGHT($K100,2)=RIGHT(BY$39,2),SUM($AV100:BC100),0)+IF(RIGHT(BY$39,2)>RIGHT($K100,2),BC100,0)) -> 0.88825 | BZ100: =+IF($K100="Ongoing",BD100,IF(RIGHT($K100,2)=RIGHT(BZ$39,2),SUM($AV100:BD100),0)+IF(RIGHT(BZ$39,2)>RIGHT($K100,2),BD100,0)) -> 0 | CA100: =+IF($K100="Ongoing",BE100,IF(RIGHT($K100,2)=RIGHT(CA$39,2),SUM($AV100:BE100),0)+IF(RIGHT(CA$39,2)>RIGHT($K100,2),BE100,0)) -> 0 | CC100: =+O100*KeyAssumptionsPriceControl_FO!X$15 -> 0 | CD100: =+P100*KeyAssumptionsPriceControl_FO!Y$15 -> 0 | CE100: =+Q100*KeyAssumptionsPriceControl_FO!Z$15 -> 0 | CF100: =+R100*KeyAssumptionsPriceControl_FO!AA$15 -> 0 | CG100: =+S100*KeyAssumptionsPriceControl_FO!AB$15 -> 0 | CH100: =+T100*KeyAssumptionsPriceControl_FO!AC$15 -> 0 | CI100: =+U100*KeyAssumptionsPriceControl_FO!AD$15 -> 0 | CJ100: =+V100*KeyAssumptionsPriceControl_FO!AE$15 -> 1.065467694 | CK100: =+W100*KeyAssumptionsPriceControl_FO!AF$15 -> 0 | CL100: =+X100*KeyAssumptionsPriceControl_FO!AG$15 -> 0 | CN100: 0 | CO100: 0 | CP100: 0 | CQ100: 0 | CR100: 0 | CS100: 0 | CT100: 0 | CU100: 0.05327338468 | CV100: 0.1065467694 | CW100: 0.1065467694
C101: Intangible | E101: Water | F101: Growth | G101: Corporate | H101: Other Capital expenditure | J101: Straight line | K101: 2026-27 | L101: 10 | M101: 10 | W101: 0.88825 | AV101: 0 | AW101: 0 | AX101: 0 | AY101: 0 | AZ101: 0 | BA101: 0 | BB101: 0 | BC101: 0 | BD101: 0.88825 | BE101: 0 | BG101: 0 | BH101: 0 | BI101: 0 | BJ101: 0 | BK101: 0 | BL101: 0 | BM101: 0 | BN101: 0 | BO101: 0.0444125 | BP101: 0.088825 | BR101: =+IF($K101="Ongoing",AV101,IF(RIGHT($K101,2)=RIGHT(BR$39,2),SUM($AV101:AV101),0)+IF(RIGHT(BR$39,2)>RIGHT($K101,2),AV101,0)) -> 0 | BS101: =+IF($K101="Ongoing",AW101,IF(RIGHT($K101,2)=RIGHT(BS$39,2),SUM($AV101:AW101),0)+IF(RIGHT(BS$39,2)>RIGHT($K101,2),AW101,0)) -> 0 | BT101: =+IF($K101="Ongoing",AX101,IF(RIGHT($K101,2)=RIGHT(BT$39,2),SUM($AV101:AX101),0)+IF(RIGHT(BT$39,2)>RIGHT($K101,2),AX101,0)) -> 0 | BU101: =+IF($K101="Ongoing",AY101,IF(RIGHT($K101,2)=RIGHT(BU$39,2),SUM($AV101:AY101),0)+IF(RIGHT(BU$39,2)>RIGHT($K101,2),AY101,0)) -> 0 | BV101: =+IF($K101="Ongoing",AZ101,IF(RIGHT($K101,2)=RIGHT(BV$39,2),SUM($AV101:AZ101),0)+IF(RIGHT(BV$39,2)>RIGHT($K101,2),AZ101,0)) -> 0 | BW101: =+IF($K101="Ongoing",BA101,IF(RIGHT($K101,2)=RIGHT(BW$39,2),SUM($AV101:BA101),0)+IF(RIGHT(BW$39,2)>RIGHT($K101,2),BA101,0)) -> 0 | BX101: =+IF($K101="Ongoing",BB101,IF(RIGHT($K101,2)=RIGHT(BX$39,2),SUM($AV101:BB101),0)+IF(RIGHT(BX$39,2)>RIGHT($K101,2),BB101,0)) -> 0 | BY101: =+IF($K101="Ongoing",BC101,IF(RIGHT($K101,2)=RIGHT(BY$39,2),SUM($AV101:BC101),0)+IF(RIGHT(BY$39,2)>RIGHT($K101,2),BC101,0)) -> 0 | BZ101: =+IF($K101="Ongoing",BD101,IF(RIGHT($K101,2)=RIGHT(BZ$39,2),SUM($AV101:BD101),0)+IF(RIGHT(BZ$39,2)>RIGHT($K101,2),BD101,0)) -> 0.88825 | CA101: =+IF($K101="Ongoing",BE101,IF(RIGHT($K101,2)=RIGHT(CA$39,2),SUM($AV101:BE101),0)+IF(RIGHT(CA$39,2)>RIGHT($K101,2),BE101,0)) -> 0 | CC101: =+O101*KeyAssumptionsPriceControl_FO!X$15 -> 0 | CD101: =+P101*KeyAssumptionsPriceControl_FO!Y$15 -> 0 | CE101: =+Q101*KeyAssumptionsPriceControl_FO!Z$15 -> 0 | CF101: =+R101*KeyAssumptionsPriceControl_FO!AA$15 -> 0 | CG101: =+S101*KeyAssumptionsPriceControl_FO!AB$15 -> 0 | CH101: =+T101*KeyAssumptionsPriceControl_FO!AC$15 -> 0 | CI101: =+U101*KeyAssumptionsPriceControl_FO!AD$15 -> 0 | CJ101: =+V101*KeyAssumptionsPriceControl_FO!AE$15 -> 0 | CK101: =+W101*KeyAssumptionsPriceControl_FO!AF$15 -> 1.089973451 | CL101: =+X101*KeyAssumptionsPriceControl_FO!AG$15 -> 0 | CN101: 0 | CO101: 0 | CP101: 0 | CQ101: 0 | CR101: 0 | CS101: 0 | CT101: 0 | CU101: 0 | CV101: 0.05449867253 | CW101: 0.1089973451
C102: Intangible | E102: Water | F102: Growth | G102: Corporate | H102: Other Capital expenditure | J102: Straight line | K102: 2027-28 | L102: 10 | M102: 10 | X102: 0.88825 | AV102: 0 | AW102: 0 | AX102: 0 | AY102: 0 | AZ102: 0 | BA102: 0 | BB102: 0 | BC102: 0 | BD102: 0 | BE102: 0.88825 | BG102: 0 | BH102: 0 | BI102: 0 | BJ102: 0 | BK102: 0 | BL102: 0 | BM102: 0 | BN102: 0 | BO102: 0 | BP102: 0.0444125 | BR102: =+IF($K102="Ongoing",AV102,IF(RIGHT($K102,2)=RIGHT(BR$39,2),SUM($AV102:AV102),0)+IF(RIGHT(BR$39,2)>RIGHT($K102,2),AV102,0)) -> 0 | BS102: =+IF($K102="Ongoing",AW102,IF(RIGHT($K102,2)=RIGHT(BS$39,2),SUM($AV102:AW102),0)+IF(RIGHT(BS$39,2)>RIGHT($K102,2),AW102,0)) -> 0 | BT102: =+IF($K102="Ongoing",AX102,IF(RIGHT($K102,2)=RIGHT(BT$39,2),SUM($AV102:AX102),0)+IF(RIGHT(BT$39,2)>RIGHT($K102,2),AX102,0)) -> 0 | BU102: =+IF($K102="Ongoing",AY102,IF(RIGHT($K102,2)=RIGHT(BU$39,2),SUM($AV102:AY102),0)+IF(RIGHT(BU$39,2)>RIGHT($K102,2),AY102,0)) -> 0 | BV102: =+IF($K102="Ongoing",AZ102,IF(RIGHT($K102,2)=RIGHT(BV$39,2),SUM($AV102:AZ102),0)+IF(RIGHT(BV$39,2)>RIGHT($K102,2),AZ102,0)) -> 0 | BW102: =+IF($K102="Ongoing",BA102,IF(RIGHT($K102,2)=RIGHT(BW$39,2),SUM($AV102:BA102),0)+IF(RIGHT(BW$39,2)>RIGHT($K102,2),BA102,0)) -> 0 | BX102: =+IF($K102="Ongoing",BB102,IF(RIGHT($K102,2)=RIGHT(BX$39,2),SUM($AV102:BB102),0)+IF(RIGHT(BX$39,2)>RIGHT($K102,2),BB102,0)) -> 0 | BY102: =+IF($K102="Ongoing",BC102,IF(RIGHT($K102,2)=RIGHT(BY$39,2),SUM($AV102:BC102),0)+IF(RIGHT(BY$39,2)>RIGHT($K102,2),BC102,0)) -> 0 | BZ102: =+IF($K102="Ongoing",BD102,IF(RIGHT($K102,2)=RIGHT(BZ$39,2),SUM($AV102:BD102),0)+IF(RIGHT(BZ$39,2)>RIGHT($K102,2),BD102,0)) -> 0 | CA102: =+IF($K102="Ongoing",BE102,IF(RIGHT($K102,2)=RIGHT(CA$39,2),SUM($AV102:BE102),0)+IF(RIGHT(CA$39,2)>RIGHT($K102,2),BE102,0)) -> 0.88825 | CC102: =+O102*KeyAssumptionsPriceControl_FO!X$15 -> 0 | CD102: =+P102*KeyAssumptionsPriceControl_FO!Y$15 -> 0 | CE102: =+Q102*KeyAssumptionsPriceControl_FO!Z$15 -> 0 | CF102: =+R102*KeyAssumptionsPriceControl_FO!AA$15 -> 0 | CG102: =+S102*KeyAssumptionsPriceControl_FO!AB$15 -> 0 | CH102: =+T102*KeyAssumptionsPriceControl_FO!AC$15 -> 0 | CI102: =+U102*KeyAssumptionsPriceControl_FO!AD$15 -> 0 | CJ102: =+V102*KeyAssumptionsPriceControl_FO!AE$15 -> 0 | CK102: =+W102*KeyAssumptionsPriceControl_FO!AF$15 -> 0 | CL102: =+X102*KeyAssumptionsPriceControl_FO!AG$15 -> 1.11504284 | CN102: 0 | CO102: 0 | CP102: 0 | CQ102: 0 | CR102: 0 | CS102: 0 | CT102: 0 | CU102: 0 | CV102: 0 | CW102: 0.055752142
C103: WW Treatment | E103: Sewerage | F103: Renewals | G103: Treatment | H103: Capital Programs / Allocation | J103: Straight line | K103: 2018-19 | L103: 50 | M103: 50 | O103: 0.625 | AV103: 0.625 | AW103: 0 | AX103: 0 | AY103: 0 | AZ103: 0 | BA103: 0 | BB103: 0 | BC103: 0 | BD103: 0 | BE103: 0 | BG103: 0.00625 | BH103: 0.0125 | BI103: 0.0125 | BJ103: 0.0125 | BK103: 0.0125 | BL103: 0.0125 | BM103: 0.0125 | BN103: 0.0125 | BO103: 0.0125 | BP103: 0.0125 | BR103: =+IF($K103="Ongoing",AV103,IF(RIGHT($K103,2)=RIGHT(BR$39,2),SUM($AV103:AV103),0)+IF(RIGHT(BR$39,2)>RIGHT($K103,2),AV103,0)) -> 0.625 | BS103: =+IF($K103="Ongoing",AW103,IF(RIGHT($K103,2)=RIGHT(BS$39,2),SUM($AV103:AW103),0)+IF(RIGHT(BS$39,2)>RIGHT($K103,2),AW103,0)) -> 0 | BT103: =+IF($K103="Ongoing",AX103,IF(RIGHT($K103,2)=RIGHT(BT$39,2),SUM($AV103:AX103),0)+IF(RIGHT(BT$39,2)>RIGHT($K103,2),AX103,0)) -> 0 | BU103: =+IF($K103="Ongoing",AY103,IF(RIGHT($K103,2)=RIGHT(BU$39,2),SUM($AV103:AY103),0)+IF(RIGHT(BU$39,2)>RIGHT($K103,2),AY103,0)) -> 0 | BV103: =+IF($K103="Ongoing",AZ103,IF(RIGHT($K103,2)=RIGHT(BV$39,2),SUM($AV103:AZ103),0)+IF(RIGHT(BV$39,2)>RIGHT($K103,2),AZ103,0)) -> 0 | BW103: =+IF($K103="Ongoing",BA103,IF(RIGHT($K103,2)=RIGHT(BW$39,2),SUM($AV103:BA103),0)+IF(RIGHT(BW$39,2)>RIGHT($K103,2),BA103,0)) -> 0 | BX103: =+IF($K103="Ongoing",BB103,IF(RIGHT($K103,2)=RIGHT(BX$39,2),SUM($AV103:BB103),0)+IF(RIGHT(BX$39,2)>RIGHT($K103,2),BB103,0)) -> 0 | BY103: =+IF($K103="Ongoing",BC103,IF(RIGHT($K103,2)=RIGHT(BY$39,2),SUM($AV103:BC103),0)+IF(RIGHT(BY$39,2)>RIGHT($K103,2),BC103,0)) -> 0 | BZ103: =+IF($K103="Ongoing",BD103,IF(RIGHT($K103,2)=RIGHT(BZ$39,2),SUM($AV103:BD103),0)+IF(RIGHT(BZ$39,2)>RIGHT($K103,2),BD103,0)) -> 0 | CA103: =+IF($K103="Ongoing",BE103,IF(RIGHT($K103,2)=RIGHT(CA$39,2),SUM($AV103:BE103),0)+IF(RIGHT(CA$39,2)>RIGHT($K103,2),BE103,0)) -> 0 | CC103: =+O103*KeyAssumptionsPriceControl_FO!X$15 -> 0.639375 | CD103: =+P103*KeyAssumptionsPriceControl_FO!Y$15 -> 0 | CE103: =+Q103*KeyAssumptionsPriceControl_FO!Z$15 -> 0 | CF103: =+R103*KeyAssumptionsPriceControl_FO!AA$15 -> 0 | CG103: =+S103*KeyAssumptionsPriceControl_FO!AB$15 -> 0 | CH103: =+T103*KeyAssumptionsPriceControl_FO!AC$15 -> 0 | CI103: =+U103*KeyAssumptionsPriceControl_FO!AD$15 -> 0 | CJ103: =+V103*KeyAssumptionsPriceControl_FO!AE$15 -> 0 | CK103: =+W103*KeyAssumptionsPriceControl_FO!AF$15 -> 0 | CL103: =+X103*KeyAssumptionsPriceControl_FO!AG$15 -> 0 | CN103: 0.00639375 | CO103: 0.0127875 | CP103: 0.0127875 | CQ103: 0.0127875 | CR103: 0.0127875 | CS103: 0.0127875 | CT103: 0.0127875 | CU103: 0.0127875 | CV103: 0.0127875 | CW103: 0.0127875
C104: WW Treatment | E104: Sewerage | F104: Renewals | G104: Treatment | H104: Capital Programs / Allocation | J104: Straight line | K104: 2019-20 | L104: 50 | M104: 50 | P104: 0.592 | AV104: 0 | AW104: 0.592 | AX104: 0 | AY104: 0 | AZ104: 0 | BA104: 0 | BB104: 0 | BC104: 0 | BD104: 0 | BE104: 0 | BG104: 0 | BH104: 0.00592 | BI104: 0.01184 | BJ104: 0.01184 | BK104: 0.01184 | BL104: 0.01184 | BM104: 0.01184 | BN104: 0.01184 | BO104: 0.01184 | BP104: 0.01184 | BR104: =+IF($K104="Ongoing",AV104,IF(RIGHT($K104,2)=RIGHT(BR$39,2),SUM($AV104:AV104),0)+IF(RIGHT(BR$39,2)>RIGHT($K104,2),AV104,0)) -> 0 | BS104: =+IF($K104="Ongoing",AW104,IF(RIGHT($K104,2)=RIGHT(BS$39,2),SUM($AV104:AW104),0)+IF(RIGHT(BS$39,2)>RIGHT($K104,2),AW104,0)) -> 0.592 | BT104: =+IF($K104="Ongoing",AX104,IF(RIGHT($K104,2)=RIGHT(BT$39,2),SUM($AV104:AX104),0)+IF(RIGHT(BT$39,2)>RIGHT($K104,2),AX104,0)) -> 0 | BU104: =+IF($K104="Ongoing",AY104,IF(RIGHT($K104,2)=RIGHT(BU$39,2),SUM($AV104:AY104),0)+IF(RIGHT(BU$39,2)>RIGHT($K104,2),AY104,0)) -> 0 | BV104: =+IF($K104="Ongoing",AZ104,IF(RIGHT($K104,2)=RIGHT(BV$39,2),SUM($AV104:AZ104),0)+IF(RIGHT(BV$39,2)>RIGHT($K104,2),AZ104,0)) -> 0 | BW104: =+IF($K104="Ongoing",BA104,IF(RIGHT($K104,2)=RIGHT(BW$39,2),SUM($AV104:BA104),0)+IF(RIGHT(BW$39,2)>RIGHT($K104,2),BA104,0)) -> 0 | BX104: =+IF($K104="Ongoing",BB104,IF(RIGHT($K104,2)=RIGHT(BX$39,2),SUM($AV104:BB104),0)+IF(RIGHT(BX$39,2)>RIGHT($K104,2),BB104,0)) -> 0 | BY104: =+IF($K104="Ongoing",BC104,IF(RIGHT($K104,2)=RIGHT(BY$39,2),SUM($AV104:BC104),0)+IF(RIGHT(BY$39,2)>RIGHT($K104,2),BC104,0)) -> 0 | BZ104: =+IF($K104="Ongoing",BD104,IF(RIGHT($K104,2)=RIGHT(BZ$39,2),SUM($AV104:BD104),0)+IF(RIGHT(BZ$39,2)>RIGHT($K104,2),BD104,0)) -> 0 | CA104: =+IF($K104="Ongoing",BE104,IF(RIGHT($K104,2)=RIGHT(CA$39,2),SUM($AV104:BE104),0)+IF(RIGHT(CA$39,2)>RIGHT($K104,2),BE104,0)) -> 0 | CC104: =+O104*KeyAssumptionsPriceControl_FO!X$15 -> 0 | CD104: =+P104*KeyAssumptionsPriceControl_FO!Y$15 -> 0.619545168 | CE104: =+Q104*KeyAssumptionsPriceControl_FO!Z$15 -> 0 | CF104: =+R104*KeyAssumptionsPriceControl_FO!AA$15 -> 0 | CG104: =+S104*KeyAssumptionsPriceControl_FO!AB$15 -> 0 | CH104: =+T104*KeyAssumptionsPriceControl_FO!AC$15 -> 0 | CI104: =+U104*KeyAssumptionsPriceControl_FO!AD$15 -> 0 | CJ104: =+V104*KeyAssumptionsPriceControl_FO!AE$15 -> 0 | CK104: =+W104*KeyAssumptionsPriceControl_FO!AF$15 -> 0 | CL104: =+X104*KeyAssumptionsPriceControl_FO!AG$15 -> 0 | CN104: 0 | CO104: 0.00619545168 | CP104: 0.01239090336 | CQ104: 0.01239090336 | CR104: 0.01239090336 | CS104: 0.01239090336 | CT104: 0.01239090336 | CU104: 0.01239090336 | CV104: 0.01239090336 | CW104: 0.01239090336
C105: WW Treatment | E105: Sewerage | F105: Renewals | G105: Treatment | H105: Capital Programs / Allocation | J105: Straight line | K105: 2020-21 | L105: 50 | M105: 50 | Q105: 0.901667 | AV105: 0 | AW105: 0 | AX105: 0.901667 | AY105: 0 | AZ105: 0 | BA105: 0 | BB105: 0 | BC105: 0 | BD105: 0 | BE105: 0 | BG105: 0 | BH105: 0 | BI105: 0.00901667 | BJ105: 0.01803334 | BK105: 0.01803334 | BL105: 0.01803334 | BM105: 0.01803334 | BN105: 0.01803334 | BO105: 0.01803334 | BP105: 0.01803334 | BR105: =+IF($K105="Ongoing",AV105,IF(RIGHT($K105,2)=RIGHT(BR$39,2),SUM($AV105:AV105),0)+IF(RIGHT(BR$39,2)>RIGHT($K105,2),AV105,0)) -> 0 | BS105: =+IF($K105="Ongoing",AW105,IF(RIGHT($K105,2)=RIGHT(BS$39,2),SUM($AV105:AW105),0)+IF(RIGHT(BS$39,2)>RIGHT($K105,2),AW105,0)) -> 0 | BT105: =+IF($K105="Ongoing",AX105,IF(RIGHT($K105,2)=RIGHT(BT$39,2),SUM($AV105:AX105),0)+IF(RIGHT(BT$39,2)>RIGHT($K105,2),AX105,0)) -> 0.901667 | BU105: =+IF($K105="Ongoing",AY105,IF(RIGHT($K105,2)=RIGHT(BU$39,2),SUM($AV105:AY105),0)+IF(RIGHT(BU$39,2)>RIGHT($K105,2),AY105,0)) -> 0 | BV105: =+IF($K105="Ongoing",AZ105,IF(RIGHT($K105,2)=RIGHT(BV$39,2),SUM($AV105:AZ105),0)+IF(RIGHT(BV$39,2)>RIGHT($K105,2),AZ105,0)) -> 0 | BW105: =+IF($K105="Ongoing",BA105,IF(RIGHT($K105,2)=RIGHT(BW$39,2),SUM($AV105:BA105),0)+IF(RIGHT(BW$39,2)>RIGHT($K105,2),BA105,0)) -> 0 | BX105: =+IF($K105="Ongoing",BB105,IF(RIGHT($K105,2)=RIGHT(BX$39,2),SUM($AV105:BB105),0)+IF(RIGHT(BX$39,2)>RIGHT($K105,2),BB105,0)) -> 0 | BY105: =+IF($K105="Ongoing",BC105,IF(RIGHT($K105,2)=RIGHT(BY$39,2),SUM($AV105:BC105),0)+IF(RIGHT(BY$39,2)>RIGHT($K105,2),BC105,0)) -> 0 | BZ105: =+IF($K105="Ongoing",BD105,IF(RIGHT($K105,2)=RIGHT(BZ$39,2),SUM($AV105:BD105),0)+IF(RIGHT(BZ$39,2)>RIGHT($K105,2),BD105,0)) -> 0 | CA105: =+IF($K105="Ongoing",BE105,IF(RIGHT($K105,2)=RIGHT(CA$39,2),SUM($AV105:BE105),0)+IF(RIGHT(CA$39,2)>RIGHT($K105,2),BE105,0)) -> 0 | CC105: =+O105*KeyAssumptionsPriceControl_FO!X$15 -> 0 | CD105: =+P105*KeyAssumptionsPriceControl_FO!Y$15 -> 0 | CE105: =+Q105*KeyAssumptionsPriceControl_FO!Z$15 -> 0.9653239391 | CF105: =+R105*KeyAssumptionsPriceControl_FO!AA$15 -> 0 | CG105: =+S105*KeyAssumptionsPriceControl_FO!AB$15 -> 0 | CH105: =+T105*KeyAssumptionsPriceControl_FO!AC$15 -> 0 | CI105: =+U105*KeyAssumptionsPriceControl_FO!AD$15 -> 0 | CJ105: =+V105*KeyAssumptionsPriceControl_FO!AE$15 -> 0 | CK105: =+W105*KeyAssumptionsPriceControl_FO!AF$15 -> 0 | CL105: =+X105*KeyAssumptionsPriceControl_FO!AG$15 -> 0 | CN105: 0 | CO105: 0 | CP105: 0.009653239391 | CQ105: 0.01930647878 | CR105: 0.01930647878 | CS105: 0.01930647878 | CT105: 0.01930647878 | CU105: 0.01930647878 | CV105: 0.01930647878 | CW105: 0.01930647878
C106: WW Treatment | E106: Sewerage | F106: Renewals | G106: Treatment | H106: Capital Programs / Allocation | J106: Straight line | K106: 2021-22 | L106: 50 | M106: 50 | R106: 1.031667 | AV106: 0 | AW106: 0 | AX106: 0 | AY106: 1.031667 | AZ106: 0 | BA106: 0 | BB106: 0 | BC106: 0 | BD106: 0 | BE106: 0 | BG106: 0 | BH106: 0 | BI106: 0 | BJ106: 0.01031667 | BK106: 0.02063334 | BL106: 0.02063334 | BM106: 0.02063334 | BN106: 0.02063334 | BO106: 0.02063334 | BP106: 0.02063334 | BR106: =+IF($K106="Ongoing",AV106,IF(RIGHT($K106,2)=RIGHT(BR$39,2),SUM($AV106:AV106),0)+IF(RIGHT(BR$39,2)>RIGHT($K106,2),AV106,0)) -> 0 | BS106: =+IF($K106="Ongoing",AW106,IF(RIGHT($K106,2)=RIGHT(BS$39,2),SUM($AV106:AW106),0)+IF(RIGHT(BS$39,2)>RIGHT($K106,2),AW106,0)) -> 0 | BT106: =+IF($K106="Ongoing",AX106,IF(RIGHT($K106,2)=RIGHT(BT$39,2),SUM($AV106:AX106),0)+IF(RIGHT(BT$39,2)>RIGHT($K106,2),AX106,0)) -> 0 | BU106: =+IF($K106="Ongoing",AY106,IF(RIGHT($K106,2)=RIGHT(BU$39,2),SUM($AV106:AY106),0)+IF(RIGHT(BU$39,2)>RIGHT($K106,2),AY106,0)) -> 1.031667 | BV106: =+IF($K106="Ongoing",AZ106,IF(RIGHT($K106,2)=RIGHT(BV$39,2),SUM($AV106:AZ106),0)+IF(RIGHT(BV$39,2)>RIGHT($K106,2),AZ106,0)) -> 0 | BW106: =+IF($K106="Ongoing",BA106,IF(RIGHT($K106,2)=RIGHT(BW$39,2),SUM($AV106:BA106),0)+IF(RIGHT(BW$39,2)>RIGHT($K106,2),BA106,0)) -> 0 | BX106: =+IF($K106="Ongoing",BB106,IF(RIGHT($K106,2)=RIGHT(BX$39,2),SUM($AV106:BB106),0)+IF(RIGHT(BX$39,2)>RIGHT($K106,2),BB106,0)) -> 0 | BY106: =+IF($K106="Ongoing",BC106,IF(RIGHT($K106,2)=RIGHT(BY$39,2),SUM($AV106:BC106),0)+IF(RIGHT(BY$39,2)>RIGHT($K106,2),BC106,0)) -> 0 | BZ106: =+IF($K106="Ongoing",BD106,IF(RIGHT($K106,2)=RIGHT(BZ$39,2),SUM($AV106:BD106),0)+IF(RIGHT(BZ$39,2)>RIGHT($K106,2),BD106,0)) -> 0 | CA106: =+IF($K106="Ongoing",BE106,IF(RIGHT($K106,2)=RIGHT(CA$39,2),SUM($AV106:BE106),0)+IF(RIGHT(CA$39,2)>RIGHT($K106,2),BE106,0)) -> 0 | CC106: =+O106*KeyAssumptionsPriceControl_FO!X$15 -> 0 | CD106: =+P106*KeyAssumptionsPriceControl_FO!Y$15 -> 0 | CE106: =+Q106*KeyAssumptionsPriceControl_FO!Z$15 -> 0 | CF106: =+R106*KeyAssumptionsPriceControl_FO!AA$15 -> 1.129905373 | CG106: =+S106*KeyAssumptionsPriceControl_FO!AB$15 -> 0 | CH106: =+T106*KeyAssumptionsPriceControl_FO!AC$15 -> 0 | CI106: =+U106*KeyAssumptionsPriceControl_FO!AD$15 -> 0 | CJ106: =+V106*KeyAssumptionsPriceControl_FO!AE$15 -> 0 | CK106: =+W106*KeyAssumptionsPriceControl_FO!AF$15 -> 0 | CL106: =+X106*KeyAssumptionsPriceControl_FO!AG$15 -> 0 | CN106: 0 | CO106: 0 | CP106: 0 | CQ106: 0.01129905373 | CR106: 0.02259810746 | CS106: 0.02259810746 | CT106: 0.02259810746 | CU106: 0.02259810746 | CV106: 0.02259810746 | CW106: 0.02259810746
C107: WW Treatment | E107: Sewerage | F107: Renewals | G107: Treatment | H107: Capital Programs / Allocation | J107: Straight line | K107: 2022-23 | L107: 50 | M107: 50 | S107: 1.734667 | AV107: 0 | AW107: 0 | AX107: 0 | AY107: 0 | AZ107: 1.734667 | BA107: 0 | BB107: 0 | BC107: 0 | BD107: 0 | BE107: 0 | BG107: =IF($L107=0,0, IF($L107<=0.5,BR107, IF($J107="straight line", IF((LEFT(BG$39,4)*1)-INT($L107)<LEFT($BG$39,4)*1,0,((OFFSET(BR107,0,-INT($L107+0.5),1,1))/$L107)*(IF($L107-INT($L107)>0.5,$L107-0.5-INT($L107),IF($L107-INT($L107)<=0.5,$L107-0.5-INT($L107)+1,0)))) +BR107/$L107*0.5, IF($J107="Declining Balance",-$BG$38,0)))) -> 0 | BH107: 0 | BI107: 0 | BJ107: 0 | BK107: 0.01734667 | BL107: 0.03469334 | BM107: 0.03469334 | BN107: 0.03469334 | BO107: 0.03469334 | BP107: 0.03469334 | BR107: =+IF($K107="Ongoing",AV107,IF(RIGHT($K107,2)=RIGHT(BR$39,2),SUM($AV107:AV107),0)+IF(RIGHT(BR$39,2)>RIGHT($K107,2),AV107,0)) -> 0 | BS107: =+IF($K107="Ongoing",AW107,IF(RIGHT($K107,2)=RIGHT(BS$39,2),SUM($AV107:AW107),0)+IF(RIGHT(BS$39,2)>RIGHT($K107,2),AW107,0)) -> 0 | BT107: =+IF($K107="Ongoing",AX107,IF(RIGHT($K107,2)=RIGHT(BT$39,2),SUM($AV107:AX107),0)+IF(RIGHT(BT$39,2)>RIGHT($K107,2),AX107,0)) -> 0 | BU107: =+IF($K107="Ongoing",AY107,IF(RIGHT($K107,2)=RIGHT(BU$39,2),SUM($AV107:AY107),0)+IF(RIGHT(BU$39,2)>RIGHT($K107,2),AY107,0)) -> 0 | BV107: =+IF($K107="Ongoing",AZ107,IF(RIGHT($K107,2)=RIGHT(BV$39,2),SUM($AV107:AZ107),0)+IF(RIGHT(BV$39,2)>RIGHT($K107,2),AZ107,0)) -> 1.734667 | BW107: =+IF($K107="Ongoing",BA107,IF(RIGHT($K107,2)=RIGHT(BW$39,2),SUM($AV107:BA107),0)+IF(RIGHT(BW$39,2)>RIGHT($K107,2),BA107,0)) -> 0 | BX107: =+IF($K107="Ongoing",BB107,IF(RIGHT($K107,2)=RIGHT(BX$39,2),SUM($AV107:BB107),0)+IF(RIGHT(BX$39,2)>RIGHT($K107,2),BB107,0)) -> 0 | BY107: =+IF($K107="Ongoing",BC107,IF(RIGHT($K107,2)=RIGHT(BY$39,2),SUM($AV107:BC107),0)+IF(RIGHT(BY$39,2)>RIGHT($K107,2),BC107,0)) -> 0 | BZ107: =+IF($K107="Ongoing",BD107,IF(RIGHT($K107,2)=RIGHT(BZ$39,2),SUM($AV107:BD107),0)+IF(RIGHT(BZ$39,2)>RIGHT($K107,2),BD107,0)) -> 0 | CA107: =+IF($K107="Ongoing",BE107,IF(RIGHT($K107,2)=RIGHT(CA$39,2),SUM($AV107:BE107),0)+IF(RIGHT(CA$39,2)>RIGHT($K107,2),BE107,0)) -> 0 | CC107: =+O107*KeyAssumptionsPriceControl_FO!X$15 -> 0 | CD107: =+P107*KeyAssumptionsPriceControl_FO!Y$15 -> 0 | CE107: =+Q107*KeyAssumptionsPriceControl_FO!Z$15 -> 0 | CF107: =+R107*KeyAssumptionsPriceControl_FO!AA$15 -> 0 | CG107: =+S107*KeyAssumptionsPriceControl_FO!AB$15 -> 1.943543589 | CH107: =+T107*KeyAssumptionsPriceControl_FO!AC$15 -> 0 | CI107: =+U107*KeyAssumptionsPriceControl_FO!AD$15 -> 0 | CJ107: =+V107*KeyAssumptionsPriceControl_FO!AE$15 -> 0 | CK107: =+W107*KeyAssumptionsPriceControl_FO!AF$15 -> 0 | CL107: =+X107*KeyAssumptionsPriceControl_FO!AG$15 -> 0 | CN107: =IF($M107=0,0, IF($M107<=0.5,CC107, IF($J107="straight line", IF((LEFT(CN$39,4)*1)-INT($M107)<LEFT($CN$39,4)*1,0,((OFFSET(CC107,0,-INT($M107+0.5),1,1))/$M107)*(IF($M107-INT($M107)>0.5,$M107-0.5-INT($M107),IF($M107-INT($M107)<=0.5,$M107-0.5-INT($M107)+1,0)))) +CC107/$M107*0.5, IF($J107="Declining Balance",-$CN$38,0)))) -> 0 | CO107: 0 | CP107: 0 | CQ107: 0 | CR107: 0.01943543589 | CS107: 0.03887087177 | CT107: 0.03887087177 | CU107: 0.03887087177 | CV107: 0.03887087177 | CW107: 0.03887087177
C108: WW Treatment | E108: Sewerage | F108: Renewals | G108: Treatment | H108: Capital Programs / Allocation | J108: Straight line | K108: 2023-24 | L108: 50 | M108: 50 | T108: 1.888 | AV108: 0 | AW108: 0 | AX108: 0 | AY108: 0 | AZ108: 0 | BA108: 1.888 | BB108: 0 | BC108: 0 | BD108: 0 | BE108: 0 | BG108: 0 | BH108: 0 | BI108: 0 | BJ108: 0 | BK108: 0 | BL108: 0.01888 | BM108: 0.03776 | BN108: 0.03776 | BO108: 0.03776 | BP108: 0.03776 | BR108: =+IF($K108="Ongoing",AV108,IF(RIGHT($K108,2)=RIGHT(BR$39,2),SUM($AV108:AV108),0)+IF(RIGHT(BR$39,2)>RIGHT($K108,2),AV108,0)) -> 0 | BS108: =+IF($K108="Ongoing",AW108,IF(RIGHT($K108,2)=RIGHT(BS$39,2),SUM($AV108:AW108),0)+IF(RIGHT(BS$39,2)>RIGHT($K108,2),AW108,0)) -> 0 | BT108: =+IF($K108="Ongoing",AX108,IF(RIGHT($K108,2)=RIGHT(BT$39,2),SUM($AV108:AX108),0)+IF(RIGHT(BT$39,2)>RIGHT($K108,2),AX108,0)) -> 0 | BU108: =+IF($K108="Ongoing",AY108,IF(RIGHT($K108,2)=RIGHT(BU$39,2),SUM($AV108:AY108),0)+IF(RIGHT(BU$39,2)>RIGHT($K108,2),AY108,0)) -> 0 | BV108: =+IF($K108="Ongoing",AZ108,IF(RIGHT($K108,2)=RIGHT(BV$39,2),SUM($AV108:AZ108),0)+IF(RIGHT(BV$39,2)>RIGHT($K108,2),AZ108,0)) -> 0 | BW108: =+IF($K108="Ongoing",BA108,IF(RIGHT($K108,2)=RIGHT(BW$39,2),SUM($AV108:BA108),0)+IF(RIGHT(BW$39,2)>RIGHT($K108,2),BA108,0)) -> 1.888 | BX108: =+IF($K108="Ongoing",BB108,IF(RIGHT($K108,2)=RIGHT(BX$39,2),SUM($AV108:BB108),0)+IF(RIGHT(BX$39,2)>RIGHT($K108,2),BB108,0)) -> 0 | BY108: =+IF($K108="Ongoing",BC108,IF(RIGHT($K108,2)=RIGHT(BY$39,2),SUM($AV108:BC108),0)+IF(RIGHT(BY$39,2)>RIGHT($K108,2),BC108,0)) -> 0 | BZ108: =+IF($K108="Ongoing",BD108,IF(RIGHT($K108,2)=RIGHT(BZ$39,2),SUM($AV108:BD108),0)+IF(RIGHT(BZ$39,2)>RIGHT($K108,2),BD108,0)) -> 0 | CA108: =+IF($K108="Ongoing",BE108,IF(RIGHT($K108,2)=RIGHT(CA$39,2),SUM($AV108:BE108),0)+IF(RIGHT(CA$39,2)>RIGHT($K108,2),BE108,0)) -> 0 | CC108: =+O108*KeyAssumptionsPriceControl_FO!X$15 -> 0 | CD108: =+P108*KeyAssumptionsPriceControl_FO!Y$15 -> 0 | CE108: =+Q108*KeyAssumptionsPriceControl_FO!Z$15 -> 0 | CF108: =+R108*KeyAssumptionsPriceControl_FO!AA$15 -> 0 | CG108: =+S108*KeyAssumptionsPriceControl_FO!AB$15 -> 0 | CH108: =+T108*KeyAssumptionsPriceControl_FO!AC$15 -> 2.163992704 | CI108: =+U108*KeyAssumptionsPriceControl_FO!AD$15 -> 0 | CJ108: =+V108*KeyAssumptionsPriceControl_FO!AE$15 -> 0 | CK108: =+W108*KeyAssumptionsPriceControl_FO!AF$15 -> 0 | CL108: =+X108*KeyAssumptionsPriceControl_FO!AG$15 -> 0 | CN108: 0 | CO108: 0 | CP108: 0 | CQ108: 0 | CR108: 0 | CS108: 0.02163992704 | CT108: 0.04327985408 | CU108: 0.04327985408 | CV108: 0.04327985408 | CW108: 0.04327985408
C109: WW Treatment | E109: Sewerage | F109: Renewals | G109: Treatment | H109: Capital Programs / Allocation | J109: Straight line | K109: 2024-25 | L109: 50 | M109: 50 | U109: 1.988 | AV109: 0 | AW109: 0 | AX109: 0 | AY109: 0 | AZ109: 0 | BA109: 0 | BB109: 1.988 | BC109: 0 | BD109: 0 | BE109: 0 | BG109: 0 | BH109: 0 | BI109: 0 | BJ109: 0 | BK109: 0 | BL109: 0 | BM109: 0.01988 | BN109: 0.03976 | BO109: 0.03976 | BP109: 0.03976 | BR109: =+IF($K109="Ongoing",AV109,IF(RIGHT($K109,2)=RIGHT(BR$39,2),SUM($AV109:AV109),0)+IF(RIGHT(BR$39,2)>RIGHT($K109,2),AV109,0)) -> 0 | BS109: =+IF($K109="Ongoing",AW109,IF(RIGHT($K109,2)=RIGHT(BS$39,2),SUM($AV109:AW109),0)+IF(RIGHT(BS$39,2)>RIGHT($K109,2),AW109,0)) -> 0 | BT109: =+IF($K109="Ongoing",AX109,IF(RIGHT($K109,2)=RIGHT(BT$39,2),SUM($AV109:AX109),0)+IF(RIGHT(BT$39,2)>RIGHT($K109,2),AX109,0)) -> 0 | BU109: =+IF($K109="Ongoing",AY109,IF(RIGHT($K109,2)=RIGHT(BU$39,2),SUM($AV109:AY109),0)+IF(RIGHT(BU$39,2)>RIGHT($K109,2),AY109,0)) -> 0 | BV109: =+IF($K109="Ongoing",AZ109,IF(RIGHT($K109,2)=RIGHT(BV$39,2),SUM($AV109:AZ109),0)+IF(RIGHT(BV$39,2)>RIGHT($K109,2),AZ109,0)) -> 0 | BW109: =+IF($K109="Ongoing",BA109,IF(RIGHT($K109,2)=RIGHT(BW$39,2),SUM($AV109:BA109),0)+IF(RIGHT(BW$39,2)>RIGHT($K109,2),BA109,0)) -> 0 | BX109: =+IF($K109="Ongoing",BB109,IF(RIGHT($K109,2)=RIGHT(BX$39,2),SUM($AV109:BB109),0)+IF(RIGHT(BX$39,2)>RIGHT($K109,2),BB109,0)) -> 1.988 | BY109: =+IF($K109="Ongoing",BC109,IF(RIGHT($K109,2)=RIGHT(BY$39,2),SUM($AV109:BC109),0)+IF(RIGHT(BY$39,2)>RIGHT($K109,2),BC109,0)) -> 0 | BZ109: =+IF($K109="Ongoing",BD109,IF(RIGHT($K109,2)=RIGHT(BZ$39,2),SUM($AV109:BD109),0)+IF(RIGHT(BZ$39,2)>RIGHT($K109,2),BD109,0)) -> 0 | CA109: =+IF($K109="Ongoing",BE109,IF(RIGHT($K109,2)=RIGHT(CA$39,2),SUM($AV109:BE109),0)+IF(RIGHT(CA$39,2)>RIGHT($K109,2),BE109,0)) -> 0 | CC109: =+O109*KeyAssumptionsPriceControl_FO!X$15 -> 0 | CD109: =+P109*KeyAssumptionsPriceControl_FO!Y$15 -> 0 | CE109: =+Q109*KeyAssumptionsPriceControl_FO!Z$15 -> 0 | CF109: =+R109*KeyAssumptionsPriceControl_FO!AA$15 -> 0 | CG109: =+S109*KeyAssumptionsPriceControl_FO!AB$15 -> 0 | CH109: =+T109*KeyAssumptionsPriceControl_FO!AC$15 -> 0 | CI109: =+U109*KeyAssumptionsPriceControl_FO!AD$15 -> 2.331019014 | CJ109: =+V109*KeyAssumptionsPriceControl_FO!AE$15 -> 0 | CK109: =+W109*KeyAssumptionsPriceControl_FO!AF$15 -> 0 | CL109: =+X109*KeyAssumptionsPriceControl_FO!AG$15 -> 0 | CN109: 0 | CO109: 0 | CP109: 0 | CQ109: 0 | CR109: 0 | CS109: 0 | CT109: 0.02331019014 | CU109: 0.04662038028 | CV109: 0.04662038028 | CW109: 0.04662038028
C110: WW Treatment | E110: Sewerage | F110: Renewals | G110: Treatment | H110: Capital Programs / Allocation | J110: Straight line | K110: 2025-26 | L110: 50 | M110: 50 | V110: 2.138 | AV110: 0 | AW110: 0 | AX110: 0 | AY110: 0 | AZ110: =+S110-AD110-AO110 -> 0 | BA110: 0 | BB110: 0 | BC110: 2.138 | BD110: 0 | BE110: 0 | BG110: 0 | BH110: 0 | BI110: 0 | BJ110: 0 | BK110: 0 | BL110: 0 | BM110: 0 | BN110: 0.02138 | BO110: 0.04276 | BP110: 0.04276 | BR110: =+IF($K110="Ongoing",AV110,IF(RIGHT($K110,2)=RIGHT(BR$39,2),SUM($AV110:AV110),0)+IF(RIGHT(BR$39,2)>RIGHT($K110,2),AV110,0)) -> 0 | BS110: =+IF($K110="Ongoing",AW110,IF(RIGHT($K110,2)=RIGHT(BS$39,2),SUM($AV110:AW110),0)+IF(RIGHT(BS$39,2)>RIGHT($K110,2),AW110,0)) -> 0 | BT110: =+IF($K110="Ongoing",AX110,IF(RIGHT($K110,2)=RIGHT(BT$39,2),SUM($AV110:AX110),0)+IF(RIGHT(BT$39,2)>RIGHT($K110,2),AX110,0)) -> 0 | BU110: =+IF($K110="Ongoing",AY110,IF(RIGHT($K110,2)=RIGHT(BU$39,2),SUM($AV110:AY110),0)+IF(RIGHT(BU$39,2)>RIGHT($K110,2),AY110,0)) -> 0 | BV110: =+IF($K110="Ongoing",AZ110,IF(RIGHT($K110,2)=RIGHT(BV$39,2),SUM($AV110:AZ110),0)+IF(RIGHT(BV$39,2)>RIGHT($K110,2),AZ110,0)) -> 0 | BW110: =+IF($K110="Ongoing",BA110,IF(RIGHT($K110,2)=RIGHT(BW$39,2),SUM($AV110:BA110),0)+IF(RIGHT(BW$39,2)>RIGHT($K110,2),BA110,0)) -> 0 | BX110: =+IF($K110="Ongoing",BB110,IF(RIGHT($K110,2)=RIGHT(BX$39,2),SUM($AV110:BB110),0)+IF(RIGHT(BX$39,2)>RIGHT($K110,2),BB110,0)) -> 0 | BY110: =+IF($K110="Ongoing",BC110,IF(RIGHT($K110,2)=RIGHT(BY$39,2),SUM($AV110:BC110),0)+IF(RIGHT(BY$39,2)>RIGHT($K110,2),BC110,0)) -> 2.138 | BZ110: =+IF($K110="Ongoing",BD110,IF(RIGHT($K110,2)=RIGHT(BZ$39,2),SUM($AV110:BD110),0)+IF(RIGHT(BZ$39,2)>RIGHT($K110,2),BD110,0)) -> 0 | CA110: =+IF($K110="Ongoing",BE110,IF(RIGHT($K110,2)=RIGHT(CA$39,2),SUM($AV110:BE110),0)+IF(RIGHT(CA$39,2)>RIGHT($K110,2),BE110,0)) -> 0 | CC110: =+O110*KeyAssumptionsPriceControl_FO!X$15 -> 0 | CD110: =+P110*KeyAssumptionsPriceControl_FO!Y$15 -> 0 | CE110: =+Q110*KeyAssumptionsPriceControl_FO!Z$15 -> 0 | CF110: =+R110*KeyAssumptionsPriceControl_FO!AA$15 -> 0 | CG110: =+S110*KeyAssumptionsPriceControl_FO!AB$15 -> 0 | CH110: =+T110*KeyAssumptionsPriceControl_FO!AC$15 -> 0 | CI110: =+U110*KeyAssumptionsPriceControl_FO!AD$15 -> 0 | CJ110: =+V110*KeyAssumptionsPriceControl_FO!AE$15 -> 2.564559447 | CK110: =+W110*KeyAssumptionsPriceControl_FO!AF$15 -> 0 | CL110: =+X110*KeyAssumptionsPriceControl_FO!AG$15 -> 0 | CN110: 0 | CO110: 0 | CP110: 0 | CQ110: 0 | CR110: 0 | CS110: 0 | CT110: 0 | CU110: 0.02564559447 | CV110: 0.05129118894 | CW110: 0.05129118894
C111: WW Treatment | E111: Sewerage | F111: Renewals | G111: Treatment | H111: Capital Programs / Allocation | J111: Straight line | K111: 2026-27 | L111: 50 | M111: 50 | W111: 2.647 | AV111: 0 | AW111: 0 | AX111: 0 | AY111: 0 | AZ111: 0 | BA111: 0 | BB111: 0 | BC111: 0 | BD111: 2.647 | BE111: 0 | BG111: 0 | BH111: 0 | BI111: 0 | BJ111: 0 | BK111: 0 | BL111: 0 | BM111: 0 | BN111: 0 | BO111: 0.02647 | BP111: 0.05294 | BR111: =+IF($K111="Ongoing",AV111,IF(RIGHT($K111,2)=RIGHT(BR$39,2),SUM($AV111:AV111),0)+IF(RIGHT(BR$39,2)>RIGHT($K111,2),AV111,0)) -> 0 | BS111: =+IF($K111="Ongoing",AW111,IF(RIGHT($K111,2)=RIGHT(BS$39,2),SUM($AV111:AW111),0)+IF(RIGHT(BS$39,2)>RIGHT($K111,2),AW111,0)) -> 0 | BT111: =+IF($K111="Ongoing",AX111,IF(RIGHT($K111,2)=RIGHT(BT$39,2),SUM($AV111:AX111),0)+IF(RIGHT(BT$39,2)>RIGHT($K111,2),AX111,0)) -> 0 | BU111: =+IF($K111="Ongoing",AY111,IF(RIGHT($K111,2)=RIGHT(BU$39,2),SUM($AV111:AY111),0)+IF(RIGHT(BU$39,2)>RIGHT($K111,2),AY111,0)) -> 0 | BV111: =+IF($K111="Ongoing",AZ111,IF(RIGHT($K111,2)=RIGHT(BV$39,2),SUM($AV111:AZ111),0)+IF(RIGHT(BV$39,2)>RIGHT($K111,2),AZ111,0)) -> 0 | BW111: =+IF($K111="Ongoing",BA111,IF(RIGHT($K111,2)=RIGHT(BW$39,2),SUM($AV111:BA111),0)+IF(RIGHT(BW$39,2)>RIGHT($K111,2),BA111,0)) -> 0 | BX111: =+IF($K111="Ongoing",BB111,IF(RIGHT($K111,2)=RIGHT(BX$39,2),SUM($AV111:BB111),0)+IF(RIGHT(BX$39,2)>RIGHT($K111,2),BB111,0)) -> 0 | BY111: =+IF($K111="Ongoing",BC111,IF(RIGHT($K111,2)=RIGHT(BY$39,2),SUM($AV111:BC111),0)+IF(RIGHT(BY$39,2)>RIGHT($K111,2),BC111,0)) -> 0 | BZ111: =+IF($K111="Ongoing",BD111,IF(RIGHT($K111,2)=RIGHT(BZ$39,2),SUM($AV111:BD111),0)+IF(RIGHT(BZ$39,2)>RIGHT($K111,2),BD111,0)) -> 2.647 | CA111: =+IF($K111="Ongoing",BE111,IF(RIGHT($K111,2)=RIGHT(CA$39,2),SUM($AV111:BE111),0)+IF(RIGHT(CA$39,2)>RIGHT($K111,2),BE111,0)) -> 0 | CC111: =+O111*KeyAssumptionsPriceControl_FO!X$15 -> 0 | CD111: =+P111*KeyAssumptionsPriceControl_FO!Y$15 -> 0 | CE111: =+Q111*KeyAssumptionsPriceControl_FO!Z$15 -> 0 | CF111: =+R111*KeyAssumptionsPriceControl_FO!AA$15 -> 0 | CG111: =+S111*KeyAssumptionsPriceControl_FO!AB$15 -> 0 | CH111: =+T111*KeyAssumptionsPriceControl_FO!AC$15 -> 0 | CI111: =+U111*KeyAssumptionsPriceControl_FO!AD$15 -> 0 | CJ111: =+V111*KeyAssumptionsPriceControl_FO!AE$15 -> 0 | CK111: =+W111*KeyAssumptionsPriceControl_FO!AF$15 -> 3.248139289 | CL111: =+X111*KeyAssumptionsPriceControl_FO!AG$15 -> 0 | CN111: 0 | CO111: 0 | CP111: 0 | CQ111: 0 | CR111: 0 | CS111: 0 | CT111: 0 | CU111: 0 | CV111: 0.03248139289 | CW111: 0.06496278578
C112: WW Treatment | E112: Sewerage | F112: Renewals | G112: Treatment | H112: Capital Programs / Allocation | J112: Straight line | K112: 2027-28 | L112: 50 | M112: 50 | X112: 1.263 | AV112: 0 | AW112: 0 | AX112: 0 | AY112: 0 | AZ112: 0 | BA112: 0 | BB112: 0 | BC112: 0 | BD112: 0 | BE112: 1.263 | BG112: 0 | BH112: 0 | BI112: 0 | BJ112: 0 | BK112: 0 | BL112: 0 | BM112: 0 | BN112: 0 | BO112: 0 | BP112: 0.01263 | BR112: =+IF($K112="Ongoing",AV112,IF(RIGHT($K112,2)=RIGHT(BR$39,2),SUM($AV112:AV112),0)+IF(RIGHT(BR$39,2)>RIGHT($K112,2),AV112,0)) -> 0 | BS112: =+IF($K112="Ongoing",AW112,IF(RIGHT($K112,2)=RIGHT(BS$39,2),SUM($AV112:AW112),0)+IF(RIGHT(BS$39,2)>RIGHT($K112,2),AW112,0)) -> 0 | BT112: =+IF($K112="Ongoing",AX112,IF(RIGHT($K112,2)=RIGHT(BT$39,2),SUM($AV112:AX112),0)+IF(RIGHT(BT$39,2)>RIGHT($K112,2),AX112,0)) -> 0 | BU112: =+IF($K112="Ongoing",AY112,IF(RIGHT($K112,2)=RIGHT(BU$39,2),SUM($AV112:AY112),0)+IF(RIGHT(BU$39,2)>RIGHT($K112,2),AY112,0)) -> 0 | BV112: =+IF($K112="Ongoing",AZ112,IF(RIGHT($K112,2)=RIGHT(BV$39,2),SUM($AV112:AZ112),0)+IF(RIGHT(BV$39,2)>RIGHT($K112,2),AZ112,0)) -> 0 | BW112: =+IF($K112="Ongoing",BA112,IF(RIGHT($K112,2)=RIGHT(BW$39,2),SUM($AV112:BA112),0)+IF(RIGHT(BW$39,2)>RIGHT($K112,2),BA112,0)) -> 0 | BX112: =+IF($K112="Ongoing",BB112,IF(RIGHT($K112,2)=RIGHT(BX$39,2),SUM($AV112:BB112),0)+IF(RIGHT(BX$39,2)>RIGHT($K112,2),BB112,0)) -> 0 | BY112: =+IF($K112="Ongoing",BC112,IF(RIGHT($K112,2)=RIGHT(BY$39,2),SUM($AV112:BC112),0)+IF(RIGHT(BY$39,2)>RIGHT($K112,2),BC112,0)) -> 0 | BZ112: =+IF($K112="Ongoing",BD112,IF(RIGHT($K112,2)=RIGHT(BZ$39,2),SUM($AV112:BD112),0)+IF(RIGHT(BZ$39,2)>RIGHT($K112,2),BD112,0)) -> 0 | CA112: =+IF($K112="Ongoing",BE112,IF(RIGHT($K112,2)=RIGHT(CA$39,2),SUM($AV112:BE112),0)+IF(RIGHT(CA$39,2)>RIGHT($K112,2),BE112,0)) -> 1.263 | CC112: =+O112*KeyAssumptionsPriceControl_FO!X$15 -> 0 | CD112: =+P112*KeyAssumptionsPriceControl_FO!Y$15 -> 0 | CE112: =+Q112*KeyAssumptionsPriceControl_FO!Z$15 -> 0 | CF112: =+R112*KeyAssumptionsPriceControl_FO!AA$15 -> 0 | CG112: =+S112*KeyAssumptionsPriceControl_FO!AB$15 -> 0 | CH112: =+T112*KeyAssumptionsPriceControl_FO!AC$15 -> 0 | CI112: =+U112*KeyAssumptionsPriceControl_FO!AD$15 -> 0 | CJ112: =+V112*KeyAssumptionsPriceControl_FO!AE$15 -> 0 | CK112: =+W112*KeyAssumptionsPriceControl_FO!AF$15 -> 0 | CL112: =+X112*KeyAssumptionsPriceControl_FO!AG$15 -> 1.585476056 | CN112: 0 | CO112: 0 | CP112: 0 | CQ112: 0 | CR112: 0 | CS112: 0 | CT112: 0 | CU112: 0 | CV112: 0 | CW112: 0.01585476056
C113: Storages | E113: Water | F113: Renewals | G113: Headworks | H113: Capital Programs / Allocation | J113: Straight line | K113: 2018-19 | L113: 100 | M113: 100 | O113: 1.185 | AV113: 1.185 | AW113: 0 | AX113: 0 | AY113: 0 | AZ113: 0 | BA113: 0 | BB113: 0 | BC113: 0 | BD113: 0 | BE113: 0 | BG113: 0.005925 | BH113: 0.01185 | BI113: 0.01185 | BJ113: 0.01185 | BK113: 0.01185 | BL113: 0.01185 | BM113: 0.01185 | BN113: 0.01185 | BO113: 0.01185 | BP113: 0.01185 | BR113: =+IF($K113="Ongoing",AV113,IF(RIGHT($K113,2)=RIGHT(BR$39,2),SUM($AV113:AV113),0)+IF(RIGHT(BR$39,2)>RIGHT($K113,2),AV113,0)) -> 1.185 | BS113: =+IF($K113="Ongoing",AW113,IF(RIGHT($K113,2)=RIGHT(BS$39,2),SUM($AV113:AW113),0)+IF(RIGHT(BS$39,2)>RIGHT($K113,2),AW113,0)) -> 0 | BT113: =+IF($K113="Ongoing",AX113,IF(RIGHT($K113,2)=RIGHT(BT$39,2),SUM($AV113:AX113),0)+IF(RIGHT(BT$39,2)>RIGHT($K113,2),AX113,0)) -> 0 | BU113: =+IF($K113="Ongoing",AY113,IF(RIGHT($K113,2)=RIGHT(BU$39,2),SUM($AV113:AY113),0)+IF(RIGHT(BU$39,2)>RIGHT($K113,2),AY113,0)) -> 0 | BV113: =+IF($K113="Ongoing",AZ113,IF(RIGHT($K113,2)=RIGHT(BV$39,2),SUM($AV113:AZ113),0)+IF(RIGHT(BV$39,2)>RIGHT($K113,2),AZ113,0)) -> 0 | BW113: =+IF($K113="Ongoing",BA113,IF(RIGHT($K113,2)=RIGHT(BW$39,2),SUM($AV113:BA113),0)+IF(RIGHT(BW$39,2)>RIGHT($K113,2),BA113,0)) -> 0 | BX113: =+IF($K113="Ongoing",BB113,IF(RIGHT($K113,2)=RIGHT(BX$39,2),SUM($AV113:BB113),0)+IF(RIGHT(BX$39,2)>RIGHT($K113,2),BB113,0)) -> 0 | BY113: =+IF($K113="Ongoing",BC113,IF(RIGHT($K113,2)=RIGHT(BY$39,2),SUM($AV113:BC113),0)+IF(RIGHT(BY$39,2)>RIGHT($K113,2),BC113,0)) -> 0 | BZ113: =+IF($K113="Ongoing",BD113,IF(RIGHT($K113,2)=RIGHT(BZ$39,2),SUM($AV113:BD113),0)+IF(RIGHT(BZ$39,2)>RIGHT($K113,2),BD113,0)) -> 0 | CA113: =+IF($K113="Ongoing",BE113,IF(RIGHT($K113,2)=RIGHT(CA$39,2),SUM($AV113:BE113),0)+IF(RIGHT(CA$39,2)>RIGHT($K113,2),BE113,0)) -> 0 | CC113: =+O113*KeyAssumptionsPriceControl_FO!X$15 -> 1.212255 | CD113: =+P113*KeyAssumptionsPriceControl_FO!Y$15 -> 0 | CE113: =+Q113*KeyAssumptionsPriceControl_FO!Z$15 -> 0 | CF113: =+R113*KeyAssumptionsPriceControl_FO!AA$15 -> 0 | CG113: =+S113*KeyAssumptionsPriceControl_FO!AB$15 -> 0 | CH113: =+T113*KeyAssumptionsPriceControl_FO!AC$15 -> 0 | CI113: =+U113*KeyAssumptionsPriceControl_FO!AD$15 -> 0 | CJ113: =+V113*KeyAssumptionsPriceControl_FO!AE$15 -> 0 | CK113: =+W113*KeyAssumptionsPriceControl_FO!AF$15 -> 0 | CL113: =+X113*KeyAssumptionsPriceControl_FO!AG$15 -> 0 | CN113: 0.006061275 | CO113: 0.01212255 | CP113: 0.01212255 | CQ113: 0.01212255 | CR113: 0.01212255 | CS113: 0.01212255 | CT113: 0.01212255 | CU113: 0.01212255 | CV113: 0.01212255 | CW113: 0.01212255
C114: Storages | E114: Water | F114: Renewals | G114: Headworks | H114: Capital Programs / Allocation | J114: Straight line | K114: 2019-20 | L114: 100 | M114: 100 | P114: 1.077 | AV114: 0 | AW114: 1.077 | AX114: 0 | AY114: 0 | AZ114: 0 | BA114: 0 | BB114: 0 | BC114: 0 | BD114: 0 | BE114: 0 | BG114: 0 | BH114: 0.005385 | BI114: 0.01077 | BJ114: 0.01077 | BK114: 0.01077 | BL114: 0.01077 | BM114: 0.01077 | BN114: 0.01077 | BO114: 0.01077 | BP114: 0.01077 | BR114: =+IF($K114="Ongoing",AV114,IF(RIGHT($K114,2)=RIGHT(BR$39,2),SUM($AV114:AV114),0)+IF(RIGHT(BR$39,2)>RIGHT($K114,2),AV114,0)) -> 0 | BS114: =+IF($K114="Ongoing",AW114,IF(RIGHT($K114,2)=RIGHT(BS$39,2),SUM($AV114:AW114),0)+IF(RIGHT(BS$39,2)>RIGHT($K114,2),AW114,0)) -> 1.077 | BT114: =+IF($K114="Ongoing",AX114,IF(RIGHT($K114,2)=RIGHT(BT$39,2),SUM($AV114:AX114),0)+IF(RIGHT(BT$39,2)>RIGHT($K114,2),AX114,0)) -> 0 | BU114: =+IF($K114="Ongoing",AY114,IF(RIGHT($K114,2)=RIGHT(BU$39,2),SUM($AV114:AY114),0)+IF(RIGHT(BU$39,2)>RIGHT($K114,2),AY114,0)) -> 0 | BV114: =+IF($K114="Ongoing",AZ114,IF(RIGHT($K114,2)=RIGHT(BV$39,2),SUM($AV114:AZ114),0)+IF(RIGHT(BV$39,2)>RIGHT($K114,2),AZ114,0)) -> 0 | BW114: =+IF($K114="Ongoing",BA114,IF(RIGHT($K114,2)=RIGHT(BW$39,2),SUM($AV114:BA114),0)+IF(RIGHT(BW$39,2)>RIGHT($K114,2),BA114,0)) -> 0 | BX114: =+IF($K114="Ongoing",BB114,IF(RIGHT($K114,2)=RIGHT(BX$39,2),SUM($AV114:BB114),0)+IF(RIGHT(BX$39,2)>RIGHT($K114,2),BB114,0)) -> 0 | BY114: =+IF($K114="Ongoing",BC114,IF(RIGHT($K114,2)=RIGHT(BY$39,2),SUM($AV114:BC114),0)+IF(RIGHT(BY$39,2)>RIGHT($K114,2),BC114,0)) -> 0 | BZ114: =+IF($K114="Ongoing",BD114,IF(RIGHT($K114,2)=RIGHT(BZ$39,2),SUM($AV114:BD114),0)+IF(RIGHT(BZ$39,2)>RIGHT($K114,2),BD114,0)) -> 0 | CA114: =+IF($K114="Ongoing",BE114,IF(RIGHT($K114,2)=RIGHT(CA$39,2),SUM($AV114:BE114),0)+IF(RIGHT(CA$39,2)>RIGHT($K114,2),BE114,0)) -> 0 | CC114: =+O114*KeyAssumptionsPriceControl_FO!X$15 -> 0 | CD114: =+P114*KeyAssumptionsPriceControl_FO!Y$15 -> 1.127111733 | CE114: =+Q114*KeyAssumptionsPriceControl_FO!Z$15 -> 0 | CF114: =+R114*KeyAssumptionsPriceControl_FO!AA$15 -> 0 | CG114: =+S114*KeyAssumptionsPriceControl_FO!AB$15 -> 0 | CH114: =+T114*KeyAssumptionsPriceControl_FO!AC$15 -> 0 | CI114: =+U114*KeyAssumptionsPriceControl_FO!AD$15 -> 0 | CJ114: =+V114*KeyAssumptionsPriceControl_FO!AE$15 -> 0 | CK114: =+W114*KeyAssumptionsPriceControl_FO!AF$15 -> 0 | CL114: =+X114*KeyAssumptionsPriceControl_FO!AG$15 -> 0 | CN114: 0 | CO114: 0.005635558665 | CP114: 0.01127111733 | CQ114: 0.01127111733 | CR114: 0.01127111733 | CS114: 0.01127111733 | CT114: 0.01127111733 | CU114: 0.01127111733 | CV114: 0.01127111733 | CW114: 0.01127111733
C115: Storages | E115: Water | F115: Renewals | G115: Headworks | H115: Capital Programs / Allocation | J115: Straight line | K115: 2020-21 | L115: 100 | M115: 100 | Q115: 0.345 | AV115: 0 | AW115: 0 | AX115: 0.345 | AY115: 0 | AZ115: 0 | BA115: 0 | BB115: 0 | BC115: 0 | BD115: 0 | BE115: 0 | BG115: 0 | BH115: 0 | BI115: 0.001725 | BJ115: 0.00345 | BK115: 0.00345 | BL115: 0.00345 | BM115: 0.00345 | BN115: 0.00345 | BO115: 0.00345 | BP115: 0.00345 | BR115: =+IF($K115="Ongoing",AV115,IF(RIGHT($K115,2)=RIGHT(BR$39,2),SUM($AV115:AV115),0)+IF(RIGHT(BR$39,2)>RIGHT($K115,2),AV115,0)) -> 0 | BS115: =+IF($K115="Ongoing",AW115,IF(RIGHT($K115,2)=RIGHT(BS$39,2),SUM($AV115:AW115),0)+IF(RIGHT(BS$39,2)>RIGHT($K115,2),AW115,0)) -> 0 | BT115: =+IF($K115="Ongoing",AX115,IF(RIGHT($K115,2)=RIGHT(BT$39,2),SUM($AV115:AX115),0)+IF(RIGHT(BT$39,2)>RIGHT($K115,2),AX115,0)) -> 0.345 | BU115: =+IF($K115="Ongoing",AY115,IF(RIGHT($K115,2)=RIGHT(BU$39,2),SUM($AV115:AY115),0)+IF(RIGHT(BU$39,2)>RIGHT($K115,2),AY115,0)) -> 0 | BV115: =+IF($K115="Ongoing",AZ115,IF(RIGHT($K115,2)=RIGHT(BV$39,2),SUM($AV115:AZ115),0)+IF(RIGHT(BV$39,2)>RIGHT($K115,2),AZ115,0)) -> 0 | BW115: =+IF($K115="Ongoing",BA115,IF(RIGHT($K115,2)=RIGHT(BW$39,2),SUM($AV115:BA115),0)+IF(RIGHT(BW$39,2)>RIGHT($K115,2),BA115,0)) -> 0 | BX115: =+IF($K115="Ongoing",BB115,IF(RIGHT($K115,2)=RIGHT(BX$39,2),SUM($AV115:BB115),0)+IF(RIGHT(BX$39,2)>RIGHT($K115,2),BB115,0)) -> 0 | BY115: =+IF($K115="Ongoing",BC115,IF(RIGHT($K115,2)=RIGHT(BY$39,2),SUM($AV115:BC115),0)+IF(RIGHT(BY$39,2)>RIGHT($K115,2),BC115,0)) -> 0 | BZ115: =+IF($K115="Ongoing",BD115,IF(RIGHT($K115,2)=RIGHT(BZ$39,2),SUM($AV115:BD115),0)+IF(RIGHT(BZ$39,2)>RIGHT($K115,2),BD115,0)) -> 0 | CA115: =+IF($K115="Ongoing",BE115,IF(RIGHT($K115,2)=RIGHT(CA$39,2),SUM($AV115:BE115),0)+IF(RIGHT(CA$39,2)>RIGHT($K115,2),BE115,0)) -> 0 | CC115: =+O115*KeyAssumptionsPriceControl_FO!X$15 -> 0 | CD115: =+P115*KeyAssumptionsPriceControl_FO!Y$15 -> 0 | CE115: =+Q115*KeyAssumptionsPriceControl_FO!Z$15 -> 0.3693567126 | CF115: =+R115*KeyAssumptionsPriceControl_FO!AA$15 -> 0 | CG115: =+S115*KeyAssumptionsPriceControl_FO!AB$15 -> 0 | CH115: =+T115*KeyAssumptionsPriceControl_FO!AC$15 -> 0 | CI115: =+U115*KeyAssumptionsPriceControl_FO!AD$15 -> 0 | CJ115: =+V115*KeyAssumptionsPriceControl_FO!AE$15 -> 0 | CK115: =+W115*KeyAssumptionsPriceControl_FO!AF$15 -> 0 | CL115: =+X115*KeyAssumptionsPriceControl_FO!AG$15 -> 0 | CN115: 0 | CO115: 0 | CP115: 0.001846783563 | CQ115: 0.003693567126 | CR115: 0.003693567126 | CS115: 0.003693567126 | CT115: 0.003693567126 | CU115: 0.003693567126 | CV115: 0.003693567126 | CW115: 0.003693567126
C116: Storages | E116: Water | F116: Renewals | G116: Headworks | H116: Capital Programs / Allocation | J116: Straight line | K116: 2021-22 | L116: 100 | M116: 100 | R116: 0.575 | AV116: 0 | AW116: 0 | AX116: 0 | AY116: 0.575 | AZ116: 0 | BA116: 0 | BB116: 0 | BC116: 0 | BD116: 0 | BE116: 0 | BG116: 0 | BH116: 0 | BI116: 0 | BJ116: 0.002875 | BK116: 0.00575 | BL116: 0.00575 | BM116: 0.00575 | BN116: 0.00575 | BO116: 0.00575 | BP116: 0.00575 | BR116: =+IF($K116="Ongoing",AV116,IF(RIGHT($K116,2)=RIGHT(BR$39,2),SUM($AV116:AV116),0)+IF(RIGHT(BR$39,2)>RIGHT($K116,2),AV116,0)) -> 0 | BS116: =+IF($K116="Ongoing",AW116,IF(RIGHT($K116,2)=RIGHT(BS$39,2),SUM($AV116:AW116),0)+IF(RIGHT(BS$39,2)>RIGHT($K116,2),AW116,0)) -> 0 | BT116: =+IF($K116="Ongoing",AX116,IF(RIGHT($K116,2)=RIGHT(BT$39,2),SUM($AV116:AX116),0)+IF(RIGHT(BT$39,2)>RIGHT($K116,2),AX116,0)) -> 0 | BU116: =+IF($K116="Ongoing",AY116,IF(RIGHT($K116,2)=RIGHT(BU$39,2),SUM($AV116:AY116),0)+IF(RIGHT(BU$39,2)>RIGHT($K116,2),AY116,0)) -> 0.575 | BV116: =+IF($K116="Ongoing",AZ116,IF(RIGHT($K116,2)=RIGHT(BV$39,2),SUM($AV116:AZ116),0)+IF(RIGHT(BV$39,2)>RIGHT($K116,2),AZ116,0)) -> 0 | BW116: =+IF($K116="Ongoing",BA116,IF(RIGHT($K116,2)=RIGHT(BW$39,2),SUM($AV116:BA116),0)+IF(RIGHT(BW$39,2)>RIGHT($K116,2),BA116,0)) -> 0 | BX116: =+IF($K116="Ongoing",BB116,IF(RIGHT($K116,2)=RIGHT(BX$39,2),SUM($AV116:BB116),0)+IF(RIGHT(BX$39,2)>RIGHT($K116,2),BB116,0)) -> 0 | BY116: =+IF($K116="Ongoing",BC116,IF(RIGHT($K116,2)=RIGHT(BY$39,2),SUM($AV116:BC116),0)+IF(RIGHT(BY$39,2)>RIGHT($K116,2),BC116,0)) -> 0 | BZ116: =+IF($K116="Ongoing",BD116,IF(RIGHT($K116,2)=RIGHT(BZ$39,2),SUM($AV116:BD116),0)+IF(RIGHT(BZ$39,2)>RIGHT($K116,2),BD116,0)) -> 0 | CA116: =+IF($K116="Ongoing",BE116,IF(RIGHT($K116,2)=RIGHT(CA$39,2),SUM($AV116:BE116),0)+IF(RIGHT(CA$39,2)>RIGHT($K116,2),BE116,0)) -> 0 | CC116: =+O116*KeyAssumptionsPriceControl_FO!X$15 -> 0 | CD116: =+P116*KeyAssumptionsPriceControl_FO!Y$15 -> 0 | CE116: =+Q116*KeyAssumptionsPriceControl_FO!Z$15 -> 0 | CF116: =+R116*KeyAssumptionsPriceControl_FO!AA$15 -> 0.629753195 | CG116: =+S116*KeyAssumptionsPriceControl_FO!AB$15 -> 0 | CH116: =+T116*KeyAssumptionsPriceControl_FO!AC$15 -> 0 | CI116: =+U116*KeyAssumptionsPriceControl_FO!AD$15 -> 0 | CJ116: =+V116*KeyAssumptionsPriceControl_FO!AE$15 -> 0 | CK116: =+W116*KeyAssumptionsPriceControl_FO!AF$15 -> 0 | CL116: =+X116*KeyAssumptionsPriceControl_FO!AG$15 -> 0 | CN116: 0 | CO116: 0 | CP116: 0 | CQ116: 0.003148765975 | CR116: 0.00629753195 | CS116: 0.00629753195 | CT116: 0.00629753195 | CU116: 0.00629753195 | CV116: 0.00629753195 | CW116: 0.00629753195
C117: Storages | E117: Water | F117: Renewals | G117: Headworks | H117: Capital Programs / Allocation | J117: Straight line | K117: 2022-23 | L117: 100 | M117: 100 | S117: 0.405 | AV117: 0 | AW117: 0 | AX117: 0 | AY117: 0 | AZ117: 0.405 | BA117: 0 | BB117: 0 | BC117: 0 | BD117: 0 | BE117: 0 | BG117: 0 | BH117: 0 | BI117: 0 | BJ117: 0 | BK117: 0.002025 | BL117: 0.00405 | BM117: 0.00405 | BN117: 0.00405 | BO117: 0.00405 | BP117: 0.00405 | BR117: =+IF($K117="Ongoing",AV117,IF(RIGHT($K117,2)=RIGHT(BR$39,2),SUM($AV117:AV117),0)+IF(RIGHT(BR$39,2)>RIGHT($K117,2),AV117,0)) -> 0 | BS117: =+IF($K117="Ongoing",AW117,IF(RIGHT($K117,2)=RIGHT(BS$39,2),SUM($AV117:AW117),0)+IF(RIGHT(BS$39,2)>RIGHT($K117,2),AW117,0)) -> 0 | BT117: =+IF($K117="Ongoing",AX117,IF(RIGHT($K117,2)=RIGHT(BT$39,2),SUM($AV117:AX117),0)+IF(RIGHT(BT$39,2)>RIGHT($K117,2),AX117,0)) -> 0 | BU117: =+IF($K117="Ongoing",AY117,IF(RIGHT($K117,2)=RIGHT(BU$39,2),SUM($AV117:AY117),0)+IF(RIGHT(BU$39,2)>RIGHT($K117,2),AY117,0)) -> 0 | BV117: =+IF($K117="Ongoing",AZ117,IF(RIGHT($K117,2)=RIGHT(BV$39,2),SUM($AV117:AZ117),0)+IF(RIGHT(BV$39,2)>RIGHT($K117,2),AZ117,0)) -> 0.405 | BW117: =+IF($K117="Ongoing",BA117,IF(RIGHT($K117,2)=RIGHT(BW$39,2),SUM($AV117:BA117),0)+IF(RIGHT(BW$39,2)>RIGHT($K117,2),BA117,0)) -> 0 | BX117: =+IF($K117="Ongoing",BB117,IF(RIGHT($K117,2)=RIGHT(BX$39,2),SUM($AV117:BB117),0)+IF(RIGHT(BX$39,2)>RIGHT($K117,2),BB117,0)) -> 0 | BY117: =+IF($K117="Ongoing",BC117,IF(RIGHT($K117,2)=RIGHT(BY$39,2),SUM($AV117:BC117),0)+IF(RIGHT(BY$39,2)>RIGHT($K117,2),BC117,0)) -> 0 | BZ117: =+IF($K117="Ongoing",BD117,IF(RIGHT($K117,2)=RIGHT(BZ$39,2),SUM($AV117:BD117),0)+IF(RIGHT(BZ$39,2)>RIGHT($K117,2),BD117,0)) -> 0 | CA117: =+IF($K117="Ongoing",BE117,IF(RIGHT($K117,2)=RIGHT(CA$39,2),SUM($AV117:BE117),0)+IF(RIGHT(CA$39,2)>RIGHT($K117,2),BE117,0)) -> 0 | CC117: =+O117*KeyAssumptionsPriceControl_FO!X$15 -> 0 | CD117: =+P117*KeyAssumptionsPriceControl_FO!Y$15 -> 0 | CE117: =+Q117*KeyAssumptionsPriceControl_FO!Z$15 -> 0 | CF117: =+R117*KeyAssumptionsPriceControl_FO!AA$15 -> 0 | CG117: =+S117*KeyAssumptionsPriceControl_FO!AB$15 -> 0.4537672956 | CH117: =+T117*KeyAssumptionsPriceControl_FO!AC$15 -> 0 | CI117: =+U117*KeyAssumptionsPriceControl_FO!AD$15 -> 0 | CJ117: =+V117*KeyAssumptionsPriceControl_FO!AE$15 -> 0 | CK117: =+W117*KeyAssumptionsPriceControl_FO!AF$15 -> 0 | CL117: =+X117*KeyAssumptionsPriceControl_FO!AG$15 -> 0 | CN117: 0 | CO117: 0 | CP117: 0 | CQ117: 0 | CR117: 0.002268836478 | CS117: 0.004537672956 | CT117: 0.004537672956 | CU117: 0.004537672956 | CV117: 0.004537672956 | CW117: 0.004537672956
C118: Storages | E118: Water | F118: Renewals | G118: Headworks | H118: Capital Programs / Allocation | J118: Straight line | K118: 2023-24 | L118: 100 | M118: 100 | T118: 5.627 | AV118: 0 | AW118: 0 | AX118: 0 | AY118: 0 | AZ118: 0 | BA118: 5.627 | BB118: 0 | BC118: 0 | BD118: 0 | BE118: 0 | BG118: 0 | BH118: 0 | BI118: 0 | BJ118: 0 | BK118: 0 | BL118: 0.028135 | BM118: 0.05627 | BN118: 0.05627 | BO118: 0.05627 | BP118: 0.05627 | BR118: =+IF($K118="Ongoing",AV118,IF(RIGHT($K118,2)=RIGHT(BR$39,2),SUM($AV118:AV118),0)+IF(RIGHT(BR$39,2)>RIGHT($K118,2),AV118,0)) -> 0 | BS118: =+IF($K118="Ongoing",AW118,IF(RIGHT($K118,2)=RIGHT(BS$39,2),SUM($AV118:AW118),0)+IF(RIGHT(BS$39,2)>RIGHT($K118,2),AW118,0)) -> 0 | BT118: =+IF($K118="Ongoing",AX118,IF(RIGHT($K118,2)=RIGHT(BT$39,2),SUM($AV118:AX118),0)+IF(RIGHT(BT$39,2)>RIGHT($K118,2),AX118,0)) -> 0 | BU118: =+IF($K118="Ongoing",AY118,IF(RIGHT($K118,2)=RIGHT(BU$39,2),SUM($AV118:AY118),0)+IF(RIGHT(BU$39,2)>RIGHT($K118,2),AY118,0)) -> 0 | BV118: =+IF($K118="Ongoing",AZ118,IF(RIGHT($K118,2)=RIGHT(BV$39,2),SUM($AV118:AZ118),0)+IF(RIGHT(BV$39,2)>RIGHT($K118,2),AZ118,0)) -> 0 | BW118: =+IF($K118="Ongoing",BA118,IF(RIGHT($K118,2)=RIGHT(BW$39,2),SUM($AV118:BA118),0)+IF(RIGHT(BW$39,2)>RIGHT($K118,2),BA118,0)) -> 5.627 | BX118: =+IF($K118="Ongoing",BB118,IF(RIGHT($K118,2)=RIGHT(BX$39,2),SUM($AV118:BB118),0)+IF(RIGHT(BX$39,2)>RIGHT($K118,2),BB118,0)) -> 0 | BY118: =+IF($K118="Ongoing",BC118,IF(RIGHT($K118,2)=RIGHT(BY$39,2),SUM($AV118:BC118),0)+IF(RIGHT(BY$39,2)>RIGHT($K118,2),BC118,0)) -> 0 | BZ118: =+IF($K118="Ongoing",BD118,IF(RIGHT($K118,2)=RIGHT(BZ$39,2),SUM($AV118:BD118),0)+IF(RIGHT(BZ$39,2)>RIGHT($K118,2),BD118,0)) -> 0 | CA118: =+IF($K118="Ongoing",BE118,IF(RIGHT($K118,2)=RIGHT(CA$39,2),SUM($AV118:BE118),0)+IF(RIGHT(CA$39,2)>RIGHT($K118,2),BE118,0)) -> 0 | CC118: =+O118*KeyAssumptionsPriceControl_FO!X$15 -> 0 | CD118: =+P118*KeyAssumptionsPriceControl_FO!Y$15 -> 0 | CE118: =+Q118*KeyAssumptionsPriceControl_FO!Z$15 -> 0 | CF118: =+R118*KeyAssumptionsPriceControl_FO!AA$15 -> 0 | CG118: =+S118*KeyAssumptionsPriceControl_FO!AB$15 -> 0 | CH118: =+T118*KeyAssumptionsPriceControl_FO!AC$15 -> 6.449569357 | CI118: =+U118*KeyAssumptionsPriceControl_FO!AD$15 -> 0 | CJ118: =+V118*KeyAssumptionsPriceControl_FO!AE$15 -> 0 | CK118: =+W118*KeyAssumptionsPriceControl_FO!AF$15 -> 0 | CL118: =+X118*KeyAssumptionsPriceControl_FO!AG$15 -> 0 | CN118: 0 | CO118: 0 | CP118: 0 | CQ118: 0 | CR118: 0 | CS118: 0.03224784679 | CT118: 0.06449569357 | CU118: 0.06449569357 | CV118: 0.06449569357 | CW118: 0.06449569357
C119: Storages | E119: Water | F119: Renewals | G119: Headworks | H119: Capital Programs / Allocation | J119: Straight line | K119: 2024-25 | L119: 100 | M119: 100 | U119: 5.432 | AV119: 0 | AW119: 0 | AX119: 0 | AY119: 0 | AZ119: 0 | BA119: 0 | BB119: 5.432 | BC119: 0 | BD119: 0 | BE119: 0 | BG119: 0 | BH119: 0 | BI119: 0 | BJ119: 0 | BK119: 0 | BL119: 0 | BM119: 0.02716 | BN119: 0.05432 | BO119: 0.05432 | BP119: 0.05432 | BR119: =+IF($K119="Ongoing",AV119,IF(RIGHT($K119,2)=RIGHT(BR$39,2),SUM($AV119:AV119),0)+IF(RIGHT(BR$39,2)>RIGHT($K119,2),AV119,0)) -> 0 | BS119: =+IF($K119="Ongoing",AW119,IF(RIGHT($K119,2)=RIGHT(BS$39,2),SUM($AV119:AW119),0)+IF(RIGHT(BS$39,2)>RIGHT($K119,2),AW119,0)) -> 0 | BT119: =+IF($K119="Ongoing",AX119,IF(RIGHT($K119,2)=RIGHT(BT$39,2),SUM($AV119:AX119),0)+IF(RIGHT(BT$39,2)>RIGHT($K119,2),AX119,0)) -> 0 | BU119: =+IF($K119="Ongoing",AY119,IF(RIGHT($K119,2)=RIGHT(BU$39,2),SUM($AV119:AY119),0)+IF(RIGHT(BU$39,2)>RIGHT($K119,2),AY119,0)) -> 0 | BV119: =+IF($K119="Ongoing",AZ119,IF(RIGHT($K119,2)=RIGHT(BV$39,2),SUM($AV119:AZ119),0)+IF(RIGHT(BV$39,2)>RIGHT($K119,2),AZ119,0)) -> 0 | BW119: =+IF($K119="Ongoing",BA119,IF(RIGHT($K119,2)=RIGHT(BW$39,2),SUM($AV119:BA119),0)+IF(RIGHT(BW$39,2)>RIGHT($K119,2),BA119,0)) -> 0 | BX119: =+IF($K119="Ongoing",BB119,IF(RIGHT($K119,2)=RIGHT(BX$39,2),SUM($AV119:BB119),0)+IF(RIGHT(BX$39,2)>RIGHT($K119,2),BB119,0)) -> 5.432 | BY119: =+IF($K119="Ongoing",BC119,IF(RIGHT($K119,2)=RIGHT(BY$39,2),SUM($AV119:BC119),0)+IF(RIGHT(BY$39,2)>RIGHT($K119,2),BC119,0)) -> 0 | BZ119: =+IF($K119="Ongoing",BD119,IF(RIGHT($K119,2)=RIGHT(BZ$39,2),SUM($AV119:BD119),0)+IF(RIGHT(BZ$39,2)>RIGHT($K119,2),BD119,0)) -> 0 | CA119: =+IF($K119="Ongoing",BE119,IF(RIGHT($K119,2)=RIGHT(CA$39,2),SUM($AV119:BE119),0)+IF(RIGHT(CA$39,2)>RIGHT($K119,2),BE119,0)) -> 0 | CC119: =+O119*KeyAssumptionsPriceControl_FO!X$15 -> 0 | CD119: =+P119*KeyAssumptionsPriceControl_FO!Y$15 -> 0 | CE119: =+Q119*KeyAssumptionsPriceControl_FO!Z$15 -> 0 | CF119: =+R119*KeyAssumptionsPriceControl_FO!AA$15 -> 0 | CG119: =+S119*KeyAssumptionsPriceControl_FO!AB$15 -> 0 | CH119: =+T119*KeyAssumptionsPriceControl_FO!AC$15 -> 0 | CI119: =+U119*KeyAssumptionsPriceControl_FO!AD$15 -> 6.369263221 | CJ119: =+V119*KeyAssumptionsPriceControl_FO!AE$15 -> 0 | CK119: =+W119*KeyAssumptionsPriceControl_FO!AF$15 -> 0 | CL119: =+X119*KeyAssumptionsPriceControl_FO!AG$15 -> 0 | CN119: 0 | CO119: 0 | CP119: 0 | CQ119: 0 | CR119: 0 | CS119: 0 | CT119: 0.03184631611 | CU119: 0.06369263221 | CV119: 0.06369263221 | CW119: 0.06369263221
C120: Storages | E120: Water | F120: Renewals | G120: Headworks | H120: Capital Programs / Allocation | J120: Straight line | K120: 2025-26 | L120: 100 | M120: 100 | V120: 0.65 | AV120: 0 | AW120: 0 | AX120: 0 | AY120: 0 | AZ120: 0 | BA120: 0 | BB120: 0 | BC120: 0.65 | BD120: 0 | BE120: 0 | BG120: 0 | BH120: 0 | BI120: 0 | BJ120: 0 | BK120: 0 | BL120: 0 | BM120: 0 | BN120: 0.00325 | BO120: 0.0065 | BP120: 0.0065 | BR120: =+IF($K120="Ongoing",AV120,IF(RIGHT($K120,2)=RIGHT(BR$39,2),SUM($AV120:AV120),0)+IF(RIGHT(BR$39,2)>RIGHT($K120,2),AV120,0)) -> 0 | BS120: =+IF($K120="Ongoing",AW120,IF(RIGHT($K120,2)=RIGHT(BS$39,2),SUM($AV120:AW120),0)+IF(RIGHT(BS$39,2)>RIGHT($K120,2),AW120,0)) -> 0 | BT120: =+IF($K120="Ongoing",AX120,IF(RIGHT($K120,2)=RIGHT(BT$39,2),SUM($AV120:AX120),0)+IF(RIGHT(BT$39,2)>RIGHT($K120,2),AX120,0)) -> 0 | BU120: =+IF($K120="Ongoing",AY120,IF(RIGHT($K120,2)=RIGHT(BU$39,2),SUM($AV120:AY120),0)+IF(RIGHT(BU$39,2)>RIGHT($K120,2),AY120,0)) -> 0 | BV120: =+IF($K120="Ongoing",AZ120,IF(RIGHT($K120,2)=RIGHT(BV$39,2),SUM($AV120:AZ120),0)+IF(RIGHT(BV$39,2)>RIGHT($K120,2),AZ120,0)) -> 0 | BW120: =+IF($K120="Ongoing",BA120,IF(RIGHT($K120,2)=RIGHT(BW$39,2),SUM($AV120:BA120),0)+IF(RIGHT(BW$39,2)>RIGHT($K120,2),BA120,0)) -> 0 | BX120: =+IF($K120="Ongoing",BB120,IF(RIGHT($K120,2)=RIGHT(BX$39,2),SUM($AV120:BB120),0)+IF(RIGHT(BX$39,2)>RIGHT($K120,2),BB120,0)) -> 0 | BY120: =+IF($K120="Ongoing",BC120,IF(RIGHT($K120,2)=RIGHT(BY$39,2),SUM($AV120:BC120),0)+IF(RIGHT(BY$39,2)>RIGHT($K120,2),BC120,0)) -> 0.65 | BZ120: =+IF($K120="Ongoing",BD120,IF(RIGHT($K120,2)=RIGHT(BZ$39,2),SUM($AV120:BD120),0)+IF(RIGHT(BZ$39,2)>RIGHT($K120,2),BD120,0)) -> 0 | CA120: =+IF($K120="Ongoing",BE120,IF(RIGHT($K120,2)=RIGHT(CA$39,2),SUM($AV120:BE120),0)+IF(RIGHT(CA$39,2)>RIGHT($K120,2),BE120,0)) -> 0 | CC120: =+O120*KeyAssumptionsPriceControl_FO!X$15 -> 0 | CD120: =+P120*KeyAssumptionsPriceControl_FO!Y$15 -> 0 | CE120: =+Q120*KeyAssumptionsPriceControl_FO!Z$15 -> 0 | CF120: =+R120*KeyAssumptionsPriceControl_FO!AA$15 -> 0 | CG120: =+S120*KeyAssumptionsPriceControl_FO!AB$15 -> 0 | CH120: =+T120*KeyAssumptionsPriceControl_FO!AC$15 -> 0 | CI120: =+U120*KeyAssumptionsPriceControl_FO!AD$15 -> 0 | CJ120: =+V120*KeyAssumptionsPriceControl_FO!AE$15 -> 0.7796836486 | CK120: =+W120*KeyAssumptionsPriceControl_FO!AF$15 -> 0 | CL120: =+X120*KeyAssumptionsPriceControl_FO!AG$15 -> 0 | CN120: 0 | CO120: 0 | CP120: 0 | CQ120: 0 | CR120: 0 | CS120: 0 | CT120: 0 | CU120: 0.003898418243 | CV120: 0.007796836486 | CW120: 0.007796836486
C121: Storages | E121: Water | F121: Renewals | G121: Headworks | H121: Capital Programs / Allocation | J121: Straight line | K121: 2026-27 | L121: 100 | M121: 100 | W121: 3.078111 | AV121: 0 | AW121: 0 | AX121: 0 | AY121: 0 | AZ121: 0 | BA121: 0 | BB121: 0 | BC121: 0 | BD121: 3.078111 | BE121: 0 | BG121: 0 | BH121: 0 | BI121: 0 | BJ121: 0 | BK121: =IF($L121=0,0, IF($L121<=0.5,BV121, IF(AND($J121="straight line",$L121<1.51),(BU121-((BU121/$L121)*0.5))+BV121/$L121*0.5, IF($J121="straight line", IF((LEFT(BK$39,4)*1)-INT($L121)<LEFT($BG$39,4)*1,0,((OFFSET(BV121,0,-INT($L121+0.5),1,1))/$L121)*(IF($L121-INT($L121)>0.5,$L121-0.5-INT($L121),IF($L121-INT($L121)<=0.5,$L121-0.5-INT($L121)+1,0)))) +BV121/$L121*0.5 +SUM(OFFSET(BV121,0,MAX(-INT($L121+(0.5-(10^-12))),-BK$40)+1,1,MIN(INT($L121+(0.5-(10^-12))),BK$40)-1))*1/$L121, IF($J121="Declining Balance",-$BG$38,0))))) -> 0 | BL121: 0 | BM121: 0 | BN121: 0 | BO121: 0.015390555 | BP121: 0.03078111 | BR121: =+IF($K121="Ongoing",AV121,IF(RIGHT($K121,2)=RIGHT(BR$39,2),SUM($AV121:AV121),0)+IF(RIGHT(BR$39,2)>RIGHT($K121,2),AV121,0)) -> 0 | BS121: =+IF($K121="Ongoing",AW121,IF(RIGHT($K121,2)=RIGHT(BS$39,2),SUM($AV121:AW121),0)+IF(RIGHT(BS$39,2)>RIGHT($K121,2),AW121,0)) -> 0 | BT121: =+IF($K121="Ongoing",AX121,IF(RIGHT($K121,2)=RIGHT(BT$39,2),SUM($AV121:AX121),0)+IF(RIGHT(BT$39,2)>RIGHT($K121,2),AX121,0)) -> 0 | BU121: =+IF($K121="Ongoing",AY121,IF(RIGHT($K121,2)=RIGHT(BU$39,2),SUM($AV121:AY121),0)+IF(RIGHT(BU$39,2)>RIGHT($K121,2),AY121,0)) -> 0 | BV121: =+IF($K121="Ongoing",AZ121,IF(RIGHT($K121,2)=RIGHT(BV$39,2),SUM($AV121:AZ121),0)+IF(RIGHT(BV$39,2)>RIGHT($K121,2),AZ121,0)) -> 0 | BW121: =+IF($K121="Ongoing",BA121,IF(RIGHT($K121,2)=RIGHT(BW$39,2),SUM($AV121:BA121),0)+IF(RIGHT(BW$39,2)>RIGHT($K121,2),BA121,0)) -> 0 | BX121: =+IF($K121="Ongoing",BB121,IF(RIGHT($K121,2)=RIGHT(BX$39,2),SUM($AV121:BB121),0)+IF(RIGHT(BX$39,2)>RIGHT($K121,2),BB121,0)) -> 0 | BY121: =+IF($K121="Ongoing",BC121,IF(RIGHT($K121,2)=RIGHT(BY$39,2),SUM($AV121:BC121),0)+IF(RIGHT(BY$39,2)>RIGHT($K121,2),BC121,0)) -> 0 | BZ121: =+IF($K121="Ongoing",BD121,IF(RIGHT($K121,2)=RIGHT(BZ$39,2),SUM($AV121:BD121),0)+IF(RIGHT(BZ$39,2)>RIGHT($K121,2),BD121,0)) -> 3.078111 | CA121: =+IF($K121="Ongoing",BE121,IF(RIGHT($K121,2)=RIGHT(CA$39,2),SUM($AV121:BE121),0)+IF(RIGHT(CA$39,2)>RIGHT($K121,2),BE121,0)) -> 0 | CC121: =+O121*KeyAssumptionsPriceControl_FO!X$15 -> 0 | CD121: =+P121*KeyAssumptionsPriceControl_FO!Y$15 -> 0 | CE121: =+Q121*KeyAssumptionsPriceControl_FO!Z$15 -> 0 | CF121: =+R121*KeyAssumptionsPriceControl_FO!AA$15 -> 0 | CG121: =+S121*KeyAssumptionsPriceControl_FO!AB$15 -> 0 | CH121: =+T121*KeyAssumptionsPriceControl_FO!AC$15 -> 0 | CI121: =+U121*KeyAssumptionsPriceControl_FO!AD$15 -> 0 | CJ121: =+V121*KeyAssumptionsPriceControl_FO!AE$15 -> 0 | CK121: =+W121*KeyAssumptionsPriceControl_FO!AF$15 -> 3.777156508 | CL121: =+X121*KeyAssumptionsPriceControl_FO!AG$15 -> 0 | CN121: 0 | CO121: 0 | CP121: 0 | CQ121: 0 | CR121: =IF($M121=0,0, IF($M121<=0.5,CG121, IF(AND($J121="straight line",$M121<1.51),(CF121-((CF121/$M121)*0.5))+CG121/$M121*0.5, IF($J121="straight line", IF((LEFT(CR$39,4)*1)-INT($M121)<LEFT($CN$39,4)*1,0,((OFFSET(CG121,0,-INT($M121+0.5),1,1))/$M121)*(IF($M121-INT($M121)>0.5,$M121-0.5-INT($M121),IF($M121-INT($M121)<=0.5,$M121-0.5-INT($M121)+1,0)))) +CG121/$M121*0.5 +SUM(OFFSET(CG121,0,MAX(-INT($M121+(0.5-(10^-12))),-CR$40)+1,1,MIN(INT($M121+(0.5-(10^-12))),CR$40)-1))*1/$M121, IF($J121="Declining Balance",-$CN$38,0))))) -> 0 | CS121: 0 | CT121: 0 | CU121: 0 | CV121: 0.01888578254 | CW121: 0.03777156508
C122: Storages | E122: Water | F122: Renewals | G122: Headworks | H122: Capital Programs / Allocation | J122: Straight line | K122: 2027-28 | L122: 100 | M122: 100 | X122: 4.275 | AV122: 0 | AW122: 0 | AX122: 0 | AY122: 0 | AZ122: 0 | BA122: 0 | BB122: 0 | BC122: 0 | BD122: 0 | BE122: 4.275 | BG122: 0 | BH122: =IF($L122=0,0, IF($L122<=0.5,BS122, IF(AND($J122="straight line",$L122<1.51),(BR122-((BR122/$L122)*0.5))+BS122/$L122*0.5, IF($J122="straight line", IF((LEFT(BH$39,4)*1)-INT($L122)<LEFT($BG$39,4)*1,0,((OFFSET(BS122,0,-INT($L122+0.5),1,1))/$L122)*(IF($L122-INT($L122)>0.5,$L122-0.5-INT($L122),IF($L122-INT($L122)<=0.5,$L122-0.5-INT($L122)+1,0)))) +BS122/$L122*0.5 +SUM(OFFSET(BS122,0,MAX(-INT($L122+(0.5-(10^-12))),-BH$40)+1,1,MIN(INT($L122+(0.5-(10^-12))),BH$40)-1))*1/$L122, IF($J122="Declining Balance",-$BG$38,0))))) -> 0 | BI122: 0 | BJ122: 0 | BK122: 0 | BL122: 0 | BM122: 0 | BN122: 0 | BO122: 0 | BP122: 0.021375 | BR122: =+IF($K122="Ongoing",AV122,IF(RIGHT($K122,2)=RIGHT(BR$39,2),SUM($AV122:AV122),0)+IF(RIGHT(BR$39,2)>RIGHT($K122,2),AV122,0)) -> 0 | BS122: =+IF($K122="Ongoing",AW122,IF(RIGHT($K122,2)=RIGHT(BS$39,2),SUM($AV122:AW122),0)+IF(RIGHT(BS$39,2)>RIGHT($K122,2),AW122,0)) -> 0 | BT122: =+IF($K122="Ongoing",AX122,IF(RIGHT($K122,2)=RIGHT(BT$39,2),SUM($AV122:AX122),0)+IF(RIGHT(BT$39,2)>RIGHT($K122,2),AX122,0)) -> 0 | BU122: =+IF($K122="Ongoing",AY122,IF(RIGHT($K122,2)=RIGHT(BU$39,2),SUM($AV122:AY122),0)+IF(RIGHT(BU$39,2)>RIGHT($K122,2),AY122,0)) -> 0 | BV122: =+IF($K122="Ongoing",AZ122,IF(RIGHT($K122,2)=RIGHT(BV$39,2),SUM($AV122:AZ122),0)+IF(RIGHT(BV$39,2)>RIGHT($K122,2),AZ122,0)) -> 0 | BW122: =+IF($K122="Ongoing",BA122,IF(RIGHT($K122,2)=RIGHT(BW$39,2),SUM($AV122:BA122),0)+IF(RIGHT(BW$39,2)>RIGHT($K122,2),BA122,0)) -> 0 | BX122: =+IF($K122="Ongoing",BB122,IF(RIGHT($K122,2)=RIGHT(BX$39,2),SUM($AV122:BB122),0)+IF(RIGHT(BX$39,2)>RIGHT($K122,2),BB122,0)) -> 0 | BY122: =+IF($K122="Ongoing",BC122,IF(RIGHT($K122,2)=RIGHT(BY$39,2),SUM($AV122:BC122),0)+IF(RIGHT(BY$39,2)>RIGHT($K122,2),BC122,0)) -> 0 | BZ122: =+IF($K122="Ongoing",BD122,IF(RIGHT($K122,2)=RIGHT(BZ$39,2),SUM($AV122:BD122),0)+IF(RIGHT(BZ$39,2)>RIGHT($K122,2),BD122,0)) -> 0 | CA122: =+IF($K122="Ongoing",BE122,IF(RIGHT($K122,2)=RIGHT(CA$39,2),SUM($AV122:BE122),0)+IF(RIGHT(CA$39,2)>RIGHT($K122,2),BE122,0)) -> 4.275 | CC122: =+O122*KeyAssumptionsPriceControl_FO!X$15 -> 0 | CD122: =+P122*KeyAssumptionsPriceControl_FO!Y$15 -> 0 | CE122: =+Q122*KeyAssumptionsPriceControl_FO!Z$15 -> 0 | CF122: =+R122*KeyAssumptionsPriceControl_FO!AA$15 -> 0 | CG122: =+S122*KeyAssumptionsPriceControl_FO!AB$15 -> 0 | CH122: =+T122*KeyAssumptionsPriceControl_FO!AC$15 -> 0 | CI122: =+U122*KeyAssumptionsPriceControl_FO!AD$15 -> 0 | CJ122: =+V122*KeyAssumptionsPriceControl_FO!AE$15 -> 0 | CK122: =+W122*KeyAssumptionsPriceControl_FO!AF$15 -> 0 | CL122: =+X122*KeyAssumptionsPriceControl_FO!AG$15 -> 5.366516342 | CN122: 0 | CO122: =IF($M122=0,0, IF($M122<=0.5,CD122, IF(AND($J122="straight line",$M122<1.51),(CC122-((CC122/$M122)*0.5))+CD122/$M122*0.5, IF($J122="straight line", IF((LEFT(CO$39,4)*1)-INT($M122)<LEFT($CN$39,4)*1,0,((OFFSET(CD122,0,-INT($M122+0.5),1,1))/$M122)*(IF($M122-INT($M122)>0.5,$M122-0.5-INT($M122),IF($M122-INT($M122)<=0.5,$M122-0.5-INT($M122)+1,0)))) +CD122/$M122*0.5 +SUM(OFFSET(CD122,0,MAX(-INT($M122+(0.5-(10^-12))),-CO$40)+1,1,MIN(INT($M122+(0.5-(10^-12))),CO$40)-1))*1/$M122, IF($J122="Declining Balance",-$CN$38,0))))) -> 0 | CP122: 0 | CQ122: 0 | CR122: 0 | CS122: 0 | CT122: 0 | CU122: 0 | CV122: 0 | CW122: 0.02683258171
C123: Plant & Equipment | E123: Sewerage | F123: Renewals | G123: Corporate | H123: Capital Programs / Allocation | J123: Straight line | K123: 2018-19 | L123: 25 | M123: 25 | O123: 0.3185 | AV123: 0.3185 | AW123: 0 | AX123: 0 | AY123: 0 | AZ123: 0 | BA123: 0 | BB123: 0 | BC123: 0 | BD123: 0 | BE123: 0 | BG123: 0.00637 | BH123: 0.01274 | BI123: 0.01274 | BJ123: 0.01274 | BK123: 0.01274 | BL123: 0.01274 | BM123: 0.01274 | BN123: 0.01274 | BO123: 0.01274 | BP123: 0.01274 | BR123: =+IF($K123="Ongoing",AV123,IF(RIGHT($K123,2)=RIGHT(BR$39,2),SUM($AV123:AV123),0)+IF(RIGHT(BR$39,2)>RIGHT($K123,2),AV123,0)) -> 0.3185 | BS123: =+IF($K123="Ongoing",AW123,IF(RIGHT($K123,2)=RIGHT(BS$39,2),SUM($AV123:AW123),0)+IF(RIGHT(BS$39,2)>RIGHT($K123,2),AW123,0)) -> 0 | BT123: =+IF($K123="Ongoing",AX123,IF(RIGHT($K123,2)=RIGHT(BT$39,2),SUM($AV123:AX123),0)+IF(RIGHT(BT$39,2)>RIGHT($K123,2),AX123,0)) -> 0 | BU123: =+IF($K123="Ongoing",AY123,IF(RIGHT($K123,2)=RIGHT(BU$39,2),SUM($AV123:AY123),0)+IF(RIGHT(BU$39,2)>RIGHT($K123,2),AY123,0)) -> 0 | BV123: =+IF($K123="Ongoing",AZ123,IF(RIGHT($K123,2)=RIGHT(BV$39,2),SUM($AV123:AZ123),0)+IF(RIGHT(BV$39,2)>RIGHT($K123,2),AZ123,0)) -> 0 | BW123: =+IF($K123="Ongoing",BA123,IF(RIGHT($K123,2)=RIGHT(BW$39,2),SUM($AV123:BA123),0)+IF(RIGHT(BW$39,2)>RIGHT($K123,2),BA123,0)) -> 0 | BX123: =+IF($K123="Ongoing",BB123,IF(RIGHT($K123,2)=RIGHT(BX$39,2),SUM($AV123:BB123),0)+IF(RIGHT(BX$39,2)>RIGHT($K123,2),BB123,0)) -> 0 | BY123: =+IF($K123="Ongoing",BC123,IF(RIGHT($K123,2)=RIGHT(BY$39,2),SUM($AV123:BC123),0)+IF(RIGHT(BY$39,2)>RIGHT($K123,2),BC123,0)) -> 0 | BZ123: =+IF($K123="Ongoing",BD123,IF(RIGHT($K123,2)=RIGHT(BZ$39,2),SUM($AV123:BD123),0)+IF(RIGHT(BZ$39,2)>RIGHT($K123,2),BD123,0)) -> 0 | CA123: =+IF($K123="Ongoing",BE123,IF(RIGHT($K123,2)=RIGHT(CA$39,2),SUM($AV123:BE123),0)+IF(RIGHT(CA$39,2)>RIGHT($K123,2),BE123,0)) -> 0 | CC123: =+O123*KeyAssumptionsPriceControl_FO!X$15 -> 0.3258255 | CD123: =+P123*KeyAssumptionsPriceControl_FO!Y$15 -> 0 | CE123: =+Q123*KeyAssumptionsPriceControl_FO!Z$15 -> 0 | CF123: =+R123*KeyAssumptionsPriceControl_FO!AA$15 -> 0 | CG123: =+S123*KeyAssumptionsPriceControl_FO!AB$15 -> 0 | CH123: =+T123*KeyAssumptionsPriceControl_FO!AC$15 -> 0 | CI123: =+U123*KeyAssumptionsPriceControl_FO!AD$15 -> 0 | CJ123: =+V123*KeyAssumptionsPriceControl_FO!AE$15 -> 0 | CK123: =+W123*KeyAssumptionsPriceControl_FO!AF$15 -> 0 | CL123: =+X123*KeyAssumptionsPriceControl_FO!AG$15 -> 0 | CN123: 0.00651651 | CO123: 0.01303302 | CP123: 0.01303302 | CQ123: 0.01303302 | CR123: 0.01303302 | CS123: 0.01303302 | CT123: 0.01303302 | CU123: 0.01303302 | CV123: 0.01303302 | CW123: 0.01303302
C124: Plant & Equipment | E124: Sewerage | F124: Renewals | G124: Corporate | H124: Capital Programs / Allocation | J124: Straight line | K124: 2019-20 | L124: 25 | M124: 25 | P124: 0.53 | AV124: 0 | AW124: 0.53 | AX124: 0 | AY124: 0 | AZ124: 0 | BA124: 0 | BB124: 0 | BC124: 0 | BD124: 0 | BE124: 0 | BG124: 0 | BH124: 0.0106 | BI124: 0.0212 | BJ124: 0.0212 | BK124: 0.0212 | BL124: 0.0212 | BM124: 0.0212 | BN124: 0.0212 | BO124: 0.0212 | BP124: 0.0212 | BR124: =+IF($K124="Ongoing",AV124,IF(RIGHT($K124,2)=RIGHT(BR$39,2),SUM($AV124:AV124),0)+IF(RIGHT(BR$39,2)>RIGHT($K124,2),AV124,0)) -> 0 | BS124: =+IF($K124="Ongoing",AW124,IF(RIGHT($K124,2)=RIGHT(BS$39,2),SUM($AV124:AW124),0)+IF(RIGHT(BS$39,2)>RIGHT($K124,2),AW124,0)) -> 0.53 | BT124: =+IF($K124="Ongoing",AX124,IF(RIGHT($K124,2)=RIGHT(BT$39,2),SUM($AV124:AX124),0)+IF(RIGHT(BT$39,2)>RIGHT($K124,2),AX124,0)) -> 0 | BU124: =+IF($K124="Ongoing",AY124,IF(RIGHT($K124,2)=RIGHT(BU$39,2),SUM($AV124:AY124),0)+IF(RIGHT(BU$39,2)>RIGHT($K124,2),AY124,0)) -> 0 | BV124: =+IF($K124="Ongoing",AZ124,IF(RIGHT($K124,2)=RIGHT(BV$39,2),SUM($AV124:AZ124),0)+IF(RIGHT(BV$39,2)>RIGHT($K124,2),AZ124,0)) -> 0 | BW124: =+IF($K124="Ongoing",BA124,IF(RIGHT($K124,2)=RIGHT(BW$39,2),SUM($AV124:BA124),0)+IF(RIGHT(BW$39,2)>RIGHT($K124,2),BA124,0)) -> 0 | BX124: =+IF($K124="Ongoing",BB124,IF(RIGHT($K124,2)=RIGHT(BX$39,2),SUM($AV124:BB124),0)+IF(RIGHT(BX$39,2)>RIGHT($K124,2),BB124,0)) -> 0 | BY124: =+IF($K124="Ongoing",BC124,IF(RIGHT($K124,2)=RIGHT(BY$39,2),SUM($AV124:BC124),0)+IF(RIGHT(BY$39,2)>RIGHT($K124,2),BC124,0)) -> 0 | BZ124: =+IF($K124="Ongoing",BD124,IF(RIGHT($K124,2)=RIGHT(BZ$39,2),SUM($AV124:BD124),0)+IF(RIGHT(BZ$39,2)>RIGHT($K124,2),BD124,0)) -> 0 | CA124: =+IF($K124="Ongoing",BE124,IF(RIGHT($K124,2)=RIGHT(CA$39,2),SUM($AV124:BE124),0)+IF(RIGHT(CA$39,2)>RIGHT($K124,2),BE124,0)) -> 0 | CC124: =+O124*KeyAssumptionsPriceControl_FO!X$15 -> 0 | CD124: =+P124*KeyAssumptionsPriceControl_FO!Y$15 -> 0.55466037 | CE124: =+Q124*KeyAssumptionsPriceControl_FO!Z$15 -> 0 | CF124: =+R124*KeyAssumptionsPriceControl_FO!AA$15 -> 0 | CG124: =+S124*KeyAssumptionsPriceControl_FO!AB$15 -> 0 | CH124: =+T124*KeyAssumptionsPriceControl_FO!AC$15 -> 0 | CI124: =+U124*KeyAssumptionsPriceControl_FO!AD$15 -> 0 | CJ124: =+V124*KeyAssumptionsPriceControl_FO!AE$15 -> 0 | CK124: =+W124*KeyAssumptionsPriceControl_FO!AF$15 -> 0 | CL124: =+X124*KeyAssumptionsPriceControl_FO!AG$15 -> 0 | CN124: 0 | CO124: 0.0110932074 | CP124: 0.0221864148 | CQ124: 0.0221864148 | CR124: 0.0221864148 | CS124: 0.0221864148 | CT124: 0.0221864148 | CU124: 0.0221864148 | CV124: 0.0221864148 | CW124: 0.0221864148
C125: Plant & Equipment | E125: Sewerage | F125: Renewals | G125: Corporate | H125: Capital Programs / Allocation | J125: Straight line | K125: 2020-21 | L125: 25 | M125: 25 | Q125: 1.4525 | AV125: 0 | AW125: 0 | AX125: 1.4525 | AY125: 0 | AZ125: 0 | BA125: 0 | BB125: 0 | BC125: 0 | BD125: 0 | BE125: 0 | BG125: 0 | BH125: 0 | BI125: 0.02905 | BJ125: 0.0581 | BK125: 0.0581 | BL125: 0.0581 | BM125: 0.0581 | BN125: 0.0581 | BO125: 0.0581 | BP125: 0.0581 | BR125: =+IF($K125="Ongoing",AV125,IF(RIGHT($K125,2)=RIGHT(BR$39,2),SUM($AV125:AV125),0)+IF(RIGHT(BR$39,2)>RIGHT($K125,2),AV125,0)) -> 0 | BS125: =+IF($K125="Ongoing",AW125,IF(RIGHT($K125,2)=RIGHT(BS$39,2),SUM($AV125:AW125),0)+IF(RIGHT(BS$39,2)>RIGHT($K125,2),AW125,0)) -> 0 | BT125: =+IF($K125="Ongoing",AX125,IF(RIGHT($K125,2)=RIGHT(BT$39,2),SUM($AV125:AX125),0)+IF(RIGHT(BT$39,2)>RIGHT($K125,2),AX125,0)) -> 1.4525 | BU125: =+IF($K125="Ongoing",AY125,IF(RIGHT($K125,2)=RIGHT(BU$39,2),SUM($AV125:AY125),0)+IF(RIGHT(BU$39,2)>RIGHT($K125,2),AY125,0)) -> 0 | BV125: =+IF($K125="Ongoing",AZ125,IF(RIGHT($K125,2)=RIGHT(BV$39,2),SUM($AV125:AZ125),0)+IF(RIGHT(BV$39,2)>RIGHT($K125,2),AZ125,0)) -> 0 | BW125: =+IF($K125="Ongoing",BA125,IF(RIGHT($K125,2)=RIGHT(BW$39,2),SUM($AV125:BA125),0)+IF(RIGHT(BW$39,2)>RIGHT($K125,2),BA125,0)) -> 0 | BX125: =+IF($K125="Ongoing",BB125,IF(RIGHT($K125,2)=RIGHT(BX$39,2),SUM($AV125:BB125),0)+IF(RIGHT(BX$39,2)>RIGHT($K125,2),BB125,0)) -> 0 | BY125: =+IF($K125="Ongoing",BC125,IF(RIGHT($K125,2)=RIGHT(BY$39,2),SUM($AV125:BC125),0)+IF(RIGHT(BY$39,2)>RIGHT($K125,2),BC125,0)) -> 0 | BZ125: =+IF($K125="Ongoing",BD125,IF(RIGHT($K125,2)=RIGHT(BZ$39,2),SUM($AV125:BD125),0)+IF(RIGHT(BZ$39,2)>RIGHT($K125,2),BD125,0)) -> 0 | CA125: =+IF($K125="Ongoing",BE125,IF(RIGHT($K125,2)=RIGHT(CA$39,2),SUM($AV125:BE125),0)+IF(RIGHT(CA$39,2)>RIGHT($K125,2),BE125,0)) -> 0 | CC125: =+O125*KeyAssumptionsPriceControl_FO!X$15 -> 0 | CD125: =+P125*KeyAssumptionsPriceControl_FO!Y$15 -> 0 | CE125: =+Q125*KeyAssumptionsPriceControl_FO!Z$15 -> 1.55504529 | CF125: =+R125*KeyAssumptionsPriceControl_FO!AA$15 -> 0 | CG125: =+S125*KeyAssumptionsPriceControl_FO!AB$15 -> 0 | CH125: =+T125*KeyAssumptionsPriceControl_FO!AC$15 -> 0 | CI125: =+U125*KeyAssumptionsPriceControl_FO!AD$15 -> 0 | CJ125: =+V125*KeyAssumptionsPriceControl_FO!AE$15 -> 0 | CK125: =+W125*KeyAssumptionsPriceControl_FO!AF$15 -> 0 | CL125: =+X125*KeyAssumptionsPriceControl_FO!AG$15 -> 0 | CN125: 0 | CO125: 0 | CP125: 0.0311009058 | CQ125: 0.0622018116 | CR125: 0.0622018116 | CS125: 0.0622018116 | CT125: 0.0622018116 | CU125: 0.0622018116 | CV125: 0.0622018116 | CW125: 0.0622018116
C126: Plant & Equipment | E126: Sewerage | F126: Renewals | G126: Corporate | H126: Capital Programs / Allocation | J126: Straight line | K126: 2021-22 | L126: 25 | M126: 25 | R126: 0.3185 | AV126: 0 | AW126: 0 | AX126: 0 | AY126: 0.3185 | AZ126: 0 | BA126: 0 | BB126: 0 | BC126: 0 | BD126: 0 | BE126: 0 | BG126: 0 | BH126: 0 | BI126: 0 | BJ126: 0.00637 | BK126: 0.01274 | BL126: 0.01274 | BM126: 0.01274 | BN126: 0.01274 | BO126: 0.01274 | BP126: 0.01274 | BR126: =+IF($K126="Ongoing",AV126,IF(RIGHT($K126,2)=RIGHT(BR$39,2),SUM($AV126:AV126),0)+IF(RIGHT(BR$39,2)>RIGHT($K126,2),AV126,0)) -> 0 | BS126: =+IF($K126="Ongoing",AW126,IF(RIGHT($K126,2)=RIGHT(BS$39,2),SUM($AV126:AW126),0)+IF(RIGHT(BS$39,2)>RIGHT($K126,2),AW126,0)) -> 0 | BT126: =+IF($K126="Ongoing",AX126,IF(RIGHT($K126,2)=RIGHT(BT$39,2),SUM($AV126:AX126),0)+IF(RIGHT(BT$39,2)>RIGHT($K126,2),AX126,0)) -> 0 | BU126: =+IF($K126="Ongoing",AY126,IF(RIGHT($K126,2)=RIGHT(BU$39,2),SUM($AV126:AY126),0)+IF(RIGHT(BU$39,2)>RIGHT($K126,2),AY126,0)) -> 0.3185 | BV126: =+IF($K126="Ongoing",AZ126,IF(RIGHT($K126,2)=RIGHT(BV$39,2),SUM($AV126:AZ126),0)+IF(RIGHT(BV$39,2)>RIGHT($K126,2),AZ126,0)) -> 0 | BW126: =+IF($K126="Ongoing",BA126,IF(RIGHT($K126,2)=RIGHT(BW$39,2),SUM($AV126:BA126),0)+IF(RIGHT(BW$39,2)>RIGHT($K126,2),BA126,0)) -> 0 | BX126: =+IF($K126="Ongoing",BB126,IF(RIGHT($K126,2)=RIGHT(BX$39,2),SUM($AV126:BB126),0)+IF(RIGHT(BX$39,2)>RIGHT($K126,2),BB126,0)) -> 0 | BY126: =+IF($K126="Ongoing",BC126,IF(RIGHT($K126,2)=RIGHT(BY$39,2),SUM($AV126:BC126),0)+IF(RIGHT(BY$39,2)>RIGHT($K126,2),BC126,0)) -> 0 | BZ126: =+IF($K126="Ongoing",BD126,IF(RIGHT($K126,2)=RIGHT(BZ$39,2),SUM($AV126:BD126),0)+IF(RIGHT(BZ$39,2)>RIGHT($K126,2),BD126,0)) -> 0 | CA126: =+IF($K126="Ongoing",BE126,IF(RIGHT($K126,2)=RIGHT(CA$39,2),SUM($AV126:BE126),0)+IF(RIGHT(CA$39,2)>RIGHT($K126,2),BE126,0)) -> 0 | CC126: =+O126*KeyAssumptionsPriceControl_FO!X$15 -> 0 | CD126: =+P126*KeyAssumptionsPriceControl_FO!Y$15 -> 0 | CE126: =+Q126*KeyAssumptionsPriceControl_FO!Z$15 -> 0 | CF126: =+R126*KeyAssumptionsPriceControl_FO!AA$15 -> 0.3488285089 | CG126: =+S126*KeyAssumptionsPriceControl_FO!AB$15 -> 0 | CH126: =+T126*KeyAssumptionsPriceControl_FO!AC$15 -> 0 | CI126: =+U126*KeyAssumptionsPriceControl_FO!AD$15 -> 0 | CJ126: =+V126*KeyAssumptionsPriceControl_FO!AE$15 -> 0 | CK126: =+W126*KeyAssumptionsPriceControl_FO!AF$15 -> 0 | CL126: =+X126*KeyAssumptionsPriceControl_FO!AG$15 -> 0 | CN126: 0 | CO126: 0 | CP126: 0 | CQ126: 0.006976570178 | CR126: 0.01395314036 | CS126: 0.01395314036 | CT126: 0.01395314036 | CU126: 0.01395314036 | CV126: 0.01395314036 | CW126: 0.01395314036
C127: Plant & Equipment | E127: Sewerage | F127: Renewals | G127: Corporate | H127: Capital Programs / Allocation | J127: Straight line | K127: 2022-23 | L127: 25 | M127: 25 | S127: 0.3185 | AV127: 0 | AW127: 0 | AX127: 0 | AY127: 0 | AZ127: 0.3185 | BA127: 0 | BB127: 0 | BC127: 0 | BD127: 0 | BE127: 0 | BG127: 0 | BH127: 0 | BI127: 0 | BJ127: 0 | BK127: 0.00637 | BL127: 0.01274 | BM127: 0.01274 | BN127: 0.01274 | BO127: 0.01274 | BP127: 0.01274 | BR127: =+IF($K127="Ongoing",AV127,IF(RIGHT($K127,2)=RIGHT(BR$39,2),SUM($AV127:AV127),0)+IF(RIGHT(BR$39,2)>RIGHT($K127,2),AV127,0)) -> 0 | BS127: =+IF($K127="Ongoing",AW127,IF(RIGHT($K127,2)=RIGHT(BS$39,2),SUM($AV127:AW127),0)+IF(RIGHT(BS$39,2)>RIGHT($K127,2),AW127,0)) -> 0 | BT127: =+IF($K127="Ongoing",AX127,IF(RIGHT($K127,2)=RIGHT(BT$39,2),SUM($AV127:AX127),0)+IF(RIGHT(BT$39,2)>RIGHT($K127,2),AX127,0)) -> 0 | BU127: =+IF($K127="Ongoing",AY127,IF(RIGHT($K127,2)=RIGHT(BU$39,2),SUM($AV127:AY127),0)+IF(RIGHT(BU$39,2)>RIGHT($K127,2),AY127,0)) -> 0 | BV127: =+IF($K127="Ongoing",AZ127,IF(RIGHT($K127,2)=RIGHT(BV$39,2),SUM($AV127:AZ127),0)+IF(RIGHT(BV$39,2)>RIGHT($K127,2),AZ127,0)) -> 0.3185 | BW127: =+IF($K127="Ongoing",BA127,IF(RIGHT($K127,2)=RIGHT(BW$39,2),SUM($AV127:BA127),0)+IF(RIGHT(BW$39,2)>RIGHT($K127,2),BA127,0)) -> 0 | BX127: =+IF($K127="Ongoing",BB127,IF(RIGHT($K127,2)=RIGHT(BX$39,2),SUM($AV127:BB127),0)+IF(RIGHT(BX$39,2)>RIGHT($K127,2),BB127,0)) -> 0 | BY127: =+IF($K127="Ongoing",BC127,IF(RIGHT($K127,2)=RIGHT(BY$39,2),SUM($AV127:BC127),0)+IF(RIGHT(BY$39,2)>RIGHT($K127,2),BC127,0)) -> 0 | BZ127: =+IF($K127="Ongoing",BD127,IF(RIGHT($K127,2)=RIGHT(BZ$39,2),SUM($AV127:BD127),0)+IF(RIGHT(BZ$39,2)>RIGHT($K127,2),BD127,0)) -> 0 | CA127: =+IF($K127="Ongoing",BE127,IF(RIGHT($K127,2)=RIGHT(CA$39,2),SUM($AV127:BE127),0)+IF(RIGHT(CA$39,2)>RIGHT($K127,2),BE127,0)) -> 0 | CC127: =+O127*KeyAssumptionsPriceControl_FO!X$15 -> 0 | CD127: =+P127*KeyAssumptionsPriceControl_FO!Y$15 -> 0 | CE127: =+Q127*KeyAssumptionsPriceControl_FO!Z$15 -> 0 | CF127: =+R127*KeyAssumptionsPriceControl_FO!AA$15 -> 0 | CG127: =+S127*KeyAssumptionsPriceControl_FO!AB$15 -> 0.3568515646 | CH127: =+T127*KeyAssumptionsPriceControl_FO!AC$15 -> 0 | CI127: =+U127*KeyAssumptionsPriceControl_FO!AD$15 -> 0 | CJ127: =+V127*KeyAssumptionsPriceControl_FO!AE$15 -> 0 | CK127: =+W127*KeyAssumptionsPriceControl_FO!AF$15 -> 0 | CL127: =+X127*KeyAssumptionsPriceControl_FO!AG$15 -> 0 | CN127: 0 | CO127: 0 | CP127: 0 | CQ127: 0 | CR127: 0.007137031292 | CS127: 0.01427406258 | CT127: 0.01427406258 | CU127: 0.01427406258 | CV127: 0.01427406258 | CW127: 0.01427406258
